Workbook

Sheet Jan21
A1: %,LACTUALS,UPOSTED_TRAN_AMT | B1: %,ATF,FDESCR,UDESCR | C1: %,ATT,FACCOUNT | D1: %,LACTUALS,UPOSTED_TRAN_AMT,SPER,FBOOK_CODE,VR | E1: %,C | F1: %,LACTUALS,UPOSTED_TRAN_AMT,SYTD,FBOOK_CODE,VR | H1: %,LACTUALS,UPOSTED_TRAN_AMT,SPER-1,FBOOK_CODE,VR
B2: Columbia Gas of Kentucky Inc | H2: FOR
B3: Income Statement-FERC | H3: CALC
B4: Regulatory View - FERC Account
B5: For the Month Ended January 31, 2021 | H5: PURPOSES
B6: For Internal Use Only | H6: ONLY
D8: Current | E8: Change from | F8: Year-To- | H8: Prior
D9: Month | E9: Prior Month | F9: Date | H9: Month
B11: Operating Revenues
A13: %,V48000000 | B13: Residential Sales | C13: 48000000 | D13: 13473983.44 | E13: =D13-H13 -> 3930358.45 | F13: 13473983.44 | H13: 9543624.99
A14: %,V48000100 | B14: Residential Sales Norm | C14: 48000100 | D14: 146.93 | E14: 52.47 | F14: 146.93 | H14: 94.46
A15: %,R,FACCOUNT,TNI_ACCOUNT_FERC,XBYYYYY01,NGAS_RESID_REV | B15: Gas Residential Sales | D15: 13474130.37 | E15: =D15-H15 -> 3930410.92 | F15: 13474130.37 | H15: 9543719.45
A17: %,V48101000 | B17: Commercial Gas Sales | C17: 48101000 | D17: 5370215.75 | E17: =D17-H17 -> 1478134.65 | F17: 5370215.75 | H17: 3892081.1
A18: %,V48101200 | B18: Commercial Gas Sales Norm | C18: 48101200 | D18: 74.34 | E18: 19.84 | F18: 74.34 | H18: 54.5
A19: %,NGAS_COMM_REV | B19: Gas Commercial Revenues | D19: 5370290.09 | E19: 1478154.49 | F19: 5370290.09 | H19: 3892135.6
A20: %,V48102000 | B20: Industrial Gas Sales | C20: 48102000 | D20: 281589.71 | E20: 93899.78 | F20: 281589.71 | H20: 187689.93
A21: %,V48102300 | B21: Industrial Gas Sales Norm | C21: 48102300 | D21: 4.79 | E21: 43.48 | F21: 4.79 | H21: -38.69
A22: %,NGAS_INDUST_REV | B22: Gas Industrial Revenues | D22: 281594.5 | E22: 93943.26 | F22: 281594.5 | H22: 187651.24
A23: %,V48103000 | B23: Gas Sales-Other | C23: 48103000 | D23: 0 | E23: 0 | F23: 0 | H23: 0
A24: %,NGAS_OTHER_REV | B24: Gas Comm & Indust Other Rev | D24: 0 | E24: 0 | F24: 0 | H24: 0
A25: %,R,FACCOUNT,TNI_ACCOUNT_FERC,XBYYYYY01,NGAS_COMM_INDUST_REV | B25: Gas Comm & Indust Revenues | D25: 5651884.59 | E25: 1572097.75 | F25: 5651884.59 | H25: 4079786.84
A26: %,V48300000 | B26: Sales for Resale-Gas | C26: 48300000 | D26: 10952.73 | E26: =D26-H26 -> 6000.38 | F26: 10952.73 | H26: 4952.35
A27: %,R,FACCOUNT,TNI_ACCOUNT_FERC,XBYYYYY01,NGAS_SALES_RESALE | B27: Gas Sales for Resale | D27: 10952.73 | E27: 6000.38 | F27: 10952.73 | H27: 4952.35
A28: %,R,FACCOUNT,TNI_ACCOUNT_FERC,XBYYYYY01,NGAS_INTERDEPT_SALES | B28: Gas Interdepartmental Sales | D28: 0 | E28: 0 | F28: 0
A29: %,R,FACCOUNT,TNI_ACCOUNT_FERC,XBYYYYY01,NGAS_INTRACO_TRANSFER | B29: Gas Intercompany Transfers | D29: 0 | E29: =D29-H29 -> 0 | F29: 0
A30: xx | B30: Total Sales of Gas | D30: =D15+D25+D27+D28+D29 -> 19136967.69 | E30: =E15+E25+E27+E28+E29 -> 5508509.05 | F30: =F15+F25+F27+F28+F29 -> 19136967.69
A32: %,R,FACCOUNT,TNI_ACCOUNT_FERC,XBYYYYY01,NELE_RESID_REV | B32: Electric Residential Revenues | D32: 0 | E32: =D32-H32 -> 0 | F32: 0
A33: %,R,FACCOUNT,TNI_ACCOUNT_FERC,XBYYYYY01,NELE_COMM_IND_REV | B33: Elec Comm & Indust Rev | D33: 0 | E33: 0 | F33: 0
A34: %,R,FACCOUNT,TNI_ACCOUNT_FERC,XBYYYYY01,NELE_STREET_HWY_LIGHT | B34: Public Street & Hwy Lighting | D34: 0 | E34: 0 | F34: 0
A35: %,R,FACCOUNT,TNI_ACCOUNT_FERC,XBYYYYY01,NELE_OTH_SALES_PUBLIC | B35: Elec Oth Sales to Public Auth | D35: 0 | E35: 0 | F35: 0
A36: %,R,FACCOUNT,TNI_ACCOUNT_FERC,XBYYYYY01,NELE_RAILROAD | B36: Sales to Railroads & Railways | D36: 0 | E36: 0 | F36: 0
A37: %,R,FACCOUNT,TNI_ACCOUNT_FERC,XBYYYYY01,NELE_SALES_RESALE | B37: Electric Sales for Resale | D37: 0 | E37: 0 | F37: 0
A38: %,R,FACCOUNT,TNI_ACCOUNT_FERC,XBYYYYY01,NELE_INTERDEPT_SALES | B38: Elec Interdepartmental Sales | D38: 0 | E38: 0 | F38: 0
A39: xx | B39: Total Sales of Electricity | D39: =D32+D33+D34+D35+D36+D37+D38 -> 0 | E39: =E32+E33+E34+E35+E36+E37+E38 -> 0 | F39: 0
A41: %,V48700000 | B41: Forfeited Discounts-Gas | C41: 48700000 | D41: 49603.07 | E41: =D41-H41 -> 26639.04 | F41: 49603.07 | H41: 22964.03
A42: %,R,FACCOUNT,TNI_ACCOUNT_FERC,XBYYYYY01,NFORFEITED_DISC_GAS | B42: Forfeited Discounts - Gas | D42: 49603.07 | E42: =D42-H42 -> 26639.04 | F42: 49603.07 | H42: 22964.03
A43: %,R,FACCOUNT,TNI_ACCOUNT_FERC,XBYYYYY01,NFORFEITED_DISC_ELE | B43: Forfeited Discounts - Ele | D43: 0 | E43: 0 | F43: 0
B44: Total Forfeited Discounts | D44: =D42+D43 -> 49603.07 | E44: =E42+E43 -> 26639.04 | F44: 49603.07
A46: %,V48800000 | B46: Misc Service Revenues-Gas | C46: 48800000 | D46: -2339.49 | E46: =D46-H46 -> -31524.76 | F46: -2339.49 | H46: 29185.27
A47: %,R,FACCOUNT,TNI_ACCOUNT_FERC,XBYYYYY01,NMISC_SERV_REVS_GAS | B47: Misc Service Revenues - Gas | D47: -2339.49 | E47: =D47-H47 -> -31524.76 | F47: -2339.49 | H47: 29185.27
A48: %,R,FACCOUNT,TNI_ACCOUNT_FERC,XBYYYYY01,NMISC_SERV_REVS_ELE | B48: Misc Service Revenues - Ele | D48: 0 | E48: 0 | F48: 0
B49: Total Miscellaneous Service Revenues | D49: =D47+D48 -> -2339.49 | E49: =E47+E48 -> -31524.76 | F49: -2339.49
A51: %,R,FACCOUNT,TNI_ACCOUNT_FERC,XBYYYYY01,NRENT_ELE_PROP | B51: Rent from Electricity Property | D51: 0 | E51: =D51-H51 -> 0 | F51: 0
A52: %,R,FACCOUNT,TNI_ACCOUNT_FERC,XBYYYYY01,NOTH_ELE_REV | B52: Other Electric Revenues | D52: 0 | E52: 0 | F52: 0
A53: %,R,FACCOUNT,TNI_ACCOUNT_FERC,XBYYYYY01,NOTH_ELE_TRANS_REV | B53: Rev Transm of Elec of Oth | D53: 0 | E53: 0 | F53: 0
A54: %,R,FACCOUNT,TNI_ACCOUNT_FERC,XBYYYYY01,NOTH_REV_SERVICE_CO | B54: Nonutility Revenues - Serv Co | D54: 0 | E54: 0 | F54: 0
A55: %,R,FACCOUNT,TNI_ACCOUNT_FERC,XBYYYYY01,NREG_ELE_TRANS_REV | B55: Regional Transm Service Rev | D55: 0 | E55: 0 | F55: 0
A56: %,R,FACCOUNT,TNI_ACCOUNT_FERC,XBYYYYY01,NTRANSPORT_GATH_REV | B56: Rev Transp Gas of Oth - Gather | D56: 0 | E56: 0 | F56: 0
A57: %,R,FACCOUNT,TNI_ACCOUNT_FERC,XBYYYYY01,NTRANSPORT_TRANS_REV | B57: Rev Transp Gas of Oth - Transm | D57: 0 | E57: 0 | F57: 0
A58: %,V48930000 | B58: Transp Rev Distr Residential | C58: 48930000 | D58: 1082610.11 | E58: 206563.46 | F58: 1082610.11 | H58: 876046.65
A59: %,V48930200 | B59: Unbilled Residential Trans Vol | C59: 48930200 | D59: 12176.8 | E59: -81388.8 | F59: 12176.8 | H59: 93565.6
A60: %,V48930300 | B60: Unbilled Res Trans Cust chrg | C60: 48930300 | D60: -1456 | E60: 16 | F60: -1456 | H60: -1472
A61: %,V48931000 | B61: Transp Rev Distr Commercial | C61: 48931000 | D61: 1199687.69 | E61: 268321.15 | F61: 1199687.69 | H61: 931366.54
A62: %,V48931300 | B62: Unbilled Comm Trans Vol | C62: 48931300 | D62: 2296.95 | E62: -61590.54 | F62: 2296.95 | H62: 63887.49
A63: %,V48931400 | B63: Unbilled Comm Trans Cust chrg | C63: 48931400 | D63: -938.49 | E63: -89.38 | F63: -938.49 | H63: -849.11
A64: %,V48932000 | B64: Transp Rev Distr Industrial | C64: 48932000 | D64: 513262.03 | E64: 40389.99 | F64: 513262.03 | H64: 472872.04
A65: %,V48932400 | B65: Unbilled Ind Trans Vol | C65: 48932400 | D65: 29.75 | E65: 1453.33 | F65: 29.75 | H65: -1423.58
A66: %,V48932500 | B66: Unbilled Ind Trans Cust chrg | C66: 48932500 | D66: 0 | E66: 0 | F66: 0 | H66: 0
A67: %,R,FACCOUNT,TNI_ACCOUNT_FERC,XBYYYYY01,NTRANSPORT_DISTR_REV | B67: Rev Transp Gas of Oth - Distr | D67: 2807668.84 | E67: 373675.21 | F67: 2807668.84 | H67: 2433993.63
A68: %,R,FACCOUNT,TNI_ACCOUNT_FERC,XBYYYYY01,NSTORE_GAS_REV | B68: Rev from Storing Gas of Oth | D68: 0 | E68: 0 | F68: 0
A69: %,R,FACCOUNT,TNI_ACCOUNT_FERC,XBYYYYY01,NSALES_EXTRACT_GAS | B69: Sales - Prod Extracted from NG | D69: 0 | E69: 0 | F69: 0
A70: %,R,FACCOUNT,TNI_ACCOUNT_FERC,XBYYYYY01,NGAS_OIL_SALES | B70: Incidental Gasoline & Oil Sale | D70: 0 | E70: 0 | F70: 0
A71: %,V49300000 | B71: Rent from Gas Property | C71: 49300000 | D71: 2791 | E71: =D71-H71 -> 0 | F71: 2791 | H71: 2791
A72: %,R,FACCOUNT,TNI_ACCOUNT_FERC,XBYYYYY01,NRENT_GAS_PROP | B72: Rent from Gas Property | D72: 2791 | E72: 0 | F72: 2791 | H72: 2791
A74: %,V49500485 | B74: Unbilled Residential-Vol | C74: 49500485 | D74: 84573.9 | E74: =D74-H74 -> -2091889.09 | F74: 84573.9 | H74: 2176462.99
A75: %,V49501485 | B75: Unbilled Res Customer Chrg | C75: 49501485 | D75: 10208 | E75: -12528 | F75: 10208 | H75: 22736
A76: %,V49503483 | B76: Unbilled Off System Sales | C76: 49503483 | D76: 0 | E76: 0 | F76: 0 | H76: 0
A77: %,V49510485 | B77: Unbilled Commercial-Vol | C77: 49510485 | D77: 74188.09 | E77: -757827.29 | F77: 74188.09 | H77: 832015.38
A78: %,V49511485 | B78: Unbilled Comm Customer Chrg | C78: 49511485 | D78: 2636.71 | E78: -4647.76 | F78: 2636.71 | H78: 7284.47
A79: %,V49520485 | B79: Unbilled Industrial-Vol | C79: 49520485 | D79: -59.03 | E79: -13009 | F79: -59.03 | H79: 12949.97
A80: %,V49521485 | B80: Unbilled Ind Customer Chrg | C80: 49521485 | D80: 0 | E80: 0 | F80: 0 | H80: 0
A81: %,NUNBILLED_REV_FERC | B81: Unbilled Revenues | D81: 171547.67 | E81: -2879901.14 | F81: 171547.67 | H81: 3051448.81
A82: %,V49500000 | B82: Other Gas Revenue | C82: 49500000 | D82: 35543.9 | E82: -31032.8 | F82: 35543.9 | H82: 66576.7
A83: %,V49500050 | B83: Billed Off System Sales | C83: 49500050 | D83: 298906.25 | E83: 298906.25 | F83: 298906.25 | H83: 0
A84: %,R,FACCOUNT,TNI_ACCOUNT_FERC,XBYYYYY01,NOTH_GAS_REV | B84: Other Gas Revenues | D84: 505997.82 | E84: -2612027.69 | F84: 505997.82 | H84: 3118025.51
A85: %,R,FACCOUNT,TNI_ACCOUNT_FERC,XBYYYYY01,NGAS_PROV_RATE_REFUND | B85: Gas Provision of Rate Refunds | D85: 0 | E85: 0 | F85: 0
B86: Total Other Operating Revenues | D86: =D44+D49+D51+D52+D53+D54+D55+D56+D57+D67+D68+D69+D70+D72+D84+D85 -> 3363721.24 | E86: =E44+E49+E51+E52+E53+E54+E55+E56+E57+E67+E68+E69+E70+E72+E84+E85 -> -2243238.2 | F86: 3363721.24
A87: xx | B87: Total Operating Revenues | D87: =D30+D39+D86 -> 22500688.93 | E87: =E30+E39+E86 -> 3265270.85 | F87: =F30+F39+F86 -> 22500688.93
B89: Operating Expenses
B91: Operation Expenses
A93: %,FACCOUNT,TNI_ACCOUNT_FERC,XBYYYYY01,NOP_MANUF_GAS | B93: Manufac Gas Production - Oper | D93: 0 | E93: =D93-H93 -> 0 | F93: 0
A94: %,FACCOUNT,TNI_ACCOUNT_FERC,XBYYYYY01,NOP_NTRLGAS_PROD_GTH | B94: NG Production & Gather - Oper | D94: 0 | E94: 0 | F94: 0
A95: %,FACCOUNT,TNI_ACCOUNT_FERC,XBYYYYY01,NOP_PROD_EXTRACT | B95: Products Extraction - Oper | D95: 0 | E95: 0 | F95: 0
A97: %,V80100000 | B97: Natural gas field line purchas | C97: 80100000 | D97: 24008.06 | E97: =D97-H97 -> -1214.84 | F97: 24008.06 | H97: 25222.9
A98: %,NOP_NG_PURCH_FIELD | B98: NG Well Head Purchases | D98: 24008.06 | E98: -1214.84 | F98: 24008.06 | H98: 25222.9
A99: %,V80300300 | B99: Short Term Producer Purch | C99: 80300300 | D99: 1369677.09 | E99: 97807.6 | F99: 1369677.09 | H99: 1271869.49
A100: %,V80300400 | B100: Transportation Pipeline Exp | C100: 80300400 | D100: 809916.5 | E100: -89827.78 | F100: 809916.5 | H100: 899744.28
A101: %,V80300500 | B101: Storage Charges Pipeline Exp | C101: 80300500 | D101: -541105.08 | E101: -188831.62 | F101: -541105.08 | H101: -352273.46
A102: %,V80300600 | B102: OFS_System Supply Credit | C102: 80300600 | D102: -136820.94 | E102: 62148.65 | F102: -136820.94 | H102: -198969.59
A103: %,V80300808 | B103: Storage Demand | C103: 80300808 | D103: 623301.64 | E103: 0.02000000002 | F103: 623301.64 | H103: 623301.62
A104: %,NOP_NG_PURCH_TRANSLIN | B104: NG Transmission Line Purchases | D104: 2124969.21 | E104: -118703.13 | F104: 2124969.21 | H104: 2243672.34
A105: %,V80400000 | B105: Natural Gas City Gate Purchase | C105: 80400000 | D105: 495393.7 | E105: 33810.1 | F105: 495393.7 | H105: 461583.6
A106: %,NOP_NG_PURCH_CITYGATE | B106: NG City Gate Purchases | D106: 495393.7 | E106: 33810.1 | F106: 495393.7 | H106: 461583.6
A107: %,V80510000 | B107: Purchased Gas Cost Adjustments | C107: 80510000 | D107: 1487341.33 | E107: 1663244.33 | F107: 1487341.33 | H107: -175903
A108: %,NOP_NG_PURCH_ADJUST | B108: Purchased Gas Cost Adjustments | D108: 1487341.33 | E108: 1663244.33 | F108: 1487341.33 | H108: -175903
A109: %,V80601000 | B109: Exchange Gas-Received | C109: 80601000 | D109: -1040778.62 | E109: 154352.67 | F109: -1040778.62 | H109: -1195131.29
A110: %,NOP_NG_PURCH_EXCHANGE | B110: Exchange Gas | D110: -1040778.62 | E110: 154352.67 | F110: -1040778.62 | H110: -1195131.29
A111: %,V80720000 | B111: Oper-Purch Gas Measrg Stations | C111: 80720000 | D111: 34323.75 | E111: 2480.06 | F111: 34323.75 | H111: 31843.69
A112: %,V80751000 | B112: Purch Gas Exp - Mgmt Fee | C112: 80751000 | D112: 5541.99 | E112: 382.93 | F112: 5541.99 | H112: 5159.06
A113: %,NOP_NG_PURCH_EXPENSE | B113: Purchased Gas Expenses | D113: 39865.74 | E113: 2862.99 | F113: 39865.74 | H113: 37002.75
A114: %,V80810000 | B114: Gas Withdrawn | C114: 80810000 | D114: 6292033.45 | E114: 336231.45 | F114: 6292033.45 | H114: 5955802
A115: %,NOP_NG_PURCH_WITHDRAW | B115: Gas Withdrawn from Storage | D115: 6292033.45 | E115: 336231.45 | F115: 6292033.45 | H115: 5955802
A116: %,V80820000 | B116: Gas Delivered | C116: 80820000 | D116: 82.49 | E116: -543292.31 | F116: 82.49 | H116: 543374.8
A117: %,NOP_NG_PURCH_DELIVER | B117: Gas Delivered to Storage | D117: 82.49 | E117: -543292.31 | F117: 82.49 | H117: 543374.8
A118: %,V81220000 | B118: Gas Used-Other-Offset | C118: 81220000 | D118: -14169 | E118: -3939.16 | F118: -14169 | H118: -10229.84
A119: %,NOP_NG_PURCH_OTHOPS | B119: Gas Used for Other Utility Ops | D119: -14169 | E119: -3939.16 | F119: -14169 | H119: -10229.84
A120: %,FACCOUNT,TNI_ACCOUNT_FERC,XBYYYYY01,NOP_OTH_GAS_SUPPLY | B120: Other Gas Supply - Operations | D120: 9408746.36 | E120: 1523352.1 | F120: 9408746.36 | H120: 7885394.26
A121: %,FACCOUNT,TNI_ACCOUNT_FERC,XBYYYYY01,NOP_STEAM_POWER | B121: Steam Power - Operations | D121: 0 | E121: 0 | F121: 0
A122: %,FACCOUNT,TNI_ACCOUNT_FERC,XBYYYYY01,NOP_HYDRAULIC_POWER | B122: Hydraulic Power - Operations | D122: 0 | E122: 0 | F122: 0
A123: %,FACCOUNT,TNI_ACCOUNT_FERC,XBYYYYY01,NOP_OTHER_POWER | B123: Other Power - Operations | D123: 0 | E123: 0 | F123: 0
A124: %,V55700000 | B124: Other Exp | C124: 55700000 | D124: 0 | E124: =D124-H124 -> 0 | F124: 0 | H124: 0
A125: %,FACCOUNT,TNI_ACCOUNT_FERC,XBYYYYY01,NOP_OTH_POWER_SUPPLY | B125: Other Power Supply - Oper | D125: 0 | E125: =D125-H125 -> 0 | F125: 0 | H125: 0
A126: %,FACCOUNT,TNI_ACCOUNT_FERC,XBYYYYY01,NOP_NG_STOR_TERM_PROC | B126: NG Stor, Term & Proc - Oper | D126: 0 | E126: 0 | F126: 0
A128: %,V85200030 | B128: Communication System Exp | C128: 85200030 | D128: 8.4 | E128: =D128-H128 -> -3.06 | F128: 8.4 | H128: 11.46
A129: %,NOP_GAS_TRANS_EXP | B129: Transmission Exp - Oper - Gas | D129: 8.4 | E129: -3.06 | F129: 8.4 | H129: 11.46
A130: %,FACCOUNT,TNI_ACCOUNT_FERC,XBYYYYY01,NOP_TRANS_EXP | B130: Transmission Exp - Oper | D130: 8.4 | E130: -3.06 | F130: 8.4 | H130: 11.46
A131: %,FACCOUNT,TNI_ACCOUNT_FERC,XBYYYYY01,NOP_REG_MARKET_EXP | B131: Regional Market Exp - Oper | D131: 0 | E131: 0 | F131: 0
A133: %,V87000000 | B133: Op Superv-Eng-Gas Distr | C133: 87000000 | D133: 73814.29 | E133: =D133-H133 -> -64572.97 | F133: 73814.29 | H133: 138387.26
A134: %,V87100000 | B134: Distribution Load Dispatching | C134: 87100000 | D134: 14520.92 | E134: -3903.6 | F134: 14520.92 | H134: 18424.52
A135: %,V87400000 | B135: Mains and Services Exp | C135: 87400000 | D135: 590155.61 | E135: -329752.73 | F135: 590155.61 | H135: 919908.34
A136: %,V87500000 | B136: Measur-Reg Statn Exp Gen | C136: 87500000 | D136: 24325.17 | E136: -11471.05 | F136: 24325.17 | H136: 35796.22
A137: %,V87600000 | B137: Measur-Reg Statn Exp-Indus | C137: 87600000 | D137: 2983.71 | E137: -2379.6 | F137: 2983.71 | H137: 5363.31
A138: %,V87800000 | B138: Meter and House Regulator Exp | C138: 87800000 | D138: 115409.78 | E138: -22069.6 | F138: 115409.78 | H138: 137479.38
A139: %,V87900000 | B139: Oper Installation Service Exp | C139: 87900000 | D139: 221605.94 | E139: -216578.74 | F139: 221605.94 | H139: 438184.68
A140: %,V87900200 | B140: Oper Install-Chrg Labor | C140: 87900200 | D140: 28.03 | E140: 28.03 | F140: 28.03 | H140: 0
A141: %,V88000000 | B141: Operations Exp Other | C141: 88000000 | D141: 138236.22 | E141: 49423.15 | F141: 138236.22 | H141: 88813.07
A142: %,V88100000 | B142: Gas Distr Rents | C142: 88100000 | D142: 511.25 | E142: -1836.12 | F142: 511.25 | H142: 2347.37
A143: %,NOP_GAS_DISTR_EXP | B143: Distribution Exp - Oper - Gas | D143: 1181590.92 | E143: -603113.23 | F143: 1181590.92 | H143: 1784704.15
A144: %,FACCOUNT,TNI_ACCOUNT_FERC,XBYYYYY01,NOP_DISTR_EXP | B144: Distribution Exp - Oper | D144: 1181590.92 | E144: -603113.23 | F144: 1181590.92 | H144: 1784704.15
A145: %,V90100000 | B145: Customer Acnt Supervision | C145: 90100000 | D145: 11.08 | E145: 11.08 | F145: 11.08 | H145: 0
A146: %,V90200000 | B146: Cust Accnt Meter Reading Exp | C146: 90200000 | D146: 19717.27 | E146: -346.9 | F146: 19717.27 | H146: 20064.17
A147: %,V90300000 | B147: Cust Records Collection Exp | C147: 90300000 | D147: 208745.36 | E147: -11356.01 | F147: 208745.36 | H147: 220101.37
A148: %,V90400000 | B148: Uncollectible Accounts | C148: 90400000 | D148: 353848 | E148: -108208.78 | F148: 353848 | H148: 462056.78
A149: %,V90500000 | B149: Misc Cust Accts Exp | C149: 90500000 | D149: 1087.51 | E149: 286.68 | F149: 1087.51 | H149: 800.83
A150: %,FACCOUNT,TNI_ACCOUNT_FERC,XBYYYYY01,NOP_CUST_ACCTS_EXP | B150: Customer Accounts - Oper | D150: 583409.22 | E150: -119613.93 | F150: 583409.22 | H150: 703023.15
A151: %,V90800000 | B151: Customer Assistance Exp | C151: 90800000 | D151: 16475 | E151: -3294.47 | F151: 16475 | H151: 19769.47
A152: %,V90900000 | B152: Inform_Instruct Advertisng Exp | C152: 90900000 | D152: 0 | E152: -892.5 | F152: 0 | H152: 892.5
A153: %,V91000000 | B153: Misc Cust Serv and Info Exp | C153: 91000000 | D153: 15602.75 | E153: -26732.41 | F153: 15602.75 | H153: 42335.16
A154: %,FACCOUNT,TNI_ACCOUNT_FERC,XBYYYYY01,NOP_CUSTOMER_SERV_EXP | B154: Cust Serv & Info Exp - Oper | D154: 32077.75 | E154: -30919.38 | F154: 32077.75 | H154: 62997.13
A155: %,V91200000 | B155: Demonstrating and Selling Exp | C155: 91200000 | D155: 1400.7 | E155: 403.69 | F155: 1400.7 | H155: 997.01
A156: %,V91300000 | B156: Sales Advertising Exp | C156: 91300000 | D156: 0.18 | E156: -7443.72 | F156: 0.18 | H156: 7443.9
A157: %,FACCOUNT,TNI_ACCOUNT_FERC,XBYYYYY01,NOP_SALES_EXP | B157: Sales Expenses - Oper | D157: 1400.88 | E157: -7040.03 | F157: 1400.88 | H157: 8440.91
A158: %,V92000000 | B158: A_G Salaries | C158: 92000000 | D158: 656759.57 | E158: -668162.18 | F158: 656759.57 | H158: 1324921.75
A159: %,V92001000 | B159: Discretionary and Spot Awards | C159: 92001000 | D159: 772.6 | E159: -22242.18 | F159: 772.6 | H159: 23014.78
A160: %,V92002000 | B160: Stock Compensation Expense | C160: 92002000 | D160: 16097.73 | E160: -91840.9 | F160: 16097.73 | H160: 107938.63
A161: %,V92100000 | B161: Office Supplies and Exp | C161: 92100000 | D161: 88696.79 | E161: 11349.74 | F161: 88696.79 | H161: 77347.05
A162: %,V92101000 | B162: Employee Expenses | C162: 92101000 | D162: 6538.81 | E162: -9987.53 | F162: 6538.81 | H162: 16526.34
A163: %,V92300000 | B163: Outside Service Employed | C163: 92300000 | D163: 388253.16 | E163: -173784.62 | F163: 388253.16 | H163: 562037.78
A164: %,V92301000 | B164: Mgmt Fee Actuals-Affil | C164: 92301000 | D164: 150500.95 | E164: -56748 | F164: 150500.95 | H164: 207248.95
A165: %,V92400000 | B165: Property Insurance | C165: 92400000 | D165: 3533.11 | E165: -702.3 | F165: 3533.11 | H165: 4235.41
A166: %,V92500000 | B166: Injuries and Damages | C166: 92500000 | D166: 193643.35 | E166: 15459.4 | F166: 193643.35 | H166: 178183.95
A167: %,V92600000 | B167: Employee Pensions and Benefits | C167: 92600000 | D167: 299125.86 | E167: -83711.96 | F167: 299125.86 | H167: 382837.82
A168: %,V92601000 | B168: Non Service Pension & OPEB | C168: 92601000 | D168: -99810.91 | E168: -41941.66 | F168: -99810.91 | H168: -57869.25
A169: %,V92800000 | B169: Regulatory Commission Exp | C169: 92800000 | D169: 22697.27 | E169: 62.5 | F169: 22697.27 | H169: 22634.77
A170: %,V93010000 | B170: General Advertising Exp | C170: 93010000 | D170: 7.48 | E170: -3088.99 | F170: 7.48 | H170: 3096.47
A171: %,V93020000 | B171: Misc General Exp | C171: 93020000 | D171: -2107.45 | E171: -29475.83 | F171: -2107.45 | H171: 27368.38
A172: %,V93100000 | B172: Rents Admin and General | C172: 93100000 | D172: 73674.85 | E172: -752.86 | F172: 73674.85 | H172: 74427.71
A173: %,FACCOUNT,TNI_ACCOUNT_FERC,XBYYYYY01,NOP_ADMIN_GEN | B173: Admin & General Exp - Oper | D173: 1798383.17 | E173: -1155567.37 | F173: 1798383.17 | H173: 2953950.54
B174: Total Operation Expenses | D174: =D93+D94+D95+D120+D121+D122+D123+D125+D126+D130+D131+D144+D150+D154+D157+D173 -> 13005616.7 | E174: =E93+E94+E95+E120+E121+E122+E123+E125+E126+E130+E131+E144+E150+E154+E157+E173 -> -392904.9 | F174: =F93+F94+F95+F120+F121+F122+F123+F125+F126+F130+F131+F144+F150+F154+F157+F173 -> 13005616.7
B176: Maintenance Expenses
A178: %,FACCOUNT,TNI_ACCOUNT_FERC,XBYYYYY01,NMAINT_PROD_EXP | B178: Production Expenses - Maint | D178: 0 | E178: =D178-H178 -> 0 | F178: 0
A179: %,FACCOUNT,TNI_ACCOUNT_FERC,XBYYYYY01,NMAINT_NG_STOR_PROC | B179: NG Stor, Term & Proc - Maint | D179: 0 | E179: 0 | F179: 0
A180: %,FACCOUNT,TNI_ACCOUNT_FERC,XBYYYYY01,NMAINT_TRANS_EXP | B180: Transmission Exp - Maint | D180: 0 | E180: 0 | F180: 0
A182: %,V59800000 | B182: Maint of Misc Distri Plant | C182: 59800000 | D182: 0 | E182: =D182-H182 -> -1204.38 | F182: 0 | H182: 1204.38
A183: %,NMAINT_ELEC_DISTR_EXP | B183: Distribution Exp - Maint-Elec | D183: 0 | E183: -1204.38 | F183: 0 | H183: 1204.38
A184: %,V88500000 | B184: Maint Supv-Eng-Gas Distr | C184: 88500000 | D184: 7398.2 | E184: -674.63 | F184: 7398.2 | H184: 8072.83
A185: %,V88600000 | B185: Maint Struct-Improv-Gas Distr | C185: 88600000 | D185: 2939.56 | E185: -46080.09 | F185: 2939.56 | H185: 49019.65
A186: %,V88700000 | B186: Maint of Mains | C186: 88700000 | D186: 197879.34 | E186: -61502.97 | F186: 197879.34 | H186: 259382.31
A187: %,V88900000 | B187: Maint Msr-Reg Statn Equi Gen | C187: 88900000 | D187: 38858.71 | E187: -74892.77 | F187: 38858.71 | H187: 113751.48
A188: %,V89000000 | B188: Maint Meas_Reg Stn Equip-Distr | C188: 89000000 | D188: 5379.25 | E188: -10235.1 | F188: 5379.25 | H188: 15614.35
A189: %,V89200000 | B189: Maint of Services | C189: 89200000 | D189: 97387.54 | E189: 6951.25 | F189: 97387.54 | H189: 90436.29
A190: %,V89300000 | B190: Maint Meters_House Regulators | C190: 89300000 | D190: 2909.08 | E190: -9278.67 | F190: 2909.08 | H190: 12187.75
A191: %,V89400000 | B191: Other Maint Equipment | C191: 89400000 | D191: 41325.64 | E191: -4177.48 | F191: 41325.64 | H191: 45503.12
A192: %,NMAINT_GAS_DISTR_EXP | B192: Distribution Exp - Maint-Gas | D192: 394077.32 | E192: -199890.46 | F192: 394077.32 | H192: 593967.78
A193: %,FACCOUNT,TNI_ACCOUNT_FERC,XBYYYYY01,NMAINT_DISTR_EXP | B193: Distribution Exp - Maint | D193: 394077.32 | E193: -201094.84 | F193: 394077.32 | H193: 595172.16
A194: %,V93200000 | B194: Maint General Plant | C194: 93200000 | D194: 96821.24 | E194: =D194-H194 -> 16684.02 | F194: 96821.24 | H194: 80137.22
A195: %,FACCOUNT,TNI_ACCOUNT_FERC,XBYYYYY01,NMAINT_ADMIN_GEN | B195: Maintenance Gen and Admin | D195: 96821.24 | E195: 16684.02 | F195: 96821.24 | H195: 80137.22
B196: Total Maintenance Expenses | D196: =D178+D179+D180+D193+D195 -> 490898.56 | E196: =E178+E179+E180+E193+E195 -> -184410.82 | F196: 490898.56
A198: %,V40300000 | B198: Dep Exp | C198: 40300000 | D198: 1190150.27 | E198: =D198-H198 -> 11488.58 | F198: 1190150.27 | H198: 1178661.69
A199: %,FACCOUNT,TNI_ACCOUNT_FERC,XBYYYYY01,NDEPRECIATION_EXPENSE | B199: Depreciation Expense | D199: 1190150.27 | E199: =D199-H199 -> 11488.58 | F199: 1190150.27 | H199: 1178661.69
A200: %,FACCOUNT,TNI_ACCOUNT_FERC,XBYYYYY01,NDEPRECIATION_ARO_EXP | B200: Depreciation Expense for AROs | D200: 0 | E200: 0 | F200: 0
A202: %,V40430000 | B202: Amortization Exp-Other | C202: 40430000 | D202: 34773.76 | E202: =D202-H202 -> -1759.73 | F202: 34773.76 | H202: 36533.49
A203: %,V40434000 | B203: Cloude Amortizaiton Expense | C203: 40434000 | D203: 8083 | E203: 7.68 | F203: 8083 | H203: 8075.32
A204: %,NAMORT_LMT_TERM_PROP | B204: Amort of Limited-Term Property | D204: 42856.76 | E204: -1752.05 | F204: 42856.76 | H204: 44608.81
A205: %,V40500000 | B205: Amortization of Oth Plant | C205: 40500000 | D205: 95731.55 | E205: -2846.57 | F205: 95731.55 | H205: 98578.12
A206: %,NAMORT_OTH_PROP | B206: Amort of Other Property | D206: 95731.55 | E206: -2846.57 | F206: 95731.55 | H206: 98578.12
A207: %,FACCOUNT,TNI_ACCOUNT_FERC,XBYYYYY01,NAMORT_DEPL_UTIL | B207: Amort & Deplet of Util Plant | D207: 138588.31 | E207: -4598.62 | F207: 138588.31 | H207: 143186.93
A208: %,FACCOUNT,TNI_ACCOUNT_FERC,XBYYYYY01,NAMORT_UTIL_ADJ | B208: Amort of Gas Plant Acq Adj | D208: 0 | E208: 0 | F208: 0
A209: %,FACCOUNT,TNI_ACCOUNT_FERC,XBYYYYY01,NAMORT_CONV_EXP | B209: Amort of Conversion Exp | D209: 0 | E209: 0 | F209: 0
A210: %,FACCOUNT,TNI_ACCOUNT_FERC,XBYYYYY01,NREG_DEBITS | B210: Reg Debits | D210: 0 | E210: 0 | F210: 0
A211: %,FACCOUNT,TNI_ACCOUNT_FERC,XBYYYYY01,NREG_CREDITS | B211: Reg Credits | D211: 0 | E211: 0 | F211: 0
A212: %,V40813200 | B212: Tax Exp-Property | C212: 40813200 | D212: 565594.5 | E212: 114594.16 | F212: 565594.5 | H212: 451000.34
A213: %,V40813300 | B213: Tax Exp-Sales and Use Tax | C213: 40813300 | D213: 0.01 | E213: 0 | F213: 0.01 | H213: 0.01
A214: %,V40813600 | B214: Tax Exp-State and Local-Oth | C214: 40813600 | D214: 0 | E214: 0 | F214: 0 | H214: 0
A215: %,V40814100 | B215: Tax Exp-Payroll-Incentive | C215: 40814100 | D215: 4930.74 | E215: -32420.05 | F215: 4930.74 | H215: 37350.79
A216: %,V40814500 | B216: Tax Exp-Payroll FICA-OASDI | C216: 40814500 | D216: 53270.35 | E216: -10255.35 | F216: 53270.35 | H216: 63525.7
A217: %,V40814600 | B217: Tax Exp-Payroll FICA-Medicar | C217: 40814600 | D217: 12446.43 | E217: -3770.77 | F217: 12446.43 | H217: 16217.2
A218: %,V40814700 | B218: Tax Exp-FUTA Employer | C218: 40814700 | D218: 4637.88 | E218: 4637.89 | F218: 4637.88 | H218: -0.01
A219: %,V40814800 | B219: Tax Exp-SUTA Employer | C219: 40814800 | D219: 2694.45 | E219: 2694.46 | F219: 2694.45 | H219: -0.01
A220: %,FACCOUNT,TNI_ACCOUNT_FERC,XBYYYYY01,NOTHER_TAXES_FERC | B220: Other Taxes FERC | D220: 643574.36 | E220: 75480.34 | F220: 643574.36 | H220: 568094.02
... 90 more rows

Sheet Feb21
A1: %,LACTUALS,UPOSTED_TRAN_AMT | B1: %,ATF,FDESCR,UDESCR | C1: %,ATT,FACCOUNT | D1: %,LACTUALS,UPOSTED_TRAN_AMT,SPER,FBOOK_CODE,VR | E1: %,C | F1: %,LACTUALS,UPOSTED_TRAN_AMT,SYTD,FBOOK_CODE,VR | H1: %,LACTUALS,UPOSTED_TRAN_AMT,SPER-1,FBOOK_CODE,VR
B2: Columbia Gas of Kentucky Inc | H2: FOR
B3: Income Statement-FERC | H3: CALC
B4: Regulatory View - FERC Account
B5: For the Month Ended February 28, 2021 | H5: PURPOSES
B6: For Internal Use Only | H6: ONLY
D8: Current | E8: Change from | F8: Year-To- | H8: Prior
D9: Month | E9: Prior Month | F9: Date | H9: Month
B11: Operating Revenues
A13: %,V48000000 | B13: Residential Sales | C13: 48000000 | D13: 13569001.55 | E13: =D13-H13 -> 95018.11 | F13: 27042984.99 | H13: 13473983.44
A14: %,V48000100 | B14: Residential Sales Norm | C14: 48000100 | D14: 157.21 | E14: 10.28 | F14: 304.14 | H14: 146.93
A15: %,R,FACCOUNT,TNI_ACCOUNT_FERC,XBYYYYY01,NGAS_RESID_REV | B15: Gas Residential Sales | D15: 13569158.76 | E15: =D15-H15 -> 95028.39 | F15: 27043289.13 | H15: 13474130.37
A17: %,V48101000 | B17: Commercial Gas Sales | C17: 48101000 | D17: 5622682.17 | E17: =D17-H17 -> 252466.42 | F17: 10992897.92 | H17: 5370215.75
A18: %,V48101200 | B18: Commercial Gas Sales Norm | C18: 48101200 | D18: 79.15 | E18: 4.81 | F18: 153.49 | H18: 74.34
A19: %,NGAS_COMM_REV | B19: Gas Commercial Revenues | D19: 5622761.32 | E19: 252471.23 | F19: 10993051.41 | H19: 5370290.09
A20: %,V48102000 | B20: Industrial Gas Sales | C20: 48102000 | D20: 261235.88 | E20: -20353.83 | F20: 542825.59 | H20: 281589.71
A21: %,V48102300 | B21: Industrial Gas Sales Norm | C21: 48102300 | D21: 4.3 | E21: -0.49 | F21: 9.09 | H21: 4.79
A22: %,NGAS_INDUST_REV | B22: Gas Industrial Revenues | D22: 261240.18 | E22: -20354.32 | F22: 542834.68 | H22: 281594.5
A23: %,V48103000 | B23: Gas Sales-Other | C23: 48103000 | D23: 0 | E23: 0 | F23: 0 | H23: 0
A24: %,NGAS_OTHER_REV | B24: Gas Comm & Indust Other Rev | D24: 0 | E24: 0 | F24: 0 | H24: 0
A25: %,R,FACCOUNT,TNI_ACCOUNT_FERC,XBYYYYY01,NGAS_COMM_INDUST_REV | B25: Gas Comm & Indust Revenues | D25: 5884001.5 | E25: 232116.91 | F25: 11535886.09 | H25: 5651884.59
A26: %,V48300000 | B26: Sales for Resale-Gas | C26: 48300000 | D26: 10854.5 | E26: =D26-H26 -> -98.23 | F26: 21807.23 | H26: 10952.73
A27: %,R,FACCOUNT,TNI_ACCOUNT_FERC,XBYYYYY01,NGAS_SALES_RESALE | B27: Gas Sales for Resale | D27: 10854.5 | E27: -98.23 | F27: 21807.23 | H27: 10952.73
A28: %,R,FACCOUNT,TNI_ACCOUNT_FERC,XBYYYYY01,NGAS_INTERDEPT_SALES | B28: Gas Interdepartmental Sales | D28: 0 | E28: 0 | F28: 0
A29: %,R,FACCOUNT,TNI_ACCOUNT_FERC,XBYYYYY01,NGAS_INTRACO_TRANSFER | B29: Gas Intercompany Transfers | D29: 0 | E29: =D29-H29 -> 0 | F29: 0
A30: xx | B30: Total Sales of Gas | D30: =D15+D25+D27+D28+D29 -> 19464014.76 | E30: =E15+E25+E27+E28+E29 -> 327047.07 | F30: =F15+F25+F27+F28+F29 -> 38600982.45
A32: %,R,FACCOUNT,TNI_ACCOUNT_FERC,XBYYYYY01,NELE_RESID_REV | B32: Electric Residential Revenues | D32: 0 | E32: =D32-H32 -> 0 | F32: 0
A33: %,R,FACCOUNT,TNI_ACCOUNT_FERC,XBYYYYY01,NELE_COMM_IND_REV | B33: Elec Comm & Indust Rev | D33: 0 | E33: 0 | F33: 0
A34: %,R,FACCOUNT,TNI_ACCOUNT_FERC,XBYYYYY01,NELE_STREET_HWY_LIGHT | B34: Public Street & Hwy Lighting | D34: 0 | E34: 0 | F34: 0
A35: %,R,FACCOUNT,TNI_ACCOUNT_FERC,XBYYYYY01,NELE_OTH_SALES_PUBLIC | B35: Elec Oth Sales to Public Auth | D35: 0 | E35: 0 | F35: 0
A36: %,R,FACCOUNT,TNI_ACCOUNT_FERC,XBYYYYY01,NELE_RAILROAD | B36: Sales to Railroads & Railways | D36: 0 | E36: 0 | F36: 0
A37: %,R,FACCOUNT,TNI_ACCOUNT_FERC,XBYYYYY01,NELE_SALES_RESALE | B37: Electric Sales for Resale | D37: 0 | E37: 0 | F37: 0
A38: %,R,FACCOUNT,TNI_ACCOUNT_FERC,XBYYYYY01,NELE_INTERDEPT_SALES | B38: Elec Interdepartmental Sales | D38: 0 | E38: 0 | F38: 0
A39: xx | B39: Total Sales of Electricity | D39: =D32+D33+D34+D35+D36+D37+D38 -> 0 | E39: =E32+E33+E34+E35+E36+E37+E38 -> 0 | F39: 0
A41: %,V48700000 | B41: Forfeited Discounts-Gas | C41: 48700000 | D41: 81573.35 | E41: =D41-H41 -> 31970.28 | F41: 131176.42 | H41: 49603.07
A42: %,R,FACCOUNT,TNI_ACCOUNT_FERC,XBYYYYY01,NFORFEITED_DISC_GAS | B42: Forfeited Discounts - Gas | D42: 81573.35 | E42: =D42-H42 -> 31970.28 | F42: 131176.42 | H42: 49603.07
A43: %,R,FACCOUNT,TNI_ACCOUNT_FERC,XBYYYYY01,NFORFEITED_DISC_ELE | B43: Forfeited Discounts - Ele | D43: 0 | E43: 0 | F43: 0
B44: Total Forfeited Discounts | D44: =D42+D43 -> 81573.35 | E44: =E42+E43 -> 31970.28 | F44: 131176.42
A46: %,V48800000 | B46: Misc Service Revenues-Gas | C46: 48800000 | D46: 4053.69 | E46: =D46-H46 -> 6393.18 | F46: 1714.2 | H46: -2339.49
A47: %,R,FACCOUNT,TNI_ACCOUNT_FERC,XBYYYYY01,NMISC_SERV_REVS_GAS | B47: Misc Service Revenues - Gas | D47: 4053.69 | E47: =D47-H47 -> 6393.18 | F47: 1714.2 | H47: -2339.49
A48: %,R,FACCOUNT,TNI_ACCOUNT_FERC,XBYYYYY01,NMISC_SERV_REVS_ELE | B48: Misc Service Revenues - Ele | D48: 0 | E48: 0 | F48: 0
B49: Total Miscellaneous Service Revenues | D49: =D47+D48 -> 4053.69 | E49: =E47+E48 -> 6393.18 | F49: 1714.2
A51: %,R,FACCOUNT,TNI_ACCOUNT_FERC,XBYYYYY01,NRENT_ELE_PROP | B51: Rent from Electricity Property | D51: 0 | E51: =D51-H51 -> 0 | F51: 0
A52: %,R,FACCOUNT,TNI_ACCOUNT_FERC,XBYYYYY01,NOTH_ELE_REV | B52: Other Electric Revenues | D52: 0 | E52: 0 | F52: 0
A53: %,R,FACCOUNT,TNI_ACCOUNT_FERC,XBYYYYY01,NOTH_ELE_TRANS_REV | B53: Rev Transm of Elec of Oth | D53: 0 | E53: 0 | F53: 0
A54: %,R,FACCOUNT,TNI_ACCOUNT_FERC,XBYYYYY01,NOTH_REV_SERVICE_CO | B54: Nonutility Revenues - Serv Co | D54: 0 | E54: 0 | F54: 0
A55: %,R,FACCOUNT,TNI_ACCOUNT_FERC,XBYYYYY01,NREG_ELE_TRANS_REV | B55: Regional Transm Service Rev | D55: 0 | E55: 0 | F55: 0
A56: %,R,FACCOUNT,TNI_ACCOUNT_FERC,XBYYYYY01,NTRANSPORT_GATH_REV | B56: Rev Transp Gas of Oth - Gather | D56: 0 | E56: 0 | F56: 0
A57: %,R,FACCOUNT,TNI_ACCOUNT_FERC,XBYYYYY01,NTRANSPORT_TRANS_REV | B57: Rev Transp Gas of Oth - Transm | D57: 0 | E57: 0 | F57: 0
A58: %,V48930000 | B58: Transp Rev Distr Residential | C58: 48930000 | D58: 1066294.58 | E58: -16315.53 | F58: 2148904.69 | H58: 1082610.11
A59: %,V48930200 | B59: Unbilled Residential Trans Vol | C59: 48930200 | D59: -111194.1 | E59: -123370.9 | F59: -99017.3 | H59: 12176.8
A60: %,V48930300 | B60: Unbilled Res Trans Cust chrg | C60: 48930300 | D60: -1472 | E60: -16 | F60: -2928 | H60: -1456
A61: %,V48931000 | B61: Transp Rev Distr Commercial | C61: 48931000 | D61: 1159075.36 | E61: -40612.33 | F61: 2358763.05 | H61: 1199687.69
A62: %,V48931300 | B62: Unbilled Comm Trans Vol | C62: 48931300 | D62: -66091.1 | E62: -68388.05 | F62: -63794.15 | H62: 2296.95
A63: %,V48931400 | B63: Unbilled Comm Trans Cust chrg | C63: 48931400 | D63: -715.04 | E63: 223.45 | F63: -1653.53 | H63: -938.49
A64: %,V48932000 | B64: Transp Rev Distr Industrial | C64: 48932000 | D64: 507281.54 | E64: -5980.49 | F64: 1020543.57 | H64: 513262.03
A65: %,V48932400 | B65: Unbilled Ind Trans Vol | C65: 48932400 | D65: -343.19 | E65: -372.94 | F65: -313.44 | H65: 29.75
A66: %,V48932500 | B66: Unbilled Ind Trans Cust chrg | C66: 48932500 | D66: 0 | E66: 0 | F66: 0 | H66: 0
A67: %,R,FACCOUNT,TNI_ACCOUNT_FERC,XBYYYYY01,NTRANSPORT_DISTR_REV | B67: Rev Transp Gas of Oth - Distr | D67: 2552836.05 | E67: -254832.79 | F67: 5360504.89 | H67: 2807668.84
A68: %,R,FACCOUNT,TNI_ACCOUNT_FERC,XBYYYYY01,NSTORE_GAS_REV | B68: Rev from Storing Gas of Oth | D68: 0 | E68: 0 | F68: 0
A69: %,R,FACCOUNT,TNI_ACCOUNT_FERC,XBYYYYY01,NSALES_EXTRACT_GAS | B69: Sales - Prod Extracted from NG | D69: 0 | E69: 0 | F69: 0
A70: %,R,FACCOUNT,TNI_ACCOUNT_FERC,XBYYYYY01,NGAS_OIL_SALES | B70: Incidental Gasoline & Oil Sale | D70: 0 | E70: 0 | F70: 0
A71: %,V49300000 | B71: Rent from Gas Property | C71: 49300000 | D71: 2913 | E71: =D71-H71 -> 122 | F71: 5704 | H71: 2791
A72: %,R,FACCOUNT,TNI_ACCOUNT_FERC,XBYYYYY01,NRENT_GAS_PROP | B72: Rent from Gas Property | D72: 2913 | E72: 122 | F72: 5704 | H72: 2791
A74: %,V49500485 | B74: Unbilled Residential-Vol | C74: 49500485 | D74: -1094027.14 | E74: =D74-H74 -> -1178601.04 | F74: -1009453.24 | H74: 84573.9
A75: %,V49501485 | B75: Unbilled Res Customer Chrg | C75: 49501485 | D75: 4928.2 | E75: -5279.8 | F75: 15136.2 | H75: 10208
A76: %,V49503483 | B76: Unbilled Off System Sales | C76: 49503483 | D76: 0 | E76: 0 | F76: 0 | H76: 0
A77: %,V49510485 | B77: Unbilled Commercial-Vol | C77: 49510485 | D77: -476711.44 | E77: -550899.53 | F77: -402523.35 | H77: 74188.09
A78: %,V49511485 | B78: Unbilled Comm Customer Chrg | C78: 49511485 | D78: 1206.63 | E78: -1430.08 | F78: 3843.34 | H78: 2636.71
A79: %,V49520485 | B79: Unbilled Industrial-Vol | C79: 49520485 | D79: -11662.84 | E79: -11603.81 | F79: -11721.87 | H79: -59.03
A80: %,V49521485 | B80: Unbilled Ind Customer Chrg | C80: 49521485 | D80: 44.69 | E80: 44.69 | F80: 44.69 | H80: 0
A81: %,NUNBILLED_REV_FERC | B81: Unbilled Revenues | D81: -1576221.9 | E81: -1747769.57 | F81: -1404674.23 | H81: 171547.67
A82: %,V49500000 | B82: Other Gas Revenue | C82: 49500000 | D82: 89433.07 | E82: 53889.17 | F82: 124976.97 | H82: 35543.9
A83: %,V49500050 | B83: Billed Off System Sales | C83: 49500050 | D83: 459527.5 | E83: 160621.25 | F83: 758433.75 | H83: 298906.25
A84: %,R,FACCOUNT,TNI_ACCOUNT_FERC,XBYYYYY01,NOTH_GAS_REV | B84: Other Gas Revenues | D84: -1027261.33 | E84: -1533259.15 | F84: -521263.51 | H84: 505997.82
A85: %,R,FACCOUNT,TNI_ACCOUNT_FERC,XBYYYYY01,NGAS_PROV_RATE_REFUND | B85: Gas Provision of Rate Refunds | D85: 0 | E85: 0 | F85: 0
B86: Total Other Operating Revenues | D86: =D44+D49+D51+D52+D53+D54+D55+D56+D57+D67+D68+D69+D70+D72+D84+D85 -> 1614114.76 | E86: =E44+E49+E51+E52+E53+E54+E55+E56+E57+E67+E68+E69+E70+E72+E84+E85 -> -1749606.48 | F86: 4977836
A87: xx | B87: Total Operating Revenues | D87: =D30+D39+D86 -> 21078129.52 | E87: =E30+E39+E86 -> -1422559.41 | F87: =F30+F39+F86 -> 43578818.45
B89: Operating Expenses
B91: Operation Expenses
A93: %,FACCOUNT,TNI_ACCOUNT_FERC,XBYYYYY01,NOP_MANUF_GAS | B93: Manufac Gas Production - Oper | D93: 0 | E93: =D93-H93 -> 0 | F93: 0
A94: %,FACCOUNT,TNI_ACCOUNT_FERC,XBYYYYY01,NOP_NTRLGAS_PROD_GTH | B94: NG Production & Gather - Oper | D94: 0 | E94: 0 | F94: 0
A95: %,FACCOUNT,TNI_ACCOUNT_FERC,XBYYYYY01,NOP_PROD_EXTRACT | B95: Products Extraction - Oper | D95: 0 | E95: 0 | F95: 0
A97: %,V80100000 | B97: Natural gas field line purchas | C97: 80100000 | D97: 28100.7 | E97: =D97-H97 -> 4092.64 | F97: 52108.76 | H97: 24008.06
A98: %,NOP_NG_PURCH_FIELD | B98: NG Well Head Purchases | D98: 28100.7 | E98: 4092.64 | F98: 52108.76 | H98: 24008.06
A99: %,V80300300 | B99: Short Term Producer Purch | C99: 80300300 | D99: 4840066.88 | E99: 3470389.79 | F99: 6209743.97 | H99: 1369677.09
A100: %,V80300400 | B100: Transportation Pipeline Exp | C100: 80300400 | D100: 999434.31 | E100: 189517.81 | F100: 1809350.81 | H100: 809916.5
A101: %,V80300500 | B101: Storage Charges Pipeline Exp | C101: 80300500 | D101: -575064.72 | E101: -33959.64 | F101: -1116169.8 | H101: -541105.08
A102: %,V80300600 | B102: OFS_System Supply Credit | C102: 80300600 | D102: -74392.08 | E102: 62428.86 | F102: -211213.02 | H102: -136820.94
A103: %,V80300808 | B103: Storage Demand | C103: 80300808 | D103: 623301.64 | E103: 0 | F103: 1246603.28 | H103: 623301.64
A104: %,NOP_NG_PURCH_TRANSLIN | B104: NG Transmission Line Purchases | D104: 5813346.03 | E104: 3688376.82 | F104: 7938315.24 | H104: 2124969.21
A105: %,V80400000 | B105: Natural Gas City Gate Purchase | C105: 80400000 | D105: 439064.05 | E105: -56329.65 | F105: 934457.75 | H105: 495393.7
A106: %,NOP_NG_PURCH_CITYGATE | B106: NG City Gate Purchases | D106: 439064.05 | E106: -56329.65 | F106: 934457.75 | H106: 495393.7
A107: %,V80510000 | B107: Purchased Gas Cost Adjustments | C107: 80510000 | D107: 260532.86 | E107: -1226808.47 | F107: 1747874.19 | H107: 1487341.33
A108: %,NOP_NG_PURCH_ADJUST | B108: Purchased Gas Cost Adjustments | D108: 260532.86 | E108: -1226808.47 | F108: 1747874.19 | H108: 1487341.33
A109: %,V80601000 | B109: Exchange Gas-Received | C109: 80601000 | D109: -1378828.4 | E109: -338049.78 | F109: -2419607.02 | H109: -1040778.62
A110: %,NOP_NG_PURCH_EXCHANGE | B110: Exchange Gas | D110: -1378828.4 | E110: -338049.78 | F110: -2419607.02 | H110: -1040778.62
A111: %,V80720000 | B111: Oper-Purch Gas Measrg Stations | C111: 80720000 | D111: 40594.47 | E111: 6270.72 | F111: 74918.22 | H111: 34323.75
A112: %,V80751000 | B112: Purch Gas Exp - Mgmt Fee | C112: 80751000 | D112: 5014.71 | E112: -527.28 | F112: 10556.7 | H112: 5541.99
A113: %,NOP_NG_PURCH_EXPENSE | B113: Purchased Gas Expenses | D113: 45609.18 | E113: 5743.44 | F113: 85474.92 | H113: 39865.74
A114: %,V80810000 | B114: Gas Withdrawn | C114: 80810000 | D114: 4597828.53 | E114: -1694204.92 | F114: 10889861.98 | H114: 6292033.45
A115: %,NOP_NG_PURCH_WITHDRAW | B115: Gas Withdrawn from Storage | D115: 4597828.53 | E115: -1694204.92 | F115: 10889861.98 | H115: 6292033.45
A116: %,V80820000 | B116: Gas Delivered | C116: 80820000 | D116: -342623.13 | E116: -342705.62 | F116: -342540.64 | H116: 82.49
A117: %,NOP_NG_PURCH_DELIVER | B117: Gas Delivered to Storage | D117: -342623.13 | E117: -342705.62 | F117: -342540.64 | H117: 82.49
A118: %,V81220000 | B118: Gas Used-Other-Offset | C118: 81220000 | D118: -19683.84 | E118: -5514.84 | F118: -33852.84 | H118: -14169
A119: %,NOP_NG_PURCH_OTHOPS | B119: Gas Used for Other Utility Ops | D119: -19683.84 | E119: -5514.84 | F119: -33852.84 | H119: -14169
A120: %,FACCOUNT,TNI_ACCOUNT_FERC,XBYYYYY01,NOP_OTH_GAS_SUPPLY | B120: Other Gas Supply - Operations | D120: 9443345.98 | E120: 34599.62 | F120: 18852092.34 | H120: 9408746.36
A121: %,FACCOUNT,TNI_ACCOUNT_FERC,XBYYYYY01,NOP_STEAM_POWER | B121: Steam Power - Operations | D121: 0 | E121: 0 | F121: 0
A122: %,FACCOUNT,TNI_ACCOUNT_FERC,XBYYYYY01,NOP_HYDRAULIC_POWER | B122: Hydraulic Power - Operations | D122: 0 | E122: 0 | F122: 0
A123: %,FACCOUNT,TNI_ACCOUNT_FERC,XBYYYYY01,NOP_OTHER_POWER | B123: Other Power - Operations | D123: 0 | E123: 0 | F123: 0
A124: %,FACCOUNT,TNI_ACCOUNT_FERC,XBYYYYY01,NOP_OTH_POWER_SUPPLY | B124: Other Power Supply - Oper | D124: 0 | E124: 0 | F124: 0
A125: %,FACCOUNT,TNI_ACCOUNT_FERC,XBYYYYY01,NOP_NG_STOR_TERM_PROC | B125: NG Stor, Term & Proc - Oper | D125: 0 | E125: 0 | F125: 0
A127: %,V85200030 | B127: Communication System Exp | C127: 85200030 | D127: 138.73 | E127: =D127-H127 -> 130.33 | F127: 147.13 | H127: 8.4
A128: %,NOP_GAS_TRANS_EXP | B128: Transmission Exp - Oper - Gas | D128: 138.73 | E128: 130.33 | F128: 147.13 | H128: 8.4
A129: %,FACCOUNT,TNI_ACCOUNT_FERC,XBYYYYY01,NOP_TRANS_EXP | B129: Transmission Exp - Oper | D129: 138.73 | E129: 130.33 | F129: 147.13 | H129: 8.4
A130: %,FACCOUNT,TNI_ACCOUNT_FERC,XBYYYYY01,NOP_REG_MARKET_EXP | B130: Regional Market Exp - Oper | D130: 0 | E130: 0 | F130: 0
A132: %,V87000000 | B132: Op Superv-Eng-Gas Distr | C132: 87000000 | D132: 87952.19 | E132: =D132-H132 -> 14137.9 | F132: 161766.48 | H132: 73814.29
A133: %,V87100000 | B133: Distribution Load Dispatching | C133: 87100000 | D133: 16188.84 | E133: 1667.92 | F133: 30709.76 | H133: 14520.92
A134: %,V87400000 | B134: Mains and Services Exp | C134: 87400000 | D134: 460999.41 | E134: -129156.2 | F134: 1051155.02 | H134: 590155.61
A135: %,V87500000 | B135: Measur-Reg Statn Exp Gen | C135: 87500000 | D135: 15141.41 | E135: -9183.76 | F135: 39466.58 | H135: 24325.17
A136: %,V87600000 | B136: Measur-Reg Statn Exp-Indus | C136: 87600000 | D136: 7366.07 | E136: 4382.36 | F136: 10349.78 | H136: 2983.71
A137: %,V87800000 | B137: Meter and House Regulator Exp | C137: 87800000 | D137: 116313.46 | E137: 903.68 | F137: 231723.24 | H137: 115409.78
A138: %,V87900000 | B138: Oper Installation Service Exp | C138: 87900000 | D138: 269966.11 | E138: 48360.17 | F138: 491572.05 | H138: 221605.94
A139: %,V87900200 | B139: Oper Install-Chrg Labor | C139: 87900200 | D139: 0 | E139: -28.03 | F139: 28.03 | H139: 28.03
A140: %,V88000000 | B140: Operations Exp Other | C140: 88000000 | D140: 135217.7 | E140: -3018.52 | F140: 273453.92 | H140: 138236.22
A141: %,V88100000 | B141: Gas Distr Rents | C141: 88100000 | D141: 570.57 | E141: 59.32 | F141: 1081.82 | H141: 511.25
A142: %,NOP_GAS_DISTR_EXP | B142: Distribution Exp - Oper - Gas | D142: 1109715.76 | E142: -71875.16 | F142: 2291306.68 | H142: 1181590.92
A143: %,FACCOUNT,TNI_ACCOUNT_FERC,XBYYYYY01,NOP_DISTR_EXP | B143: Distribution Exp - Oper | D143: 1109715.76 | E143: -71875.16 | F143: 2291306.68 | H143: 1181590.92
A144: %,V90100000 | B144: Customer Acnt Supervision | C144: 90100000 | D144: 0 | E144: -11.08 | F144: 11.08 | H144: 11.08
A145: %,V90200000 | B145: Cust Accnt Meter Reading Exp | C145: 90200000 | D145: 14695.94 | E145: -5021.33 | F145: 34413.21 | H145: 19717.27
A146: %,V90300000 | B146: Cust Records Collection Exp | C146: 90300000 | D146: 205525.07 | E146: -3220.29 | F146: 414270.43 | H146: 208745.36
A147: %,V90400000 | B147: Uncollectible Accounts | C147: 90400000 | D147: -428331.41 | E147: -782179.41 | F147: -74483.41 | H147: 353848
A148: %,V90500000 | B148: Misc Cust Accts Exp | C148: 90500000 | D148: 1381.02 | E148: 293.51 | F148: 2468.53 | H148: 1087.51
A149: %,FACCOUNT,TNI_ACCOUNT_FERC,XBYYYYY01,NOP_CUST_ACCTS_EXP | B149: Customer Accounts - Oper | D149: -206729.38 | E149: -790138.6 | F149: 376679.84 | H149: 583409.22
A150: %,V90800000 | B150: Customer Assistance Exp | C150: 90800000 | D150: 9885 | E150: -6590 | F150: 26360 | H150: 16475
A151: %,V91000000 | B151: Misc Cust Serv and Info Exp | C151: 91000000 | D151: 27518.45 | E151: 11915.7 | F151: 43121.2 | H151: 15602.75
A152: %,FACCOUNT,TNI_ACCOUNT_FERC,XBYYYYY01,NOP_CUSTOMER_SERV_EXP | B152: Cust Serv & Info Exp - Oper | D152: 37403.45 | E152: 5325.7 | F152: 69481.2 | H152: 32077.75
A153: %,V91200000 | B153: Demonstrating and Selling Exp | C153: 91200000 | D153: -97.07 | E153: -1497.77 | F153: 1303.63 | H153: 1400.7
A154: %,V91300000 | B154: Sales Advertising Exp | C154: 91300000 | D154: 0.16 | E154: -0.02 | F154: 0.34 | H154: 0.18
A155: %,FACCOUNT,TNI_ACCOUNT_FERC,XBYYYYY01,NOP_SALES_EXP | B155: Sales Expenses - Oper | D155: -96.91 | E155: -1497.79 | F155: 1303.97 | H155: 1400.88
A156: %,V92000000 | B156: A_G Salaries | C156: 92000000 | D156: 692351.98 | E156: 35592.41 | F156: 1349111.55 | H156: 656759.57
A157: %,V92001000 | B157: Discretionary and Spot Awards | C157: 92001000 | D157: 8231.02 | E157: 7458.42 | F157: 9003.62 | H157: 772.6
A158: %,V92002000 | B158: Stock Compensation Expense | C158: 92002000 | D158: 80360.28 | E158: 64262.55 | F158: 96458.01 | H158: 16097.73
A159: %,V92100000 | B159: Office Supplies and Exp | C159: 92100000 | D159: 62578.2 | E159: -26118.59 | F159: 151274.99 | H159: 88696.79
A160: %,V92101000 | B160: Employee Expenses | C160: 92101000 | D160: 16307.47 | E160: 9768.66 | F160: 22846.28 | H160: 6538.81
A161: %,V92300000 | B161: Outside Service Employed | C161: 92300000 | D161: 365986.23 | E161: -22266.93 | F161: 754239.39 | H161: 388253.16
A162: %,V92301000 | B162: Mgmt Fee Actuals-Affil | C162: 92301000 | D162: 143439.15 | E162: -7061.8 | F162: 293940.1 | H162: 150500.95
A163: %,V92400000 | B163: Property Insurance | C163: 92400000 | D163: 3534.76 | E163: 1.65 | F163: 7067.87 | H163: 3533.11
A164: %,V92500000 | B164: Injuries and Damages | C164: 92500000 | D164: 174426.94 | E164: -19216.41 | F164: 368070.29 | H164: 193643.35
A165: %,V92600000 | B165: Employee Pensions and Benefits | C165: 92600000 | D165: 417351.19 | E165: 118225.33 | F165: 716477.05 | H165: 299125.86
A166: %,V92601000 | B166: Non Service Pension & OPEB | C166: 92601000 | D166: -99810.91 | E166: 0 | F166: -199621.82 | H166: -99810.91
A167: %,V92800000 | B167: Regulatory Commission Exp | C167: 92800000 | D167: 22636.6 | E167: -60.67 | F167: 45333.87 | H167: 22697.27
A168: %,V93010000 | B168: General Advertising Exp | C168: 93010000 | D168: 1582.87 | E168: 1575.39 | F168: 1590.35 | H168: 7.48
A169: %,V93020000 | B169: Misc General Exp | C169: 93020000 | D169: -2859.13 | E169: -751.68 | F169: -4966.58 | H169: -2107.45
A170: %,V93100000 | B170: Rents Admin and General | C170: 93100000 | D170: 69579.77 | E170: -4095.08 | F170: 143254.62 | H170: 73674.85
A171: %,FACCOUNT,TNI_ACCOUNT_FERC,XBYYYYY01,NOP_ADMIN_GEN | B171: Admin & General Exp - Oper | D171: 1955696.42 | E171: 157313.25 | F171: 3754079.59 | H171: 1798383.17
B172: Total Operation Expenses | D172: =D93+D94+D95+D120+D121+D122+D123+D124+D125+D129+D130+D143+D149+D152+D155+D171 -> 12339474.05 | E172: =E93+E94+E95+E120+E121+E122+E123+E124+E125+E129+E130+E143+E149+E152+E155+E171 -> -666142.65 | F172: =F93+F94+F95+F120+F121+F122+F123+F124+F125+F129+F130+F143+F149+F152+F155+F171 -> 25345090.75
B174: Maintenance Expenses
A176: %,FACCOUNT,TNI_ACCOUNT_FERC,XBYYYYY01,NMAINT_PROD_EXP | B176: Production Expenses - Maint | D176: 0 | E176: =D176-H176 -> 0 | F176: 0
A177: %,FACCOUNT,TNI_ACCOUNT_FERC,XBYYYYY01,NMAINT_NG_STOR_PROC | B177: NG Stor, Term & Proc - Maint | D177: 0 | E177: 0 | F177: 0
A178: %,FACCOUNT,TNI_ACCOUNT_FERC,XBYYYYY01,NMAINT_TRANS_EXP | B178: Transmission Exp - Maint | D178: 0 | E178: 0 | F178: 0
A180: %,V88500000 | B180: Maint Supv-Eng-Gas Distr | C180: 88500000 | D180: 6655.74 | E180: =D180-H180 -> -742.46 | F180: 14053.94 | H180: 7398.2
A181: %,V88600000 | B181: Maint Struct-Improv-Gas Distr | C181: 88600000 | D181: 10438.1 | E181: 7498.54 | F181: 13377.66 | H181: 2939.56
A182: %,V88700000 | B182: Maint of Mains | C182: 88700000 | D182: 123380.74 | E182: -74498.6 | F182: 321260.08 | H182: 197879.34
A183: %,V88900000 | B183: Maint Msr-Reg Statn Equi Gen | C183: 88900000 | D183: 17798.87 | E183: -21059.84 | F183: 56657.58 | H183: 38858.71
A184: %,V89000000 | B184: Maint Meas_Reg Stn Equip-Distr | C184: 89000000 | D184: 10462.23 | E184: 5082.98 | F184: 15841.48 | H184: 5379.25
A185: %,V89200000 | B185: Maint of Services | C185: 89200000 | D185: 64422.41 | E185: -32965.13 | F185: 161809.95 | H185: 97387.54
A186: %,V89300000 | B186: Maint Meters_House Regulators | C186: 89300000 | D186: 7755.55 | E186: 4846.47 | F186: 10664.63 | H186: 2909.08
A187: %,V89400000 | B187: Other Maint Equipment | C187: 89400000 | D187: 52861.27 | E187: 11535.63 | F187: 94186.91 | H187: 41325.64
A188: %,NMAINT_GAS_DISTR_EXP | B188: Distribution Exp - Maint-Gas | D188: 293774.91 | E188: -100302.41 | F188: 687852.23 | H188: 394077.32
A189: %,FACCOUNT,TNI_ACCOUNT_FERC,XBYYYYY01,NMAINT_DISTR_EXP | B189: Distribution Exp - Maint | D189: 293774.91 | E189: -100302.41 | F189: 687852.23 | H189: 394077.32
A190: %,V93200000 | B190: Maint General Plant | C190: 93200000 | D190: 94836.97 | E190: =D190-H190 -> -1984.27 | F190: 191658.21 | H190: 96821.24
A191: %,FACCOUNT,TNI_ACCOUNT_FERC,XBYYYYY01,NMAINT_ADMIN_GEN | B191: Maintenance Gen and Admin | D191: 94836.97 | E191: -1984.27 | F191: 191658.21 | H191: 96821.24
B192: Total Maintenance Expenses | D192: =D176+D177+D178+D189+D191 -> 388611.88 | E192: =E176+E177+E178+E189+E191 -> -102286.68 | F192: 879510.44
A194: %,V40300000 | B194: Dep Exp | C194: 40300000 | D194: 1195792.98 | E194: =D194-H194 -> 5642.71 | F194: 2385943.25 | H194: 1190150.27
A195: %,FACCOUNT,TNI_ACCOUNT_FERC,XBYYYYY01,NDEPRECIATION_EXPENSE | B195: Depreciation Expense | D195: 1195792.98 | E195: =D195-H195 -> 5642.71 | F195: 2385943.25 | H195: 1190150.27
A196: %,FACCOUNT,TNI_ACCOUNT_FERC,XBYYYYY01,NDEPRECIATION_ARO_EXP | B196: Depreciation Expense for AROs | D196: 0 | E196: 0 | F196: 0
A198: %,V40430000 | B198: Amortization Exp-Other | C198: 40430000 | D198: 34901.65 | E198: =D198-H198 -> 127.89 | F198: 69675.41 | H198: 34773.76
A199: %,V40434000 | B199: Cloude Amortizaiton Expense | C199: 40434000 | D199: 9928.45 | E199: 1845.45 | F199: 18011.45 | H199: 8083
A200: %,NAMORT_LMT_TERM_PROP | B200: Amort of Limited-Term Property | D200: 44830.1 | E200: 1973.34 | F200: 87686.86 | H200: 42856.76
A201: %,V40500000 | B201: Amortization of Oth Plant | C201: 40500000 | D201: 100892.65 | E201: 5161.1 | F201: 196624.2 | H201: 95731.55
A202: %,NAMORT_OTH_PROP | B202: Amort of Other Property | D202: 100892.65 | E202: 5161.1 | F202: 196624.2 | H202: 95731.55
A203: %,FACCOUNT,TNI_ACCOUNT_FERC,XBYYYYY01,NAMORT_DEPL_UTIL | B203: Amort & Deplet of Util Plant | D203: 145722.75 | E203: 7134.44 | F203: 284311.06 | H203: 138588.31
A204: %,FACCOUNT,TNI_ACCOUNT_FERC,XBYYYYY01,NAMORT_UTIL_ADJ | B204: Amort of Gas Plant Acq Adj | D204: 0 | E204: 0 | F204: 0
A205: %,FACCOUNT,TNI_ACCOUNT_FERC,XBYYYYY01,NAMORT_CONV_EXP | B205: Amort of Conversion Exp | D205: 0 | E205: 0 | F205: 0
A206: %,FACCOUNT,TNI_ACCOUNT_FERC,XBYYYYY01,NREG_DEBITS | B206: Reg Debits | D206: 0 | E206: 0 | F206: 0
A207: %,FACCOUNT,TNI_ACCOUNT_FERC,XBYYYYY01,NREG_CREDITS | B207: Reg Credits | D207: 0 | E207: 0 | F207: 0
A208: %,V40813100 | B208: Tax Exp-License_Franchise | C208: 40813100 | D208: 3000 | E208: 3000 | F208: 3000 | H208: 0
A209: %,V40813200 | B209: Tax Exp-Property | C209: 40813200 | D209: 411915.5 | E209: -153679 | F209: 977510 | H209: 565594.5
A210: %,V40813300 | B210: Tax Exp-Sales and Use Tax | C210: 40813300 | D210: -0.02 | E210: -0.03 | F210: -0.01 | H210: 0.01
A211: %,V40813600 | B211: Tax Exp-State and Local-Oth | C211: 40813600 | D211: 0 | E211: 0 | F211: 0 | H211: 0
A212: %,V40814100 | B212: Tax Exp-Payroll-Incentive | C212: 40814100 | D212: 4930.74 | E212: 0 | F212: 9861.48 | H212: 4930.74
A213: %,V40814500 | B213: Tax Exp-Payroll FICA-OASDI | C213: 40814500 | D213: 85690.38 | E213: 32420.03 | F213: 138960.73 | H213: 53270.35
A214: %,V40814600 | B214: Tax Exp-Payroll FICA-Medicar | C214: 40814600 | D214: 20046.94 | E214: 7600.51 | F214: 32493.37 | H214: 12446.43
A215: %,V40814700 | B215: Tax Exp-FUTA Employer | C215: 40814700 | D215: 529.74 | E215: -4108.14 | F215: 5167.62 | H215: 4637.88
A216: %,V40814800 | B216: Tax Exp-SUTA Employer | C216: 40814800 | D216: 1327.02 | E216: -1367.43 | F216: 4021.47 | H216: 2694.45
A217: %,FACCOUNT,TNI_ACCOUNT_FERC,XBYYYYY01,NOTHER_TAXES_FERC | B217: Other Taxes FERC | D217: 527440.3 | E217: -116134.06 | F217: 1171014.66 | H217: 643574.36
A219: %,V40912000 | B219: Util Cur ST Exp | C219: 40912000 | D219: 9448 | E219: =D219-H219 -> 26992 | F219: -8096 | H219: -17544
A220: %,FACCOUNT,TNI_ACCOUNT_FERC,XBYYYYY01,NINC_TAX_EXP_ST | B220: Income Taxes - State | D220: 9448 | E220: =D220-H220 -> 26992 | F220: -8096 | H220: -17544
A221: %,V40911000 | B221: Util Cur Fed Exp | C221: 40911000 | D221: 797151 | E221: =D221-H221 -> -377352 | F221: 1971654 | H221: 1174503
... 83 more rows

Sheet Mar21
A1: %,LACTUALS,UPOSTED_TRAN_AMT | B1: %,ATF,FDESCR,UDESCR | C1: %,ATT,FACCOUNT | D1: %,LACTUALS,UPOSTED_TRAN_AMT,SPER,FBOOK_CODE,VR | E1: %,C | F1: %,LACTUALS,UPOSTED_TRAN_AMT,SYTD,FBOOK_CODE,VR | H1: %,LACTUALS,UPOSTED_TRAN_AMT,SPER-1,FBOOK_CODE,VR
B2: Columbia Gas of Kentucky Inc | H2: FOR
B3: Income Statement-FERC | H3: CALC
B4: Regulatory View - FERC Account
B5: For the Month Ended March 31, 2021 | H5: PURPOSES
B6: For Internal Use Only | H6: ONLY
D8: Current | E8: Change from | F8: Year-To- | H8: Prior
D9: Month | E9: Prior Month | F9: Date | H9: Month
B11: Operating Revenues
A13: %,V48000000 | B13: Residential Sales | C13: 48000000 | D13: 11042195.14 | E13: =D13-H13 -> -2526806.41 | F13: 38085180.13 | H13: 13569001.55
A14: %,V48000100 | B14: Residential Sales Norm | C14: 48000100 | D14: 3869.13 | E14: 3711.92 | F14: 4173.27 | H14: 157.21
A15: %,R,FACCOUNT,TNI_ACCOUNT_FERC,XBYYYYY01,NGAS_RESID_REV | B15: Gas Residential Sales | D15: 11046064.27 | E15: =D15-H15 -> -2523094.49 | F15: 38089353.4 | H15: 13569158.76
A17: %,V48101000 | B17: Commercial Gas Sales | C17: 48101000 | D17: 4500771.55 | E17: =D17-H17 -> -1121910.62 | F17: 15493669.47 | H17: 5622682.17
A18: %,V48101200 | B18: Commercial Gas Sales Norm | C18: 48101200 | D18: 1942.04 | E18: 1862.89 | F18: 2095.53 | H18: 79.15
A19: %,NGAS_COMM_REV | B19: Gas Commercial Revenues | D19: 4502713.59 | E19: -1120047.73 | F19: 15495765 | H19: 5622761.32
A20: %,V48102000 | B20: Industrial Gas Sales | C20: 48102000 | D20: 225665.32 | E20: -35570.56 | F20: 768490.91 | H20: 261235.88
A21: %,V48102300 | B21: Industrial Gas Sales Norm | C21: 48102300 | D21: 95.84 | E21: 91.54 | F21: 104.93 | H21: 4.3
A22: %,NGAS_INDUST_REV | B22: Gas Industrial Revenues | D22: 225761.16 | E22: -35479.02 | F22: 768595.84 | H22: 261240.18
A23: %,V48103000 | B23: Gas Sales-Other | C23: 48103000 | D23: 0 | E23: 0 | F23: 0 | H23: 0
A24: %,NGAS_OTHER_REV | B24: Gas Comm & Indust Other Rev | D24: 0 | E24: 0 | F24: 0 | H24: 0
A25: %,R,FACCOUNT,TNI_ACCOUNT_FERC,XBYYYYY01,NGAS_COMM_INDUST_REV | B25: Gas Comm & Indust Revenues | D25: 4728474.75 | E25: -1155526.75 | F25: 16264360.84 | H25: 5884001.5
A26: %,V48300000 | B26: Sales for Resale-Gas | C26: 48300000 | D26: 11754.16 | E26: =D26-H26 -> 899.66 | F26: 33561.39 | H26: 10854.5
A27: %,R,FACCOUNT,TNI_ACCOUNT_FERC,XBYYYYY01,NGAS_SALES_RESALE | B27: Gas Sales for Resale | D27: 11754.16 | E27: 899.66 | F27: 33561.39 | H27: 10854.5
A28: %,R,FACCOUNT,TNI_ACCOUNT_FERC,XBYYYYY01,NGAS_INTERDEPT_SALES | B28: Gas Interdepartmental Sales | D28: 0 | E28: 0 | F28: 0
A29: %,R,FACCOUNT,TNI_ACCOUNT_FERC,XBYYYYY01,NGAS_INTRACO_TRANSFER | B29: Gas Intercompany Transfers | D29: 0 | E29: =D29-H29 -> 0 | F29: 0
A30: xx | B30: Total Sales of Gas | D30: =D15+D25+D27+D28+D29 -> 15786293.18 | E30: =E15+E25+E27+E28+E29 -> -3677721.58 | F30: =F15+F25+F27+F28+F29 -> 54387275.63
A32: %,R,FACCOUNT,TNI_ACCOUNT_FERC,XBYYYYY01,NELE_RESID_REV | B32: Electric Residential Revenues | D32: 0 | E32: =D32-H32 -> 0 | F32: 0
A33: %,R,FACCOUNT,TNI_ACCOUNT_FERC,XBYYYYY01,NELE_COMM_IND_REV | B33: Elec Comm & Indust Rev | D33: 0 | E33: 0 | F33: 0
A34: %,R,FACCOUNT,TNI_ACCOUNT_FERC,XBYYYYY01,NELE_STREET_HWY_LIGHT | B34: Public Street & Hwy Lighting | D34: 0 | E34: 0 | F34: 0
A35: %,R,FACCOUNT,TNI_ACCOUNT_FERC,XBYYYYY01,NELE_OTH_SALES_PUBLIC | B35: Elec Oth Sales to Public Auth | D35: 0 | E35: 0 | F35: 0
A36: %,R,FACCOUNT,TNI_ACCOUNT_FERC,XBYYYYY01,NELE_RAILROAD | B36: Sales to Railroads & Railways | D36: 0 | E36: 0 | F36: 0
A37: %,R,FACCOUNT,TNI_ACCOUNT_FERC,XBYYYYY01,NELE_SALES_RESALE | B37: Electric Sales for Resale | D37: 0 | E37: 0 | F37: 0
A38: %,R,FACCOUNT,TNI_ACCOUNT_FERC,XBYYYYY01,NELE_INTERDEPT_SALES | B38: Elec Interdepartmental Sales | D38: 0 | E38: 0 | F38: 0
A39: xx | B39: Total Sales of Electricity | D39: =D32+D33+D34+D35+D36+D37+D38 -> 0 | E39: =E32+E33+E34+E35+E36+E37+E38 -> 0 | F39: 0
A41: %,V48700000 | B41: Forfeited Discounts-Gas | C41: 48700000 | D41: 99382.64 | E41: =D41-H41 -> 17809.29 | F41: 230559.06 | H41: 81573.35
A42: %,R,FACCOUNT,TNI_ACCOUNT_FERC,XBYYYYY01,NFORFEITED_DISC_GAS | B42: Forfeited Discounts - Gas | D42: 99382.64 | E42: =D42-H42 -> 17809.29 | F42: 230559.06 | H42: 81573.35
A43: %,R,FACCOUNT,TNI_ACCOUNT_FERC,XBYYYYY01,NFORFEITED_DISC_ELE | B43: Forfeited Discounts - Ele | D43: 0 | E43: 0 | F43: 0
B44: Total Forfeited Discounts | D44: =D42+D43 -> 99382.64 | E44: =E42+E43 -> 17809.29 | F44: 230559.06
A46: %,V48800000 | B46: Misc Service Revenues-Gas | C46: 48800000 | D46: 8980.15 | E46: =D46-H46 -> 4926.46 | F46: 10694.35 | H46: 4053.69
A47: %,R,FACCOUNT,TNI_ACCOUNT_FERC,XBYYYYY01,NMISC_SERV_REVS_GAS | B47: Misc Service Revenues - Gas | D47: 8980.15 | E47: =D47-H47 -> 4926.46 | F47: 10694.35 | H47: 4053.69
A48: %,R,FACCOUNT,TNI_ACCOUNT_FERC,XBYYYYY01,NMISC_SERV_REVS_ELE | B48: Misc Service Revenues - Ele | D48: 0 | E48: 0 | F48: 0
B49: Total Miscellaneous Service Revenues | D49: =D47+D48 -> 8980.15 | E49: =E47+E48 -> 4926.46 | F49: 10694.35
A51: %,R,FACCOUNT,TNI_ACCOUNT_FERC,XBYYYYY01,NRENT_ELE_PROP | B51: Rent from Electricity Property | D51: 0 | E51: =D51-H51 -> 0 | F51: 0
A52: %,R,FACCOUNT,TNI_ACCOUNT_FERC,XBYYYYY01,NOTH_ELE_REV | B52: Other Electric Revenues | D52: 0 | E52: 0 | F52: 0
A53: %,R,FACCOUNT,TNI_ACCOUNT_FERC,XBYYYYY01,NOTH_ELE_TRANS_REV | B53: Rev Transm of Elec of Oth | D53: 0 | E53: 0 | F53: 0
A54: %,R,FACCOUNT,TNI_ACCOUNT_FERC,XBYYYYY01,NOTH_REV_SERVICE_CO | B54: Nonutility Revenues - Serv Co | D54: 0 | E54: 0 | F54: 0
A55: %,R,FACCOUNT,TNI_ACCOUNT_FERC,XBYYYYY01,NREG_ELE_TRANS_REV | B55: Regional Transm Service Rev | D55: 0 | E55: 0 | F55: 0
A56: %,R,FACCOUNT,TNI_ACCOUNT_FERC,XBYYYYY01,NTRANSPORT_GATH_REV | B56: Rev Transp Gas of Oth - Gather | D56: 0 | E56: 0 | F56: 0
A57: %,R,FACCOUNT,TNI_ACCOUNT_FERC,XBYYYYY01,NTRANSPORT_TRANS_REV | B57: Rev Transp Gas of Oth - Transm | D57: 0 | E57: 0 | F57: 0
A58: %,V48930000 | B58: Transp Rev Distr Residential | C58: 48930000 | D58: 890704.54 | E58: -175590.04 | F58: 3039609.23 | H58: 1066294.58
A59: %,V48930200 | B59: Unbilled Residential Trans Vol | C59: 48930200 | D59: -65768.1 | E59: 45426 | F59: -164785.4 | H59: -111194.1
A60: %,V48930300 | B60: Unbilled Res Trans Cust chrg | C60: 48930300 | D60: -1472 | E60: 0 | F60: -4400 | H60: -1472
A61: %,V48931000 | B61: Transp Rev Distr Commercial | C61: 48931000 | D61: 848446.58 | E61: -310628.78 | F61: 3207209.63 | H61: 1159075.36
A62: %,V48931300 | B62: Unbilled Comm Trans Vol | C62: 48931300 | D62: -57217.68 | E62: 8873.42 | F62: -121011.83 | H62: -66091.1
A63: %,V48931400 | B63: Unbilled Comm Trans Cust chrg | C63: 48931400 | D63: -2364.52 | E63: -1649.48 | F63: -4018.05 | H63: -715.04
A64: %,V48932000 | B64: Transp Rev Distr Industrial | C64: 48932000 | D64: 507874.3 | E64: 592.76 | F64: 1528417.87 | H64: 507281.54
A65: %,V48932400 | B65: Unbilled Ind Trans Vol | C65: 48932400 | D65: -3091.78 | E65: -2748.59 | F65: -3405.22 | H65: -343.19
A66: %,V48932500 | B66: Unbilled Ind Trans Cust chrg | C66: 48932500 | D66: 0 | E66: 0 | F66: 0 | H66: 0
A67: %,R,FACCOUNT,TNI_ACCOUNT_FERC,XBYYYYY01,NTRANSPORT_DISTR_REV | B67: Rev Transp Gas of Oth - Distr | D67: 2117111.34 | E67: -435724.71 | F67: 7477616.23 | H67: 2552836.05
A68: %,R,FACCOUNT,TNI_ACCOUNT_FERC,XBYYYYY01,NSTORE_GAS_REV | B68: Rev from Storing Gas of Oth | D68: 0 | E68: 0 | F68: 0
A69: %,R,FACCOUNT,TNI_ACCOUNT_FERC,XBYYYYY01,NSALES_EXTRACT_GAS | B69: Sales - Prod Extracted from NG | D69: 0 | E69: 0 | F69: 0
A70: %,R,FACCOUNT,TNI_ACCOUNT_FERC,XBYYYYY01,NGAS_OIL_SALES | B70: Incidental Gasoline & Oil Sale | D70: 0 | E70: 0 | F70: 0
A71: %,V49300000 | B71: Rent from Gas Property | C71: 49300000 | D71: 2852 | E71: =D71-H71 -> -61 | F71: 8556 | H71: 2913
A72: %,R,FACCOUNT,TNI_ACCOUNT_FERC,XBYYYYY01,NRENT_GAS_PROP | B72: Rent from Gas Property | D72: 2852 | E72: -61 | F72: 8556 | H72: 2913
A74: %,V49500485 | B74: Unbilled Residential-Vol | C74: 49500485 | D74: -2394465.56 | E74: =D74-H74 -> -1300438.42 | F74: -3403918.8 | H74: -1094027.14
A75: %,V49501485 | B75: Unbilled Res Customer Chrg | C75: 49501485 | D75: -400 | E75: -5328.2 | F75: 14736.2 | H75: 4928.2
A76: %,V49503483 | B76: Unbilled Off System Sales | C76: 49503483 | D76: 0 | E76: 0 | F76: 0 | H76: 0
A77: %,V49510485 | B77: Unbilled Commercial-Vol | C77: 49510485 | D77: -881720.68 | E77: -405009.24 | F77: -1284244.03 | H77: -476711.44
A78: %,V49511485 | B78: Unbilled Comm Customer Chrg | C78: 49511485 | D78: -1966.36 | E78: -3172.99 | F78: 1876.98 | H78: 1206.63
A79: %,V49520485 | B79: Unbilled Industrial-Vol | C79: 49520485 | D79: -33153.18 | E79: -21490.34 | F79: -44875.05 | H79: -11662.84
A80: %,V49521485 | B80: Unbilled Ind Customer Chrg | C80: 49521485 | D80: 0 | E80: -44.69 | F80: 44.69 | H80: 44.69
A81: %,NUNBILLED_REV_FERC | B81: Unbilled Revenues | D81: -3311705.78 | E81: -1735483.88 | F81: -4716380.01 | H81: -1576221.9
A82: %,V49500000 | B82: Other Gas Revenue | C82: 49500000 | D82: 33346.77 | E82: -56086.3 | F82: 158323.74 | H82: 89433.07
A83: %,V49500050 | B83: Billed Off System Sales | C83: 49500050 | D83: 40739.99 | E83: -418787.51 | F83: 799173.74 | H83: 459527.5
A84: %,R,FACCOUNT,TNI_ACCOUNT_FERC,XBYYYYY01,NOTH_GAS_REV | B84: Other Gas Revenues | D84: -3237619.02 | E84: -2210357.69 | F84: -3758882.53 | H84: -1027261.33
A85: %,R,FACCOUNT,TNI_ACCOUNT_FERC,XBYYYYY01,NGAS_PROV_RATE_REFUND | B85: Gas Provision of Rate Refunds | D85: 0 | E85: 0 | F85: 0
B86: Total Other Operating Revenues | D86: =D44+D49+D51+D52+D53+D54+D55+D56+D57+D67+D68+D69+D70+D72+D84+D85 -> -1009292.89 | E86: =E44+E49+E51+E52+E53+E54+E55+E56+E57+E67+E68+E69+E70+E72+E84+E85 -> -2623407.65 | F86: 3968543.11
A87: xx | B87: Total Operating Revenues | D87: =D30+D39+D86 -> 14777000.29 | E87: =E30+E39+E86 -> -6301129.23 | F87: =F30+F39+F86 -> 58355818.74
B89: Operating Expenses
B91: Operation Expenses
A93: %,FACCOUNT,TNI_ACCOUNT_FERC,XBYYYYY01,NOP_MANUF_GAS | B93: Manufac Gas Production - Oper | D93: 0 | E93: =D93-H93 -> 0 | F93: 0
A94: %,FACCOUNT,TNI_ACCOUNT_FERC,XBYYYYY01,NOP_NTRLGAS_PROD_GTH | B94: NG Production & Gather - Oper | D94: 0 | E94: 0 | F94: 0
A95: %,FACCOUNT,TNI_ACCOUNT_FERC,XBYYYYY01,NOP_PROD_EXTRACT | B95: Products Extraction - Oper | D95: 0 | E95: 0 | F95: 0
A97: %,V80100000 | B97: Natural gas field line purchas | C97: 80100000 | D97: 22325.48 | E97: =D97-H97 -> -5775.22 | F97: 74434.24 | H97: 28100.7
A98: %,NOP_NG_PURCH_FIELD | B98: NG Well Head Purchases | D98: 22325.48 | E98: -5775.22 | F98: 74434.24 | H98: 28100.7
A99: %,V80300300 | B99: Short Term Producer Purch | C99: 80300300 | D99: 782486.34 | E99: -4057580.54 | F99: 6992230.31 | H99: 4840066.88
A100: %,V80300400 | B100: Transportation Pipeline Exp | C100: 80300400 | D100: 1009981.37 | E100: 10547.06 | F100: 2819332.18 | H100: 999434.31
A101: %,V80300500 | B101: Storage Charges Pipeline Exp | C101: 80300500 | D101: -637072.9 | E101: -62008.18 | F101: -1753242.7 | H101: -575064.72
A102: %,V80300600 | B102: OFS_System Supply Credit | C102: 80300600 | D102: -10546.9 | E102: 63845.18 | F102: -221759.92 | H102: -74392.08
A103: %,V80300808 | B103: Storage Demand | C103: 80300808 | D103: 2381004.66 | E103: 1757703.02 | F103: 3627607.94 | H103: 623301.64
A104: %,NOP_NG_PURCH_TRANSLIN | B104: NG Transmission Line Purchases | D104: 3525852.57 | E104: -2287493.46 | F104: 11464167.81 | H104: 5813346.03
A105: %,V80400000 | B105: Natural Gas City Gate Purchase | C105: 80400000 | D105: 102821.08 | E105: -336242.97 | F105: 1037278.83 | H105: 439064.05
A106: %,NOP_NG_PURCH_CITYGATE | B106: NG City Gate Purchases | D106: 102821.08 | E106: -336242.97 | F106: 1037278.83 | H106: 439064.05
A107: %,V80510000 | B107: Purchased Gas Cost Adjustments | C107: 80510000 | D107: -1388066.07 | E107: -1648598.93 | F107: 359808.12 | H107: 260532.86
A108: %,NOP_NG_PURCH_ADJUST | B108: Purchased Gas Cost Adjustments | D108: -1388066.07 | E108: -1648598.93 | F108: 359808.12 | H108: 260532.86
A109: %,V80601000 | B109: Exchange Gas-Received | C109: 80601000 | D109: -700345.03 | E109: 678483.37 | F109: -3119952.05 | H109: -1378828.4
A110: %,NOP_NG_PURCH_EXCHANGE | B110: Exchange Gas | D110: -700345.03 | E110: 678483.37 | F110: -3119952.05 | H110: -1378828.4
A111: %,V80720000 | B111: Oper-Purch Gas Measrg Stations | C111: 80720000 | D111: 37928.43 | E111: -2666.04 | F111: 112846.65 | H111: 40594.47
A112: %,V80751000 | B112: Purch Gas Exp - Mgmt Fee | C112: 80751000 | D112: 5009.02 | E112: -5.69 | F112: 15565.72 | H112: 5014.71
A113: %,NOP_NG_PURCH_EXPENSE | B113: Purchased Gas Expenses | D113: 42937.45 | E113: -2671.73 | F113: 128412.37 | H113: 45609.18
A114: %,V80810000 | B114: Gas Withdrawn | C114: 80810000 | D114: 3638730.04 | E114: -959098.49 | F114: 14528592.02 | H114: 4597828.53
A115: %,NOP_NG_PURCH_WITHDRAW | B115: Gas Withdrawn from Storage | D115: 3638730.04 | E115: -959098.49 | F115: 14528592.02 | H115: 4597828.53
A116: %,V80820000 | B116: Gas Delivered | C116: 80820000 | D116: -76478.14 | E116: 266144.99 | F116: -419018.78 | H116: -342623.13
A117: %,NOP_NG_PURCH_DELIVER | B117: Gas Delivered to Storage | D117: -76478.14 | E117: 266144.99 | F117: -419018.78 | H117: -342623.13
A118: %,V81220000 | B118: Gas Used-Other-Offset | C118: 81220000 | D118: -14494.06 | E118: 5189.78 | F118: -48346.9 | H118: -19683.84
A119: %,NOP_NG_PURCH_OTHOPS | B119: Gas Used for Other Utility Ops | D119: -14494.06 | E119: 5189.78 | F119: -48346.9 | H119: -19683.84
A120: %,FACCOUNT,TNI_ACCOUNT_FERC,XBYYYYY01,NOP_OTH_GAS_SUPPLY | B120: Other Gas Supply - Operations | D120: 5153283.32 | E120: -4290062.66 | F120: 24005375.66 | H120: 9443345.98
A121: %,FACCOUNT,TNI_ACCOUNT_FERC,XBYYYYY01,NOP_STEAM_POWER | B121: Steam Power - Operations | D121: 0 | E121: 0 | F121: 0
A122: %,FACCOUNT,TNI_ACCOUNT_FERC,XBYYYYY01,NOP_HYDRAULIC_POWER | B122: Hydraulic Power - Operations | D122: 0 | E122: 0 | F122: 0
A123: %,FACCOUNT,TNI_ACCOUNT_FERC,XBYYYYY01,NOP_OTHER_POWER | B123: Other Power - Operations | D123: 0 | E123: 0 | F123: 0
A124: %,V55700000 | B124: Other Exp | C124: 55700000 | D124: 0 | E124: =D124-H124 -> 0 | F124: 0 | H124: 0
A125: %,FACCOUNT,TNI_ACCOUNT_FERC,XBYYYYY01,NOP_OTH_POWER_SUPPLY | B125: Other Power Supply - Oper | D125: 0 | E125: =D125-H125 -> 0 | F125: 0 | H125: 0
A126: %,FACCOUNT,TNI_ACCOUNT_FERC,XBYYYYY01,NOP_NG_STOR_TERM_PROC | B126: NG Stor, Term & Proc - Oper | D126: 0 | E126: 0 | F126: 0
A128: %,V85200030 | B128: Communication System Exp | C128: 85200030 | D128: 189.62 | E128: =D128-H128 -> 50.89 | F128: 336.75 | H128: 138.73
A129: %,NOP_GAS_TRANS_EXP | B129: Transmission Exp - Oper - Gas | D129: 189.62 | E129: 50.89 | F129: 336.75 | H129: 138.73
A130: %,FACCOUNT,TNI_ACCOUNT_FERC,XBYYYYY01,NOP_TRANS_EXP | B130: Transmission Exp - Oper | D130: 189.62 | E130: 50.89 | F130: 336.75 | H130: 138.73
A131: %,FACCOUNT,TNI_ACCOUNT_FERC,XBYYYYY01,NOP_REG_MARKET_EXP | B131: Regional Market Exp - Oper | D131: 0 | E131: 0 | F131: 0
A133: %,V87000000 | B133: Op Superv-Eng-Gas Distr | C133: 87000000 | D133: 100307.34 | E133: =D133-H133 -> 12355.15 | F133: 262073.82 | H133: 87952.19
A134: %,V87100000 | B134: Distribution Load Dispatching | C134: 87100000 | D134: 27792.5 | E134: 11603.66 | F134: 58502.26 | H134: 16188.84
A135: %,V87400000 | B135: Mains and Services Exp | C135: 87400000 | D135: 585731.02 | E135: 124731.61 | F135: 1636886.04 | H135: 460999.41
A136: %,V87500000 | B136: Measur-Reg Statn Exp Gen | C136: 87500000 | D136: 17342.87 | E136: 2201.46 | F136: 56809.45 | H136: 15141.41
A137: %,V87600000 | B137: Measur-Reg Statn Exp-Indus | C137: 87600000 | D137: 6273.09 | E137: -1092.98 | F137: 16622.87 | H137: 7366.07
A138: %,V87800000 | B138: Meter and House Regulator Exp | C138: 87800000 | D138: 132521.23 | E138: 16207.77 | F138: 364244.47 | H138: 116313.46
A139: %,V87900000 | B139: Oper Installation Service Exp | C139: 87900000 | D139: 204048.52 | E139: -65917.59 | F139: 695620.57 | H139: 269966.11
A140: %,V87900200 | B140: Oper Install-Chrg Labor | C140: 87900200 | D140: 0 | E140: 0 | F140: 28.03 | H140: 0
A141: %,V88000000 | B141: Operations Exp Other | C141: 88000000 | D141: 78699.7 | E141: -56518 | F141: 352153.62 | H141: 135217.7
A142: %,V88100000 | B142: Gas Distr Rents | C142: 88100000 | D142: 305.67 | E142: -264.9 | F142: 1387.49 | H142: 570.57
A143: %,NOP_GAS_DISTR_EXP | B143: Distribution Exp - Oper - Gas | D143: 1153021.94 | E143: 43306.18 | F143: 3444328.62 | H143: 1109715.76
A144: %,FACCOUNT,TNI_ACCOUNT_FERC,XBYYYYY01,NOP_DISTR_EXP | B144: Distribution Exp - Oper | D144: 1153021.94 | E144: 43306.18 | F144: 3444328.62 | H144: 1109715.76
A145: %,V90100000 | B145: Customer Acnt Supervision | C145: 90100000 | D145: 34.86 | E145: 34.86 | F145: 45.94 | H145: 0
A146: %,V90200000 | B146: Cust Accnt Meter Reading Exp | C146: 90200000 | D146: 14170.43 | E146: -525.51 | F146: 48583.64 | H146: 14695.94
A147: %,V90300000 | B147: Cust Records Collection Exp | C147: 90300000 | D147: 258769.15 | E147: 53244.08 | F147: 673039.58 | H147: 205525.07
A148: %,V90400000 | B148: Uncollectible Accounts | C148: 90400000 | D148: -582964.2 | E148: -154632.79 | F148: -657447.61 | H148: -428331.41
A149: %,V90500000 | B149: Misc Cust Accts Exp | C149: 90500000 | D149: 586.29 | E149: -794.73 | F149: 3054.82 | H149: 1381.02
A150: %,FACCOUNT,TNI_ACCOUNT_FERC,XBYYYYY01,NOP_CUST_ACCTS_EXP | B150: Customer Accounts - Oper | D150: -309403.47 | E150: -102674.09 | F150: 67276.37 | H150: -206729.38
A151: %,V90800000 | B151: Customer Assistance Exp | C151: 90800000 | D151: 13180 | E151: 3295 | F151: 39540 | H151: 9885
A152: %,V91000000 | B152: Misc Cust Serv and Info Exp | C152: 91000000 | D152: 19326.01 | E152: -8192.44 | F152: 62447.21 | H152: 27518.45
A153: %,FACCOUNT,TNI_ACCOUNT_FERC,XBYYYYY01,NOP_CUSTOMER_SERV_EXP | B153: Cust Serv & Info Exp - Oper | D153: 32506.01 | E153: -4897.44 | F153: 101987.21 | H153: 37403.45
A154: %,V91200000 | B154: Demonstrating and Selling Exp | C154: 91200000 | D154: 225.59 | E154: 322.66 | F154: 1529.22 | H154: -97.07
A155: %,V91300000 | B155: Sales Advertising Exp | C155: 91300000 | D155: -376.46 | E155: -376.62 | F155: -376.12 | H155: 0.16
A156: %,FACCOUNT,TNI_ACCOUNT_FERC,XBYYYYY01,NOP_SALES_EXP | B156: Sales Expenses - Oper | D156: -150.87 | E156: -53.96 | F156: 1153.1 | H156: -96.91
A157: %,V92000000 | B157: A_G Salaries | C157: 92000000 | D157: 686906.58 | E157: -5445.4 | F157: 2036018.13 | H157: 692351.98
A158: %,V92001000 | B158: Discretionary and Spot Awards | C158: 92001000 | D158: 2352.98 | E158: -5878.04 | F158: 11356.6 | H158: 8231.02
A159: %,V92002000 | B159: Stock Compensation Expense | C159: 92002000 | D159: -3063.59 | E159: -83423.87 | F159: 93394.42 | H159: 80360.28
A160: %,V92100000 | B160: Office Supplies and Exp | C160: 92100000 | D160: 47668.06 | E160: -14910.14 | F160: 198943.05 | H160: 62578.2
A161: %,V92101000 | B161: Employee Expenses | C161: 92101000 | D161: 15223.78 | E161: -1083.69 | F161: 38070.06 | H161: 16307.47
A162: %,V92300000 | B162: Outside Service Employed | C162: 92300000 | D162: 454684.66 | E162: 88698.43 | F162: 1208924.05 | H162: 365986.23
A163: %,V92301000 | B163: Mgmt Fee Actuals-Affil | C163: 92301000 | D163: 186788.5 | E163: 43349.35 | F163: 480728.6 | H163: 143439.15
A164: %,V92400000 | B164: Property Insurance | C164: 92400000 | D164: 3534.76 | E164: 0 | F164: 10602.63 | H164: 3534.76
A165: %,V92500000 | B165: Injuries and Damages | C165: 92500000 | D165: 178426.67 | E165: 3999.73 | F165: 546496.96 | H165: 174426.94
A166: %,V92600000 | B166: Employee Pensions and Benefits | C166: 92600000 | D166: 411636.24 | E166: -5714.95 | F166: 1128113.29 | H166: 417351.19
A167: %,V92601000 | B167: Non Service Pension & OPEB | C167: 92601000 | D167: 123207.99 | E167: 223018.9 | F167: -76413.83 | H167: -99810.91
A168: %,V92800000 | B168: Regulatory Commission Exp | C168: 92800000 | D168: 22634.77 | E168: -1.83 | F168: 67968.64 | H168: 22636.6
A169: %,V93010000 | B169: General Advertising Exp | C169: 93010000 | D169: 2151.85 | E169: 568.98 | F169: 3742.2 | H169: 1582.87
A170: %,V93020000 | B170: Misc General Exp | C170: 93020000 | D170: 19680.5 | E170: 22539.63 | F170: 14713.92 | H170: -2859.13
A171: %,V93100000 | B171: Rents Admin and General | C171: 93100000 | D171: 79840.95 | E171: 10261.18 | F171: 223095.57 | H171: 69579.77
A172: %,FACCOUNT,TNI_ACCOUNT_FERC,XBYYYYY01,NOP_ADMIN_GEN | B172: Admin & General Exp - Oper | D172: 2231674.7 | E172: 275978.28 | F172: 5985754.29 | H172: 1955696.42
B173: Total Operation Expenses | D173: =D93+D94+D95+D120+D121+D122+D123+D125+D126+D130+D131+D144+D150+D153+D156+D172 -> 8261121.25 | E173: =E93+E94+E95+E120+E121+E122+E123+E125+E126+E130+E131+E144+E150+E153+E156+E172 -> -4078352.8 | F173: =F93+F94+F95+F120+F121+F122+F123+F125+F126+F130+F131+F144+F150+F153+F156+F172 -> 33606212
B175: Maintenance Expenses
A177: %,FACCOUNT,TNI_ACCOUNT_FERC,XBYYYYY01,NMAINT_PROD_EXP | B177: Production Expenses - Maint | D177: 0 | E177: =D177-H177 -> 0 | F177: 0
A178: %,FACCOUNT,TNI_ACCOUNT_FERC,XBYYYYY01,NMAINT_NG_STOR_PROC | B178: NG Stor, Term & Proc - Maint | D178: 0 | E178: 0 | F178: 0
A179: %,FACCOUNT,TNI_ACCOUNT_FERC,XBYYYYY01,NMAINT_TRANS_EXP | B179: Transmission Exp - Maint | D179: 0 | E179: 0 | F179: 0
A181: %,V88500000 | B181: Maint Supv-Eng-Gas Distr | C181: 88500000 | D181: 8120.75 | E181: =D181-H181 -> 1465.01 | F181: 22174.69 | H181: 6655.74
A182: %,V88600000 | B182: Maint Struct-Improv-Gas Distr | C182: 88600000 | D182: 5204.62 | E182: -5233.48 | F182: 18582.28 | H182: 10438.1
A183: %,V88700000 | B183: Maint of Mains | C183: 88700000 | D183: 295935.12 | E183: 172554.38 | F183: 617195.2 | H183: 123380.74
A184: %,V88900000 | B184: Maint Msr-Reg Statn Equi Gen | C184: 88900000 | D184: 59131.02 | E184: 41332.15 | F184: 115788.6 | H184: 17798.87
A185: %,V89000000 | B185: Maint Meas_Reg Stn Equip-Distr | C185: 89000000 | D185: 7650.06 | E185: -2812.17 | F185: 23491.54 | H185: 10462.23
A186: %,V89200000 | B186: Maint of Services | C186: 89200000 | D186: 90707.39 | E186: 26284.98 | F186: 252517.34 | H186: 64422.41
A187: %,V89300000 | B187: Maint Meters_House Regulators | C187: 89300000 | D187: 10845.94 | E187: 3090.39 | F187: 21510.57 | H187: 7755.55
A188: %,V89400000 | B188: Other Maint Equipment | C188: 89400000 | D188: 30061.93 | E188: -22799.34 | F188: 124248.84 | H188: 52861.27
A189: %,NMAINT_GAS_DISTR_EXP | B189: Distribution Exp - Maint-Gas | D189: 507656.83 | E189: 213881.92 | F189: 1195509.06 | H189: 293774.91
A190: %,FACCOUNT,TNI_ACCOUNT_FERC,XBYYYYY01,NMAINT_DISTR_EXP | B190: Distribution Exp - Maint | D190: 507656.83 | E190: 213881.92 | F190: 1195509.06 | H190: 293774.91
A191: %,V93200000 | B191: Maint General Plant | C191: 93200000 | D191: 94160.97 | E191: =D191-H191 -> -676 | F191: 285819.18 | H191: 94836.97
A192: %,FACCOUNT,TNI_ACCOUNT_FERC,XBYYYYY01,NMAINT_ADMIN_GEN | B192: Maintenance Gen and Admin | D192: 94160.97 | E192: -676 | F192: 285819.18 | H192: 94836.97
B193: Total Maintenance Expenses | D193: =D177+D178+D179+D190+D192 -> 601817.8 | E193: =E177+E178+E179+E190+E192 -> 213205.92 | F193: 1481328.24
A195: %,V40300000 | B195: Dep Exp | C195: 40300000 | D195: 1200261.28 | E195: =D195-H195 -> 4468.3 | F195: 3586204.53 | H195: 1195792.98
A196: %,FACCOUNT,TNI_ACCOUNT_FERC,XBYYYYY01,NDEPRECIATION_EXPENSE | B196: Depreciation Expense | D196: 1200261.28 | E196: =D196-H196 -> 4468.3 | F196: 3586204.53 | H196: 1195792.98
A197: %,FACCOUNT,TNI_ACCOUNT_FERC,XBYYYYY01,NDEPRECIATION_ARO_EXP | B197: Depreciation Expense for AROs | D197: 0 | E197: 0 | F197: 0
A199: %,V40430000 | B199: Amortization Exp-Other | C199: 40430000 | D199: 34899.51 | E199: =D199-H199 -> -2.14 | F199: 104574.92 | H199: 34901.65
A200: %,V40434000 | B200: Cloude Amortizaiton Expense | C200: 40434000 | D200: 8810.15 | E200: -1118.3 | F200: 26821.6 | H200: 9928.45
A201: %,NAMORT_LMT_TERM_PROP | B201: Amort of Limited-Term Property | D201: 43709.66 | E201: -1120.44 | F201: 131396.52 | H201: 44830.1
A202: %,V40500000 | B202: Amortization of Oth Plant | C202: 40500000 | D202: 96645.72 | E202: -4246.93 | F202: 293269.92 | H202: 100892.65
A203: %,NAMORT_OTH_PROP | B203: Amort of Other Property | D203: 96645.72 | E203: -4246.93 | F203: 293269.92 | H203: 100892.65
A204: %,FACCOUNT,TNI_ACCOUNT_FERC,XBYYYYY01,NAMORT_DEPL_UTIL | B204: Amort & Deplet of Util Plant | D204: 140355.38 | E204: -5367.37 | F204: 424666.44 | H204: 145722.75
A205: %,FACCOUNT,TNI_ACCOUNT_FERC,XBYYYYY01,NAMORT_UTIL_ADJ | B205: Amort of Gas Plant Acq Adj | D205: 0 | E205: 0 | F205: 0
A206: %,FACCOUNT,TNI_ACCOUNT_FERC,XBYYYYY01,NAMORT_CONV_EXP | B206: Amort of Conversion Exp | D206: 0 | E206: 0 | F206: 0
A207: %,FACCOUNT,TNI_ACCOUNT_FERC,XBYYYYY01,NREG_DEBITS | B207: Reg Debits | D207: 0 | E207: 0 | F207: 0
A208: %,FACCOUNT,TNI_ACCOUNT_FERC,XBYYYYY01,NREG_CREDITS | B208: Reg Credits | D208: 0 | E208: 0 | F208: 0
A209: %,V40813100 | B209: Tax Exp-License_Franchise | C209: 40813100 | D209: 0 | E209: -3000 | F209: 3000 | H209: 3000
A210: %,V40813200 | B210: Tax Exp-Property | C210: 40813200 | D210: 603505.25 | E210: 191589.75 | F210: 1581015.25 | H210: 411915.5
A211: %,V40813300 | B211: Tax Exp-Sales and Use Tax | C211: 40813300 | D211: -0.01 | E211: 0.01 | F211: -0.02 | H211: -0.02
A212: %,V40813600 | B212: Tax Exp-State and Local-Oth | C212: 40813600 | D212: 0 | E212: 0 | F212: 0 | H212: 0
A213: %,V40814100 | B213: Tax Exp-Payroll-Incentive | C213: 40814100 | D213: -30853.42 | E213: -35784.16 | F213: -20991.94 | H213: 4930.74
A214: %,V40814500 | B214: Tax Exp-Payroll FICA-OASDI | C214: 40814500 | D214: 62768.52 | E214: -22921.86 | F214: 201729.25 | H214: 85690.38
A215: %,V40814600 | B215: Tax Exp-Payroll FICA-Medicar | C215: 40814600 | D215: 14919.17 | E215: -5127.77 | F215: 47412.54 | H215: 20046.94
A216: %,V40814700 | B216: Tax Exp-FUTA Employer | C216: 40814700 | D216: 21.45 | E216: -508.29 | F216: 5189.07 | H216: 529.74
A217: %,V40814800 | B217: Tax Exp-SUTA Employer | C217: 40814800 | D217: 8877.3 | E217: 7550.28 | F217: 12898.77 | H217: 1327.02
A218: %,FACCOUNT,TNI_ACCOUNT_FERC,XBYYYYY01,NOTHER_TAXES_FERC | B218: Other Taxes FERC | D218: 659238.26 | E218: 131797.96 | F218: 1830252.92 | H218: 527440.3
A220: %,V40912000 | B220: Util Cur ST Exp | C220: 40912000 | D220: 134379 | E220: =D220-H220 -> 124931 | F220: 126283 | H220: 9448
A221: %,FACCOUNT,TNI_ACCOUNT_FERC,XBYYYYY01,NINC_TAX_EXP_ST | B221: Income Taxes - State | D221: 134379 | E221: =D221-H221 -> 124931 | F221: 126283 | H221: 9448
... 86 more rows

Sheet Apr21
A1: %,LACTUALS,UPOSTED_TRAN_AMT | B1: %,ATF,FDESCR,UDESCR | C1: %,ATT,FACCOUNT | D1: %,LACTUALS,UPOSTED_TRAN_AMT,SPER,FBOOK_CODE,VR | E1: %,C | F1: %,LACTUALS,UPOSTED_TRAN_AMT,SYTD,FBOOK_CODE,VR | H1: %,LACTUALS,UPOSTED_TRAN_AMT,SPER-1,FBOOK_CODE,VR
B2: Columbia Gas of Kentucky Inc | H2: FOR
B3: Income Statement-FERC | H3: CALC
B4: Regulatory View - FERC Account
B5: For the Month Ended April 30, 2021 | H5: PURPOSES
B6: For Internal Use Only | H6: ONLY
D8: Current | E8: Change from | F8: Year-To- | H8: Prior
D9: Month | E9: Prior Month | F9: Date | H9: Month
B11: Operating Revenues
A13: %,V48000000 | B13: Residential Sales | C13: 48000000 | D13: 6678381.59 | E13: =D13-H13 -> -4363813.55 | F13: 44763561.72 | H13: 11042195.14
A14: %,V48000100 | B14: Residential Sales Norm | C14: 48000100 | D14: 1768.43 | E14: -2100.7 | F14: 5941.7 | H14: 3869.13
A15: %,R,FACCOUNT,TNI_ACCOUNT_FERC,XBYYYYY01,NGAS_RESID_REV | B15: Gas Residential Sales | D15: 6680150.02 | E15: =D15-H15 -> -4365914.25 | F15: 44769503.42 | H15: 11046064.27
A17: %,V48101000 | B17: Commercial Gas Sales | C17: 48101000 | D17: 2633394.92 | E17: =D17-H17 -> -1867376.63 | F17: 18127064.39 | H17: 4500771.55
A18: %,V48101200 | B18: Commercial Gas Sales Norm | C18: 48101200 | D18: 945.61 | E18: -996.43 | F18: 3041.14 | H18: 1942.04
A19: %,NGAS_COMM_REV | B19: Gas Commercial Revenues | D19: 2634340.53 | E19: -1868373.06 | F19: 18130105.53 | H19: 4502713.59
A20: %,V48102000 | B20: Industrial Gas Sales | C20: 48102000 | D20: 141850.84 | E20: -83814.48 | F20: 910341.75 | H20: 225665.32
A21: %,V48102300 | B21: Industrial Gas Sales Norm | C21: 48102300 | D21: 75.32 | E21: -20.52 | F21: 180.25 | H21: 95.84
A22: %,NGAS_INDUST_REV | B22: Gas Industrial Revenues | D22: 141926.16 | E22: -83835 | F22: 910522 | H22: 225761.16
A23: %,V48103000 | B23: Gas Sales-Other | C23: 48103000 | D23: 0 | E23: 0 | F23: 0 | H23: 0
A24: %,NGAS_OTHER_REV | B24: Gas Comm & Indust Other Rev | D24: 0 | E24: 0 | F24: 0 | H24: 0
A25: %,R,FACCOUNT,TNI_ACCOUNT_FERC,XBYYYYY01,NGAS_COMM_INDUST_REV | B25: Gas Comm & Indust Revenues | D25: 2776266.69 | E25: -1952208.06 | F25: 19040627.53 | H25: 4728474.75
A26: %,V48300000 | B26: Sales for Resale-Gas | C26: 48300000 | D26: 7336.76 | E26: =D26-H26 -> -4417.4 | F26: 40898.15 | H26: 11754.16
A27: %,R,FACCOUNT,TNI_ACCOUNT_FERC,XBYYYYY01,NGAS_SALES_RESALE | B27: Gas Sales for Resale | D27: 7336.76 | E27: -4417.4 | F27: 40898.15 | H27: 11754.16
A28: %,R,FACCOUNT,TNI_ACCOUNT_FERC,XBYYYYY01,NGAS_INTERDEPT_SALES | B28: Gas Interdepartmental Sales | D28: 0 | E28: 0 | F28: 0
A29: %,R,FACCOUNT,TNI_ACCOUNT_FERC,XBYYYYY01,NGAS_INTRACO_TRANSFER | B29: Gas Intercompany Transfers | D29: 0 | E29: =D29-H29 -> 0 | F29: 0
A30: xx | B30: Total Sales of Gas | D30: =D15+D25+D27+D28+D29 -> 9463753.47 | E30: =E15+E25+E27+E28+E29 -> -6322539.71 | F30: =F15+F25+F27+F28+F29 -> 63851029.1
A32: %,R,FACCOUNT,TNI_ACCOUNT_FERC,XBYYYYY01,NELE_RESID_REV | B32: Electric Residential Revenues | D32: 0 | E32: =D32-H32 -> 0 | F32: 0
A33: %,R,FACCOUNT,TNI_ACCOUNT_FERC,XBYYYYY01,NELE_COMM_IND_REV | B33: Elec Comm & Indust Rev | D33: 0 | E33: 0 | F33: 0
A34: %,R,FACCOUNT,TNI_ACCOUNT_FERC,XBYYYYY01,NELE_STREET_HWY_LIGHT | B34: Public Street & Hwy Lighting | D34: 0 | E34: 0 | F34: 0
A35: %,R,FACCOUNT,TNI_ACCOUNT_FERC,XBYYYYY01,NELE_OTH_SALES_PUBLIC | B35: Elec Oth Sales to Public Auth | D35: 0 | E35: 0 | F35: 0
A36: %,R,FACCOUNT,TNI_ACCOUNT_FERC,XBYYYYY01,NELE_RAILROAD | B36: Sales to Railroads & Railways | D36: 0 | E36: 0 | F36: 0
A37: %,R,FACCOUNT,TNI_ACCOUNT_FERC,XBYYYYY01,NELE_SALES_RESALE | B37: Electric Sales for Resale | D37: 0 | E37: 0 | F37: 0
A38: %,R,FACCOUNT,TNI_ACCOUNT_FERC,XBYYYYY01,NELE_INTERDEPT_SALES | B38: Elec Interdepartmental Sales | D38: 0 | E38: 0 | F38: 0
A39: xx | B39: Total Sales of Electricity | D39: =D32+D33+D34+D35+D36+D37+D38 -> 0 | E39: =E32+E33+E34+E35+E36+E37+E38 -> 0 | F39: 0
A41: %,V48700000 | B41: Forfeited Discounts-Gas | C41: 48700000 | D41: 58204.02 | E41: =D41-H41 -> -41178.62 | F41: 288763.08 | H41: 99382.64
A42: %,R,FACCOUNT,TNI_ACCOUNT_FERC,XBYYYYY01,NFORFEITED_DISC_GAS | B42: Forfeited Discounts - Gas | D42: 58204.02 | E42: =D42-H42 -> -41178.62 | F42: 288763.08 | H42: 99382.64
A43: %,R,FACCOUNT,TNI_ACCOUNT_FERC,XBYYYYY01,NFORFEITED_DISC_ELE | B43: Forfeited Discounts - Ele | D43: 0 | E43: 0 | F43: 0
B44: Total Forfeited Discounts | D44: =D42+D43 -> 58204.02 | E44: =E42+E43 -> -41178.62 | F44: 288763.08
A46: %,V48800000 | B46: Misc Service Revenues-Gas | C46: 48800000 | D46: 11867.7 | E46: =D46-H46 -> 2887.55 | F46: 22562.05 | H46: 8980.15
A47: %,R,FACCOUNT,TNI_ACCOUNT_FERC,XBYYYYY01,NMISC_SERV_REVS_GAS | B47: Misc Service Revenues - Gas | D47: 11867.7 | E47: =D47-H47 -> 2887.55 | F47: 22562.05 | H47: 8980.15
A48: %,R,FACCOUNT,TNI_ACCOUNT_FERC,XBYYYYY01,NMISC_SERV_REVS_ELE | B48: Misc Service Revenues - Ele | D48: 0 | E48: 0 | F48: 0
B49: Total Miscellaneous Service Revenues | D49: =D47+D48 -> 11867.7 | E49: =E47+E48 -> 2887.55 | F49: 22562.05
A51: %,R,FACCOUNT,TNI_ACCOUNT_FERC,XBYYYYY01,NRENT_ELE_PROP | B51: Rent from Electricity Property | D51: 0 | E51: =D51-H51 -> 0 | F51: 0
A52: %,R,FACCOUNT,TNI_ACCOUNT_FERC,XBYYYYY01,NOTH_ELE_REV | B52: Other Electric Revenues | D52: 0 | E52: 0 | F52: 0
A53: %,R,FACCOUNT,TNI_ACCOUNT_FERC,XBYYYYY01,NOTH_ELE_TRANS_REV | B53: Rev Transm of Elec of Oth | D53: 0 | E53: 0 | F53: 0
A54: %,R,FACCOUNT,TNI_ACCOUNT_FERC,XBYYYYY01,NOTH_REV_SERVICE_CO | B54: Nonutility Revenues - Serv Co | D54: 0 | E54: 0 | F54: 0
A55: %,R,FACCOUNT,TNI_ACCOUNT_FERC,XBYYYYY01,NREG_ELE_TRANS_REV | B55: Regional Transm Service Rev | D55: 0 | E55: 0 | F55: 0
A56: %,R,FACCOUNT,TNI_ACCOUNT_FERC,XBYYYYY01,NTRANSPORT_GATH_REV | B56: Rev Transp Gas of Oth - Gather | D56: 0 | E56: 0 | F56: 0
A57: %,R,FACCOUNT,TNI_ACCOUNT_FERC,XBYYYYY01,NTRANSPORT_TRANS_REV | B57: Rev Transp Gas of Oth - Transm | D57: 0 | E57: 0 | F57: 0
A58: %,V48930000 | B58: Transp Rev Distr Residential | C58: 48930000 | D58: 643191.33 | E58: -247513.21 | F58: 3682800.56 | H58: 890704.54
A59: %,V48930200 | B59: Unbilled Residential Trans Vol | C59: 48930200 | D59: -94899.7 | E59: -29131.6 | F59: -259685.1 | H59: -65768.1
A60: %,V48930300 | B60: Unbilled Res Trans Cust chrg | C60: 48930300 | D60: -1456 | E60: 16 | F60: -5856 | H60: -1472
A61: %,V48931000 | B61: Transp Rev Distr Commercial | C61: 48931000 | D61: 748024.84 | E61: -100421.74 | F61: 3955234.47 | H61: 848446.58
A62: %,V48931300 | B62: Unbilled Comm Trans Vol | C62: 48931300 | D62: -61613.79 | E62: -4396.11 | F62: -182625.62 | H62: -57217.68
A63: %,V48931400 | B63: Unbilled Comm Trans Cust chrg | C63: 48931400 | D63: -491.59 | E63: 1872.93 | F63: -4509.64 | H63: -2364.52
A64: %,V48932000 | B64: Transp Rev Distr Industrial | C64: 48932000 | D64: 406258.91 | E64: -101615.39 | F64: 1934676.78 | H64: 507874.3
A65: %,V48932400 | B65: Unbilled Ind Trans Vol | C65: 48932400 | D65: -22.08 | E65: 3069.7 | F65: -3427.3 | H65: -3091.78
A66: %,V48932500 | B66: Unbilled Ind Trans Cust chrg | C66: 48932500 | D66: 0 | E66: 0 | F66: 0 | H66: 0
A67: %,R,FACCOUNT,TNI_ACCOUNT_FERC,XBYYYYY01,NTRANSPORT_DISTR_REV | B67: Rev Transp Gas of Oth - Distr | D67: 1638991.92 | E67: -478119.42 | F67: 9116608.15 | H67: 2117111.34
A68: %,R,FACCOUNT,TNI_ACCOUNT_FERC,XBYYYYY01,NSTORE_GAS_REV | B68: Rev from Storing Gas of Oth | D68: 0 | E68: 0 | F68: 0
A69: %,R,FACCOUNT,TNI_ACCOUNT_FERC,XBYYYYY01,NSALES_EXTRACT_GAS | B69: Sales - Prod Extracted from NG | D69: 0 | E69: 0 | F69: 0
A70: %,R,FACCOUNT,TNI_ACCOUNT_FERC,XBYYYYY01,NGAS_OIL_SALES | B70: Incidental Gasoline & Oil Sale | D70: 0 | E70: 0 | F70: 0
A71: %,V49300000 | B71: Rent from Gas Property | C71: 49300000 | D71: 2852 | E71: =D71-H71 -> 0 | F71: 11408 | H71: 2852
A72: %,R,FACCOUNT,TNI_ACCOUNT_FERC,XBYYYYY01,NRENT_GAS_PROP | B72: Rent from Gas Property | D72: 2852 | E72: 0 | F72: 11408 | H72: 2852
A74: %,V49500485 | B74: Unbilled Residential-Vol | C74: 49500485 | D74: -1114928.22 | E74: =D74-H74 -> 1279537.34 | F74: -4518847.02 | H74: -2394465.56
A75: %,V49501485 | B75: Unbilled Res Customer Chrg | C75: 49501485 | D75: -7712 | E75: -7312 | F75: 7024.2 | H75: -400
A76: %,V49503483 | B76: Unbilled Off System Sales | C76: 49503483 | D76: 0 | E76: 0 | F76: 0 | H76: 0
A77: %,V49510485 | B77: Unbilled Commercial-Vol | C77: 49510485 | D77: -378967.4 | E77: 502753.28 | F77: -1663211.43 | H77: -881720.68
A78: %,V49511485 | B78: Unbilled Comm Customer Chrg | C78: 49511485 | D78: -3664.58 | E78: -1698.22 | F78: -1787.6 | H78: -1966.36
A79: %,V49520485 | B79: Unbilled Industrial-Vol | C79: 49520485 | D79: 6605.55 | E79: 39758.73 | F79: -38269.5 | H79: -33153.18
A80: %,V49521485 | B80: Unbilled Ind Customer Chrg | C80: 49521485 | D80: -44.69 | E80: -44.69 | F80: 0 | H80: 0
A81: %,NUNBILLED_REV_FERC | B81: Unbilled Revenues | D81: -1498711.34 | E81: 1812994.44 | F81: -6215091.35 | H81: -3311705.78
A82: %,V49500000 | B82: Other Gas Revenue | C82: 49500000 | D82: 53408.03 | E82: 20061.26 | F82: 211731.77 | H82: 33346.77
A83: %,V49500050 | B83: Billed Off System Sales | C83: 49500050 | D83: 39962.5 | E83: -777.49 | F83: 839136.24 | H83: 40739.99
A84: %,R,FACCOUNT,TNI_ACCOUNT_FERC,XBYYYYY01,NOTH_GAS_REV | B84: Other Gas Revenues | D84: -1405340.81 | E84: 1832278.21 | F84: -5164223.34 | H84: -3237619.02
A85: %,R,FACCOUNT,TNI_ACCOUNT_FERC,XBYYYYY01,NGAS_PROV_RATE_REFUND | B85: Gas Provision of Rate Refunds | D85: 0 | E85: 0 | F85: 0
B86: Total Other Operating Revenues | D86: =D44+D49+D51+D52+D53+D54+D55+D56+D57+D67+D68+D69+D70+D72+D84+D85 -> 306574.83 | E86: =E44+E49+E51+E52+E53+E54+E55+E56+E57+E67+E68+E69+E70+E72+E84+E85 -> 1315867.72 | F86: 4275117.94
A87: xx | B87: Total Operating Revenues | D87: =D30+D39+D86 -> 9770328.3 | E87: =E30+E39+E86 -> -5006671.99 | F87: =F30+F39+F86 -> 68126147.04
B89: Operating Expenses
B91: Operation Expenses
A93: %,FACCOUNT,TNI_ACCOUNT_FERC,XBYYYYY01,NOP_MANUF_GAS | B93: Manufac Gas Production - Oper | D93: 0 | E93: =D93-H93 -> 0 | F93: 0
A94: %,FACCOUNT,TNI_ACCOUNT_FERC,XBYYYYY01,NOP_NTRLGAS_PROD_GTH | B94: NG Production & Gather - Oper | D94: 0 | E94: 0 | F94: 0
A95: %,FACCOUNT,TNI_ACCOUNT_FERC,XBYYYYY01,NOP_PROD_EXTRACT | B95: Products Extraction - Oper | D95: 0 | E95: 0 | F95: 0
A97: %,V80100000 | B97: Natural gas field line purchas | C97: 80100000 | D97: 30555.1 | E97: =D97-H97 -> 8229.62 | F97: 104989.34 | H97: 22325.48
A98: %,NOP_NG_PURCH_FIELD | B98: NG Well Head Purchases | D98: 30555.1 | E98: 8229.62 | F98: 104989.34 | H98: 22325.48
A99: %,V80300300 | B99: Short Term Producer Purch | C99: 80300300 | D99: 2796482.14 | E99: 2013995.8 | F99: 9788712.45 | H99: 782486.34
A100: %,V80300400 | B100: Transportation Pipeline Exp | C100: 80300400 | D100: 614371.22 | E100: -395610.15 | F100: 3433703.4 | H100: 1009981.37
A101: %,V80300500 | B101: Storage Charges Pipeline Exp | C101: 80300500 | D101: -345561.22 | E101: 291511.68 | F101: -2098803.92 | H101: -637072.9
A102: %,V80300600 | B102: OFS_System Supply Credit | C102: 80300600 | D102: -7363.17 | E102: 3183.73 | F102: -229123.09 | H102: -10546.9
A103: %,V80300808 | B103: Storage Demand | C103: 80300808 | D103: 1502153.12 | E103: -878851.54 | F103: 5129761.06 | H103: 2381004.66
A104: %,NOP_NG_PURCH_TRANSLIN | B104: NG Transmission Line Purchases | D104: 4560082.09 | E104: 1034229.52 | F104: 16024249.9 | H104: 3525852.57
A105: %,V80400000 | B105: Natural Gas City Gate Purchase | C105: 80400000 | D105: 54062.65 | E105: -48758.43 | F105: 1091341.48 | H105: 102821.08
A106: %,NOP_NG_PURCH_CITYGATE | B106: NG City Gate Purchases | D106: 54062.65 | E106: -48758.43 | F106: 1091341.48 | H106: 102821.08
A107: %,V80510000 | B107: Purchased Gas Cost Adjustments | C107: 80510000 | D107: -57815.36 | E107: 1330250.71 | F107: 301992.76 | H107: -1388066.07
A108: %,NOP_NG_PURCH_ADJUST | B108: Purchased Gas Cost Adjustments | D108: -57815.36 | E108: 1330250.71 | F108: 301992.76 | H108: -1388066.07
A109: %,V80601000 | B109: Exchange Gas-Received | C109: 80601000 | D109: 728971.53 | E109: 1429316.56 | F109: -2390980.52 | H109: -700345.03
A110: %,NOP_NG_PURCH_EXCHANGE | B110: Exchange Gas | D110: 728971.53 | E110: 1429316.56 | F110: -2390980.52 | H110: -700345.03
A111: %,V80720000 | B111: Oper-Purch Gas Measrg Stations | C111: 80720000 | D111: 31076.09 | E111: -6852.34 | F111: 143922.74 | H111: 37928.43
A112: %,V80751000 | B112: Purch Gas Exp - Mgmt Fee | C112: 80751000 | D112: 5150.55 | E112: 141.53 | F112: 20716.27 | H112: 5009.02
A113: %,NOP_NG_PURCH_EXPENSE | B113: Purchased Gas Expenses | D113: 36226.64 | E113: -6710.81 | F113: 164639.01 | H113: 42937.45
A114: %,V80810000 | B114: Gas Withdrawn | C114: 80810000 | D114: -534718.16 | E114: -4173448.2 | F114: 13993873.86 | H114: 3638730.04
A115: %,NOP_NG_PURCH_WITHDRAW | B115: Gas Withdrawn from Storage | D115: -534718.16 | E115: -4173448.2 | F115: 13993873.86 | H115: 3638730.04
A116: %,V80820000 | B116: Gas Delivered | C116: 80820000 | D116: -1850843.9 | E116: -1774365.76 | F116: -2269862.68 | H116: -76478.14
A117: %,NOP_NG_PURCH_DELIVER | B117: Gas Delivered to Storage | D117: -1850843.9 | E117: -1774365.76 | F117: -2269862.68 | H117: -76478.14
A118: %,V81220000 | B118: Gas Used-Other-Offset | C118: 81220000 | D118: -7916.29 | E118: 6577.77 | F118: -56263.19 | H118: -14494.06
A119: %,NOP_NG_PURCH_OTHOPS | B119: Gas Used for Other Utility Ops | D119: -7916.29 | E119: 6577.77 | F119: -56263.19 | H119: -14494.06
A120: %,FACCOUNT,TNI_ACCOUNT_FERC,XBYYYYY01,NOP_OTH_GAS_SUPPLY | B120: Other Gas Supply - Operations | D120: 2958604.3 | E120: -2194679.02 | F120: 26963979.96 | H120: 5153283.32
A121: %,FACCOUNT,TNI_ACCOUNT_FERC,XBYYYYY01,NOP_STEAM_POWER | B121: Steam Power - Operations | D121: 0 | E121: 0 | F121: 0
A122: %,FACCOUNT,TNI_ACCOUNT_FERC,XBYYYYY01,NOP_HYDRAULIC_POWER | B122: Hydraulic Power - Operations | D122: 0 | E122: 0 | F122: 0
A123: %,FACCOUNT,TNI_ACCOUNT_FERC,XBYYYYY01,NOP_OTHER_POWER | B123: Other Power - Operations | D123: 0 | E123: 0 | F123: 0
A124: %,V55700000 | B124: Other Exp | C124: 55700000 | D124: 0 | E124: =D124-H124 -> 0 | F124: 0 | H124: 0
A125: %,FACCOUNT,TNI_ACCOUNT_FERC,XBYYYYY01,NOP_OTH_POWER_SUPPLY | B125: Other Power Supply - Oper | D125: 0 | E125: =D125-H125 -> 0 | F125: 0 | H125: 0
A126: %,FACCOUNT,TNI_ACCOUNT_FERC,XBYYYYY01,NOP_NG_STOR_TERM_PROC | B126: NG Stor, Term & Proc - Oper | D126: 0 | E126: 0 | F126: 0
A128: %,V85200030 | B128: Communication System Exp | C128: 85200030 | D128: 3804.73 | E128: =D128-H128 -> 3615.11 | F128: 4141.48 | H128: 189.62
A129: %,NOP_GAS_TRANS_EXP | B129: Transmission Exp - Oper - Gas | D129: 3804.73 | E129: 3615.11 | F129: 4141.48 | H129: 189.62
A130: %,FACCOUNT,TNI_ACCOUNT_FERC,XBYYYYY01,NOP_TRANS_EXP | B130: Transmission Exp - Oper | D130: 3804.73 | E130: 3615.11 | F130: 4141.48 | H130: 189.62
A131: %,FACCOUNT,TNI_ACCOUNT_FERC,XBYYYYY01,NOP_REG_MARKET_EXP | B131: Regional Market Exp - Oper | D131: 0 | E131: 0 | F131: 0
A133: %,V87000000 | B133: Op Superv-Eng-Gas Distr | C133: 87000000 | D133: 87286.6 | E133: =D133-H133 -> -13020.74 | F133: 349360.42 | H133: 100307.34
A134: %,V87100000 | B134: Distribution Load Dispatching | C134: 87100000 | D134: 7926.44 | E134: -19866.06 | F134: 66428.7 | H134: 27792.5
A135: %,V87400000 | B135: Mains and Services Exp | C135: 87400000 | D135: 582664.12 | E135: -3066.9 | F135: 2219550.16 | H135: 585731.02
A136: %,V87500000 | B136: Measur-Reg Statn Exp Gen | C136: 87500000 | D136: 15626.88 | E136: -1715.99 | F136: 72436.33 | H136: 17342.87
A137: %,V87600000 | B137: Measur-Reg Statn Exp-Indus | C137: 87600000 | D137: 7629.08 | E137: 1355.99 | F137: 24251.95 | H137: 6273.09
A138: %,V87800000 | B138: Meter and House Regulator Exp | C138: 87800000 | D138: 126515.05 | E138: -6006.18 | F138: 490759.52 | H138: 132521.23
A139: %,V87900000 | B139: Oper Installation Service Exp | C139: 87900000 | D139: 240170 | E139: 36121.48 | F139: 935790.57 | H139: 204048.52
A140: %,V87900200 | B140: Oper Install-Chrg Labor | C140: 87900200 | D140: 0 | E140: 0 | F140: 28.03 | H140: 0
A141: %,V88000000 | B141: Operations Exp Other | C141: 88000000 | D141: 76550.78 | E141: -2148.92 | F141: 428704.4 | H141: 78699.7
A142: %,V88100000 | B142: Gas Distr Rents | C142: 88100000 | D142: 950 | E142: 644.33 | F142: 2337.49 | H142: 305.67
A143: %,NOP_GAS_DISTR_EXP | B143: Distribution Exp - Oper - Gas | D143: 1145318.95 | E143: -7702.99 | F143: 4589647.57 | H143: 1153021.94
A144: %,FACCOUNT,TNI_ACCOUNT_FERC,XBYYYYY01,NOP_DISTR_EXP | B144: Distribution Exp - Oper | D144: 1145318.95 | E144: -7702.99 | F144: 4589647.57 | H144: 1153021.94
A145: %,V90100000 | B145: Customer Acnt Supervision | C145: 90100000 | D145: 88.66 | E145: 53.8 | F145: 134.6 | H145: 34.86
A146: %,V90200000 | B146: Cust Accnt Meter Reading Exp | C146: 90200000 | D146: 1832.93 | E146: -12337.5 | F146: 50416.57 | H146: 14170.43
A147: %,V90300000 | B147: Cust Records Collection Exp | C147: 90300000 | D147: 233826.07 | E147: -24943.08 | F147: 906865.65 | H147: 258769.15
A148: %,V90400000 | B148: Uncollectible Accounts | C148: 90400000 | D148: -41469.08 | E148: 541495.12 | F148: -698916.69 | H148: -582964.2
A149: %,V90500000 | B149: Misc Cust Accts Exp | C149: 90500000 | D149: 1012.7 | E149: 426.41 | F149: 4067.52 | H149: 586.29
A150: %,FACCOUNT,TNI_ACCOUNT_FERC,XBYYYYY01,NOP_CUST_ACCTS_EXP | B150: Customer Accounts - Oper | D150: 195291.28 | E150: 504694.75 | F150: 262567.65 | H150: -309403.47
A151: %,V90800000 | B151: Customer Assistance Exp | C151: 90800000 | D151: 13180 | E151: 0 | F151: 52720 | H151: 13180
A152: %,V91000000 | B152: Misc Cust Serv and Info Exp | C152: 91000000 | D152: 24080.64 | E152: 4754.63 | F152: 86527.85 | H152: 19326.01
A153: %,FACCOUNT,TNI_ACCOUNT_FERC,XBYYYYY01,NOP_CUSTOMER_SERV_EXP | B153: Cust Serv & Info Exp - Oper | D153: 37260.64 | E153: 4754.63 | F153: 139247.85 | H153: 32506.01
A154: %,V91200000 | B154: Demonstrating and Selling Exp | C154: 91200000 | D154: 1105.28 | E154: 879.69 | F154: 2634.5 | H154: 225.59
A155: %,V91300000 | B155: Sales Advertising Exp | C155: 91300000 | D155: 1055.2 | E155: 1431.66 | F155: 679.08 | H155: -376.46
A156: %,FACCOUNT,TNI_ACCOUNT_FERC,XBYYYYY01,NOP_SALES_EXP | B156: Sales Expenses - Oper | D156: 2160.48 | E156: 2311.35 | F156: 3313.58 | H156: -150.87
A157: %,V92000000 | B157: A_G Salaries | C157: 92000000 | D157: 1041660.61 | E157: 354754.03 | F157: 3077678.74 | H157: 686906.58
A158: %,V92001000 | B158: Discretionary and Spot Awards | C158: 92001000 | D158: 1117.05 | E158: -1235.93 | F158: 12473.65 | H158: 2352.98
A159: %,V92002000 | B159: Stock Compensation Expense | C159: 92002000 | D159: 77164.54 | E159: 80228.13 | F159: 170558.96 | H159: -3063.59
A160: %,V92100000 | B160: Office Supplies and Exp | C160: 92100000 | D160: 98227.02 | E160: 50558.96 | F160: 297170.07 | H160: 47668.06
A161: %,V92101000 | B161: Employee Expenses | C161: 92101000 | D161: 13375.33 | E161: -1848.45 | F161: 51445.39 | H161: 15223.78
A162: %,V92300000 | B162: Outside Service Employed | C162: 92300000 | D162: 504779.79 | E162: 50095.13 | F162: 1713703.84 | H162: 454684.66
A163: %,V92301000 | B163: Mgmt Fee Actuals-Affil | C163: 92301000 | D163: 148437.21 | E163: -38351.29 | F163: 629165.81 | H163: 186788.5
A164: %,V92400000 | B164: Property Insurance | C164: 92400000 | D164: 3534.76 | E164: 0 | F164: 14137.39 | H164: 3534.76
A165: %,V92500000 | B165: Injuries and Damages | C165: 92500000 | D165: 188604.84 | E165: 10178.17 | F165: 735101.8 | H165: 178426.67
A166: %,V92600000 | B166: Employee Pensions and Benefits | C166: 92600000 | D166: 304417.92 | E166: -107218.32 | F166: 1432531.21 | H166: 411636.24
A167: %,V92601000 | B167: Non Service Pension & OPEB | C167: 92601000 | D167: -79058.69 | E167: -202266.68 | F167: -155472.52 | H167: 123207.99
A168: %,V92800000 | B168: Regulatory Commission Exp | C168: 92800000 | D168: 22636.4 | E168: 1.63 | F168: 90605.04 | H168: 22634.77
A169: %,V93010000 | B169: General Advertising Exp | C169: 93010000 | D169: 90.52 | E169: -2061.33 | F169: 3832.72 | H169: 2151.85
A170: %,V93020000 | B170: Misc General Exp | C170: 93020000 | D170: 1318.12 | E170: -18362.38 | F170: 16032.04 | H170: 19680.5
A171: %,V93100000 | B171: Rents Admin and General | C171: 93100000 | D171: 76226.91 | E171: -3614.04 | F171: 299322.48 | H171: 79840.95
A172: %,FACCOUNT,TNI_ACCOUNT_FERC,XBYYYYY01,NOP_ADMIN_GEN | B172: Admin & General Exp - Oper | D172: 2402532.33 | E172: 170857.63 | F172: 8388286.62 | H172: 2231674.7
B173: Total Operation Expenses | D173: =D93+D94+D95+D120+D121+D122+D123+D125+D126+D130+D131+D144+D150+D153+D156+D172 -> 6744972.71 | E173: =E93+E94+E95+E120+E121+E122+E123+E125+E126+E130+E131+E144+E150+E153+E156+E172 -> -1516148.54 | F173: =F93+F94+F95+F120+F121+F122+F123+F125+F126+F130+F131+F144+F150+F153+F156+F172 -> 40351184.71
B175: Maintenance Expenses
A177: %,FACCOUNT,TNI_ACCOUNT_FERC,XBYYYYY01,NMAINT_PROD_EXP | B177: Production Expenses - Maint | D177: 0 | E177: =D177-H177 -> 0 | F177: 0
A178: %,FACCOUNT,TNI_ACCOUNT_FERC,XBYYYYY01,NMAINT_NG_STOR_PROC | B178: NG Stor, Term & Proc - Maint | D178: 0 | E178: 0 | F178: 0
A179: %,FACCOUNT,TNI_ACCOUNT_FERC,XBYYYYY01,NMAINT_TRANS_EXP | B179: Transmission Exp - Maint | D179: 0 | E179: 0 | F179: 0
A181: %,V88500000 | B181: Maint Supv-Eng-Gas Distr | C181: 88500000 | D181: 7478.75 | E181: =D181-H181 -> -642 | F181: 29653.44 | H181: 8120.75
A182: %,V88600000 | B182: Maint Struct-Improv-Gas Distr | C182: 88600000 | D182: 2139.09 | E182: -3065.53 | F182: 20721.37 | H182: 5204.62
A183: %,V88700000 | B183: Maint of Mains | C183: 88700000 | D183: 167103.16 | E183: -128831.96 | F183: 784298.36 | H183: 295935.12
A184: %,V88900000 | B184: Maint Msr-Reg Statn Equi Gen | C184: 88900000 | D184: 58415.16 | E184: -715.86 | F184: 174203.76 | H184: 59131.02
A185: %,V89000000 | B185: Maint Meas_Reg Stn Equip-Distr | C185: 89000000 | D185: 5950.72 | E185: -1699.34 | F185: 29442.26 | H185: 7650.06
A186: %,V89200000 | B186: Maint of Services | C186: 89200000 | D186: 73576.09 | E186: -17131.3 | F186: 326093.43 | H186: 90707.39
A187: %,V89300000 | B187: Maint Meters_House Regulators | C187: 89300000 | D187: 19937.85 | E187: 9091.91 | F187: 41448.42 | H187: 10845.94
A188: %,V89400000 | B188: Other Maint Equipment | C188: 89400000 | D188: 23614.51 | E188: -6447.42 | F188: 147863.35 | H188: 30061.93
A189: %,NMAINT_GAS_DISTR_EXP | B189: Distribution Exp - Maint-Gas | D189: 358215.33 | E189: -149441.5 | F189: 1553724.39 | H189: 507656.83
A190: %,FACCOUNT,TNI_ACCOUNT_FERC,XBYYYYY01,NMAINT_DISTR_EXP | B190: Distribution Exp - Maint | D190: 358215.33 | E190: -149441.5 | F190: 1553724.39 | H190: 507656.83
A191: %,V93200000 | B191: Maint General Plant | C191: 93200000 | D191: 116759.4 | E191: =D191-H191 -> 22598.43 | F191: 402578.58 | H191: 94160.97
A192: %,FACCOUNT,TNI_ACCOUNT_FERC,XBYYYYY01,NMAINT_ADMIN_GEN | B192: Maintenance Gen and Admin | D192: 116759.4 | E192: 22598.43 | F192: 402578.58 | H192: 94160.97
B193: Total Maintenance Expenses | D193: =D177+D178+D179+D190+D192 -> 474974.73 | E193: =E177+E178+E179+E190+E192 -> -126843.07 | F193: 1956302.97
A195: %,V40300000 | B195: Dep Exp | C195: 40300000 | D195: 1208691.16 | E195: =D195-H195 -> 8429.88 | F195: 4794895.69 | H195: 1200261.28
A196: %,FACCOUNT,TNI_ACCOUNT_FERC,XBYYYYY01,NDEPRECIATION_EXPENSE | B196: Depreciation Expense | D196: 1208691.16 | E196: =D196-H196 -> 8429.88 | F196: 4794895.69 | H196: 1200261.28
A197: %,FACCOUNT,TNI_ACCOUNT_FERC,XBYYYYY01,NDEPRECIATION_ARO_EXP | B197: Depreciation Expense for AROs | D197: 0 | E197: 0 | F197: 0
A199: %,V40430000 | B199: Amortization Exp-Other | C199: 40430000 | D199: 34733.9 | E199: =D199-H199 -> -165.61 | F199: 139308.82 | H199: 34899.51
A200: %,V40434000 | B200: Cloude Amortizaiton Expense | C200: 40434000 | D200: 9962.68 | E200: 1152.53 | F200: 36784.28 | H200: 8810.15
A201: %,NAMORT_LMT_TERM_PROP | B201: Amort of Limited-Term Property | D201: 44696.58 | E201: 986.92 | F201: 176093.1 | H201: 43709.66
A202: %,V40500000 | B202: Amortization of Oth Plant | C202: 40500000 | D202: 106996.14 | E202: 10350.42 | F202: 400266.06 | H202: 96645.72
A203: %,NAMORT_OTH_PROP | B203: Amort of Other Property | D203: 106996.14 | E203: 10350.42 | F203: 400266.06 | H203: 96645.72
A204: %,FACCOUNT,TNI_ACCOUNT_FERC,XBYYYYY01,NAMORT_DEPL_UTIL | B204: Amort & Deplet of Util Plant | D204: 151692.72 | E204: 11337.34 | F204: 576359.16 | H204: 140355.38
A205: %,FACCOUNT,TNI_ACCOUNT_FERC,XBYYYYY01,NAMORT_UTIL_ADJ | B205: Amort of Gas Plant Acq Adj | D205: 0 | E205: 0 | F205: 0
A206: %,FACCOUNT,TNI_ACCOUNT_FERC,XBYYYYY01,NAMORT_CONV_EXP | B206: Amort of Conversion Exp | D206: 0 | E206: 0 | F206: 0
A207: %,FACCOUNT,TNI_ACCOUNT_FERC,XBYYYYY01,NREG_DEBITS | B207: Reg Debits | D207: 0 | E207: 0 | F207: 0
A208: %,FACCOUNT,TNI_ACCOUNT_FERC,XBYYYYY01,NREG_CREDITS | B208: Reg Credits | D208: 0 | E208: 0 | F208: 0
A209: %,V40813100 | B209: Tax Exp-License_Franchise | C209: 40813100 | D209: 0 | E209: 0 | F209: 3000 | H209: 0
A210: %,V40813200 | B210: Tax Exp-Property | C210: 40813200 | D210: 310893.42 | E210: -292611.83 | F210: 1891908.67 | H210: 603505.25
A211: %,V40813300 | B211: Tax Exp-Sales and Use Tax | C211: 40813300 | D211: 10632.84 | E211: 10632.85 | F211: 10632.82 | H211: -0.01
A212: %,V40813600 | B212: Tax Exp-State and Local-Oth | C212: 40813600 | D212: 0 | E212: 0 | F212: 0 | H212: 0
A213: %,V40814100 | B213: Tax Exp-Payroll-Incentive | C213: 40814100 | D213: 4588.32 | E213: 35441.74 | F213: -16403.62 | H213: -30853.42
A214: %,V40814500 | B214: Tax Exp-Payroll FICA-OASDI | C214: 40814500 | D214: 54776.01 | E214: -7992.51 | F214: 256505.26 | H214: 62768.52
A215: %,V40814600 | B215: Tax Exp-Payroll FICA-Medicar | C215: 40814600 | D215: 12975.42 | E215: -1943.75 | F215: 60387.96 | H215: 14919.17
A216: %,V40814700 | B216: Tax Exp-FUTA Employer | C216: 40814700 | D216: 1.27 | E216: -20.18 | F216: 5190.34 | H216: 21.45
A217: %,V40814800 | B217: Tax Exp-SUTA Employer | C217: 40814800 | D217: 162.37 | E217: -8714.93 | F217: 13061.14 | H217: 8877.3
A218: %,FACCOUNT,TNI_ACCOUNT_FERC,XBYYYYY01,NOTHER_TAXES_FERC | B218: Other Taxes FERC | D218: 394029.65 | E218: -265208.61 | F218: 2224282.57 | H218: 659238.26
A220: %,V40912000 | B220: Util Cur ST Exp | C220: 40912000 | D220: -20344 | E220: =D220-H220 -> -154723 | F220: 105939 | H220: 134379
A221: %,FACCOUNT,TNI_ACCOUNT_FERC,XBYYYYY01,NINC_TAX_EXP_ST | B221: Income Taxes - State | D221: -20344 | E221: =D221-H221 -> -154723 | F221: 105939 | H221: 134379
... 86 more rows

Sheet May21
A1: %,LACTUALS,UPOSTED_TRAN_AMT | B1: %,ATF,FDESCR,UDESCR | C1: %,ATT,FACCOUNT | D1: %,LACTUALS,UPOSTED_TRAN_AMT,SPER,FBOOK_CODE,VR | E1: %,C | F1: %,LACTUALS,UPOSTED_TRAN_AMT,SYTD,FBOOK_CODE,VR | H1: %,LACTUALS,UPOSTED_TRAN_AMT,SPER-1,FBOOK_CODE,VR
B2: Columbia Gas of Kentucky Inc | H2: FOR
B3: Income Statement-FERC | H3: CALC
B4: Regulatory View - FERC Account
B5: For the Month Ended May 31, 2021 | H5: PURPOSES
B6: For Internal Use Only | H6: ONLY
D8: Current | E8: Change from | F8: Year-To- | H8: Prior
D9: Month | E9: Prior Month | F9: Date | H9: Month
B11: Operating Revenues
A13: %,V48000000 | B13: Residential Sales | C13: 48000000 | D13: 5165357.44 | E13: =D13-H13 -> -1513024.15 | F13: 49928919.16 | H13: 6678381.59
A14: %,V48000100 | B14: Residential Sales Norm | C14: 48000100 | D14: 1142.48 | E14: -625.95 | F14: 7084.18 | H14: 1768.43
A15: %,R,FACCOUNT,TNI_ACCOUNT_FERC,XBYYYYY01,NGAS_RESID_REV | B15: Gas Residential Sales | D15: 5166499.92 | E15: =D15-H15 -> -1513650.1 | F15: 49936003.34 | H15: 6680150.02
A17: %,V48101000 | B17: Commercial Gas Sales | C17: 48101000 | D17: 2146150.84 | E17: =D17-H17 -> -487244.08 | F17: 20273215.23 | H17: 2633394.92
A18: %,V48101200 | B18: Commercial Gas Sales Norm | C18: 48101200 | D18: 691.09 | E18: -254.52 | F18: 3732.23 | H18: 945.61
A19: %,NGAS_COMM_REV | B19: Gas Commercial Revenues | D19: 2146841.93 | E19: -487498.6 | F19: 20276947.46 | H19: 2634340.53
A20: %,V48102000 | B20: Industrial Gas Sales | C20: 48102000 | D20: 104550.3 | E20: -37300.54 | F20: 1014892.05 | H20: 141850.84
A21: %,V48102300 | B21: Industrial Gas Sales Norm | C21: 48102300 | D21: 54.58 | E21: -20.74 | F21: 234.83 | H21: 75.32
A22: %,NGAS_INDUST_REV | B22: Gas Industrial Revenues | D22: 104604.88 | E22: -37321.28 | F22: 1015126.88 | H22: 141926.16
A23: %,V48103000 | B23: Gas Sales-Other | C23: 48103000 | D23: 0 | E23: 0 | F23: 0 | H23: 0
A24: %,NGAS_OTHER_REV | B24: Gas Comm & Indust Other Rev | D24: 0 | E24: 0 | F24: 0 | H24: 0
A25: %,R,FACCOUNT,TNI_ACCOUNT_FERC,XBYYYYY01,NGAS_COMM_INDUST_REV | B25: Gas Comm & Indust Revenues | D25: 2251446.81 | E25: -524819.88 | F25: 21292074.34 | H25: 2776266.69
A26: %,V48300000 | B26: Sales for Resale-Gas | C26: 48300000 | D26: 6290.15 | E26: =D26-H26 -> -1046.61 | F26: 47188.3 | H26: 7336.76
A27: %,R,FACCOUNT,TNI_ACCOUNT_FERC,XBYYYYY01,NGAS_SALES_RESALE | B27: Gas Sales for Resale | D27: 6290.15 | E27: -1046.61 | F27: 47188.3 | H27: 7336.76
A28: %,R,FACCOUNT,TNI_ACCOUNT_FERC,XBYYYYY01,NGAS_INTERDEPT_SALES | B28: Gas Interdepartmental Sales | D28: 0 | E28: 0 | F28: 0
A29: %,R,FACCOUNT,TNI_ACCOUNT_FERC,XBYYYYY01,NGAS_INTRACO_TRANSFER | B29: Gas Intercompany Transfers | D29: 0 | E29: =D29-H29 -> 0 | F29: 0
A30: xx | B30: Total Sales of Gas | D30: =D15+D25+D27+D28+D29 -> 7424236.88 | E30: =E15+E25+E27+E28+E29 -> -2039516.59 | F30: =F15+F25+F27+F28+F29 -> 71275265.98
A32: %,R,FACCOUNT,TNI_ACCOUNT_FERC,XBYYYYY01,NELE_RESID_REV | B32: Electric Residential Revenues | D32: 0 | E32: =D32-H32 -> 0 | F32: 0
A33: %,R,FACCOUNT,TNI_ACCOUNT_FERC,XBYYYYY01,NELE_COMM_IND_REV | B33: Elec Comm & Indust Rev | D33: 0 | E33: 0 | F33: 0
A34: %,R,FACCOUNT,TNI_ACCOUNT_FERC,XBYYYYY01,NELE_STREET_HWY_LIGHT | B34: Public Street & Hwy Lighting | D34: 0 | E34: 0 | F34: 0
A35: %,R,FACCOUNT,TNI_ACCOUNT_FERC,XBYYYYY01,NELE_OTH_SALES_PUBLIC | B35: Elec Oth Sales to Public Auth | D35: 0 | E35: 0 | F35: 0
A36: %,R,FACCOUNT,TNI_ACCOUNT_FERC,XBYYYYY01,NELE_RAILROAD | B36: Sales to Railroads & Railways | D36: 0 | E36: 0 | F36: 0
A37: %,R,FACCOUNT,TNI_ACCOUNT_FERC,XBYYYYY01,NELE_SALES_RESALE | B37: Electric Sales for Resale | D37: 0 | E37: 0 | F37: 0
A38: %,R,FACCOUNT,TNI_ACCOUNT_FERC,XBYYYYY01,NELE_INTERDEPT_SALES | B38: Elec Interdepartmental Sales | D38: 0 | E38: 0 | F38: 0
A39: xx | B39: Total Sales of Electricity | D39: =D32+D33+D34+D35+D36+D37+D38 -> 0 | E39: =E32+E33+E34+E35+E36+E37+E38 -> 0 | F39: 0
A41: %,V48700000 | B41: Forfeited Discounts-Gas | C41: 48700000 | D41: 37687.25 | E41: =D41-H41 -> -20516.77 | F41: 326450.33 | H41: 58204.02
A42: %,R,FACCOUNT,TNI_ACCOUNT_FERC,XBYYYYY01,NFORFEITED_DISC_GAS | B42: Forfeited Discounts - Gas | D42: 37687.25 | E42: =D42-H42 -> -20516.77 | F42: 326450.33 | H42: 58204.02
A43: %,R,FACCOUNT,TNI_ACCOUNT_FERC,XBYYYYY01,NFORFEITED_DISC_ELE | B43: Forfeited Discounts - Ele | D43: 0 | E43: 0 | F43: 0
B44: Total Forfeited Discounts | D44: =D42+D43 -> 37687.25 | E44: =E42+E43 -> -20516.77 | F44: 326450.33
A46: %,V48800000 | B46: Misc Service Revenues-Gas | C46: 48800000 | D46: 15659.18 | E46: =D46-H46 -> 3791.48 | F46: 38221.23 | H46: 11867.7
A47: %,R,FACCOUNT,TNI_ACCOUNT_FERC,XBYYYYY01,NMISC_SERV_REVS_GAS | B47: Misc Service Revenues - Gas | D47: 15659.18 | E47: =D47-H47 -> 3791.48 | F47: 38221.23 | H47: 11867.7
A48: %,R,FACCOUNT,TNI_ACCOUNT_FERC,XBYYYYY01,NMISC_SERV_REVS_ELE | B48: Misc Service Revenues - Ele | D48: 0 | E48: 0 | F48: 0
B49: Total Miscellaneous Service Revenues | D49: =D47+D48 -> 15659.18 | E49: =E47+E48 -> 3791.48 | F49: 38221.23
A51: %,R,FACCOUNT,TNI_ACCOUNT_FERC,XBYYYYY01,NRENT_ELE_PROP | B51: Rent from Electricity Property | D51: 0 | E51: =D51-H51 -> 0 | F51: 0
A52: %,R,FACCOUNT,TNI_ACCOUNT_FERC,XBYYYYY01,NOTH_ELE_REV | B52: Other Electric Revenues | D52: 0 | E52: 0 | F52: 0
A53: %,R,FACCOUNT,TNI_ACCOUNT_FERC,XBYYYYY01,NOTH_ELE_TRANS_REV | B53: Rev Transm of Elec of Oth | D53: 0 | E53: 0 | F53: 0
A54: %,R,FACCOUNT,TNI_ACCOUNT_FERC,XBYYYYY01,NOTH_REV_SERVICE_CO | B54: Nonutility Revenues - Serv Co | D54: 0 | E54: 0 | F54: 0
A55: %,R,FACCOUNT,TNI_ACCOUNT_FERC,XBYYYYY01,NREG_ELE_TRANS_REV | B55: Regional Transm Service Rev | D55: 0 | E55: 0 | F55: 0
A56: %,R,FACCOUNT,TNI_ACCOUNT_FERC,XBYYYYY01,NTRANSPORT_GATH_REV | B56: Rev Transp Gas of Oth - Gather | D56: 0 | E56: 0 | F56: 0
A57: %,R,FACCOUNT,TNI_ACCOUNT_FERC,XBYYYYY01,NTRANSPORT_TRANS_REV | B57: Rev Transp Gas of Oth - Transm | D57: 0 | E57: 0 | F57: 0
A58: %,V48930000 | B58: Transp Rev Distr Residential | C58: 48930000 | D58: 532624.91 | E58: -110566.42 | F58: 4215425.47 | H58: 643191.33
A59: %,V48930200 | B59: Unbilled Residential Trans Vol | C59: 48930200 | D59: -12795 | E59: 82104.7 | F59: -272480.1 | H59: -94899.7
A60: %,V48930300 | B60: Unbilled Res Trans Cust chrg | C60: 48930300 | D60: -1472 | E60: -16 | F60: -7328 | H60: -1456
A61: %,V48931000 | B61: Transp Rev Distr Commercial | C61: 48931000 | D61: 591889.9 | E61: -156134.94 | F61: 4547124.37 | H61: 748024.84
A62: %,V48931300 | B62: Unbilled Comm Trans Vol | C62: 48931300 | D62: -19888.78 | E62: 41725.01 | F62: -202514.4 | H62: -61613.79
A63: %,V48931400 | B63: Unbilled Comm Trans Cust chrg | C63: 48931400 | D63: -223.45 | E63: 268.14 | F63: -4733.09 | H63: -491.59
A64: %,V48932000 | B64: Transp Rev Distr Industrial | C64: 48932000 | D64: 399314.81 | E64: -6944.1 | F64: 2333991.59 | H64: 406258.91
A65: %,V48932400 | B65: Unbilled Ind Trans Vol | C65: 48932400 | D65: 719.64 | E65: 741.72 | F65: -2707.66 | H65: -22.08
A66: %,V48932500 | B66: Unbilled Ind Trans Cust chrg | C66: 48932500 | D66: 0 | E66: 0 | F66: 0 | H66: 0
A67: %,R,FACCOUNT,TNI_ACCOUNT_FERC,XBYYYYY01,NTRANSPORT_DISTR_REV | B67: Rev Transp Gas of Oth - Distr | D67: 1490170.03 | E67: -148821.89 | F67: 10606778.18 | H67: 1638991.92
A68: %,R,FACCOUNT,TNI_ACCOUNT_FERC,XBYYYYY01,NSTORE_GAS_REV | B68: Rev from Storing Gas of Oth | D68: 0 | E68: 0 | F68: 0
A69: %,R,FACCOUNT,TNI_ACCOUNT_FERC,XBYYYYY01,NSALES_EXTRACT_GAS | B69: Sales - Prod Extracted from NG | D69: 0 | E69: 0 | F69: 0
A70: %,R,FACCOUNT,TNI_ACCOUNT_FERC,XBYYYYY01,NGAS_OIL_SALES | B70: Incidental Gasoline & Oil Sale | D70: 0 | E70: 0 | F70: 0
A71: %,V49300000 | B71: Rent from Gas Property | C71: 49300000 | D71: 2852 | E71: =D71-H71 -> 0 | F71: 14260 | H71: 2852
A72: %,R,FACCOUNT,TNI_ACCOUNT_FERC,XBYYYYY01,NRENT_GAS_PROP | B72: Rent from Gas Property | D72: 2852 | E72: 0 | F72: 14260 | H72: 2852
A74: %,V49500485 | B74: Unbilled Residential-Vol | C74: 49500485 | D74: -387270.14 | E74: =D74-H74 -> 727658.08 | F74: -4906117.16 | H74: -1114928.22
A75: %,V49501485 | B75: Unbilled Res Customer Chrg | C75: 49501485 | D75: -10448 | E75: -2736 | F75: -3423.8 | H75: -7712
A76: %,V49503483 | B76: Unbilled Off System Sales | C76: 49503483 | D76: 0 | E76: 0 | F76: 0 | H76: 0
A77: %,V49510485 | B77: Unbilled Commercial-Vol | C77: 49510485 | D77: -308363.71 | E77: 70603.69 | F77: -1971575.14 | H77: -378967.4
A78: %,V49511485 | B78: Unbilled Comm Customer Chrg | C78: 49511485 | D78: -1653.53 | E78: 2011.05 | F78: -3441.13 | H78: -3664.58
A79: %,V49520485 | B79: Unbilled Industrial-Vol | C79: 49520485 | D79: -13021.07 | E79: -19626.62 | F79: -51290.57 | H79: 6605.55
A80: %,V49521485 | B80: Unbilled Ind Customer Chrg | C80: 49521485 | D80: 0 | E80: 44.69 | F80: 0 | H80: -44.69
A81: %,NUNBILLED_REV_FERC | B81: Unbilled Revenues | D81: -720756.45 | E81: 777954.89 | F81: -6935847.8 | H81: -1498711.34
A82: %,V49500000 | B82: Other Gas Revenue | C82: 49500000 | D82: 15131.43 | E82: -38276.6 | F82: 226863.2 | H82: 53408.03
A83: %,V49500050 | B83: Billed Off System Sales | C83: 49500050 | D83: 85009 | E83: 45046.5 | F83: 924145.24 | H83: 39962.5
A84: %,R,FACCOUNT,TNI_ACCOUNT_FERC,XBYYYYY01,NOTH_GAS_REV | B84: Other Gas Revenues | D84: -620616.02 | E84: 784724.79 | F84: -5784839.36 | H84: -1405340.81
A85: %,R,FACCOUNT,TNI_ACCOUNT_FERC,XBYYYYY01,NGAS_PROV_RATE_REFUND | B85: Gas Provision of Rate Refunds | D85: 0 | E85: 0 | F85: 0
B86: Total Other Operating Revenues | D86: =D44+D49+D51+D52+D53+D54+D55+D56+D57+D67+D68+D69+D70+D72+D84+D85 -> 925752.44 | E86: =E44+E49+E51+E52+E53+E54+E55+E56+E57+E67+E68+E69+E70+E72+E84+E85 -> 619177.61 | F86: 5200870.38
A87: xx | B87: Total Operating Revenues | D87: =D30+D39+D86 -> 8349989.32 | E87: =E30+E39+E86 -> -1420338.98 | F87: =F30+F39+F86 -> 76476136.36
B89: Operating Expenses
B91: Operation Expenses
A93: %,FACCOUNT,TNI_ACCOUNT_FERC,XBYYYYY01,NOP_MANUF_GAS | B93: Manufac Gas Production - Oper | D93: 0 | E93: =D93-H93 -> 0 | F93: 0
A94: %,FACCOUNT,TNI_ACCOUNT_FERC,XBYYYYY01,NOP_NTRLGAS_PROD_GTH | B94: NG Production & Gather - Oper | D94: 0 | E94: 0 | F94: 0
A95: %,FACCOUNT,TNI_ACCOUNT_FERC,XBYYYYY01,NOP_PROD_EXTRACT | B95: Products Extraction - Oper | D95: 0 | E95: 0 | F95: 0
A97: %,V80100000 | B97: Natural gas field line purchas | C97: 80100000 | D97: 30944.22 | E97: =D97-H97 -> 389.12 | F97: 135933.56 | H97: 30555.1
A98: %,NOP_NG_PURCH_FIELD | B98: NG Well Head Purchases | D98: 30944.22 | E98: 389.12 | F98: 135933.56 | H98: 30555.1
A99: %,V80300300 | B99: Short Term Producer Purch | C99: 80300300 | D99: 5115749.29 | E99: 2319267.15 | F99: 14904461.74 | H99: 2796482.14
A100: %,V80300400 | B100: Transportation Pipeline Exp | C100: 80300400 | D100: 694112.07 | E100: 79740.85 | F100: 4127815.47 | H100: 614371.22
A101: %,V80300500 | B101: Storage Charges Pipeline Exp | C101: 80300500 | D101: -227188.38 | E101: 118372.84 | F101: -2325992.3 | H101: -345561.22
A102: %,V80300600 | B102: OFS_System Supply Credit | C102: 80300600 | D102: -2794.13 | E102: 4569.04 | F102: -231917.22 | H102: -7363.17
A103: %,V80300808 | B103: Storage Demand | C103: 80300808 | D103: 1502153.14 | E103: 0.02000000002 | F103: 6631914.2 | H103: 1502153.12
A104: %,NOP_NG_PURCH_TRANSLIN | B104: NG Transmission Line Purchases | D104: 7082031.99 | E104: 2521949.9 | F104: 23106281.89 | H104: 4560082.09
A105: %,V80400000 | B105: Natural Gas City Gate Purchase | C105: 80400000 | D105: 52390.51 | E105: -1672.14 | F105: 1143731.99 | H105: 54062.65
A106: %,NOP_NG_PURCH_CITYGATE | B106: NG City Gate Purchases | D106: 52390.51 | E106: -1672.14 | F106: 1143731.99 | H106: 54062.65
A107: %,V80510000 | B107: Purchased Gas Cost Adjustments | C107: 80510000 | D107: -1637590.7 | E107: -1579775.34 | F107: -1335597.94 | H107: -57815.36
A108: %,NOP_NG_PURCH_ADJUST | B108: Purchased Gas Cost Adjustments | D108: -1637590.7 | E108: -1579775.34 | F108: -1335597.94 | H108: -57815.36
A109: %,V80601000 | B109: Exchange Gas-Received | C109: 80601000 | D109: 199569.21 | E109: -529402.32 | F109: -2191411.31 | H109: 728971.53
A110: %,NOP_NG_PURCH_EXCHANGE | B110: Exchange Gas | D110: 199569.21 | E110: -529402.32 | F110: -2191411.31 | H110: 728971.53
A111: %,V80720000 | B111: Oper-Purch Gas Measrg Stations | C111: 80720000 | D111: 37877.53 | E111: 6801.44 | F111: 181800.27 | H111: 31076.09
A112: %,V80751000 | B112: Purch Gas Exp - Mgmt Fee | C112: 80751000 | D112: 4918.83 | E112: -231.72 | F112: 25635.1 | H112: 5150.55
A113: %,NOP_NG_PURCH_EXPENSE | B113: Purchased Gas Expenses | D113: 42796.36 | E113: 6569.72 | F113: 207435.37 | H113: 36226.64
A114: %,V80810000 | B114: Gas Withdrawn | C114: 80810000 | D114: 909589.3 | E114: 1444307.46 | F114: 14903463.16 | H114: -534718.16
A115: %,NOP_NG_PURCH_WITHDRAW | B115: Gas Withdrawn from Storage | D115: 909589.3 | E115: 1444307.46 | F115: 14903463.16 | H115: -534718.16
A116: %,V80820000 | B116: Gas Delivered | C116: 80820000 | D116: -4540096.08 | E116: -2689252.18 | F116: -6809958.76 | H116: -1850843.9
A117: %,NOP_NG_PURCH_DELIVER | B117: Gas Delivered to Storage | D117: -4540096.08 | E117: -2689252.18 | F117: -6809958.76 | H117: -1850843.9
A118: %,V81220000 | B118: Gas Used-Other-Offset | C118: 81220000 | D118: -5873.15 | E118: 2043.14 | F118: -62136.34 | H118: -7916.29
A119: %,NOP_NG_PURCH_OTHOPS | B119: Gas Used for Other Utility Ops | D119: -5873.15 | E119: 2043.14 | F119: -62136.34 | H119: -7916.29
A120: %,FACCOUNT,TNI_ACCOUNT_FERC,XBYYYYY01,NOP_OTH_GAS_SUPPLY | B120: Other Gas Supply - Operations | D120: 2133761.66 | E120: -824842.64 | F120: 29097741.62 | H120: 2958604.3
A121: %,FACCOUNT,TNI_ACCOUNT_FERC,XBYYYYY01,NOP_STEAM_POWER | B121: Steam Power - Operations | D121: 0 | E121: 0 | F121: 0
A122: %,FACCOUNT,TNI_ACCOUNT_FERC,XBYYYYY01,NOP_HYDRAULIC_POWER | B122: Hydraulic Power - Operations | D122: 0 | E122: 0 | F122: 0
A123: %,FACCOUNT,TNI_ACCOUNT_FERC,XBYYYYY01,NOP_OTHER_POWER | B123: Other Power - Operations | D123: 0 | E123: 0 | F123: 0
A124: %,V55700000 | B124: Other Exp | C124: 55700000 | D124: 0 | E124: =D124-H124 -> 0 | F124: 0 | H124: 0
A125: %,FACCOUNT,TNI_ACCOUNT_FERC,XBYYYYY01,NOP_OTH_POWER_SUPPLY | B125: Other Power Supply - Oper | D125: 0 | E125: =D125-H125 -> 0 | F125: 0 | H125: 0
A126: %,FACCOUNT,TNI_ACCOUNT_FERC,XBYYYYY01,NOP_NG_STOR_TERM_PROC | B126: NG Stor, Term & Proc - Oper | D126: 0 | E126: 0 | F126: 0
A128: %,V85200030 | B128: Communication System Exp | C128: 85200030 | D128: 190.54 | E128: =D128-H128 -> -3614.19 | F128: 4332.02 | H128: 3804.73
A129: %,NOP_GAS_TRANS_EXP | B129: Transmission Exp - Oper - Gas | D129: 190.54 | E129: -3614.19 | F129: 4332.02 | H129: 3804.73
A130: %,FACCOUNT,TNI_ACCOUNT_FERC,XBYYYYY01,NOP_TRANS_EXP | B130: Transmission Exp - Oper | D130: 190.54 | E130: -3614.19 | F130: 4332.02 | H130: 3804.73
A131: %,FACCOUNT,TNI_ACCOUNT_FERC,XBYYYYY01,NOP_REG_MARKET_EXP | B131: Regional Market Exp - Oper | D131: 0 | E131: 0 | F131: 0
A133: %,V87000000 | B133: Op Superv-Eng-Gas Distr | C133: 87000000 | D133: 120588.94 | E133: =D133-H133 -> 33302.34 | F133: 469949.36 | H133: 87286.6
A134: %,V87100000 | B134: Distribution Load Dispatching | C134: 87100000 | D134: 11305.37 | E134: 3378.93 | F134: 77734.07 | H134: 7926.44
A135: %,V87400000 | B135: Mains and Services Exp | C135: 87400000 | D135: 564536.68 | E135: -18127.44 | F135: 2784086.84 | H135: 582664.12
A136: %,V87500000 | B136: Measur-Reg Statn Exp Gen | C136: 87500000 | D136: 24074.64 | E136: 8447.76 | F136: 96510.97 | H136: 15626.88
A137: %,V87600000 | B137: Measur-Reg Statn Exp-Indus | C137: 87600000 | D137: 5805.97 | E137: -1823.11 | F137: 30057.92 | H137: 7629.08
A138: %,V87800000 | B138: Meter and House Regulator Exp | C138: 87800000 | D138: 110598.23 | E138: -15916.82 | F138: 601357.75 | H138: 126515.05
A139: %,V87900000 | B139: Oper Installation Service Exp | C139: 87900000 | D139: 183546.38 | E139: -56623.62 | F139: 1119336.95 | H139: 240170
A140: %,V87900200 | B140: Oper Install-Chrg Labor | C140: 87900200 | D140: 0 | E140: 0 | F140: 28.03 | H140: 0
A141: %,V88000000 | B141: Operations Exp Other | C141: 88000000 | D141: 72111.73 | E141: -4439.05 | F141: 500816.13 | H141: 76550.78
A142: %,V88100000 | B142: Gas Distr Rents | C142: 88100000 | D142: 300 | E142: -650 | F142: 2637.49 | H142: 950
A143: %,NOP_GAS_DISTR_EXP | B143: Distribution Exp - Oper - Gas | D143: 1092867.94 | E143: -52451.01 | F143: 5682515.51 | H143: 1145318.95
A144: %,FACCOUNT,TNI_ACCOUNT_FERC,XBYYYYY01,NOP_DISTR_EXP | B144: Distribution Exp - Oper | D144: 1092867.94 | E144: -52451.01 | F144: 5682515.51 | H144: 1145318.95
A145: %,V90100000 | B145: Customer Acnt Supervision | C145: 90100000 | D145: 0 | E145: -88.66 | F145: 134.6 | H145: 88.66
A146: %,V90200000 | B146: Cust Accnt Meter Reading Exp | C146: 90200000 | D146: 30076.83 | E146: 28243.9 | F146: 80493.4 | H146: 1832.93
A147: %,V90300000 | B147: Cust Records Collection Exp | C147: 90300000 | D147: 191450.55 | E147: -42375.52 | F147: 1098316.2 | H147: 233826.07
A148: %,V90400000 | B148: Uncollectible Accounts | C148: 90400000 | D148: 73309.96 | E148: 114779.04 | F148: -625606.73 | H148: -41469.08
A149: %,V90500000 | B149: Misc Cust Accts Exp | C149: 90500000 | D149: 778.05 | E149: -234.65 | F149: 4845.57 | H149: 1012.7
A150: %,FACCOUNT,TNI_ACCOUNT_FERC,XBYYYYY01,NOP_CUST_ACCTS_EXP | B150: Customer Accounts - Oper | D150: 295615.39 | E150: 100324.11 | F150: 558183.04 | H150: 195291.28
A151: %,V90800000 | B151: Customer Assistance Exp | C151: 90800000 | D151: 3278.01 | E151: -9901.99 | F151: 55998.01 | H151: 13180
A152: %,V91000000 | B152: Misc Cust Serv and Info Exp | C152: 91000000 | D152: 26542.14 | E152: 2461.5 | F152: 113069.99 | H152: 24080.64
A153: %,FACCOUNT,TNI_ACCOUNT_FERC,XBYYYYY01,NOP_CUSTOMER_SERV_EXP | B153: Cust Serv & Info Exp - Oper | D153: 29820.15 | E153: -7440.49 | F153: 169068 | H153: 37260.64
A154: %,V91200000 | B154: Demonstrating and Selling Exp | C154: 91200000 | D154: 0 | E154: -1105.28 | F154: 2634.5 | H154: 1105.28
A155: %,V91300000 | B155: Sales Advertising Exp | C155: 91300000 | D155: 1209.37 | E155: 154.17 | F155: 1888.45 | H155: 1055.2
A156: %,FACCOUNT,TNI_ACCOUNT_FERC,XBYYYYY01,NOP_SALES_EXP | B156: Sales Expenses - Oper | D156: 1209.37 | E156: -951.11 | F156: 4522.95 | H156: 2160.48
A157: %,V92000000 | B157: A_G Salaries | C157: 92000000 | D157: 309444.54 | E157: -732216.07 | F157: 3387123.28 | H157: 1041660.61
A158: %,V92001000 | B158: Discretionary and Spot Awards | C158: 92001000 | D158: 4022.6 | E158: 2905.55 | F158: 16496.25 | H158: 1117.05
A159: %,V92002000 | B159: Stock Compensation Expense | C159: 92002000 | D159: 80193.39 | E159: 3028.85 | F159: 250752.35 | H159: 77164.54
A160: %,V92100000 | B160: Office Supplies and Exp | C160: 92100000 | D160: 60894.36 | E160: -37332.66 | F160: 358064.43 | H160: 98227.02
A161: %,V92101000 | B161: Employee Expenses | C161: 92101000 | D161: 14311.42 | E161: 936.09 | F161: 65756.81 | H161: 13375.33
A162: %,V92300000 | B162: Outside Service Employed | C162: 92300000 | D162: 381569.73 | E162: -123210.06 | F162: 2095273.57 | H162: 504779.79
A163: %,V92301000 | B163: Mgmt Fee Actuals-Affil | C163: 92301000 | D163: 163664.05 | E163: 15226.84 | F163: 792829.86 | H163: 148437.21
A164: %,V92400000 | B164: Property Insurance | C164: 92400000 | D164: 3534.76 | E164: 0 | F164: 17672.15 | H164: 3534.76
A165: %,V92500000 | B165: Injuries and Damages | C165: 92500000 | D165: 158113.99 | E165: -30490.85 | F165: 893215.79 | H165: 188604.84
A166: %,V92600000 | B166: Employee Pensions and Benefits | C166: 92600000 | D166: 291657.47 | E166: -12760.45 | F166: 1724188.68 | H166: 304417.92
A167: %,V92601000 | B167: Non Service Pension & OPEB | C167: 92601000 | D167: -78140.01 | E167: 918.68 | F167: -233612.53 | H167: -79058.69
A168: %,V92800000 | B168: Regulatory Commission Exp | C168: 92800000 | D168: 22643.84 | E168: 7.44 | F168: 113248.88 | H168: 22636.4
A169: %,V93010000 | B169: General Advertising Exp | C169: 93010000 | D169: 2139.17 | E169: 2048.65 | F169: 5971.89 | H169: 90.52
A170: %,V93020000 | B170: Misc General Exp | C170: 93020000 | D170: 161.36 | E170: -1156.76 | F170: 16193.4 | H170: 1318.12
A171: %,V93100000 | B171: Rents Admin and General | C171: 93100000 | D171: 77600.28 | E171: 1373.37 | F171: 376922.76 | H171: 76226.91
A172: %,FACCOUNT,TNI_ACCOUNT_FERC,XBYYYYY01,NOP_ADMIN_GEN | B172: Admin & General Exp - Oper | D172: 1491810.95 | E172: -910721.38 | F172: 9880097.57 | H172: 2402532.33
B173: Total Operation Expenses | D173: =D93+D94+D95+D120+D121+D122+D123+D125+D126+D130+D131+D144+D150+D153+D156+D172 -> 5045276 | E173: =E93+E94+E95+E120+E121+E122+E123+E125+E126+E130+E131+E144+E150+E153+E156+E172 -> -1699696.71 | F173: =F93+F94+F95+F120+F121+F122+F123+F125+F126+F130+F131+F144+F150+F153+F156+F172 -> 45396460.71
B175: Maintenance Expenses
A177: %,FACCOUNT,TNI_ACCOUNT_FERC,XBYYYYY01,NMAINT_PROD_EXP | B177: Production Expenses - Maint | D177: 0 | E177: =D177-H177 -> 0 | F177: 0
A178: %,FACCOUNT,TNI_ACCOUNT_FERC,XBYYYYY01,NMAINT_NG_STOR_PROC | B178: NG Stor, Term & Proc - Maint | D178: 0 | E178: 0 | F178: 0
A179: %,FACCOUNT,TNI_ACCOUNT_FERC,XBYYYYY01,NMAINT_TRANS_EXP | B179: Transmission Exp - Maint | D179: 0 | E179: 0 | F179: 0
A181: %,V88500000 | B181: Maint Supv-Eng-Gas Distr | C181: 88500000 | D181: 6809.73 | E181: =D181-H181 -> -669.02 | F181: 36463.17 | H181: 7478.75
A182: %,V88600000 | B182: Maint Struct-Improv-Gas Distr | C182: 88600000 | D182: 13519.3 | E182: 11380.21 | F182: 34240.67 | H182: 2139.09
A183: %,V88700000 | B183: Maint of Mains | C183: 88700000 | D183: 135399.73 | E183: -31703.43 | F183: 919698.09 | H183: 167103.16
A184: %,V88900000 | B184: Maint Msr-Reg Statn Equi Gen | C184: 88900000 | D184: 48984.53 | E184: -9430.63 | F184: 223188.29 | H184: 58415.16
A185: %,V89000000 | B185: Maint Meas_Reg Stn Equip-Distr | C185: 89000000 | D185: 4610.38 | E185: -1340.34 | F185: 34052.64 | H185: 5950.72
A186: %,V89200000 | B186: Maint of Services | C186: 89200000 | D186: 73687.16 | E186: 111.07 | F186: 399780.59 | H186: 73576.09
A187: %,V89300000 | B187: Maint Meters_House Regulators | C187: 89300000 | D187: 19917.42 | E187: -20.43 | F187: 61365.84 | H187: 19937.85
A188: %,V89400000 | B188: Other Maint Equipment | C188: 89400000 | D188: 34598.65 | E188: 10984.14 | F188: 182462 | H188: 23614.51
A189: %,NMAINT_GAS_DISTR_EXP | B189: Distribution Exp - Maint-Gas | D189: 337526.9 | E189: -20688.43 | F189: 1891251.29 | H189: 358215.33
A190: %,FACCOUNT,TNI_ACCOUNT_FERC,XBYYYYY01,NMAINT_DISTR_EXP | B190: Distribution Exp - Maint | D190: 337526.9 | E190: -20688.43 | F190: 1891251.29 | H190: 358215.33
A191: %,V93200000 | B191: Maint General Plant | C191: 93200000 | D191: 199090.93 | E191: =D191-H191 -> 82331.53 | F191: 601669.51 | H191: 116759.4
A192: %,FACCOUNT,TNI_ACCOUNT_FERC,XBYYYYY01,NMAINT_ADMIN_GEN | B192: Maintenance Gen and Admin | D192: 199090.93 | E192: 82331.53 | F192: 601669.51 | H192: 116759.4
B193: Total Maintenance Expenses | D193: =D177+D178+D179+D190+D192 -> 536617.83 | E193: =E177+E178+E179+E190+E192 -> 61643.1 | F193: 2492920.8
A195: %,V40300000 | B195: Dep Exp | C195: 40300000 | D195: 1218117.41 | E195: =D195-H195 -> 9426.25 | F195: 6013013.1 | H195: 1208691.16
A196: %,FACCOUNT,TNI_ACCOUNT_FERC,XBYYYYY01,NDEPRECIATION_EXPENSE | B196: Depreciation Expense | D196: 1218117.41 | E196: =D196-H196 -> 9426.25 | F196: 6013013.1 | H196: 1208691.16
A197: %,FACCOUNT,TNI_ACCOUNT_FERC,XBYYYYY01,NDEPRECIATION_ARO_EXP | B197: Depreciation Expense for AROs | D197: 0 | E197: 0 | F197: 0
A199: %,V40430000 | B199: Amortization Exp-Other | C199: 40430000 | D199: 34563.19 | E199: =D199-H199 -> -170.71 | F199: 173872.01 | H199: 34733.9
A200: %,V40434000 | B200: Cloude Amortizaiton Expense | C200: 40434000 | D200: 9590.31 | E200: -372.37 | F200: 46374.59 | H200: 9962.68
A201: %,NAMORT_LMT_TERM_PROP | B201: Amort of Limited-Term Property | D201: 44153.5 | E201: -543.08 | F201: 220246.6 | H201: 44696.58
A202: %,V40500000 | B202: Amortization of Oth Plant | C202: 40500000 | D202: 108434.35 | E202: 1438.21 | F202: 508700.41 | H202: 106996.14
A203: %,NAMORT_OTH_PROP | B203: Amort of Other Property | D203: 108434.35 | E203: 1438.21 | F203: 508700.41 | H203: 106996.14
A204: %,FACCOUNT,TNI_ACCOUNT_FERC,XBYYYYY01,NAMORT_DEPL_UTIL | B204: Amort & Deplet of Util Plant | D204: 152587.85 | E204: 895.13 | F204: 728947.01 | H204: 151692.72
A205: %,FACCOUNT,TNI_ACCOUNT_FERC,XBYYYYY01,NAMORT_UTIL_ADJ | B205: Amort of Gas Plant Acq Adj | D205: 0 | E205: 0 | F205: 0
A206: %,FACCOUNT,TNI_ACCOUNT_FERC,XBYYYYY01,NAMORT_CONV_EXP | B206: Amort of Conversion Exp | D206: 0 | E206: 0 | F206: 0
A207: %,FACCOUNT,TNI_ACCOUNT_FERC,XBYYYYY01,NREG_DEBITS | B207: Reg Debits | D207: 0 | E207: 0 | F207: 0
A208: %,FACCOUNT,TNI_ACCOUNT_FERC,XBYYYYY01,NREG_CREDITS | B208: Reg Credits | D208: 0 | E208: 0 | F208: 0
A209: %,V40813100 | B209: Tax Exp-License_Franchise | C209: 40813100 | D209: 0 | E209: 0 | F209: 3000 | H209: 0
A210: %,V40813200 | B210: Tax Exp-Property | C210: 40813200 | D210: 548738.42 | E210: 237845 | F210: 2440647.09 | H210: 310893.42
A211: %,V40813300 | B211: Tax Exp-Sales and Use Tax | C211: 40813300 | D211: -10632.86 | E211: -21265.7 | F211: -0.04 | H211: 10632.84
A212: %,V40813400 | B212: Tax Exp-Gross Receipts | C212: 40813400 | D212: 0 | E212: 0 | F212: 0 | H212: 0
A213: %,V40813600 | B213: Tax Exp-State and Local-Oth | C213: 40813600 | D213: 0 | E213: 0 | F213: 0 | H213: 0
A214: %,V40814100 | B214: Tax Exp-Payroll-Incentive | C214: 40814100 | D214: 4588.32 | E214: 0 | F214: -11815.3 | H214: 4588.32
A215: %,V40814500 | B215: Tax Exp-Payroll FICA-OASDI | C215: 40814500 | D215: 48643.77 | E215: -6132.24 | F215: 305149.03 | H215: 54776.01
A216: %,V40814600 | B216: Tax Exp-Payroll FICA-Medicar | C216: 40814600 | D216: 11667.55 | E216: -1307.87 | F216: 72055.51 | H216: 12975.42
A217: %,V40814700 | B217: Tax Exp-FUTA Employer | C217: 40814700 | D217: 1.23 | E217: -0.04 | F217: 5191.57 | H217: 1.27
A218: %,V40814800 | B218: Tax Exp-SUTA Employer | C218: 40814800 | D218: -8737.81 | E218: -8900.18 | F218: 4323.33 | H218: 162.37
A219: %,FACCOUNT,TNI_ACCOUNT_FERC,XBYYYYY01,NOTHER_TAXES_FERC | B219: Other Taxes FERC | D219: 594268.62 | E219: 200238.97 | F219: 2818551.19 | H219: 394029.65
A221: %,V40912000 | B221: Util Cur ST Exp | C221: 40912000 | D221: -55418 | E221: =D221-H221 -> -35074 | F221: 50521 | H221: -20344
... 88 more rows

Sheet Jun21
A1: %,LACTUALS,UPOSTED_TRAN_AMT | B1: %,ATF,FDESCR,UDESCR | C1: %,ATT,FACCOUNT | D1: %,LACTUALS,UPOSTED_TRAN_AMT,SPER,FBOOK_CODE,VR | E1: %,C | F1: %,LACTUALS,UPOSTED_TRAN_AMT,SYTD,FBOOK_CODE,VR | H1: %,LACTUALS,UPOSTED_TRAN_AMT,SPER-1,FBOOK_CODE,VR
B2: Columbia Gas of Kentucky Inc | H2: FOR
B3: Income Statement-FERC | H3: CALC
B4: Regulatory View - FERC Account
B5: For the Month Ended June 30, 2021 | H5: PURPOSES
B6: For Internal Use Only | H6: ONLY
D8: Current | E8: Change from | F8: Year-To- | H8: Prior
D9: Month | E9: Prior Month | F9: Date | H9: Month
B11: Operating Revenues
A13: %,V48000000 | B13: Residential Sales | C13: 48000000 | D13: 3862071.72 | E13: =D13-H13 -> -1303285.72 | F13: 53790990.88 | H13: 5165357.44
A14: %,V48000100 | B14: Residential Sales Norm | C14: 48000100 | D14: -64.97 | E14: -1207.45 | F14: 7019.21 | H14: 1142.48
A15: %,R,FACCOUNT,TNI_ACCOUNT_FERC,XBYYYYY01,NGAS_RESID_REV | B15: Gas Residential Sales | D15: 3862006.75 | E15: =D15-H15 -> -1304493.17 | F15: 53798010.09 | H15: 5166499.92
A17: %,V48101000 | B17: Commercial Gas Sales | C17: 48101000 | D17: 1710620.87 | E17: =D17-H17 -> -435529.97 | F17: 21983836.1 | H17: 2146150.84
A18: %,V48101200 | B18: Commercial Gas Sales Norm | C18: 48101200 | D18: -44.87 | E18: -735.96 | F18: 3687.36 | H18: 691.09
A19: %,NGAS_COMM_REV | B19: Gas Commercial Revenues | D19: 1710576 | E19: -436265.93 | F19: 21987523.46 | H19: 2146841.93
A20: %,V48102000 | B20: Industrial Gas Sales | C20: 48102000 | D20: 62214.26 | E20: -42336.04 | F20: 1077106.31 | H20: 104550.3
A21: %,V48102300 | B21: Industrial Gas Sales Norm | C21: 48102300 | D21: -6.88 | E21: -61.46 | F21: 227.95 | H21: 54.58
A22: %,NGAS_INDUST_REV | B22: Gas Industrial Revenues | D22: 62207.38 | E22: -42397.5 | F22: 1077334.26 | H22: 104604.88
A23: %,V48103000 | B23: Gas Sales-Other | C23: 48103000 | D23: 88.18 | E23: 88.18 | F23: 88.18 | H23: 0
A24: %,NGAS_OTHER_REV | B24: Gas Comm & Indust Other Rev | D24: 88.18 | E24: 88.18 | F24: 88.18 | H24: 0
A25: %,R,FACCOUNT,TNI_ACCOUNT_FERC,XBYYYYY01,NGAS_COMM_INDUST_REV | B25: Gas Comm & Indust Revenues | D25: 1772871.56 | E25: -478575.25 | F25: 23064945.9 | H25: 2251446.81
A26: %,V48300000 | B26: Sales for Resale-Gas | C26: 48300000 | D26: 4433.74 | E26: =D26-H26 -> -1856.41 | F26: 51622.04 | H26: 6290.15
A27: %,R,FACCOUNT,TNI_ACCOUNT_FERC,XBYYYYY01,NGAS_SALES_RESALE | B27: Gas Sales for Resale | D27: 4433.74 | E27: -1856.41 | F27: 51622.04 | H27: 6290.15
A28: %,R,FACCOUNT,TNI_ACCOUNT_FERC,XBYYYYY01,NGAS_INTERDEPT_SALES | B28: Gas Interdepartmental Sales | D28: 0 | E28: 0 | F28: 0
A29: %,R,FACCOUNT,TNI_ACCOUNT_FERC,XBYYYYY01,NGAS_INTRACO_TRANSFER | B29: Gas Intercompany Transfers | D29: 0 | E29: =D29-H29 -> 0 | F29: 0
A30: xx | B30: Total Sales of Gas | D30: =D15+D25+D27+D28+D29 -> 5639312.05 | E30: =E15+E25+E27+E28+E29 -> -1784924.83 | F30: =F15+F25+F27+F28+F29 -> 76914578.03
A32: %,R,FACCOUNT,TNI_ACCOUNT_FERC,XBYYYYY01,NELE_RESID_REV | B32: Electric Residential Revenues | D32: 0 | E32: =D32-H32 -> 0 | F32: 0
A33: %,R,FACCOUNT,TNI_ACCOUNT_FERC,XBYYYYY01,NELE_COMM_IND_REV | B33: Elec Comm & Indust Rev | D33: 0 | E33: 0 | F33: 0
A34: %,R,FACCOUNT,TNI_ACCOUNT_FERC,XBYYYYY01,NELE_STREET_HWY_LIGHT | B34: Public Street & Hwy Lighting | D34: 0 | E34: 0 | F34: 0
A35: %,R,FACCOUNT,TNI_ACCOUNT_FERC,XBYYYYY01,NELE_OTH_SALES_PUBLIC | B35: Elec Oth Sales to Public Auth | D35: 0 | E35: 0 | F35: 0
A36: %,R,FACCOUNT,TNI_ACCOUNT_FERC,XBYYYYY01,NELE_RAILROAD | B36: Sales to Railroads & Railways | D36: 0 | E36: 0 | F36: 0
A37: %,R,FACCOUNT,TNI_ACCOUNT_FERC,XBYYYYY01,NELE_SALES_RESALE | B37: Electric Sales for Resale | D37: 0 | E37: 0 | F37: 0
A38: %,R,FACCOUNT,TNI_ACCOUNT_FERC,XBYYYYY01,NELE_INTERDEPT_SALES | B38: Elec Interdepartmental Sales | D38: 0 | E38: 0 | F38: 0
A39: xx | B39: Total Sales of Electricity | D39: =D32+D33+D34+D35+D36+D37+D38 -> 0 | E39: =E32+E33+E34+E35+E36+E37+E38 -> 0 | F39: 0
A41: %,V48700000 | B41: Forfeited Discounts-Gas | C41: 48700000 | D41: 41950.16 | E41: =D41-H41 -> 4262.91 | F41: 368400.49 | H41: 37687.25
A42: %,R,FACCOUNT,TNI_ACCOUNT_FERC,XBYYYYY01,NFORFEITED_DISC_GAS | B42: Forfeited Discounts - Gas | D42: 41950.16 | E42: =D42-H42 -> 4262.91 | F42: 368400.49 | H42: 37687.25
A43: %,R,FACCOUNT,TNI_ACCOUNT_FERC,XBYYYYY01,NFORFEITED_DISC_ELE | B43: Forfeited Discounts - Ele | D43: 0 | E43: 0 | F43: 0
B44: Total Forfeited Discounts | D44: =D42+D43 -> 41950.16 | E44: =E42+E43 -> 4262.91 | F44: 368400.49
A46: %,V48800000 | B46: Misc Service Revenues-Gas | C46: 48800000 | D46: 4273.55 | E46: =D46-H46 -> -11385.63 | F46: 42494.78 | H46: 15659.18
A47: %,R,FACCOUNT,TNI_ACCOUNT_FERC,XBYYYYY01,NMISC_SERV_REVS_GAS | B47: Misc Service Revenues - Gas | D47: 4273.55 | E47: =D47-H47 -> -11385.63 | F47: 42494.78 | H47: 15659.18
A48: %,R,FACCOUNT,TNI_ACCOUNT_FERC,XBYYYYY01,NMISC_SERV_REVS_ELE | B48: Misc Service Revenues - Ele | D48: 0 | E48: 0 | F48: 0
B49: Total Miscellaneous Service Revenues | D49: =D47+D48 -> 4273.55 | E49: =E47+E48 -> -11385.63 | F49: 42494.78
A51: %,R,FACCOUNT,TNI_ACCOUNT_FERC,XBYYYYY01,NRENT_ELE_PROP | B51: Rent from Electricity Property | D51: 0 | E51: =D51-H51 -> 0 | F51: 0
A52: %,R,FACCOUNT,TNI_ACCOUNT_FERC,XBYYYYY01,NOTH_ELE_REV | B52: Other Electric Revenues | D52: 0 | E52: 0 | F52: 0
A53: %,R,FACCOUNT,TNI_ACCOUNT_FERC,XBYYYYY01,NOTH_ELE_TRANS_REV | B53: Rev Transm of Elec of Oth | D53: 0 | E53: 0 | F53: 0
A54: %,R,FACCOUNT,TNI_ACCOUNT_FERC,XBYYYYY01,NOTH_REV_SERVICE_CO | B54: Nonutility Revenues - Serv Co | D54: 0 | E54: 0 | F54: 0
A55: %,R,FACCOUNT,TNI_ACCOUNT_FERC,XBYYYYY01,NREG_ELE_TRANS_REV | B55: Regional Transm Service Rev | D55: 0 | E55: 0 | F55: 0
A56: %,R,FACCOUNT,TNI_ACCOUNT_FERC,XBYYYYY01,NTRANSPORT_GATH_REV | B56: Rev Transp Gas of Oth - Gather | D56: 0 | E56: 0 | F56: 0
A57: %,R,FACCOUNT,TNI_ACCOUNT_FERC,XBYYYYY01,NTRANSPORT_TRANS_REV | B57: Rev Transp Gas of Oth - Transm | D57: 0 | E57: 0 | F57: 0
A58: %,V48930000 | B58: Transp Rev Distr Residential | C58: 48930000 | D58: 431375.56 | E58: -101249.35 | F58: 4646801.03 | H58: 532624.91
A59: %,V48930200 | B59: Unbilled Residential Trans Vol | C59: 48930200 | D59: -68587.6 | E59: -55792.6 | F59: -341067.7 | H59: -12795
A60: %,V48930300 | B60: Unbilled Res Trans Cust chrg | C60: 48930300 | D60: -1472 | E60: 0 | F60: -8800 | H60: -1472
A61: %,V48931000 | B61: Transp Rev Distr Commercial | C61: 48931000 | D61: 514465.69 | E61: -77424.21 | F61: 5061590.06 | H61: 591889.9
A62: %,V48931300 | B62: Unbilled Comm Trans Vol | C62: 48931300 | D62: -39615.57 | E62: -19726.79 | F62: -242129.97 | H62: -19888.78
A63: %,V48931400 | B63: Unbilled Comm Trans Cust chrg | C63: 48931400 | D63: -536.28 | E63: -312.83 | F63: -5269.37 | H63: -223.45
A64: %,V48932000 | B64: Transp Rev Distr Industrial | C64: 48932000 | D64: 402405.87 | E64: 3091.06 | F64: 2736397.46 | H64: 399314.81
A65: %,V48932400 | B65: Unbilled Ind Trans Vol | C65: 48932400 | D65: -41.34 | E65: -760.98 | F65: -2749 | H65: 719.64
A66: %,V48932500 | B66: Unbilled Ind Trans Cust chrg | C66: 48932500 | D66: 0 | E66: 0 | F66: 0 | H66: 0
A67: %,R,FACCOUNT,TNI_ACCOUNT_FERC,XBYYYYY01,NTRANSPORT_DISTR_REV | B67: Rev Transp Gas of Oth - Distr | D67: 1237994.33 | E67: -252175.7 | F67: 11844772.51 | H67: 1490170.03
A68: %,R,FACCOUNT,TNI_ACCOUNT_FERC,XBYYYYY01,NSTORE_GAS_REV | B68: Rev from Storing Gas of Oth | D68: 0 | E68: 0 | F68: 0
A69: %,R,FACCOUNT,TNI_ACCOUNT_FERC,XBYYYYY01,NSALES_EXTRACT_GAS | B69: Sales - Prod Extracted from NG | D69: 0 | E69: 0 | F69: 0
A70: %,R,FACCOUNT,TNI_ACCOUNT_FERC,XBYYYYY01,NGAS_OIL_SALES | B70: Incidental Gasoline & Oil Sale | D70: 0 | E70: 0 | F70: 0
A71: %,V49300000 | B71: Rent from Gas Property | C71: 49300000 | D71: 2852 | E71: =D71-H71 -> 0 | F71: 17112 | H71: 2852
A72: %,R,FACCOUNT,TNI_ACCOUNT_FERC,XBYYYYY01,NRENT_GAS_PROP | B72: Rent from Gas Property | D72: 2852 | E72: 0 | F72: 17112 | H72: 2852
A74: %,V49500485 | B74: Unbilled Residential-Vol | C74: 49500485 | D74: -1049593.11 | E74: =D74-H74 -> -662322.97 | F74: -5955710.27 | H74: -387270.14
A75: %,V49501485 | B75: Unbilled Res Customer Chrg | C75: 49501485 | D75: -13376 | E75: -2928 | F75: -16799.8 | H75: -10448
A76: %,V49503483 | B76: Unbilled Off System Sales | C76: 49503483 | D76: 0 | E76: 0 | F76: 0 | H76: 0
A77: %,V49510485 | B77: Unbilled Commercial-Vol | C77: 49510485 | D77: -214018.61 | E77: 94345.1 | F77: -2185593.75 | H77: -308363.71
A78: %,V49511485 | B78: Unbilled Comm Customer Chrg | C78: 49511485 | D78: -1787.6 | E78: -134.07 | F78: -5228.73 | H78: -1653.53
A79: %,V49520485 | B79: Unbilled Industrial-Vol | C79: 49520485 | D79: -59.42 | E79: 12961.65 | F79: -51349.99 | H79: -13021.07
A80: %,V49521485 | B80: Unbilled Ind Customer Chrg | C80: 49521485 | D80: 0 | E80: 0 | F80: 0 | H80: 0
A81: %,NUNBILLED_REV_FERC | B81: Unbilled Revenues | D81: -1278834.74 | E81: -558078.29 | F81: -8214682.54 | H81: -720756.45
A82: %,V49500000 | B82: Other Gas Revenue | C82: 49500000 | D82: 12357.52 | E82: -2773.91 | F82: 239220.72 | H82: 15131.43
A83: %,V49500050 | B83: Billed Off System Sales | C83: 49500050 | D83: 396941.8 | E83: 311932.8 | F83: 1321087.04 | H83: 85009
A84: %,R,FACCOUNT,TNI_ACCOUNT_FERC,XBYYYYY01,NOTH_GAS_REV | B84: Other Gas Revenues | D84: -869535.42 | E84: -248919.4 | F84: -6654374.78 | H84: -620616.02
A85: %,R,FACCOUNT,TNI_ACCOUNT_FERC,XBYYYYY01,NGAS_PROV_RATE_REFUND | B85: Gas Provision of Rate Refunds | D85: 0 | E85: 0 | F85: 0
B86: Total Other Operating Revenues | D86: =D44+D49+D51+D52+D53+D54+D55+D56+D57+D67+D68+D69+D70+D72+D84+D85 -> 417534.62 | E86: =E44+E49+E51+E52+E53+E54+E55+E56+E57+E67+E68+E69+E70+E72+E84+E85 -> -508217.82 | F86: 5618405
A87: xx | B87: Total Operating Revenues | D87: =D30+D39+D86 -> 6056846.67 | E87: =E30+E39+E86 -> -2293142.65 | F87: =F30+F39+F86 -> 82532983.03
B89: Operating Expenses
B91: Operation Expenses
A93: %,FACCOUNT,TNI_ACCOUNT_FERC,XBYYYYY01,NOP_MANUF_GAS | B93: Manufac Gas Production - Oper | D93: 0 | E93: =D93-H93 -> 0 | F93: 0
A94: %,FACCOUNT,TNI_ACCOUNT_FERC,XBYYYYY01,NOP_NTRLGAS_PROD_GTH | B94: NG Production & Gather - Oper | D94: 0 | E94: 0 | F94: 0
A95: %,FACCOUNT,TNI_ACCOUNT_FERC,XBYYYYY01,NOP_PROD_EXTRACT | B95: Products Extraction - Oper | D95: 0 | E95: 0 | F95: 0
A97: %,V80100000 | B97: Natural gas field line purchas | C97: 80100000 | D97: 33719.33 | E97: =D97-H97 -> 2775.11 | F97: 169652.89 | H97: 30944.22
A98: %,NOP_NG_PURCH_FIELD | B98: NG Well Head Purchases | D98: 33719.33 | E98: 2775.11 | F98: 169652.89 | H98: 30944.22
A99: %,V80300300 | B99: Short Term Producer Purch | C99: 80300300 | D99: 5493297.81 | E99: 377548.52 | F99: 20397759.55 | H99: 5115749.29
A100: %,V80300400 | B100: Transportation Pipeline Exp | C100: 80300400 | D100: 729142.49 | E100: 35030.42 | F100: 4856957.96 | H100: 694112.07
A101: %,V80300500 | B101: Storage Charges Pipeline Exp | C101: 80300500 | D101: -118572.32 | E101: 108616.06 | F101: -2444564.62 | H101: -227188.38
A102: %,V80300600 | B102: OFS_System Supply Credit | C102: 80300600 | D102: -33233.94 | E102: -30439.81 | F102: -265151.16 | H102: -2794.13
A103: %,V80300808 | B103: Storage Demand | C103: 80300808 | D103: 1502153.12 | E103: -0.02000000002 | F103: 8134067.32 | H103: 1502153.14
A104: %,NOP_NG_PURCH_TRANSLIN | B104: NG Transmission Line Purchases | D104: 7572787.16 | E104: 490755.17 | F104: 30679069.05 | H104: 7082031.99
A105: %,V80400000 | B105: Natural Gas City Gate Purchase | C105: 80400000 | D105: 14788.62 | E105: -37601.89 | F105: 1158520.61 | H105: 52390.51
A106: %,NOP_NG_PURCH_CITYGATE | B106: NG City Gate Purchases | D106: 14788.62 | E106: -37601.89 | F106: 1158520.61 | H106: 52390.51
A107: %,V80510000 | B107: Purchased Gas Cost Adjustments | C107: 80510000 | D107: -2714545.03 | E107: -1076954.33 | F107: -4050142.97 | H107: -1637590.7
A108: %,NOP_NG_PURCH_ADJUST | B108: Purchased Gas Cost Adjustments | D108: -2714545.03 | E108: -1076954.33 | F108: -4050142.97 | H108: -1637590.7
A109: %,V80601000 | B109: Exchange Gas-Received | C109: 80601000 | D109: 434030.95 | E109: 234461.74 | F109: -1757380.36 | H109: 199569.21
A110: %,NOP_NG_PURCH_EXCHANGE | B110: Exchange Gas | D110: 434030.95 | E110: 234461.74 | F110: -1757380.36 | H110: 199569.21
A111: %,V80720000 | B111: Oper-Purch Gas Measrg Stations | C111: 80720000 | D111: 29734.99 | E111: -8142.54 | F111: 211535.26 | H111: 37877.53
A112: %,V80751000 | B112: Purch Gas Exp - Mgmt Fee | C112: 80751000 | D112: 4272.16 | E112: -646.67 | F112: 29907.26 | H112: 4918.83
A113: %,NOP_NG_PURCH_EXPENSE | B113: Purchased Gas Expenses | D113: 34007.15 | E113: -8789.21 | F113: 241442.52 | H113: 42796.36
A114: %,V80810000 | B114: Gas Withdrawn | C114: 80810000 | D114: 279102.03 | E114: -630487.27 | F114: 15182565.19 | H114: 909589.3
A115: %,NOP_NG_PURCH_WITHDRAW | B115: Gas Withdrawn from Storage | D115: 279102.03 | E115: -630487.27 | F115: 15182565.19 | H115: 909589.3
A116: %,V80820000 | B116: Gas Delivered | C116: 80820000 | D116: -4598410.03 | E116: -58313.95 | F116: -11408368.79 | H116: -4540096.08
A117: %,NOP_NG_PURCH_DELIVER | B117: Gas Delivered to Storage | D117: -4598410.03 | E117: -58313.95 | F117: -11408368.79 | H117: -4540096.08
A118: %,V81220000 | B118: Gas Used-Other-Offset | C118: 81220000 | D118: -3441.87 | E118: 2431.28 | F118: -65578.21 | H118: -5873.15
A119: %,NOP_NG_PURCH_OTHOPS | B119: Gas Used for Other Utility Ops | D119: -3441.87 | E119: 2431.28 | F119: -65578.21 | H119: -5873.15
A120: %,FACCOUNT,TNI_ACCOUNT_FERC,XBYYYYY01,NOP_OTH_GAS_SUPPLY | B120: Other Gas Supply - Operations | D120: 1052038.31 | E120: -1081723.35 | F120: 30149779.93 | H120: 2133761.66
A121: %,FACCOUNT,TNI_ACCOUNT_FERC,XBYYYYY01,NOP_STEAM_POWER | B121: Steam Power - Operations | D121: 0 | E121: 0 | F121: 0
A122: %,FACCOUNT,TNI_ACCOUNT_FERC,XBYYYYY01,NOP_HYDRAULIC_POWER | B122: Hydraulic Power - Operations | D122: 0 | E122: 0 | F122: 0
A123: %,FACCOUNT,TNI_ACCOUNT_FERC,XBYYYYY01,NOP_OTHER_POWER | B123: Other Power - Operations | D123: 0 | E123: 0 | F123: 0
A124: %,V55700000 | B124: Other Exp | C124: 55700000 | D124: 0 | E124: =D124-H124 -> 0 | F124: 0 | H124: 0
A125: %,FACCOUNT,TNI_ACCOUNT_FERC,XBYYYYY01,NOP_OTH_POWER_SUPPLY | B125: Other Power Supply - Oper | D125: 0 | E125: =D125-H125 -> 0 | F125: 0 | H125: 0
A126: %,FACCOUNT,TNI_ACCOUNT_FERC,XBYYYYY01,NOP_NG_STOR_TERM_PROC | B126: NG Stor, Term & Proc - Oper | D126: 0 | E126: 0 | F126: 0
A128: %,V85200030 | B128: Communication System Exp | C128: 85200030 | D128: 64.53 | E128: =D128-H128 -> -126.01 | F128: 4396.55 | H128: 190.54
A129: %,NOP_GAS_TRANS_EXP | B129: Transmission Exp - Oper - Gas | D129: 64.53 | E129: -126.01 | F129: 4396.55 | H129: 190.54
A130: %,FACCOUNT,TNI_ACCOUNT_FERC,XBYYYYY01,NOP_TRANS_EXP | B130: Transmission Exp - Oper | D130: 64.53 | E130: -126.01 | F130: 4396.55 | H130: 190.54
A131: %,FACCOUNT,TNI_ACCOUNT_FERC,XBYYYYY01,NOP_REG_MARKET_EXP | B131: Regional Market Exp - Oper | D131: 0 | E131: 0 | F131: 0
A133: %,V87000000 | B133: Op Superv-Eng-Gas Distr | C133: 87000000 | D133: 82387.66 | E133: =D133-H133 -> -38201.28 | F133: 552337.02 | H133: 120588.94
A134: %,V87100000 | B134: Distribution Load Dispatching | C134: 87100000 | D134: 10511.44 | E134: -793.93 | F134: 88245.51 | H134: 11305.37
A135: %,V87400000 | B135: Mains and Services Exp | C135: 87400000 | D135: 526674.65 | E135: -37862.03 | F135: 3310761.49 | H135: 564536.68
A136: %,V87500000 | B136: Measur-Reg Statn Exp Gen | C136: 87500000 | D136: 12366.91 | E136: -11707.73 | F136: 108877.88 | H136: 24074.64
A137: %,V87600000 | B137: Measur-Reg Statn Exp-Indus | C137: 87600000 | D137: 6723.97 | E137: 918 | F137: 36781.89 | H137: 5805.97
A138: %,V87800000 | B138: Meter and House Regulator Exp | C138: 87800000 | D138: 134733.82 | E138: 24135.59 | F138: 736091.57 | H138: 110598.23
A139: %,V87900000 | B139: Oper Installation Service Exp | C139: 87900000 | D139: 272154.21 | E139: 88607.83 | F139: 1391491.16 | H139: 183546.38
A140: %,V87900200 | B140: Oper Install-Chrg Labor | C140: 87900200 | D140: 0 | E140: 0 | F140: 28.03 | H140: 0
A141: %,V88000000 | B141: Operations Exp Other | C141: 88000000 | D141: 68940.61 | E141: -3171.12 | F141: 569756.74 | H141: 72111.73
A142: %,V88100000 | B142: Gas Distr Rents | C142: 88100000 | D142: 4236.38 | E142: 3936.38 | F142: 6873.87 | H142: 300
A143: %,NOP_GAS_DISTR_EXP | B143: Distribution Exp - Oper - Gas | D143: 1118729.65 | E143: 25861.71 | F143: 6801245.16 | H143: 1092867.94
A144: %,FACCOUNT,TNI_ACCOUNT_FERC,XBYYYYY01,NOP_DISTR_EXP | B144: Distribution Exp - Oper | D144: 1118729.65 | E144: 25861.71 | F144: 6801245.16 | H144: 1092867.94
A145: %,V90100000 | B145: Customer Acnt Supervision | C145: 90100000 | D145: 47.28 | E145: 47.28 | F145: 181.88 | H145: 0
A146: %,V90200000 | B146: Cust Accnt Meter Reading Exp | C146: 90200000 | D146: 21025.79 | E146: -9051.04 | F146: 101519.19 | H146: 30076.83
A147: %,V90300000 | B147: Cust Records Collection Exp | C147: 90300000 | D147: 204582.9 | E147: 13132.35 | F147: 1302899.1 | H147: 191450.55
A148: %,V90400000 | B148: Uncollectible Accounts | C148: 90400000 | D148: 376262.18 | E148: 302952.22 | F148: -249344.55 | H148: 73309.96
A149: %,V90500000 | B149: Misc Cust Accts Exp | C149: 90500000 | D149: 784.26 | E149: 6.21 | F149: 5629.83 | H149: 778.05
A150: %,FACCOUNT,TNI_ACCOUNT_FERC,XBYYYYY01,NOP_CUST_ACCTS_EXP | B150: Customer Accounts - Oper | D150: 602702.41 | E150: 307087.02 | F150: 1160885.45 | H150: 295615.39
A151: %,V90800000 | B151: Customer Assistance Exp | C151: 90800000 | D151: 748 | E151: -2530.01 | F151: 56746.01 | H151: 3278.01
A152: %,V91000000 | B152: Misc Cust Serv and Info Exp | C152: 91000000 | D152: 20736.92 | E152: -5805.22 | F152: 133806.91 | H152: 26542.14
A153: %,FACCOUNT,TNI_ACCOUNT_FERC,XBYYYYY01,NOP_CUSTOMER_SERV_EXP | B153: Cust Serv & Info Exp - Oper | D153: 21484.92 | E153: -8335.23 | F153: 190552.92 | H153: 29820.15
A154: %,V91200000 | B154: Demonstrating and Selling Exp | C154: 91200000 | D154: 0 | E154: 0 | F154: 2634.5 | H154: 0
A155: %,V91300000 | B155: Sales Advertising Exp | C155: 91300000 | D155: 246.72 | E155: -962.65 | F155: 2135.17 | H155: 1209.37
A156: %,FACCOUNT,TNI_ACCOUNT_FERC,XBYYYYY01,NOP_SALES_EXP | B156: Sales Expenses - Oper | D156: 246.72 | E156: -962.65 | F156: 4769.67 | H156: 1209.37
A157: %,V92000000 | B157: A_G Salaries | C157: 92000000 | D157: 696611.59 | E157: 387167.05 | F157: 4083734.87 | H157: 309444.54
A158: %,V92001000 | B158: Discretionary and Spot Awards | C158: 92001000 | D158: 11714.82 | E158: 7692.22 | F158: 28211.07 | H158: 4022.6
A159: %,V92002000 | B159: Stock Compensation Expense | C159: 92002000 | D159: 77233.86 | E159: -2959.53 | F159: 327986.21 | H159: 80193.39
A160: %,V92100000 | B160: Office Supplies and Exp | C160: 92100000 | D160: 65194.91 | E160: 4300.55 | F160: 423259.34 | H160: 60894.36
A161: %,V92101000 | B161: Employee Expenses | C161: 92101000 | D161: 19787.78 | E161: 5476.36 | F161: 85544.59 | H161: 14311.42
A162: %,V92300000 | B162: Outside Service Employed | C162: 92300000 | D162: 507825.68 | E162: 126255.95 | F162: 2603099.25 | H162: 381569.73
A163: %,V92301000 | B163: Mgmt Fee Actuals-Affil | C163: 92301000 | D163: 153770.27 | E163: -9893.78 | F163: 946600.13 | H163: 163664.05
A164: %,V92400000 | B164: Property Insurance | C164: 92400000 | D164: 5317.81 | E164: 1783.05 | F164: 22989.96 | H164: 3534.76
A165: %,V92500000 | B165: Injuries and Damages | C165: 92500000 | D165: 198556.11 | E165: 40442.12 | F165: 1091771.9 | H165: 158113.99
A166: %,V92600000 | B166: Employee Pensions and Benefits | C166: 92600000 | D166: 262634.01 | E166: -29023.46 | F166: 1986822.69 | H166: 291657.47
A167: %,V92601000 | B167: Non Service Pension & OPEB | C167: 92601000 | D167: -10652.83 | E167: 67487.18 | F167: -244265.36 | H167: -78140.01
A168: %,V92800000 | B168: Regulatory Commission Exp | C168: 92800000 | D168: 22650.14 | E168: 6.3 | F168: 135899.02 | H168: 22643.84
A169: %,V93010000 | B169: General Advertising Exp | C169: 93010000 | D169: 2244.41 | E169: 105.24 | F169: 8216.3 | H169: 2139.17
A170: %,V93020000 | B170: Misc General Exp | C170: 93020000 | D170: -7300.7 | E170: -7462.06 | F170: 8892.7 | H170: 161.36
A171: %,V93100000 | B171: Rents Admin and General | C171: 93100000 | D171: 74162.97 | E171: -3437.31 | F171: 451085.73 | H171: 77600.28
A172: %,FACCOUNT,TNI_ACCOUNT_FERC,XBYYYYY01,NOP_ADMIN_GEN | B172: Admin & General Exp - Oper | D172: 2079750.83 | E172: 587939.88 | F172: 11959848.4 | H172: 1491810.95
B173: Total Operation Expenses | D173: =D93+D94+D95+D120+D121+D122+D123+D125+D126+D130+D131+D144+D150+D153+D156+D172 -> 4875017.37 | E173: =E93+E94+E95+E120+E121+E122+E123+E125+E126+E130+E131+E144+E150+E153+E156+E172 -> -170258.63 | F173: =F93+F94+F95+F120+F121+F122+F123+F125+F126+F130+F131+F144+F150+F153+F156+F172 -> 50271478.08
B175: Maintenance Expenses
A177: %,FACCOUNT,TNI_ACCOUNT_FERC,XBYYYYY01,NMAINT_PROD_EXP | B177: Production Expenses - Maint | D177: 0 | E177: =D177-H177 -> 0 | F177: 0
A178: %,FACCOUNT,TNI_ACCOUNT_FERC,XBYYYYY01,NMAINT_NG_STOR_PROC | B178: NG Stor, Term & Proc - Maint | D178: 0 | E178: 0 | F178: 0
A180: %,V56920000 | B180: Maint of Computer Software | C180: 56920000 | D180: 0 | E180: =D180-H180 -> 0 | F180: 0 | H180: 0
A181: %,NMAINT_ELEC_TRANS_EXP | B181: Transmission Exp - Maint-Elec | D181: 0 | E181: 0 | F181: 0 | H181: 0
A182: %,V86600000 | B182: Trans Maint Commun Equip | C182: 86600000 | D182: 30255 | E182: 30255 | F182: 30255 | H182: 0
A183: %,NMAINT_GAS_TRANS_EXP | B183: Transmission Exp - Maint-Gas | D183: 30255 | E183: 30255 | F183: 30255 | H183: 0
A184: %,FACCOUNT,TNI_ACCOUNT_FERC,XBYYYYY01,NMAINT_TRANS_EXP | B184: Transmission Exp - Maint | D184: 30255 | E184: 30255 | F184: 30255 | H184: 0
A186: %,V88500000 | B186: Maint Supv-Eng-Gas Distr | C186: 88500000 | D186: 6512.01 | E186: =D186-H186 -> -297.72 | F186: 42975.18 | H186: 6809.73
A187: %,V88600000 | B187: Maint Struct-Improv-Gas Distr | C187: 88600000 | D187: 1150.99 | E187: -12368.31 | F187: 35391.66 | H187: 13519.3
A188: %,V88700000 | B188: Maint of Mains | C188: 88700000 | D188: 191529.02 | E188: 56129.29 | F188: 1111227.11 | H188: 135399.73
A189: %,V88900000 | B189: Maint Msr-Reg Statn Equi Gen | C189: 88900000 | D189: 68097.31 | E189: 19112.78 | F189: 291285.6 | H189: 48984.53
A190: %,V89000000 | B190: Maint Meas_Reg Stn Equip-Distr | C190: 89000000 | D190: 7083.09 | E190: 2472.71 | F190: 41135.73 | H190: 4610.38
A191: %,V89200000 | B191: Maint of Services | C191: 89200000 | D191: 86891.87 | E191: 13204.71 | F191: 486672.46 | H191: 73687.16
A192: %,V89300000 | B192: Maint Meters_House Regulators | C192: 89300000 | D192: 33174.51 | E192: 13257.09 | F192: 94540.35 | H192: 19917.42
A193: %,V89400000 | B193: Other Maint Equipment | C193: 89400000 | D193: 28135.23 | E193: -6463.42 | F193: 210597.23 | H193: 34598.65
A194: %,NMAINT_GAS_DISTR_EXP | B194: Distribution Exp - Maint-Gas | D194: 422574.03 | E194: 85047.13 | F194: 2313825.32 | H194: 337526.9
A195: %,FACCOUNT,TNI_ACCOUNT_FERC,XBYYYYY01,NMAINT_DISTR_EXP | B195: Distribution Exp - Maint | D195: 422574.03 | E195: 85047.13 | F195: 2313825.32 | H195: 337526.9
A196: %,V93200000 | B196: Maint General Plant | C196: 93200000 | D196: 108103.62 | E196: =D196-H196 -> -90987.31 | F196: 709773.13 | H196: 199090.93
A197: %,FACCOUNT,TNI_ACCOUNT_FERC,XBYYYYY01,NMAINT_ADMIN_GEN | B197: Maintenance Gen and Admin | D197: 108103.62 | E197: -90987.31 | F197: 709773.13 | H197: 199090.93
B198: Total Maintenance Expenses | D198: =D177+D178+D184+D195+D197 -> 560932.65 | E198: =E177+E178+E184+E195+E197 -> 24314.82 | F198: 3053853.45
A200: %,V40300000 | B200: Dep Exp | C200: 40300000 | D200: 1225837.22 | E200: =D200-H200 -> 7719.81 | F200: 7238850.32 | H200: 1218117.41
A201: %,FACCOUNT,TNI_ACCOUNT_FERC,XBYYYYY01,NDEPRECIATION_EXPENSE | B201: Depreciation Expense | D201: 1225837.22 | E201: =D201-H201 -> 7719.81 | F201: 7238850.32 | H201: 1218117.41
A202: %,FACCOUNT,TNI_ACCOUNT_FERC,XBYYYYY01,NDEPRECIATION_ARO_EXP | B202: Depreciation Expense for AROs | D202: 0 | E202: 0 | F202: 0
A204: %,V40430000 | B204: Amortization Exp-Other | C204: 40430000 | D204: 34558.45 | E204: =D204-H204 -> -4.74 | F204: 208430.46 | H204: 34563.19
A205: %,V40434000 | B205: Cloude Amortizaiton Expense | C205: 40434000 | D205: 11208.8 | E205: 1618.49 | F205: 57583.39 | H205: 9590.31
A206: %,NAMORT_LMT_TERM_PROP | B206: Amort of Limited-Term Property | D206: 45767.25 | E206: 1613.75 | F206: 266013.85 | H206: 44153.5
A207: %,V40500000 | B207: Amortization of Oth Plant | C207: 40500000 | D207: 111858.44 | E207: 3424.09 | F207: 620558.85 | H207: 108434.35
A208: %,NAMORT_OTH_PROP | B208: Amort of Other Property | D208: 111858.44 | E208: 3424.09 | F208: 620558.85 | H208: 108434.35
A209: %,FACCOUNT,TNI_ACCOUNT_FERC,XBYYYYY01,NAMORT_DEPL_UTIL | B209: Amort & Deplet of Util Plant | D209: 157625.69 | E209: 5037.84 | F209: 886572.7 | H209: 152587.85
A210: %,FACCOUNT,TNI_ACCOUNT_FERC,XBYYYYY01,NAMORT_UTIL_ADJ | B210: Amort of Gas Plant Acq Adj | D210: 0 | E210: 0 | F210: 0
A211: %,FACCOUNT,TNI_ACCOUNT_FERC,XBYYYYY01,NAMORT_CONV_EXP | B211: Amort of Conversion Exp | D211: 0 | E211: 0 | F211: 0
A212: %,FACCOUNT,TNI_ACCOUNT_FERC,XBYYYYY01,NREG_DEBITS | B212: Reg Debits | D212: 0 | E212: 0 | F212: 0
A213: %,FACCOUNT,TNI_ACCOUNT_FERC,XBYYYYY01,NREG_CREDITS | B213: Reg Credits | D213: 0 | E213: 0 | F213: 0
A214: %,V40813100 | B214: Tax Exp-License_Franchise | C214: 40813100 | D214: 0 | E214: 0 | F214: 3000 | H214: 0
A215: %,V40813200 | B215: Tax Exp-Property | C215: 40813200 | D215: 548738.42 | E215: 0 | F215: 2989385.51 | H215: 548738.42
A216: %,V40813300 | B216: Tax Exp-Sales and Use Tax | C216: 40813300 | D216: 0.02 | E216: 10632.88 | F216: -0.02 | H216: -10632.86
A217: %,V40813400 | B217: Tax Exp-Gross Receipts | C217: 40813400 | D217: 0 | E217: 0 | F217: 0 | H217: 0
A218: %,V40813600 | B218: Tax Exp-State and Local-Oth | C218: 40813600 | D218: 0 | E218: 0 | F218: 0 | H218: 0
A219: %,V40814100 | B219: Tax Exp-Payroll-Incentive | C219: 40814100 | D219: 5148.82 | E219: 560.5 | F219: -6666.48 | H219: 4588.32
A220: %,V40814500 | B220: Tax Exp-Payroll FICA-OASDI | C220: 40814500 | D220: 60282.25 | E220: 11638.48 | F220: 365431.28 | H220: 48643.77
A221: %,V40814600 | B221: Tax Exp-Payroll FICA-Medicar | C221: 40814600 | D221: 14566.51 | E221: 2898.96 | F221: 86622.02 | H221: 11667.55
... 454 more rows

Sheet Jul21
A1: %,LACTUALS,UPOSTED_TRAN_AMT | B1: %,ATF,FDESCR,UDESCR | C1: %,ATT,FACCOUNT | D1: %,LACTUALS,UPOSTED_TRAN_AMT,SPER,FBOOK_CODE,VR | E1: %,C | F1: %,LACTUALS,UPOSTED_TRAN_AMT,SYTD,FBOOK_CODE,VR | H1: %,LACTUALS,UPOSTED_TRAN_AMT,SPER-1,FBOOK_CODE,VR
B2: Columbia Gas of Kentucky Inc | H2: FOR
B3: Income Statement-FERC | H3: CALC
B4: Regulatory View - FERC Account
B5: For the Month Ended July 31, 2021 | H5: PURPOSES
B6: For Internal Use Only | H6: ONLY
D8: Current | E8: Change from | F8: Year-To- | H8: Prior
D9: Month | E9: Prior Month | F9: Date | H9: Month
B11: Operating Revenues
A13: %,V48000000 | B13: Residential Sales | C13: 48000000 | D13: 3456695.32 | E13: =D13-H13 -> -405376.4 | F13: 57247686.2 | H13: 3862071.72
A14: %,V48000100 | B14: Residential Sales Norm | C14: 48000100 | D14: -39.62 | E14: 25.35 | F14: 6979.59 | H14: -64.97
A15: %,R,FACCOUNT,TNI_ACCOUNT_FERC,XBYYYYY01,NGAS_RESID_REV | B15: Gas Residential Sales | D15: 3456655.7 | E15: =D15-H15 -> -405351.05 | F15: 57254665.79 | H15: 3862006.75
A17: %,V48101000 | B17: Commercial Gas Sales | C17: 48101000 | D17: 1567037.55 | E17: =D17-H17 -> -143583.32 | F17: 23550873.65 | H17: 1710620.87
A18: %,V48101200 | B18: Commercial Gas Sales Norm | C18: 48101200 | D18: -43.77 | E18: 1.1 | F18: 3643.59 | H18: -44.87
A19: %,NGAS_COMM_REV | B19: Gas Commercial Revenues | D19: 1566993.78 | E19: -143582.22 | F19: 23554517.24 | H19: 1710576
A20: %,V48102000 | B20: Industrial Gas Sales | C20: 48102000 | D20: 57873.01 | E20: -4341.25 | F20: 1134979.32 | H20: 62214.26
A21: %,V48102300 | B21: Industrial Gas Sales Norm | C21: 48102300 | D21: -3.41 | E21: 3.47 | F21: 224.54 | H21: -6.88
A22: %,NGAS_INDUST_REV | B22: Gas Industrial Revenues | D22: 57869.6 | E22: -4337.78 | F22: 1135203.86 | H22: 62207.38
A23: %,V48103000 | B23: Gas Sales-Other | C23: 48103000 | D23: 47.9 | E23: -40.28 | F23: 136.08 | H23: 88.18
A24: %,NGAS_OTHER_REV | B24: Gas Comm & Indust Other Rev | D24: 47.9 | E24: -40.28 | F24: 136.08 | H24: 88.18
A25: %,R,FACCOUNT,TNI_ACCOUNT_FERC,XBYYYYY01,NGAS_COMM_INDUST_REV | B25: Gas Comm & Indust Revenues | D25: 1624911.28 | E25: -147960.28 | F25: 24689857.18 | H25: 1772871.56
A26: %,V48300000 | B26: Sales for Resale-Gas | C26: 48300000 | D26: 3601.88 | E26: =D26-H26 -> -831.86 | F26: 55223.92 | H26: 4433.74
A27: %,R,FACCOUNT,TNI_ACCOUNT_FERC,XBYYYYY01,NGAS_SALES_RESALE | B27: Gas Sales for Resale | D27: 3601.88 | E27: -831.86 | F27: 55223.92 | H27: 4433.74
A28: %,R,FACCOUNT,TNI_ACCOUNT_FERC,XBYYYYY01,NGAS_INTERDEPT_SALES | B28: Gas Interdepartmental Sales | D28: 0 | E28: 0 | F28: 0
A29: %,R,FACCOUNT,TNI_ACCOUNT_FERC,XBYYYYY01,NGAS_INTRACO_TRANSFER | B29: Gas Intercompany Transfers | D29: 0 | E29: =D29-H29 -> 0 | F29: 0
A30: xx | B30: Total Sales of Gas | D30: =D15+D25+D27+D28+D29 -> 5085168.86 | E30: =E15+E25+E27+E28+E29 -> -554143.19 | F30: =F15+F25+F27+F28+F29 -> 81999746.89
A32: %,R,FACCOUNT,TNI_ACCOUNT_FERC,XBYYYYY01,NELE_RESID_REV | B32: Electric Residential Revenues | D32: 0 | E32: =D32-H32 -> 0 | F32: 0
A33: %,R,FACCOUNT,TNI_ACCOUNT_FERC,XBYYYYY01,NELE_COMM_IND_REV | B33: Elec Comm & Indust Rev | D33: 0 | E33: 0 | F33: 0
A34: %,R,FACCOUNT,TNI_ACCOUNT_FERC,XBYYYYY01,NELE_STREET_HWY_LIGHT | B34: Public Street & Hwy Lighting | D34: 0 | E34: 0 | F34: 0
A35: %,R,FACCOUNT,TNI_ACCOUNT_FERC,XBYYYYY01,NELE_OTH_SALES_PUBLIC | B35: Elec Oth Sales to Public Auth | D35: 0 | E35: 0 | F35: 0
A36: %,R,FACCOUNT,TNI_ACCOUNT_FERC,XBYYYYY01,NELE_RAILROAD | B36: Sales to Railroads & Railways | D36: 0 | E36: 0 | F36: 0
A37: %,R,FACCOUNT,TNI_ACCOUNT_FERC,XBYYYYY01,NELE_SALES_RESALE | B37: Electric Sales for Resale | D37: 0 | E37: 0 | F37: 0
A38: %,R,FACCOUNT,TNI_ACCOUNT_FERC,XBYYYYY01,NELE_INTERDEPT_SALES | B38: Elec Interdepartmental Sales | D38: 0 | E38: 0 | F38: 0
A39: xx | B39: Total Sales of Electricity | D39: =D32+D33+D34+D35+D36+D37+D38 -> 0 | E39: =E32+E33+E34+E35+E36+E37+E38 -> 0 | F39: 0
A41: %,V48700000 | B41: Forfeited Discounts-Gas | C41: 48700000 | D41: 34457.89 | E41: =D41-H41 -> -7492.27 | F41: 402858.38 | H41: 41950.16
A42: %,R,FACCOUNT,TNI_ACCOUNT_FERC,XBYYYYY01,NFORFEITED_DISC_GAS | B42: Forfeited Discounts - Gas | D42: 34457.89 | E42: =D42-H42 -> -7492.27 | F42: 402858.38 | H42: 41950.16
A43: %,R,FACCOUNT,TNI_ACCOUNT_FERC,XBYYYYY01,NFORFEITED_DISC_ELE | B43: Forfeited Discounts - Ele | D43: 0 | E43: 0 | F43: 0
B44: Total Forfeited Discounts | D44: =D42+D43 -> 34457.89 | E44: =E42+E43 -> -7492.27 | F44: 402858.38
A46: %,V48800000 | B46: Misc Service Revenues-Gas | C46: 48800000 | D46: 6923.49 | E46: =D46-H46 -> 2649.94 | F46: 49418.27 | H46: 4273.55
A47: %,R,FACCOUNT,TNI_ACCOUNT_FERC,XBYYYYY01,NMISC_SERV_REVS_GAS | B47: Misc Service Revenues - Gas | D47: 6923.49 | E47: =D47-H47 -> 2649.94 | F47: 49418.27 | H47: 4273.55
A48: %,R,FACCOUNT,TNI_ACCOUNT_FERC,XBYYYYY01,NMISC_SERV_REVS_ELE | B48: Misc Service Revenues - Ele | D48: 0 | E48: 0 | F48: 0
B49: Total Miscellaneous Service Revenues | D49: =D47+D48 -> 6923.49 | E49: =E47+E48 -> 2649.94 | F49: 49418.27
A51: %,R,FACCOUNT,TNI_ACCOUNT_FERC,XBYYYYY01,NRENT_ELE_PROP | B51: Rent from Electricity Property | D51: 0 | E51: =D51-H51 -> 0 | F51: 0
A52: %,R,FACCOUNT,TNI_ACCOUNT_FERC,XBYYYYY01,NOTH_ELE_REV | B52: Other Electric Revenues | D52: 0 | E52: 0 | F52: 0
A53: %,R,FACCOUNT,TNI_ACCOUNT_FERC,XBYYYYY01,NOTH_ELE_TRANS_REV | B53: Rev Transm of Elec of Oth | D53: 0 | E53: 0 | F53: 0
A54: %,R,FACCOUNT,TNI_ACCOUNT_FERC,XBYYYYY01,NOTH_REV_SERVICE_CO | B54: Nonutility Revenues - Serv Co | D54: 0 | E54: 0 | F54: 0
A55: %,R,FACCOUNT,TNI_ACCOUNT_FERC,XBYYYYY01,NREG_ELE_TRANS_REV | B55: Regional Transm Service Rev | D55: 0 | E55: 0 | F55: 0
A56: %,R,FACCOUNT,TNI_ACCOUNT_FERC,XBYYYYY01,NTRANSPORT_GATH_REV | B56: Rev Transp Gas of Oth - Gather | D56: 0 | E56: 0 | F56: 0
A57: %,R,FACCOUNT,TNI_ACCOUNT_FERC,XBYYYYY01,NTRANSPORT_TRANS_REV | B57: Rev Transp Gas of Oth - Transm | D57: 0 | E57: 0 | F57: 0
A58: %,V48930000 | B58: Transp Rev Distr Residential | C58: 48930000 | D58: 407075.14 | E58: -24300.42 | F58: 5053876.17 | H58: 431375.56
A59: %,V48930200 | B59: Unbilled Residential Trans Vol | C59: 48930200 | D59: 3400.7 | E59: 71988.3 | F59: -337667 | H59: -68587.6
A60: %,V48930300 | B60: Unbilled Res Trans Cust chrg | C60: 48930300 | D60: -1456 | E60: 16 | F60: -10256 | H60: -1472
A61: %,V48931000 | B61: Transp Rev Distr Commercial | C61: 48931000 | D61: 481706.38 | E61: -32759.31 | F61: 5543296.44 | H61: 514465.69
A62: %,V48931300 | B62: Unbilled Comm Trans Vol | C62: 48931300 | D62: 10773.84 | E62: 50389.41 | F62: -231356.13 | H62: -39615.57
A63: %,V48931400 | B63: Unbilled Comm Trans Cust chrg | C63: 48931400 | D63: 8308.29 | E63: 8844.57 | F63: 3038.92 | H63: -536.28
A64: %,V48932000 | B64: Transp Rev Distr Industrial | C64: 48932000 | D64: 397097.06 | E64: -5308.81 | F64: 3133494.52 | H64: 402405.87
A65: %,V48932400 | B65: Unbilled Ind Trans Vol | C65: 48932400 | D65: 2202.78 | E65: 2244.12 | F65: -546.22 | H65: -41.34
A66: %,V48932500 | B66: Unbilled Ind Trans Cust chrg | C66: 48932500 | D66: 0 | E66: 0 | F66: 0 | H66: 0
A67: %,R,FACCOUNT,TNI_ACCOUNT_FERC,XBYYYYY01,NTRANSPORT_DISTR_REV | B67: Rev Transp Gas of Oth - Distr | D67: 1309108.19 | E67: 71113.86 | F67: 13153880.7 | H67: 1237994.33
A68: %,R,FACCOUNT,TNI_ACCOUNT_FERC,XBYYYYY01,NSTORE_GAS_REV | B68: Rev from Storing Gas of Oth | D68: 0 | E68: 0 | F68: 0
A69: %,R,FACCOUNT,TNI_ACCOUNT_FERC,XBYYYYY01,NSALES_EXTRACT_GAS | B69: Sales - Prod Extracted from NG | D69: 0 | E69: 0 | F69: 0
A70: %,R,FACCOUNT,TNI_ACCOUNT_FERC,XBYYYYY01,NGAS_OIL_SALES | B70: Incidental Gasoline & Oil Sale | D70: 0 | E70: 0 | F70: 0
A71: %,V49300000 | B71: Rent from Gas Property | C71: 49300000 | D71: 2852 | E71: =D71-H71 -> 0 | F71: 19964 | H71: 2852
A72: %,R,FACCOUNT,TNI_ACCOUNT_FERC,XBYYYYY01,NRENT_GAS_PROP | B72: Rent from Gas Property | D72: 2852 | E72: 0 | F72: 19964 | H72: 2852
A74: %,V49500485 | B74: Unbilled Residential-Vol | C74: 49500485 | D74: 24442.13 | E74: =D74-H74 -> 1074035.24 | F74: -5931268.14 | H74: -1049593.11
A75: %,V49501485 | B75: Unbilled Res Customer Chrg | C75: 49501485 | D75: -6928 | E75: 6448 | F75: -23727.8 | H75: -13376
A76: %,V49503483 | B76: Unbilled Off System Sales | C76: 49503483 | D76: 0 | E76: 0 | F76: 0 | H76: 0
A77: %,V49510485 | B77: Unbilled Commercial-Vol | C77: 49510485 | D77: -9216.9 | E77: 204801.71 | F77: -2194810.65 | H77: -214018.61
A78: %,V49511485 | B78: Unbilled Comm Customer Chrg | C78: 49511485 | D78: -8893.31 | E78: -7105.71 | F78: -14122.04 | H78: -1787.6
A79: %,V49520485 | B79: Unbilled Industrial-Vol | C79: 49520485 | D79: 7050.26 | E79: 7109.68 | F79: -44299.73 | H79: -59.42
A80: %,V49521485 | B80: Unbilled Ind Customer Chrg | C80: 49521485 | D80: -44.69 | E80: -44.69 | F80: -44.69 | H80: 0
A81: %,NUNBILLED_REV_FERC | B81: Unbilled Revenues | D81: 6409.49 | E81: 1285244.23 | F81: -8208273.05 | H81: -1278834.74
A82: %,V49500000 | B82: Other Gas Revenue | C82: 49500000 | D82: 10433.99 | E82: -1923.53 | F82: 249654.71 | H82: 12357.52
A83: %,V49500050 | B83: Billed Off System Sales | C83: 49500050 | D83: 882559.49 | E83: 485617.69 | F83: 2203646.53 | H83: 396941.8
A84: %,R,FACCOUNT,TNI_ACCOUNT_FERC,XBYYYYY01,NOTH_GAS_REV | B84: Other Gas Revenues | D84: 899402.97 | E84: 1768938.39 | F84: -5754971.81 | H84: -869535.42
A85: %,R,FACCOUNT,TNI_ACCOUNT_FERC,XBYYYYY01,NGAS_PROV_RATE_REFUND | B85: Gas Provision of Rate Refunds | D85: 0 | E85: 0 | F85: 0
B86: Total Other Operating Revenues | D86: =D44+D49+D51+D52+D53+D54+D55+D56+D57+D67+D68+D69+D70+D72+D84+D85 -> 2252744.54 | E86: =E44+E49+E51+E52+E53+E54+E55+E56+E57+E67+E68+E69+E70+E72+E84+E85 -> 1835209.92 | F86: 7871149.54
A87: xx | B87: Total Operating Revenues | D87: =D30+D39+D86 -> 7337913.4 | E87: =E30+E39+E86 -> 1281066.73 | F87: =F30+F39+F86 -> 89870896.43
B89: Operating Expenses
B91: Operation Expenses
A93: %,FACCOUNT,TNI_ACCOUNT_FERC,XBYYYYY01,NOP_MANUF_GAS | B93: Manufac Gas Production - Oper | D93: 0 | E93: =D93-H93 -> 0 | F93: 0
A94: %,FACCOUNT,TNI_ACCOUNT_FERC,XBYYYYY01,NOP_NTRLGAS_PROD_GTH | B94: NG Production & Gather - Oper | D94: 0 | E94: 0 | F94: 0
A95: %,FACCOUNT,TNI_ACCOUNT_FERC,XBYYYYY01,NOP_PROD_EXTRACT | B95: Products Extraction - Oper | D95: 0 | E95: 0 | F95: 0
A97: %,V80100000 | B97: Natural gas field line purchas | C97: 80100000 | D97: 34020.8 | E97: =D97-H97 -> 301.47 | F97: 203673.69 | H97: 33719.33
A98: %,NOP_NG_PURCH_FIELD | B98: NG Well Head Purchases | D98: 34020.8 | E98: 301.47 | F98: 203673.69 | H98: 33719.33
A99: %,V80300300 | B99: Short Term Producer Purch | C99: 80300300 | D99: 6015610 | E99: 522312.19 | F99: 26413369.55 | H99: 5493297.81
A100: %,V80300400 | B100: Transportation Pipeline Exp | C100: 80300400 | D100: 713158.06 | E100: -15984.43 | F100: 5570116.02 | H100: 729142.49
A101: %,V80300500 | B101: Storage Charges Pipeline Exp | C101: 80300500 | D101: -86385.59 | E101: 32186.73 | F101: -2530950.21 | H101: -118572.32
A102: %,V80300600 | B102: OFS_System Supply Credit | C102: 80300600 | D102: -44736.01 | E102: -11502.07 | F102: -309887.17 | H102: -33233.94
A103: %,V80300808 | B103: Storage Demand | C103: 80300808 | D103: 1502153.14 | E103: 0.02000000002 | F103: 9636220.46 | H103: 1502153.12
A104: %,NOP_NG_PURCH_TRANSLIN | B104: NG Transmission Line Purchases | D104: 8099799.6 | E104: 527012.44 | F104: 38778868.65 | H104: 7572787.16
A105: %,V80400000 | B105: Natural Gas City Gate Purchase | C105: 80400000 | D105: 6522.04 | E105: -8266.58 | F105: 1165042.65 | H105: 14788.62
A106: %,NOP_NG_PURCH_CITYGATE | B106: NG City Gate Purchases | D106: 6522.04 | E106: -8266.58 | F106: 1165042.65 | H106: 14788.62
A107: %,V80510000 | B107: Purchased Gas Cost Adjustments | C107: 80510000 | D107: -2401685.14 | E107: 312859.89 | F107: -6451828.11 | H107: -2714545.03
A108: %,NOP_NG_PURCH_ADJUST | B108: Purchased Gas Cost Adjustments | D108: -2401685.14 | E108: 312859.89 | F108: -6451828.11 | H108: -2714545.03
A109: %,V80601000 | B109: Exchange Gas-Received | C109: 80601000 | D109: -444720.31 | E109: -878751.26 | F109: -2202100.67 | H109: 434030.95
A110: %,NOP_NG_PURCH_EXCHANGE | B110: Exchange Gas | D110: -444720.31 | E110: -878751.26 | F110: -2202100.67 | H110: 434030.95
A111: %,V80720000 | B111: Oper-Purch Gas Measrg Stations | C111: 80720000 | D111: 24729.61 | E111: -5005.38 | F111: 236264.87 | H111: 29734.99
A112: %,V80751000 | B112: Purch Gas Exp - Mgmt Fee | C112: 80751000 | D112: 4629.25 | E112: 357.09 | F112: 34536.51 | H112: 4272.16
A113: %,NOP_NG_PURCH_EXPENSE | B113: Purchased Gas Expenses | D113: 29358.86 | E113: -4648.29 | F113: 270801.38 | H113: 34007.15
A114: %,V80810000 | B114: Gas Withdrawn | C114: 80810000 | D114: 755007.31 | E114: 475905.28 | F114: 15937572.5 | H114: 279102.03
A115: %,NOP_NG_PURCH_WITHDRAW | B115: Gas Withdrawn from Storage | D115: 755007.31 | E115: 475905.28 | F115: 15937572.5 | H115: 279102.03
A116: %,V80820000 | B116: Gas Delivered | C116: 80820000 | D116: -4112921.5 | E116: 485488.53 | F116: -15521290.29 | H116: -4598410.03
A117: %,NOP_NG_PURCH_DELIVER | B117: Gas Delivered to Storage | D117: -4112921.5 | E117: 485488.53 | F117: -15521290.29 | H117: -4598410.03
A118: %,V81220000 | B118: Gas Used-Other-Offset | C118: 81220000 | D118: -2673.5 | E118: 768.37 | F118: -68251.71 | H118: -3441.87
A119: %,NOP_NG_PURCH_OTHOPS | B119: Gas Used for Other Utility Ops | D119: -2673.5 | E119: 768.37 | F119: -68251.71 | H119: -3441.87
A120: %,FACCOUNT,TNI_ACCOUNT_FERC,XBYYYYY01,NOP_OTH_GAS_SUPPLY | B120: Other Gas Supply - Operations | D120: 1962708.16 | E120: 910669.85 | F120: 32112488.09 | H120: 1052038.31
A121: %,FACCOUNT,TNI_ACCOUNT_FERC,XBYYYYY01,NOP_STEAM_POWER | B121: Steam Power - Operations | D121: 0 | E121: 0 | F121: 0
A122: %,FACCOUNT,TNI_ACCOUNT_FERC,XBYYYYY01,NOP_HYDRAULIC_POWER | B122: Hydraulic Power - Operations | D122: 0 | E122: 0 | F122: 0
A123: %,FACCOUNT,TNI_ACCOUNT_FERC,XBYYYYY01,NOP_OTHER_POWER | B123: Other Power - Operations | D123: 0 | E123: 0 | F123: 0
A124: %,V55700000 | B124: Other Exp | C124: 55700000 | D124: 147.72 | E124: =D124-H124 -> 147.72 | F124: 147.72 | H124: 0
A125: %,FACCOUNT,TNI_ACCOUNT_FERC,XBYYYYY01,NOP_OTH_POWER_SUPPLY | B125: Other Power Supply - Oper | D125: 147.72 | E125: =D125-H125 -> 147.72 | F125: 147.72 | H125: 0
A126: %,FACCOUNT,TNI_ACCOUNT_FERC,XBYYYYY01,NOP_NG_STOR_TERM_PROC | B126: NG Stor, Term & Proc - Oper | D126: 0 | E126: 0 | F126: 0
A128: %,V85200030 | B128: Communication System Exp | C128: 85200030 | D128: 11.58 | E128: =D128-H128 -> -52.95 | F128: 4408.13 | H128: 64.53
A129: %,V85900000 | B129: Gas Transmission Exp | C129: 85900000 | D129: 0 | E129: 0 | F129: 0 | H129: 0
A130: %,NOP_GAS_TRANS_EXP | B130: Transmission Exp - Oper - Gas | D130: 11.58 | E130: -52.95 | F130: 4408.13 | H130: 64.53
A131: %,FACCOUNT,TNI_ACCOUNT_FERC,XBYYYYY01,NOP_TRANS_EXP | B131: Transmission Exp - Oper | D131: 11.58 | E131: -52.95 | F131: 4408.13 | H131: 64.53
A132: %,FACCOUNT,TNI_ACCOUNT_FERC,XBYYYYY01,NOP_REG_MARKET_EXP | B132: Regional Market Exp - Oper | D132: 0 | E132: 0 | F132: 0
A134: %,V87000000 | B134: Op Superv-Eng-Gas Distr | C134: 87000000 | D134: 72952.89 | E134: =D134-H134 -> -9434.77 | F134: 625289.91 | H134: 82387.66
A135: %,V87100000 | B135: Distribution Load Dispatching | C135: 87100000 | D135: 10114.17 | E135: -397.27 | F135: 98359.68 | H135: 10511.44
A136: %,V87400000 | B136: Mains and Services Exp | C136: 87400000 | D136: 613779.11 | E136: 87104.46 | F136: 3924540.6 | H136: 526674.65
A137: %,V87500000 | B137: Measur-Reg Statn Exp Gen | C137: 87500000 | D137: 13515.99 | E137: 1149.08 | F137: 122393.87 | H137: 12366.91
A138: %,V87600000 | B138: Measur-Reg Statn Exp-Indus | C138: 87600000 | D138: 5816.01 | E138: -907.96 | F138: 42597.9 | H138: 6723.97
A139: %,V87800000 | B139: Meter and House Regulator Exp | C139: 87800000 | D139: 119127.15 | E139: -15606.67 | F139: 855218.72 | H139: 134733.82
A140: %,V87900000 | B140: Oper Installation Service Exp | C140: 87900000 | D140: 239369.61 | E140: -32784.6 | F140: 1630860.77 | H140: 272154.21
A141: %,V87900200 | B141: Oper Install-Chrg Labor | C141: 87900200 | D141: 0 | E141: 0 | F141: 28.03 | H141: 0
A142: %,V88000000 | B142: Operations Exp Other | C142: 88000000 | D142: 67914.48 | E142: -1026.13 | F142: 637671.22 | H142: 68940.61
A143: %,V88100000 | B143: Gas Distr Rents | C143: 88100000 | D143: 1484.39 | E143: -2751.99 | F143: 8358.26 | H143: 4236.38
A144: %,NOP_GAS_DISTR_EXP | B144: Distribution Exp - Oper - Gas | D144: 1144073.8 | E144: 25344.15 | F144: 7945318.96 | H144: 1118729.65
A145: %,FACCOUNT,TNI_ACCOUNT_FERC,XBYYYYY01,NOP_DISTR_EXP | B145: Distribution Exp - Oper | D145: 1144073.8 | E145: 25344.15 | F145: 7945318.96 | H145: 1118729.65
A146: %,V90100000 | B146: Customer Acnt Supervision | C146: 90100000 | D146: 0 | E146: -47.28 | F146: 181.88 | H146: 47.28
A147: %,V90200000 | B147: Cust Accnt Meter Reading Exp | C147: 90200000 | D147: 18972.07 | E147: -2053.72 | F147: 120491.26 | H147: 21025.79
A148: %,V90300000 | B148: Cust Records Collection Exp | C148: 90300000 | D148: 199930.39 | E148: -4652.51 | F148: 1502829.49 | H148: 204582.9
A149: %,V90400000 | B149: Uncollectible Accounts | C149: 90400000 | D149: -88037.71 | E149: -464299.89 | F149: -337382.26 | H149: 376262.18
A150: %,V90500000 | B150: Misc Cust Accts Exp | C150: 90500000 | D150: 769.96 | E150: -14.3 | F150: 6399.79 | H150: 784.26
A151: %,FACCOUNT,TNI_ACCOUNT_FERC,XBYYYYY01,NOP_CUST_ACCTS_EXP | B151: Customer Accounts - Oper | D151: 131634.71 | E151: -471067.7 | F151: 1292520.16 | H151: 602702.41
A152: %,V90800000 | B152: Customer Assistance Exp | C152: 90800000 | D152: -58.87 | E152: -806.87 | F152: 56687.14 | H152: 748
A153: %,V91000000 | B153: Misc Cust Serv and Info Exp | C153: 91000000 | D153: 23111.87 | E153: 2374.95 | F153: 156918.78 | H153: 20736.92
A154: %,FACCOUNT,TNI_ACCOUNT_FERC,XBYYYYY01,NOP_CUSTOMER_SERV_EXP | B154: Cust Serv & Info Exp - Oper | D154: 23053 | E154: 1568.08 | F154: 213605.92 | H154: 21484.92
A155: %,V91200000 | B155: Demonstrating and Selling Exp | C155: 91200000 | D155: 652.46 | E155: 652.46 | F155: 3286.96 | H155: 0
A156: %,V91300000 | B156: Sales Advertising Exp | C156: 91300000 | D156: 1903.67 | E156: 1656.95 | F156: 4038.84 | H156: 246.72
A157: %,FACCOUNT,TNI_ACCOUNT_FERC,XBYYYYY01,NOP_SALES_EXP | B157: Sales Expenses - Oper | D157: 2556.13 | E157: 2309.41 | F157: 7325.8 | H157: 246.72
A158: %,V92000000 | B158: A_G Salaries | C158: 92000000 | D158: 622333.13 | E158: -74278.46 | F158: 4706068 | H158: 696611.59
A159: %,V92001000 | B159: Discretionary and Spot Awards | C159: 92001000 | D159: 6544.53 | E159: -5170.29 | F159: 34755.6 | H159: 11714.82
A160: %,V92002000 | B160: Stock Compensation Expense | C160: 92002000 | D160: 74920.13 | E160: -2313.73 | F160: 402906.34 | H160: 77233.86
A161: %,V92100000 | B161: Office Supplies and Exp | C161: 92100000 | D161: 59764.63 | E161: -5430.28 | F161: 483023.97 | H161: 65194.91
A162: %,V92101000 | B162: Employee Expenses | C162: 92101000 | D162: 12538.13 | E162: -7249.65 | F162: 98082.72 | H162: 19787.78
A163: %,V92300000 | B163: Outside Service Employed | C163: 92300000 | D163: 434582.64 | E163: -73243.04 | F163: 3037681.89 | H163: 507825.68
A164: %,V92301000 | B164: Mgmt Fee Actuals-Affil | C164: 92301000 | D164: 156420.86 | E164: 2650.59 | F164: 1103020.99 | H164: 153770.27
A165: %,V92400000 | B165: Property Insurance | C165: 92400000 | D165: 69319.53 | E165: 64001.72 | F165: 92309.49 | H165: 5317.81
A166: %,V92500000 | B166: Injuries and Damages | C166: 92500000 | D166: 175437.52 | E166: -23118.59 | F166: 1267209.42 | H166: 198556.11
A167: %,V92600000 | B167: Employee Pensions and Benefits | C167: 92600000 | D167: 388246.17 | E167: 125612.16 | F167: 2375068.86 | H167: 262634.01
A168: %,V92601000 | B168: Non Service Pension & OPEB | C168: 92601000 | D168: -78140.01 | E168: -67487.18 | F168: -322405.37 | H168: -10652.83
A169: %,V92800000 | B169: Regulatory Commission Exp | C169: 92800000 | D169: 22634.77 | E169: -15.37 | F169: 158533.79 | H169: 22650.14
A170: %,V93010000 | B170: General Advertising Exp | C170: 93010000 | D170: 37.74 | E170: -2206.67 | F170: 8254.04 | H170: 2244.41
A171: %,V93020000 | B171: Misc General Exp | C171: 93020000 | D171: 17545.34 | E171: 24846.04 | F171: 26438.04 | H171: -7300.7
A172: %,V93100000 | B172: Rents Admin and General | C172: 93100000 | D172: 73741.63 | E172: -421.34 | F172: 524827.36 | H172: 74162.97
A173: %,FACCOUNT,TNI_ACCOUNT_FERC,XBYYYYY01,NOP_ADMIN_GEN | B173: Admin & General Exp - Oper | D173: 2035926.74 | E173: -43824.09 | F173: 13995775.14 | H173: 2079750.83
B174: Total Operation Expenses | D174: =D93+D94+D95+D120+D121+D122+D123+D125+D126+D131+D132+D145+D151+D154+D157+D173 -> 5300111.84 | E174: =E93+E94+E95+E120+E121+E122+E123+E125+E126+E131+E132+E145+E151+E154+E157+E173 -> 425094.47 | F174: =F93+F94+F95+F120+F121+F122+F123+F125+F126+F131+F132+F145+F151+F154+F157+F173 -> 55571589.92
B176: Maintenance Expenses
A178: %,FACCOUNT,TNI_ACCOUNT_FERC,XBYYYYY01,NMAINT_PROD_EXP | B178: Production Expenses - Maint | D178: 0 | E178: =D178-H178 -> 0 | F178: 0
A179: %,FACCOUNT,TNI_ACCOUNT_FERC,XBYYYYY01,NMAINT_NG_STOR_PROC | B179: NG Stor, Term & Proc - Maint | D179: 0 | E179: 0 | F179: 0
A181: %,V56920000 | B181: Maint of Computer Software | C181: 56920000 | D181: 0 | E181: =D181-H181 -> 0 | F181: 0 | H181: 0
A182: %,NMAINT_ELEC_TRANS_EXP | B182: Transmission Exp - Maint-Elec | D182: 0 | E182: 0 | F182: 0 | H182: 0
A183: %,V86600000 | B183: Trans Maint Commun Equip | C183: 86600000 | D183: 0 | E183: -30255 | F183: 30255 | H183: 30255
A184: %,NMAINT_GAS_TRANS_EXP | B184: Transmission Exp - Maint-Gas | D184: 0 | E184: -30255 | F184: 30255 | H184: 30255
A185: %,FACCOUNT,TNI_ACCOUNT_FERC,XBYYYYY01,NMAINT_TRANS_EXP | B185: Transmission Exp - Maint | D185: 0 | E185: -30255 | F185: 30255 | H185: 30255
A187: %,V88500000 | B187: Maint Supv-Eng-Gas Distr | C187: 88500000 | D187: 5664.52 | E187: =D187-H187 -> -847.49 | F187: 48639.7 | H187: 6512.01
A188: %,V88600000 | B188: Maint Struct-Improv-Gas Distr | C188: 88600000 | D188: 28207.28 | E188: 27056.29 | F188: 63598.94 | H188: 1150.99
A189: %,V88700000 | B189: Maint of Mains | C189: 88700000 | D189: 176161.52 | E189: -15367.5 | F189: 1287388.63 | H189: 191529.02
A190: %,V88900000 | B190: Maint Msr-Reg Statn Equi Gen | C190: 88900000 | D190: 66209.23 | E190: -1888.08 | F190: 357494.83 | H190: 68097.31
A191: %,V89000000 | B191: Maint Meas_Reg Stn Equip-Distr | C191: 89000000 | D191: 7186.36 | E191: 103.27 | F191: 48322.09 | H191: 7083.09
A192: %,V89200000 | B192: Maint of Services | C192: 89200000 | D192: 82686.08 | E192: -4205.79 | F192: 569358.54 | H192: 86891.87
A193: %,V89300000 | B193: Maint Meters_House Regulators | C193: 89300000 | D193: 37030.41 | E193: 3855.9 | F193: 131570.76 | H193: 33174.51
A194: %,V89400000 | B194: Other Maint Equipment | C194: 89400000 | D194: 19509.55 | E194: -8625.68 | F194: 230106.78 | H194: 28135.23
A195: %,NMAINT_GAS_DISTR_EXP | B195: Distribution Exp - Maint-Gas | D195: 422654.95 | E195: 80.92 | F195: 2736480.27 | H195: 422574.03
A196: %,FACCOUNT,TNI_ACCOUNT_FERC,XBYYYYY01,NMAINT_DISTR_EXP | B196: Distribution Exp - Maint | D196: 422654.95 | E196: 80.92 | F196: 2736480.27 | H196: 422574.03
A197: %,V93200000 | B197: Maint General Plant | C197: 93200000 | D197: 100529.8 | E197: =D197-H197 -> -7573.82 | F197: 810302.93 | H197: 108103.62
A198: %,FACCOUNT,TNI_ACCOUNT_FERC,XBYYYYY01,NMAINT_ADMIN_GEN | B198: Maintenance Gen and Admin | D198: 100529.8 | E198: -7573.82 | F198: 810302.93 | H198: 108103.62
B199: Total Maintenance Expenses | D199: =D178+D179+D185+D196+D198 -> 523184.75 | E199: =E178+E179+E185+E196+E198 -> -37747.9 | F199: 3577038.2
A201: %,V40300000 | B201: Dep Exp | C201: 40300000 | D201: 1234011.27 | E201: =D201-H201 -> 8174.05 | F201: 8472861.59 | H201: 1225837.22
A202: %,FACCOUNT,TNI_ACCOUNT_FERC,XBYYYYY01,NDEPRECIATION_EXPENSE | B202: Depreciation Expense | D202: 1234011.27 | E202: =D202-H202 -> 8174.05 | F202: 8472861.59 | H202: 1225837.22
A203: %,FACCOUNT,TNI_ACCOUNT_FERC,XBYYYYY01,NDEPRECIATION_ARO_EXP | B203: Depreciation Expense for AROs | D203: 0 | E203: 0 | F203: 0
A205: %,V40430000 | B205: Amortization Exp-Other | C205: 40430000 | D205: 34820.4 | E205: =D205-H205 -> 261.95 | F205: 243250.86 | H205: 34558.45
A206: %,V40434000 | B206: Cloude Amortizaiton Expense | C206: 40434000 | D206: 22801.11 | E206: 11592.31 | F206: 80384.5 | H206: 11208.8
A207: %,NAMORT_LMT_TERM_PROP | B207: Amort of Limited-Term Property | D207: 57621.51 | E207: 11854.26 | F207: 323635.36 | H207: 45767.25
A208: %,V40500000 | B208: Amortization of Oth Plant | C208: 40500000 | D208: 121624.54 | E208: 9766.1 | F208: 742183.39 | H208: 111858.44
A209: %,NAMORT_OTH_PROP | B209: Amort of Other Property | D209: 121624.54 | E209: 9766.1 | F209: 742183.39 | H209: 111858.44
A210: %,FACCOUNT,TNI_ACCOUNT_FERC,XBYYYYY01,NAMORT_DEPL_UTIL | B210: Amort & Deplet of Util Plant | D210: 179246.05 | E210: 21620.36 | F210: 1065818.75 | H210: 157625.69
A211: %,FACCOUNT,TNI_ACCOUNT_FERC,XBYYYYY01,NAMORT_UTIL_ADJ | B211: Amort of Gas Plant Acq Adj | D211: 0 | E211: 0 | F211: 0
A212: %,FACCOUNT,TNI_ACCOUNT_FERC,XBYYYYY01,NAMORT_CONV_EXP | B212: Amort of Conversion Exp | D212: 0 | E212: 0 | F212: 0
A213: %,FACCOUNT,TNI_ACCOUNT_FERC,XBYYYYY01,NREG_DEBITS | B213: Reg Debits | D213: 0 | E213: 0 | F213: 0
A214: %,FACCOUNT,TNI_ACCOUNT_FERC,XBYYYYY01,NREG_CREDITS | B214: Reg Credits | D214: 0 | E214: 0 | F214: 0
A215: %,V40813100 | B215: Tax Exp-License_Franchise | C215: 40813100 | D215: 0 | E215: 0 | F215: 3000 | H215: 0
A216: %,V40813200 | B216: Tax Exp-Property | C216: 40813200 | D216: 548738.42 | E216: 0 | F216: 3538123.93 | H216: 548738.42
A217: %,V40813300 | B217: Tax Exp-Sales and Use Tax | C217: 40813300 | D217: 0.03 | E217: 0.01 | F217: 0.01 | H217: 0.02
A218: %,V40813400 | B218: Tax Exp-Gross Receipts | C218: 40813400 | D218: 0 | E218: 0 | F218: 0 | H218: 0
A219: %,V40813600 | B219: Tax Exp-State and Local-Oth | C219: 40813600 | D219: 0 | E219: 0 | F219: 0 | H219: 0
A220: %,V40814100 | B220: Tax Exp-Payroll-Incentive | C220: 40814100 | D220: 5148.82 | E220: 0 | F220: -1517.66 | H220: 5148.82
A221: %,V40814500 | B221: Tax Exp-Payroll FICA-OASDI | C221: 40814500 | D221: 55156.81 | E221: -5125.44 | F221: 420588.09 | H221: 60282.25
... 93 more rows

Sheet Aug21
A1: %,LACTUALS,UPOSTED_TRAN_AMT | B1: %,ATF,FDESCR,UDESCR | C1: %,ATT,FACCOUNT | D1: %,LACTUALS,UPOSTED_TRAN_AMT,SPER,FBOOK_CODE,VR | E1: %,C | F1: %,LACTUALS,UPOSTED_TRAN_AMT,SYTD,FBOOK_CODE,VR | H1: %,LACTUALS,UPOSTED_TRAN_AMT,SPER-1,FBOOK_CODE,VR
B2: Columbia Gas of Kentucky Inc | H2: FOR
B3: Income Statement-FERC | H3: CALC
B4: Regulatory View - FERC Account
B5: For the Month Ended August 31, 2021 | H5: PURPOSES
B6: For Internal Use Only | H6: ONLY
D8: Current | E8: Change from | F8: Year-To- | H8: Prior
D9: Month | E9: Prior Month | F9: Date | H9: Month
B11: Operating Revenues
A13: %,V48000000 | B13: Residential Sales | C13: 48000000 | D13: 3368662.67 | E13: =D13-H13 -> -88032.65 | F13: 60616348.87 | H13: 3456695.32
A14: %,V48000100 | B14: Residential Sales Norm | C14: 48000100 | D14: -37.5 | E14: 2.12 | F14: 6942.09 | H14: -39.62
A15: %,R,FACCOUNT,TNI_ACCOUNT_FERC,XBYYYYY01,NGAS_RESID_REV | B15: Gas Residential Sales | D15: 3368625.17 | E15: =D15-H15 -> -88030.53 | F15: 60623290.96 | H15: 3456655.7
A17: %,V48101000 | B17: Commercial Gas Sales | C17: 48101000 | D17: 1530981.58 | E17: =D17-H17 -> -36055.97 | F17: 25081855.23 | H17: 1567037.55
A18: %,V48101200 | B18: Commercial Gas Sales Norm | C18: 48101200 | D18: -39.27 | E18: 4.5 | F18: 3604.32 | H18: -43.77
A19: %,NGAS_COMM_REV | B19: Gas Commercial Revenues | D19: 1530942.31 | E19: -36051.47 | F19: 25085459.55 | H19: 1566993.78
A20: %,V48102000 | B20: Industrial Gas Sales | C20: 48102000 | D20: 68690.89 | E20: 10817.88 | F20: 1203670.21 | H20: 57873.01
A21: %,V48102300 | B21: Industrial Gas Sales Norm | C21: 48102300 | D21: -3.92 | E21: -0.51 | F21: 220.62 | H21: -3.41
A22: %,NGAS_INDUST_REV | B22: Gas Industrial Revenues | D22: 68686.97 | E22: 10817.37 | F22: 1203890.83 | H22: 57869.6
A23: %,V48103000 | B23: Gas Sales-Other | C23: 48103000 | D23: 0 | E23: -47.9 | F23: 136.08 | H23: 47.9
A24: %,NGAS_OTHER_REV | B24: Gas Comm & Indust Other Rev | D24: 0 | E24: -47.9 | F24: 136.08 | H24: 47.9
A25: %,R,FACCOUNT,TNI_ACCOUNT_FERC,XBYYYYY01,NGAS_COMM_INDUST_REV | B25: Gas Comm & Indust Revenues | D25: 1599629.28 | E25: -25282 | F25: 26289486.46 | H25: 1624911.28
A26: %,V48300000 | B26: Sales for Resale-Gas | C26: 48300000 | D26: 3429.41 | E26: =D26-H26 -> -172.47 | F26: 58653.33 | H26: 3601.88
A27: %,R,FACCOUNT,TNI_ACCOUNT_FERC,XBYYYYY01,NGAS_SALES_RESALE | B27: Gas Sales for Resale | D27: 3429.41 | E27: -172.47 | F27: 58653.33 | H27: 3601.88
A28: %,R,FACCOUNT,TNI_ACCOUNT_FERC,XBYYYYY01,NGAS_INTERDEPT_SALES | B28: Gas Interdepartmental Sales | D28: 0 | E28: 0 | F28: 0
A29: %,R,FACCOUNT,TNI_ACCOUNT_FERC,XBYYYYY01,NGAS_INTRACO_TRANSFER | B29: Gas Intercompany Transfers | D29: 0 | E29: =D29-H29 -> 0 | F29: 0
A30: xx | B30: Total Sales of Gas | D30: =D15+D25+D27+D28+D29 -> 4971683.86 | E30: =E15+E25+E27+E28+E29 -> -113485 | F30: =F15+F25+F27+F28+F29 -> 86971430.75
A32: %,R,FACCOUNT,TNI_ACCOUNT_FERC,XBYYYYY01,NELE_RESID_REV | B32: Electric Residential Revenues | D32: 0 | E32: =D32-H32 -> 0 | F32: 0
A33: %,R,FACCOUNT,TNI_ACCOUNT_FERC,XBYYYYY01,NELE_COMM_IND_REV | B33: Elec Comm & Indust Rev | D33: 0 | E33: 0 | F33: 0
A34: %,R,FACCOUNT,TNI_ACCOUNT_FERC,XBYYYYY01,NELE_STREET_HWY_LIGHT | B34: Public Street & Hwy Lighting | D34: 0 | E34: 0 | F34: 0
A35: %,R,FACCOUNT,TNI_ACCOUNT_FERC,XBYYYYY01,NELE_OTH_SALES_PUBLIC | B35: Elec Oth Sales to Public Auth | D35: 0 | E35: 0 | F35: 0
A36: %,R,FACCOUNT,TNI_ACCOUNT_FERC,XBYYYYY01,NELE_RAILROAD | B36: Sales to Railroads & Railways | D36: 0 | E36: 0 | F36: 0
A37: %,R,FACCOUNT,TNI_ACCOUNT_FERC,XBYYYYY01,NELE_SALES_RESALE | B37: Electric Sales for Resale | D37: 0 | E37: 0 | F37: 0
A38: %,R,FACCOUNT,TNI_ACCOUNT_FERC,XBYYYYY01,NELE_INTERDEPT_SALES | B38: Elec Interdepartmental Sales | D38: 0 | E38: 0 | F38: 0
A39: xx | B39: Total Sales of Electricity | D39: =D32+D33+D34+D35+D36+D37+D38 -> 0 | E39: =E32+E33+E34+E35+E36+E37+E38 -> 0 | F39: 0
A41: %,V48700000 | B41: Forfeited Discounts-Gas | C41: 48700000 | D41: 25711.51 | E41: =D41-H41 -> -8746.38 | F41: 428569.89 | H41: 34457.89
A42: %,R,FACCOUNT,TNI_ACCOUNT_FERC,XBYYYYY01,NFORFEITED_DISC_GAS | B42: Forfeited Discounts - Gas | D42: 25711.51 | E42: =D42-H42 -> -8746.38 | F42: 428569.89 | H42: 34457.89
A43: %,R,FACCOUNT,TNI_ACCOUNT_FERC,XBYYYYY01,NFORFEITED_DISC_ELE | B43: Forfeited Discounts - Ele | D43: 0 | E43: 0 | F43: 0
B44: Total Forfeited Discounts | D44: =D42+D43 -> 25711.51 | E44: =E42+E43 -> -8746.38 | F44: 428569.89
A46: %,V48800000 | B46: Misc Service Revenues-Gas | C46: 48800000 | D46: 13195.87 | E46: =D46-H46 -> 6272.38 | F46: 62614.14 | H46: 6923.49
A47: %,R,FACCOUNT,TNI_ACCOUNT_FERC,XBYYYYY01,NMISC_SERV_REVS_GAS | B47: Misc Service Revenues - Gas | D47: 13195.87 | E47: =D47-H47 -> 6272.38 | F47: 62614.14 | H47: 6923.49
A48: %,R,FACCOUNT,TNI_ACCOUNT_FERC,XBYYYYY01,NMISC_SERV_REVS_ELE | B48: Misc Service Revenues - Ele | D48: 0 | E48: 0 | F48: 0
B49: Total Miscellaneous Service Revenues | D49: =D47+D48 -> 13195.87 | E49: =E47+E48 -> 6272.38 | F49: 62614.14
A51: %,R,FACCOUNT,TNI_ACCOUNT_FERC,XBYYYYY01,NRENT_ELE_PROP | B51: Rent from Electricity Property | D51: 0 | E51: =D51-H51 -> 0 | F51: 0
A52: %,R,FACCOUNT,TNI_ACCOUNT_FERC,XBYYYYY01,NOTH_ELE_REV | B52: Other Electric Revenues | D52: 0 | E52: 0 | F52: 0
A53: %,R,FACCOUNT,TNI_ACCOUNT_FERC,XBYYYYY01,NOTH_ELE_TRANS_REV | B53: Rev Transm of Elec of Oth | D53: 0 | E53: 0 | F53: 0
A54: %,R,FACCOUNT,TNI_ACCOUNT_FERC,XBYYYYY01,NOTH_REV_SERVICE_CO | B54: Nonutility Revenues - Serv Co | D54: 0 | E54: 0 | F54: 0
A55: %,R,FACCOUNT,TNI_ACCOUNT_FERC,XBYYYYY01,NREG_ELE_TRANS_REV | B55: Regional Transm Service Rev | D55: 0 | E55: 0 | F55: 0
A56: %,R,FACCOUNT,TNI_ACCOUNT_FERC,XBYYYYY01,NTRANSPORT_GATH_REV | B56: Rev Transp Gas of Oth - Gather | D56: 0 | E56: 0 | F56: 0
A57: %,R,FACCOUNT,TNI_ACCOUNT_FERC,XBYYYYY01,NTRANSPORT_TRANS_REV | B57: Rev Transp Gas of Oth - Transm | D57: 0 | E57: 0 | F57: 0
A58: %,V48930000 | B58: Transp Rev Distr Residential | C58: 48930000 | D58: 401479.98 | E58: -5595.16 | F58: 5455356.15 | H58: 407075.14
A59: %,V48930200 | B59: Unbilled Residential Trans Vol | C59: 48930200 | D59: -5268.6 | E59: -8669.3 | F59: -342935.6 | H59: 3400.7
A60: %,V48930300 | B60: Unbilled Res Trans Cust chrg | C60: 48930300 | D60: -1472 | E60: -16 | F60: -11728 | H60: -1456
A61: %,V48931000 | B61: Transp Rev Distr Commercial | C61: 48931000 | D61: 397524.87 | E61: -84181.51 | F61: 5940821.31 | H61: 481706.38
A62: %,V48931300 | B62: Unbilled Comm Trans Vol | C62: 48931300 | D62: -9577.9 | E62: -20351.74 | F62: -240934.03 | H62: 10773.84
A63: %,V48931400 | B63: Unbilled Comm Trans Cust chrg | C63: 48931400 | D63: -715.04 | E63: -9023.33 | F63: 2323.88 | H63: 8308.29
A64: %,V48932000 | B64: Transp Rev Distr Industrial | C64: 48932000 | D64: 418642.48 | E64: 21545.42 | F64: 3552137 | H64: 397097.06
A65: %,V48932400 | B65: Unbilled Ind Trans Vol | C65: 48932400 | D65: -590.82 | E65: -2793.6 | F65: -1137.04 | H65: 2202.78
A66: %,V48932500 | B66: Unbilled Ind Trans Cust chrg | C66: 48932500 | D66: 0 | E66: 0 | F66: 0 | H66: 0
A67: %,R,FACCOUNT,TNI_ACCOUNT_FERC,XBYYYYY01,NTRANSPORT_DISTR_REV | B67: Rev Transp Gas of Oth - Distr | D67: 1200022.97 | E67: -109085.22 | F67: 14353903.67 | H67: 1309108.19
A68: %,R,FACCOUNT,TNI_ACCOUNT_FERC,XBYYYYY01,NSTORE_GAS_REV | B68: Rev from Storing Gas of Oth | D68: 0 | E68: 0 | F68: 0
A69: %,R,FACCOUNT,TNI_ACCOUNT_FERC,XBYYYYY01,NSALES_EXTRACT_GAS | B69: Sales - Prod Extracted from NG | D69: 0 | E69: 0 | F69: 0
A70: %,R,FACCOUNT,TNI_ACCOUNT_FERC,XBYYYYY01,NGAS_OIL_SALES | B70: Incidental Gasoline & Oil Sale | D70: 0 | E70: 0 | F70: 0
A71: %,V49300000 | B71: Rent from Gas Property | C71: 49300000 | D71: 2852 | E71: =D71-H71 -> 0 | F71: 22816 | H71: 2852
A72: %,R,FACCOUNT,TNI_ACCOUNT_FERC,XBYYYYY01,NRENT_GAS_PROP | B72: Rent from Gas Property | D72: 2852 | E72: 0 | F72: 22816 | H72: 2852
A74: %,V49500485 | B74: Unbilled Residential-Vol | C74: 49500485 | D74: 16954.19 | E74: =D74-H74 -> -7487.94 | F74: -5914313.95 | H74: 24442.13
A75: %,V49501485 | B75: Unbilled Res Customer Chrg | C75: 49501485 | D75: -3312 | E75: 3616 | F75: -27039.8 | H75: -6928
A76: %,V49503483 | B76: Unbilled Off System Sales | C76: 49503483 | D76: 0 | E76: 0 | F76: 0 | H76: 0
A77: %,V49510485 | B77: Unbilled Commercial-Vol | C77: 49510485 | D77: 73329.97 | E77: 82546.87 | F77: -2121480.68 | H77: -9216.9
A78: %,V49511485 | B78: Unbilled Comm Customer Chrg | C78: 49511485 | D78: -1876.98 | E78: 7016.33 | F78: -15999.02 | H78: -8893.31
A79: %,V49520485 | B79: Unbilled Industrial-Vol | C79: 49520485 | D79: 1030.33 | E79: -6019.93 | F79: -43269.4 | H79: 7050.26
A80: %,V49521485 | B80: Unbilled Ind Customer Chrg | C80: 49521485 | D80: 44.69 | E80: 89.38 | F80: 0 | H80: -44.69
A81: %,NUNBILLED_REV_FERC | B81: Unbilled Revenues | D81: 86170.2 | E81: 79760.71 | F81: -8122102.85 | H81: 6409.49
A82: %,V49500000 | B82: Other Gas Revenue | C82: 49500000 | D82: 10884.96 | E82: 450.97 | F82: 260539.67 | H82: 10433.99
A83: %,V49500050 | B83: Billed Off System Sales | C83: 49500050 | D83: 402790.74 | E83: -479768.75 | F83: 2606437.27 | H83: 882559.49
A84: %,R,FACCOUNT,TNI_ACCOUNT_FERC,XBYYYYY01,NOTH_GAS_REV | B84: Other Gas Revenues | D84: 499845.9 | E84: -399557.07 | F84: -5255125.91 | H84: 899402.97
A85: %,R,FACCOUNT,TNI_ACCOUNT_FERC,XBYYYYY01,NGAS_PROV_RATE_REFUND | B85: Gas Provision of Rate Refunds | D85: 0 | E85: 0 | F85: 0
B86: Total Other Operating Revenues | D86: =D44+D49+D51+D52+D53+D54+D55+D56+D57+D67+D68+D69+D70+D72+D84+D85 -> 1741628.25 | E86: =E44+E49+E51+E52+E53+E54+E55+E56+E57+E67+E68+E69+E70+E72+E84+E85 -> -511116.29 | F86: 9612777.79
A87: xx | B87: Total Operating Revenues | D87: =D30+D39+D86 -> 6713312.11 | E87: =E30+E39+E86 -> -624601.29 | F87: =F30+F39+F86 -> 96584208.54
B89: Operating Expenses
B91: Operation Expenses
A93: %,FACCOUNT,TNI_ACCOUNT_FERC,XBYYYYY01,NOP_MANUF_GAS | B93: Manufac Gas Production - Oper | D93: 0 | E93: =D93-H93 -> 0 | F93: 0
A94: %,FACCOUNT,TNI_ACCOUNT_FERC,XBYYYYY01,NOP_NTRLGAS_PROD_GTH | B94: NG Production & Gather - Oper | D94: 0 | E94: 0 | F94: 0
A95: %,FACCOUNT,TNI_ACCOUNT_FERC,XBYYYYY01,NOP_PROD_EXTRACT | B95: Products Extraction - Oper | D95: 0 | E95: 0 | F95: 0
A97: %,V80100000 | B97: Natural gas field line purchas | C97: 80100000 | D97: 39294.39 | E97: =D97-H97 -> 5273.59 | F97: 242968.08 | H97: 34020.8
A98: %,NOP_NG_PURCH_FIELD | B98: NG Well Head Purchases | D98: 39294.39 | E98: 5273.59 | F98: 242968.08 | H98: 34020.8
A99: %,V80300300 | B99: Short Term Producer Purch | C99: 80300300 | D99: 6382820.87 | E99: 367210.87 | F99: 32796190.42 | H99: 6015610
A100: %,V80300400 | B100: Transportation Pipeline Exp | C100: 80300400 | D100: 726202.11 | E100: 13044.05 | F100: 6296318.13 | H100: 713158.06
A101: %,V80300500 | B101: Storage Charges Pipeline Exp | C101: 80300500 | D101: -79676.45 | E101: 6709.14 | F101: -2610626.66 | H101: -86385.59
A102: %,V80300600 | B102: OFS_System Supply Credit | C102: 80300600 | D102: -75636.51 | E102: -30900.5 | F102: -385523.68 | H102: -44736.01
A103: %,V80300808 | B103: Storage Demand | C103: 80300808 | D103: 1502153.14 | E103: 0 | F103: 11138373.6 | H103: 1502153.14
A104: %,NOP_NG_PURCH_TRANSLIN | B104: NG Transmission Line Purchases | D104: 8455863.16 | E104: 356063.56 | F104: 47234731.81 | H104: 8099799.6
A105: %,V80400000 | B105: Natural Gas City Gate Purchase | C105: 80400000 | D105: 22034.65 | E105: 15512.61 | F105: 1187077.3 | H105: 6522.04
A106: %,NOP_NG_PURCH_CITYGATE | B106: NG City Gate Purchases | D106: 22034.65 | E106: 15512.61 | F106: 1187077.3 | H106: 6522.04
A107: %,V80510000 | B107: Purchased Gas Cost Adjustments | C107: 80510000 | D107: -3666110.54 | E107: -1264425.4 | F107: -10117938.65 | H107: -2401685.14
A108: %,NOP_NG_PURCH_ADJUST | B108: Purchased Gas Cost Adjustments | D108: -3666110.54 | E108: -1264425.4 | F108: -10117938.65 | H108: -2401685.14
A109: %,V80601000 | B109: Exchange Gas-Received | C109: 80601000 | D109: 370979.87 | E109: 815700.18 | F109: -1831120.8 | H109: -444720.31
A110: %,NOP_NG_PURCH_EXCHANGE | B110: Exchange Gas | D110: 370979.87 | E110: 815700.18 | F110: -1831120.8 | H110: -444720.31
A111: %,V80720000 | B111: Oper-Purch Gas Measrg Stations | C111: 80720000 | D111: 31389.44 | E111: 6659.83 | F111: 267654.31 | H111: 24729.61
A112: %,V80751000 | B112: Purch Gas Exp - Mgmt Fee | C112: 80751000 | D112: 4260.37 | E112: -368.88 | F112: 38796.88 | H112: 4629.25
A113: %,NOP_NG_PURCH_EXPENSE | B113: Purchased Gas Expenses | D113: 35649.81 | E113: 6290.95 | F113: 306451.19 | H113: 29358.86
A114: %,V80810000 | B114: Gas Withdrawn | C114: 80810000 | D114: 1005576.86 | E114: 250569.55 | F114: 16943149.36 | H114: 755007.31
A115: %,NOP_NG_PURCH_WITHDRAW | B115: Gas Withdrawn from Storage | D115: 1005576.86 | E115: 250569.55 | F115: 16943149.36 | H115: 755007.31
A116: %,V80820000 | B116: Gas Delivered | C116: 80820000 | D116: -4870789.5 | E116: -757868 | F116: -20392079.79 | H116: -4112921.5
A117: %,NOP_NG_PURCH_DELIVER | B117: Gas Delivered to Storage | D117: -4870789.5 | E117: -757868 | F117: -20392079.79 | H117: -4112921.5
A118: %,V81220000 | B118: Gas Used-Other-Offset | C118: 81220000 | D118: -2679.03 | E118: -5.53 | F118: -70930.74 | H118: -2673.5
A119: %,NOP_NG_PURCH_OTHOPS | B119: Gas Used for Other Utility Ops | D119: -2679.03 | E119: -5.53 | F119: -70930.74 | H119: -2673.5
A120: %,FACCOUNT,TNI_ACCOUNT_FERC,XBYYYYY01,NOP_OTH_GAS_SUPPLY | B120: Other Gas Supply - Operations | D120: 1389819.67 | E120: -572888.49 | F120: 33502307.76 | H120: 1962708.16
A121: %,FACCOUNT,TNI_ACCOUNT_FERC,XBYYYYY01,NOP_STEAM_POWER | B121: Steam Power - Operations | D121: 0 | E121: 0 | F121: 0
A122: %,FACCOUNT,TNI_ACCOUNT_FERC,XBYYYYY01,NOP_HYDRAULIC_POWER | B122: Hydraulic Power - Operations | D122: 0 | E122: 0 | F122: 0
A123: %,FACCOUNT,TNI_ACCOUNT_FERC,XBYYYYY01,NOP_OTHER_POWER | B123: Other Power - Operations | D123: 0 | E123: 0 | F123: 0
A124: %,V55700000 | B124: Other Exp | C124: 55700000 | D124: 0 | E124: =D124-H124 -> -147.72 | F124: 147.72 | H124: 147.72
A125: %,FACCOUNT,TNI_ACCOUNT_FERC,XBYYYYY01,NOP_OTH_POWER_SUPPLY | B125: Other Power Supply - Oper | D125: 0 | E125: =D125-H125 -> -147.72 | F125: 147.72 | H125: 147.72
A126: %,FACCOUNT,TNI_ACCOUNT_FERC,XBYYYYY01,NOP_NG_STOR_TERM_PROC | B126: NG Stor, Term & Proc - Oper | D126: 0 | E126: 0 | F126: 0
A128: %,V85200030 | B128: Communication System Exp | C128: 85200030 | D128: 0.99 | E128: =D128-H128 -> -10.59 | F128: 4409.12 | H128: 11.58
A129: %,V85900000 | B129: Gas Transmission Exp | C129: 85900000 | D129: 0 | E129: 0 | F129: 0 | H129: 0
A130: %,NOP_GAS_TRANS_EXP | B130: Transmission Exp - Oper - Gas | D130: 0.99 | E130: -10.59 | F130: 4409.12 | H130: 11.58
A131: %,FACCOUNT,TNI_ACCOUNT_FERC,XBYYYYY01,NOP_TRANS_EXP | B131: Transmission Exp - Oper | D131: 0.99 | E131: -10.59 | F131: 4409.12 | H131: 11.58
A132: %,FACCOUNT,TNI_ACCOUNT_FERC,XBYYYYY01,NOP_REG_MARKET_EXP | B132: Regional Market Exp - Oper | D132: 0 | E132: 0 | F132: 0
A134: %,V87000000 | B134: Op Superv-Eng-Gas Distr | C134: 87000000 | D134: 73857.09 | E134: =D134-H134 -> 904.2 | F134: 699147 | H134: 72952.89
A135: %,V87100000 | B135: Distribution Load Dispatching | C135: 87100000 | D135: 3858.23 | E135: -6255.94 | F135: 102217.91 | H135: 10114.17
A136: %,V87400000 | B136: Mains and Services Exp | C136: 87400000 | D136: 544385.05 | E136: -69394.06 | F136: 4468925.65 | H136: 613779.11
A137: %,V87500000 | B137: Measur-Reg Statn Exp Gen | C137: 87500000 | D137: 18236.25 | E137: 4720.26 | F137: 140630.12 | H137: 13515.99
A138: %,V87600000 | B138: Measur-Reg Statn Exp-Indus | C138: 87600000 | D138: 7712.86 | E138: 1896.85 | F138: 50310.76 | H138: 5816.01
A139: %,V87800000 | B139: Meter and House Regulator Exp | C139: 87800000 | D139: 124701.81 | E139: 5574.66 | F139: 979920.53 | H139: 119127.15
A140: %,V87900000 | B140: Oper Installation Service Exp | C140: 87900000 | D140: 264273.69 | E140: 24904.08 | F140: 1895134.46 | H140: 239369.61
A141: %,V87900200 | B141: Oper Install-Chrg Labor | C141: 87900200 | D141: 183.49 | E141: 183.49 | F141: 211.52 | H141: 0
A142: %,V88000000 | B142: Operations Exp Other | C142: 88000000 | D142: 83848.92 | E142: 15934.44 | F142: 721520.14 | H142: 67914.48
A143: %,V88100000 | B143: Gas Distr Rents | C143: 88100000 | D143: 1509.09 | E143: 24.7 | F143: 9867.35 | H143: 1484.39
A144: %,NOP_GAS_DISTR_EXP | B144: Distribution Exp - Oper - Gas | D144: 1122566.48 | E144: -21507.32 | F144: 9067885.44 | H144: 1144073.8
A145: %,FACCOUNT,TNI_ACCOUNT_FERC,XBYYYYY01,NOP_DISTR_EXP | B145: Distribution Exp - Oper | D145: 1122566.48 | E145: -21507.32 | F145: 9067885.44 | H145: 1144073.8
A146: %,V90100000 | B146: Customer Acnt Supervision | C146: 90100000 | D146: 0 | E146: 0 | F146: 181.88 | H146: 0
A147: %,V90200000 | B147: Cust Accnt Meter Reading Exp | C147: 90200000 | D147: 28642.31 | E147: 9670.24 | F147: 149133.57 | H147: 18972.07
A148: %,V90300000 | B148: Cust Records Collection Exp | C148: 90300000 | D148: 220492.65 | E148: 20562.26 | F148: 1723322.14 | H148: 199930.39
A149: %,V90400000 | B149: Uncollectible Accounts | C149: 90400000 | D149: 23177.09 | E149: 111214.8 | F149: -314205.17 | H149: -88037.71
A150: %,V90500000 | B150: Misc Cust Accts Exp | C150: 90500000 | D150: 1043.53 | E150: 273.57 | F150: 7443.32 | H150: 769.96
A151: %,FACCOUNT,TNI_ACCOUNT_FERC,XBYYYYY01,NOP_CUST_ACCTS_EXP | B151: Customer Accounts - Oper | D151: 273355.58 | E151: 141720.87 | F151: 1565875.74 | H151: 131634.71
A152: %,V90800000 | B152: Customer Assistance Exp | C152: 90800000 | D152: 0 | E152: 58.87 | F152: 56687.14 | H152: -58.87
A153: %,V91000000 | B153: Misc Cust Serv and Info Exp | C153: 91000000 | D153: 21809.61 | E153: -1302.26 | F153: 178728.39 | H153: 23111.87
A154: %,FACCOUNT,TNI_ACCOUNT_FERC,XBYYYYY01,NOP_CUSTOMER_SERV_EXP | B154: Cust Serv & Info Exp - Oper | D154: 21809.61 | E154: -1243.39 | F154: 235415.53 | H154: 23053
A155: %,V91200000 | B155: Demonstrating and Selling Exp | C155: 91200000 | D155: 357.56 | E155: -294.9 | F155: 3644.52 | H155: 652.46
A156: %,V91300000 | B156: Sales Advertising Exp | C156: 91300000 | D156: 2226.89 | E156: 323.22 | F156: 6265.73 | H156: 1903.67
A157: %,FACCOUNT,TNI_ACCOUNT_FERC,XBYYYYY01,NOP_SALES_EXP | B157: Sales Expenses - Oper | D157: 2584.45 | E157: 28.32 | F157: 9910.25 | H157: 2556.13
A158: %,V92000000 | B158: A_G Salaries | C158: 92000000 | D158: 643766.22 | E158: 21433.09 | F158: 5349834.22 | H158: 622333.13
A159: %,V92001000 | B159: Discretionary and Spot Awards | C159: 92001000 | D159: 3620.18 | E159: -2924.35 | F159: 38375.78 | H159: 6544.53
A160: %,V92002000 | B160: Stock Compensation Expense | C160: 92002000 | D160: 80818.59 | E160: 5898.46 | F160: 483724.93 | H160: 74920.13
A161: %,V92100000 | B161: Office Supplies and Exp | C161: 92100000 | D161: 49051.44 | E161: -10713.19 | F161: 532075.41 | H161: 59764.63
A162: %,V92101000 | B162: Employee Expenses | C162: 92101000 | D162: 17257.46 | E162: 4719.33 | F162: 115340.18 | H162: 12538.13
A163: %,V92300000 | B163: Outside Service Employed | C163: 92300000 | D163: 603214 | E163: 168631.36 | F163: 3640895.89 | H163: 434582.64
A164: %,V92301000 | B164: Mgmt Fee Actuals-Affil | C164: 92301000 | D164: 160888.39 | E164: 4467.53 | F164: 1263909.38 | H164: 156420.86
A165: %,V92400000 | B165: Property Insurance | C165: 92400000 | D165: -58234.12 | E165: -127553.65 | F165: 34075.37 | H165: 69319.53
A166: %,V92500000 | B166: Injuries and Damages | C166: 92500000 | D166: 174684.7 | E166: -752.82 | F166: 1441894.12 | H166: 175437.52
A167: %,V92600000 | B167: Employee Pensions and Benefits | C167: 92600000 | D167: 272283.33 | E167: -115962.84 | F167: 2647352.19 | H167: 388246.17
A168: %,V92601000 | B168: Non Service Pension & OPEB | C168: 92601000 | D168: -78140.01 | E168: 0 | F168: -400545.38 | H168: -78140.01
A169: %,V92800000 | B169: Regulatory Commission Exp | C169: 92800000 | D169: 22644.82 | E169: 10.05 | F169: 181178.61 | H169: 22634.77
A170: %,V93010000 | B170: General Advertising Exp | C170: 93010000 | D170: 127.2 | E170: 89.46 | F170: 8381.24 | H170: 37.74
A171: %,V93020000 | B171: Misc General Exp | C171: 93020000 | D171: -1072.91 | E171: -18618.25 | F171: 25365.13 | H171: 17545.34
A172: %,V93100000 | B172: Rents Admin and General | C172: 93100000 | D172: 72749.28 | E172: -992.35 | F172: 597576.64 | H172: 73741.63
A173: %,FACCOUNT,TNI_ACCOUNT_FERC,XBYYYYY01,NOP_ADMIN_GEN | B173: Admin & General Exp - Oper | D173: 1963658.57 | E173: -72268.17 | F173: 15959433.71 | H173: 2035926.74
B174: Total Operation Expenses | D174: =D93+D94+D95+D120+D121+D122+D123+D125+D126+D131+D132+D145+D151+D154+D157+D173 -> 4773795.35 | E174: =E93+E94+E95+E120+E121+E122+E123+E125+E126+E131+E132+E145+E151+E154+E157+E173 -> -526316.49 | F174: =F93+F94+F95+F120+F121+F122+F123+F125+F126+F131+F132+F145+F151+F154+F157+F173 -> 60345385.27
B176: Maintenance Expenses
A178: %,FACCOUNT,TNI_ACCOUNT_FERC,XBYYYYY01,NMAINT_PROD_EXP | B178: Production Expenses - Maint | D178: 0 | E178: =D178-H178 -> 0 | F178: 0
A179: %,FACCOUNT,TNI_ACCOUNT_FERC,XBYYYYY01,NMAINT_NG_STOR_PROC | B179: NG Stor, Term & Proc - Maint | D179: 0 | E179: 0 | F179: 0
A181: %,V56920000 | B181: Maint of Computer Software | C181: 56920000 | D181: 0 | E181: =D181-H181 -> 0 | F181: 0 | H181: 0
A182: %,NMAINT_ELEC_TRANS_EXP | B182: Transmission Exp - Maint-Elec | D182: 0 | E182: 0 | F182: 0 | H182: 0
A183: %,V86600000 | B183: Trans Maint Commun Equip | C183: 86600000 | D183: 0 | E183: 0 | F183: 30255 | H183: 0
A184: %,NMAINT_GAS_TRANS_EXP | B184: Transmission Exp - Maint-Gas | D184: 0 | E184: 0 | F184: 30255 | H184: 0
A185: %,FACCOUNT,TNI_ACCOUNT_FERC,XBYYYYY01,NMAINT_TRANS_EXP | B185: Transmission Exp - Maint | D185: 0 | E185: 0 | F185: 30255 | H185: 0
A187: %,V88500000 | B187: Maint Supv-Eng-Gas Distr | C187: 88500000 | D187: 6732.29 | E187: =D187-H187 -> 1067.77 | F187: 55371.99 | H187: 5664.52
A188: %,V88600000 | B188: Maint Struct-Improv-Gas Distr | C188: 88600000 | D188: 16916.08 | E188: -11291.2 | F188: 80515.02 | H188: 28207.28
A189: %,V88700000 | B189: Maint of Mains | C189: 88700000 | D189: 399634.13 | E189: 223472.61 | F189: 1687022.76 | H189: 176161.52
A190: %,V88900000 | B190: Maint Msr-Reg Statn Equi Gen | C190: 88900000 | D190: 74441.41 | E190: 8232.18 | F190: 431936.24 | H190: 66209.23
A191: %,V89000000 | B191: Maint Meas_Reg Stn Equip-Distr | C191: 89000000 | D191: 5304.5 | E191: -1881.86 | F191: 53626.59 | H191: 7186.36
A192: %,V89200000 | B192: Maint of Services | C192: 89200000 | D192: 90054.82 | E192: 7368.74 | F192: 659413.36 | H192: 82686.08
A193: %,V89300000 | B193: Maint Meters_House Regulators | C193: 89300000 | D193: 22782.85 | E193: -14247.56 | F193: 154353.61 | H193: 37030.41
A194: %,V89400000 | B194: Other Maint Equipment | C194: 89400000 | D194: 32243.83 | E194: 12734.28 | F194: 262350.61 | H194: 19509.55
A195: %,NMAINT_GAS_DISTR_EXP | B195: Distribution Exp - Maint-Gas | D195: 648109.91 | E195: 225454.96 | F195: 3384590.18 | H195: 422654.95
A196: %,FACCOUNT,TNI_ACCOUNT_FERC,XBYYYYY01,NMAINT_DISTR_EXP | B196: Distribution Exp - Maint | D196: 648109.91 | E196: 225454.96 | F196: 3384590.18 | H196: 422654.95
A197: %,V93200000 | B197: Maint General Plant | C197: 93200000 | D197: 87981.52 | E197: =D197-H197 -> -12548.28 | F197: 898284.45 | H197: 100529.8
A198: %,FACCOUNT,TNI_ACCOUNT_FERC,XBYYYYY01,NMAINT_ADMIN_GEN | B198: Maintenance Gen and Admin | D198: 87981.52 | E198: -12548.28 | F198: 898284.45 | H198: 100529.8
B199: Total Maintenance Expenses | D199: =D178+D179+D185+D196+D198 -> 736091.43 | E199: =E178+E179+E185+E196+E198 -> 212906.68 | F199: 4313129.63
A201: %,V40300000 | B201: Dep Exp | C201: 40300000 | D201: 1242723.79 | E201: =D201-H201 -> 8712.52 | F201: 9715585.38 | H201: 1234011.27
A202: %,FACCOUNT,TNI_ACCOUNT_FERC,XBYYYYY01,NDEPRECIATION_EXPENSE | B202: Depreciation Expense | D202: 1242723.79 | E202: =D202-H202 -> 8712.52 | F202: 9715585.38 | H202: 1234011.27
A203: %,FACCOUNT,TNI_ACCOUNT_FERC,XBYYYYY01,NDEPRECIATION_ARO_EXP | B203: Depreciation Expense for AROs | D203: 0 | E203: 0 | F203: 0
A205: %,V40430000 | B205: Amortization Exp-Other | C205: 40430000 | D205: 35092.96 | E205: =D205-H205 -> 272.56 | F205: 278343.82 | H205: 34820.4
A206: %,V40434000 | B206: Cloude Amortizaiton Expense | C206: 40434000 | D206: 19372.56 | E206: -3428.55 | F206: 99757.06 | H206: 22801.11
A207: %,NAMORT_LMT_TERM_PROP | B207: Amort of Limited-Term Property | D207: 54465.52 | E207: -3155.99 | F207: 378100.88 | H207: 57621.51
A208: %,V40500000 | B208: Amortization of Oth Plant | C208: 40500000 | D208: 137534.76 | E208: 15910.22 | F208: 879718.15 | H208: 121624.54
A209: %,NAMORT_OTH_PROP | B209: Amort of Other Property | D209: 137534.76 | E209: 15910.22 | F209: 879718.15 | H209: 121624.54
A210: %,FACCOUNT,TNI_ACCOUNT_FERC,XBYYYYY01,NAMORT_DEPL_UTIL | B210: Amort & Deplet of Util Plant | D210: 192000.28 | E210: 12754.23 | F210: 1257819.03 | H210: 179246.05
A211: %,FACCOUNT,TNI_ACCOUNT_FERC,XBYYYYY01,NAMORT_UTIL_ADJ | B211: Amort of Gas Plant Acq Adj | D211: 0 | E211: 0 | F211: 0
A212: %,FACCOUNT,TNI_ACCOUNT_FERC,XBYYYYY01,NAMORT_CONV_EXP | B212: Amort of Conversion Exp | D212: 0 | E212: 0 | F212: 0
A213: %,FACCOUNT,TNI_ACCOUNT_FERC,XBYYYYY01,NREG_DEBITS | B213: Reg Debits | D213: 0 | E213: 0 | F213: 0
A214: %,FACCOUNT,TNI_ACCOUNT_FERC,XBYYYYY01,NREG_CREDITS | B214: Reg Credits | D214: 0 | E214: 0 | F214: 0
A215: %,V40813100 | B215: Tax Exp-License_Franchise | C215: 40813100 | D215: 0 | E215: 0 | F215: 3000 | H215: 0
A216: %,V40813200 | B216: Tax Exp-Property | C216: 40813200 | D216: 548738.42 | E216: 0 | F216: 4086862.35 | H216: 548738.42
A217: %,V40813300 | B217: Tax Exp-Sales and Use Tax | C217: 40813300 | D217: 0.03 | E217: 0 | F217: 0.04 | H217: 0.03
A218: %,V40813400 | B218: Tax Exp-Gross Receipts | C218: 40813400 | D218: 0 | E218: 0 | F218: 0 | H218: 0
A219: %,V40813600 | B219: Tax Exp-State and Local-Oth | C219: 40813600 | D219: 0 | E219: 0 | F219: 0 | H219: 0
A220: %,V40814100 | B220: Tax Exp-Payroll-Incentive | C220: 40814100 | D220: 5148.82 | E220: 0 | F220: 3631.16 | H220: 5148.82
A221: %,V40814500 | B221: Tax Exp-Payroll FICA-OASDI | C221: 40814500 | D221: 55143.45 | E221: -13.36 | F221: 475731.54 | H221: 55156.81
... 93 more rows

Sheet Sep21
A1: %,LACTUALS,UPOSTED_TRAN_AMT | B1: %,ATF,FDESCR,UDESCR | C1: %,ATT,FACCOUNT | D1: %,LACTUALS,UPOSTED_TRAN_AMT,SPER,FBOOK_CODE,VR | E1: %,C | F1: %,LACTUALS,UPOSTED_TRAN_AMT,SYTD,FBOOK_CODE,VR | H1: %,LACTUALS,UPOSTED_TRAN_AMT,SPER-1,FBOOK_CODE,VR
B2: Columbia Gas of Kentucky Inc | H2: FOR
B3: Income Statement-FERC | H3: CALC
B4: Regulatory View - FERC Account
B5: For the Month Ended September 30, 2021 | H5: PURPOSES
B6: For Internal Use Only | H6: ONLY
D8: Current | E8: Change from | F8: Year-To- | H8: Prior
D9: Month | E9: Prior Month | F9: Date | H9: Month
B11: Operating Revenues
A13: %,V48000000 | B13: Residential Sales | C13: 48000000 | D13: 3467267.54 | E13: =D13-H13 -> 98604.87 | F13: 64083616.41 | H13: 3368662.67
A14: %,V48000100 | B14: Residential Sales Norm | C14: 48000100 | D14: 3343.78 | E14: 3381.28 | F14: 10285.87 | H14: -37.5
A15: %,R,FACCOUNT,TNI_ACCOUNT_FERC,XBYYYYY01,NGAS_RESID_REV | B15: Gas Residential Sales | D15: 3470611.32 | E15: =D15-H15 -> 101986.15 | F15: 64093902.28 | H15: 3368625.17
A17: %,V48101000 | B17: Commercial Gas Sales | C17: 48101000 | D17: 1603049.42 | E17: =D17-H17 -> 72067.84 | F17: 26684904.65 | H17: 1530981.58
A18: %,V48101200 | B18: Commercial Gas Sales Norm | C18: 48101200 | D18: 3370.93 | E18: 3410.2 | F18: 6975.25 | H18: -39.27
A19: %,NGAS_COMM_REV | B19: Gas Commercial Revenues | D19: 1606420.35 | E19: 75478.04 | F19: 26691879.9 | H19: 1530942.31
A20: %,V48102000 | B20: Industrial Gas Sales | C20: 48102000 | D20: 58078.84 | E20: -10612.05 | F20: 1261749.05 | H20: 68690.89
A21: %,V48102300 | B21: Industrial Gas Sales Norm | C21: 48102300 | D21: 274.35 | E21: 278.27 | F21: 494.97 | H21: -3.92
A22: %,NGAS_INDUST_REV | B22: Gas Industrial Revenues | D22: 58353.19 | E22: -10333.78 | F22: 1262244.02 | H22: 68686.97
A23: %,V48103000 | B23: Gas Sales-Other | C23: 48103000 | D23: 0 | E23: 0 | F23: 136.08 | H23: 0
A24: %,NGAS_OTHER_REV | B24: Gas Comm & Indust Other Rev | D24: 0 | E24: 0 | F24: 136.08 | H24: 0
A25: %,R,FACCOUNT,TNI_ACCOUNT_FERC,XBYYYYY01,NGAS_COMM_INDUST_REV | B25: Gas Comm & Indust Revenues | D25: 1664773.54 | E25: 65144.26 | F25: 27954260 | H25: 1599629.28
A26: %,V48300000 | B26: Sales for Resale-Gas | C26: 48300000 | D26: 3690.2 | E26: =D26-H26 -> 260.79 | F26: 62343.53 | H26: 3429.41
A27: %,R,FACCOUNT,TNI_ACCOUNT_FERC,XBYYYYY01,NGAS_SALES_RESALE | B27: Gas Sales for Resale | D27: 3690.2 | E27: 260.79 | F27: 62343.53 | H27: 3429.41
A28: %,R,FACCOUNT,TNI_ACCOUNT_FERC,XBYYYYY01,NGAS_INTERDEPT_SALES | B28: Gas Interdepartmental Sales | D28: 0 | E28: 0 | F28: 0
A29: %,R,FACCOUNT,TNI_ACCOUNT_FERC,XBYYYYY01,NGAS_INTRACO_TRANSFER | B29: Gas Intercompany Transfers | D29: 0 | E29: =D29-H29 -> 0 | F29: 0
A30: xx | B30: Total Sales of Gas | D30: =D15+D25+D27+D28+D29 -> 5139075.06 | E30: =E15+E25+E27+E28+E29 -> 167391.2 | F30: =F15+F25+F27+F28+F29 -> 92110505.81
A32: %,R,FACCOUNT,TNI_ACCOUNT_FERC,XBYYYYY01,NELE_RESID_REV | B32: Electric Residential Revenues | D32: 0 | E32: =D32-H32 -> 0 | F32: 0
A33: %,R,FACCOUNT,TNI_ACCOUNT_FERC,XBYYYYY01,NELE_COMM_IND_REV | B33: Elec Comm & Indust Rev | D33: 0 | E33: 0 | F33: 0
A34: %,R,FACCOUNT,TNI_ACCOUNT_FERC,XBYYYYY01,NELE_STREET_HWY_LIGHT | B34: Public Street & Hwy Lighting | D34: 0 | E34: 0 | F34: 0
A35: %,R,FACCOUNT,TNI_ACCOUNT_FERC,XBYYYYY01,NELE_OTH_SALES_PUBLIC | B35: Elec Oth Sales to Public Auth | D35: 0 | E35: 0 | F35: 0
A36: %,R,FACCOUNT,TNI_ACCOUNT_FERC,XBYYYYY01,NELE_RAILROAD | B36: Sales to Railroads & Railways | D36: 0 | E36: 0 | F36: 0
A37: %,R,FACCOUNT,TNI_ACCOUNT_FERC,XBYYYYY01,NELE_SALES_RESALE | B37: Electric Sales for Resale | D37: 0 | E37: 0 | F37: 0
A38: %,R,FACCOUNT,TNI_ACCOUNT_FERC,XBYYYYY01,NELE_INTERDEPT_SALES | B38: Elec Interdepartmental Sales | D38: 0 | E38: 0 | F38: 0
A39: xx | B39: Total Sales of Electricity | D39: =D32+D33+D34+D35+D36+D37+D38 -> 0 | E39: =E32+E33+E34+E35+E36+E37+E38 -> 0 | F39: 0
A41: %,V48700000 | B41: Forfeited Discounts-Gas | C41: 48700000 | D41: 24965.64 | E41: =D41-H41 -> -745.87 | F41: 453535.53 | H41: 25711.51
A42: %,R,FACCOUNT,TNI_ACCOUNT_FERC,XBYYYYY01,NFORFEITED_DISC_GAS | B42: Forfeited Discounts - Gas | D42: 24965.64 | E42: =D42-H42 -> -745.87 | F42: 453535.53 | H42: 25711.51
A43: %,R,FACCOUNT,TNI_ACCOUNT_FERC,XBYYYYY01,NFORFEITED_DISC_ELE | B43: Forfeited Discounts - Ele | D43: 0 | E43: 0 | F43: 0
B44: Total Forfeited Discounts | D44: =D42+D43 -> 24965.64 | E44: =E42+E43 -> -745.87 | F44: 453535.53
A46: %,V48800000 | B46: Misc Service Revenues-Gas | C46: 48800000 | D46: 9250.01 | E46: =D46-H46 -> -3945.86 | F46: 71864.15 | H46: 13195.87
A47: %,R,FACCOUNT,TNI_ACCOUNT_FERC,XBYYYYY01,NMISC_SERV_REVS_GAS | B47: Misc Service Revenues - Gas | D47: 9250.01 | E47: =D47-H47 -> -3945.86 | F47: 71864.15 | H47: 13195.87
A48: %,R,FACCOUNT,TNI_ACCOUNT_FERC,XBYYYYY01,NMISC_SERV_REVS_ELE | B48: Misc Service Revenues - Ele | D48: 0 | E48: 0 | F48: 0
B49: Total Miscellaneous Service Revenues | D49: =D47+D48 -> 9250.01 | E49: =E47+E48 -> -3945.86 | F49: 71864.15
A51: %,R,FACCOUNT,TNI_ACCOUNT_FERC,XBYYYYY01,NRENT_ELE_PROP | B51: Rent from Electricity Property | D51: 0 | E51: =D51-H51 -> 0 | F51: 0
A52: %,R,FACCOUNT,TNI_ACCOUNT_FERC,XBYYYYY01,NOTH_ELE_REV | B52: Other Electric Revenues | D52: 0 | E52: 0 | F52: 0
A53: %,R,FACCOUNT,TNI_ACCOUNT_FERC,XBYYYYY01,NOTH_ELE_TRANS_REV | B53: Rev Transm of Elec of Oth | D53: 0 | E53: 0 | F53: 0
A54: %,R,FACCOUNT,TNI_ACCOUNT_FERC,XBYYYYY01,NOTH_REV_SERVICE_CO | B54: Nonutility Revenues - Serv Co | D54: 0 | E54: 0 | F54: 0
A55: %,R,FACCOUNT,TNI_ACCOUNT_FERC,XBYYYYY01,NREG_ELE_TRANS_REV | B55: Regional Transm Service Rev | D55: 0 | E55: 0 | F55: 0
A56: %,R,FACCOUNT,TNI_ACCOUNT_FERC,XBYYYYY01,NTRANSPORT_GATH_REV | B56: Rev Transp Gas of Oth - Gather | D56: 0 | E56: 0 | F56: 0
A57: %,R,FACCOUNT,TNI_ACCOUNT_FERC,XBYYYYY01,NTRANSPORT_TRANS_REV | B57: Rev Transp Gas of Oth - Transm | D57: 0 | E57: 0 | F57: 0
A58: %,V48930000 | B58: Transp Rev Distr Residential | C58: 48930000 | D58: 399357.63 | E58: -2122.35 | F58: 5854713.78 | H58: 401479.98
A59: %,V48930200 | B59: Unbilled Residential Trans Vol | C59: 48930200 | D59: 12648.4 | E59: 17917 | F59: -330287.2 | H59: -5268.6
A60: %,V48930300 | B60: Unbilled Res Trans Cust chrg | C60: 48930300 | D60: -1472 | E60: 0 | F60: -13200 | H60: -1472
A61: %,V48931000 | B61: Transp Rev Distr Commercial | C61: 48931000 | D61: 489486.69 | E61: 91961.82 | F61: 6430308 | H61: 397524.87
A62: %,V48931300 | B62: Unbilled Comm Trans Vol | C62: 48931300 | D62: 7165.28 | E62: 16743.18 | F62: -233768.75 | H62: -9577.9
A63: %,V48931400 | B63: Unbilled Comm Trans Cust chrg | C63: 48931400 | D63: -491.59 | E63: 223.45 | F63: 1832.29 | H63: -715.04
A64: %,V48932000 | B64: Transp Rev Distr Industrial | C64: 48932000 | D64: 417544.55 | E64: -1097.93 | F64: 3969681.55 | H64: 418642.48
A65: %,V48932400 | B65: Unbilled Ind Trans Vol | C65: 48932400 | D65: 46.4 | E65: 637.22 | F65: -1090.64 | H65: -590.82
A66: %,V48932500 | B66: Unbilled Ind Trans Cust chrg | C66: 48932500 | D66: 0 | E66: 0 | F66: 0 | H66: 0
A67: %,R,FACCOUNT,TNI_ACCOUNT_FERC,XBYYYYY01,NTRANSPORT_DISTR_REV | B67: Rev Transp Gas of Oth - Distr | D67: 1324285.36 | E67: 124262.39 | F67: 15678189.03 | H67: 1200022.97
A68: %,R,FACCOUNT,TNI_ACCOUNT_FERC,XBYYYYY01,NSTORE_GAS_REV | B68: Rev from Storing Gas of Oth | D68: 0 | E68: 0 | F68: 0
A69: %,R,FACCOUNT,TNI_ACCOUNT_FERC,XBYYYYY01,NSALES_EXTRACT_GAS | B69: Sales - Prod Extracted from NG | D69: 0 | E69: 0 | F69: 0
A70: %,R,FACCOUNT,TNI_ACCOUNT_FERC,XBYYYYY01,NGAS_OIL_SALES | B70: Incidental Gasoline & Oil Sale | D70: 0 | E70: 0 | F70: 0
A71: %,V49300000 | B71: Rent from Gas Property | C71: 49300000 | D71: 2852 | E71: =D71-H71 -> 0 | F71: 25668 | H71: 2852
A72: %,R,FACCOUNT,TNI_ACCOUNT_FERC,XBYYYYY01,NRENT_GAS_PROP | B72: Rent from Gas Property | D72: 2852 | E72: 0 | F72: 25668 | H72: 2852
A74: %,V49500485 | B74: Unbilled Residential-Vol | C74: 49500485 | D74: 164965.45 | E74: =D74-H74 -> 148011.26 | F74: -5749348.5 | H74: 16954.19
A75: %,V49501485 | B75: Unbilled Res Customer Chrg | C75: 49501485 | D75: -2096 | E75: 1216 | F75: -29135.8 | H75: -3312
A76: %,V49503483 | B76: Unbilled Off System Sales | C76: 49503483 | D76: 0 | E76: 0 | F76: 0 | H76: 0
A77: %,V49510485 | B77: Unbilled Commercial-Vol | C77: 49510485 | D77: 62921.49 | E77: -10408.48 | F77: -2058559.19 | H77: 73329.97
A78: %,V49511485 | B78: Unbilled Comm Customer Chrg | C78: 49511485 | D78: -1027.87 | E78: 849.11 | F78: -17026.89 | H78: -1876.98
A79: %,V49520485 | B79: Unbilled Industrial-Vol | C79: 49520485 | D79: 32.65 | E79: -997.68 | F79: -43236.75 | H79: 1030.33
A80: %,V49521485 | B80: Unbilled Ind Customer Chrg | C80: 49521485 | D80: 0 | E80: -44.69 | F80: 0 | H80: 44.69
A81: %,NUNBILLED_REV_FERC | B81: Unbilled Revenues | D81: 224795.72 | E81: 138625.52 | F81: -7897307.13 | H81: 86170.2
A82: %,V49500000 | B82: Other Gas Revenue | C82: 49500000 | D82: 13116.31 | E82: 2231.35 | F82: 273655.98 | H82: 10884.96
A83: %,V49500050 | B83: Billed Off System Sales | C83: 49500050 | D83: 1423430.63 | E83: 1020639.89 | F83: 4029867.9 | H83: 402790.74
A84: %,R,FACCOUNT,TNI_ACCOUNT_FERC,XBYYYYY01,NOTH_GAS_REV | B84: Other Gas Revenues | D84: 1661342.66 | E84: 1161496.76 | F84: -3593783.25 | H84: 499845.9
A85: %,R,FACCOUNT,TNI_ACCOUNT_FERC,XBYYYYY01,NGAS_PROV_RATE_REFUND | B85: Gas Provision of Rate Refunds | D85: 0 | E85: 0 | F85: 0
B86: Total Other Operating Revenues | D86: =D44+D49+D51+D52+D53+D54+D55+D56+D57+D67+D68+D69+D70+D72+D84+D85 -> 3022695.67 | E86: =E44+E49+E51+E52+E53+E54+E55+E56+E57+E67+E68+E69+E70+E72+E84+E85 -> 1281067.42 | F86: 12635473.46
A87: xx | B87: Total Operating Revenues | D87: =D30+D39+D86 -> 8161770.73 | E87: =E30+E39+E86 -> 1448458.62 | F87: =F30+F39+F86 -> 104745979.3
B89: Operating Expenses
B91: Operation Expenses
A93: %,FACCOUNT,TNI_ACCOUNT_FERC,XBYYYYY01,NOP_MANUF_GAS | B93: Manufac Gas Production - Oper | D93: 0 | E93: =D93-H93 -> 0 | F93: 0
A94: %,FACCOUNT,TNI_ACCOUNT_FERC,XBYYYYY01,NOP_NTRLGAS_PROD_GTH | B94: NG Production & Gather - Oper | D94: 0 | E94: 0 | F94: 0
A95: %,FACCOUNT,TNI_ACCOUNT_FERC,XBYYYYY01,NOP_PROD_EXTRACT | B95: Products Extraction - Oper | D95: 0 | E95: 0 | F95: 0
A97: %,V80100000 | B97: Natural gas field line purchas | C97: 80100000 | D97: 49818.55 | E97: =D97-H97 -> 10524.16 | F97: 292786.63 | H97: 39294.39
A98: %,NOP_NG_PURCH_FIELD | B98: NG Well Head Purchases | D98: 49818.55 | E98: 10524.16 | F98: 292786.63 | H98: 39294.39
A99: %,V80300300 | B99: Short Term Producer Purch | C99: 80300300 | D99: 5514907.36 | E99: -867913.51 | F99: 38311097.78 | H99: 6382820.87
A100: %,V80300400 | B100: Transportation Pipeline Exp | C100: 80300400 | D100: 723701.31 | E100: -2500.8 | F100: 7020019.44 | H100: 726202.11
A101: %,V80300500 | B101: Storage Charges Pipeline Exp | C101: 80300500 | D101: -90731.28 | E101: -11054.83 | F101: -2701357.94 | H101: -79676.45
A102: %,V80300600 | B102: OFS_System Supply Credit | C102: 80300600 | D102: -100889.37 | E102: -25252.86 | F102: -486413.05 | H102: -75636.51
A103: %,V80300808 | B103: Storage Demand | C103: 80300808 | D103: 1502153.14 | E103: 0 | F103: 12640526.74 | H103: 1502153.14
A104: %,NOP_NG_PURCH_TRANSLIN | B104: NG Transmission Line Purchases | D104: 7549141.16 | E104: -906722 | F104: 54783872.97 | H104: 8455863.16
A105: %,V80400000 | B105: Natural Gas City Gate Purchase | C105: 80400000 | D105: 9705.66 | E105: -12328.99 | F105: 1196782.96 | H105: 22034.65
A106: %,NOP_NG_PURCH_CITYGATE | B106: NG City Gate Purchases | D106: 9705.66 | E106: -12328.99 | F106: 1196782.96 | H106: 22034.65
A107: %,V80510000 | B107: Purchased Gas Cost Adjustments | C107: 80510000 | D107: -2922908.41 | E107: 743202.13 | F107: -13040847.06 | H107: -3666110.54
A108: %,NOP_NG_PURCH_ADJUST | B108: Purchased Gas Cost Adjustments | D108: -2922908.41 | E108: 743202.13 | F108: -13040847.06 | H108: -3666110.54
A109: %,V80601000 | B109: Exchange Gas-Received | C109: 80601000 | D109: 1700350.09 | E109: 1329370.22 | F109: -130770.71 | H109: 370979.87
A110: %,NOP_NG_PURCH_EXCHANGE | B110: Exchange Gas | D110: 1700350.09 | E110: 1329370.22 | F110: -130770.71 | H110: 370979.87
A111: %,V80720000 | B111: Oper-Purch Gas Measrg Stations | C111: 80720000 | D111: 28256.46 | E111: -3132.98 | F111: 295910.77 | H111: 31389.44
A112: %,V80751000 | B112: Purch Gas Exp - Mgmt Fee | C112: 80751000 | D112: 4145.5 | E112: -114.87 | F112: 42942.38 | H112: 4260.37
A113: %,NOP_NG_PURCH_EXPENSE | B113: Purchased Gas Expenses | D113: 32401.96 | E113: -3247.85 | F113: 338853.15 | H113: 35649.81
A114: %,V80810000 | B114: Gas Withdrawn | C114: 80810000 | D114: 738533.04 | E114: -267043.82 | F114: 17681682.4 | H114: 1005576.86
A115: %,NOP_NG_PURCH_WITHDRAW | B115: Gas Withdrawn from Storage | D115: 738533.04 | E115: -267043.82 | F115: 17681682.4 | H115: 1005576.86
A116: %,V80820000 | B116: Gas Delivered | C116: 80820000 | D116: -4383898 | E116: 486891.5 | F116: -24775977.79 | H116: -4870789.5
A117: %,NOP_NG_PURCH_DELIVER | B117: Gas Delivered to Storage | D117: -4383898 | E117: 486891.5 | F117: -24775977.79 | H117: -4870789.5
A118: %,V81220000 | B118: Gas Used-Other-Offset | C118: 81220000 | D118: -3310.45 | E118: -631.42 | F118: -74241.19 | H118: -2679.03
A119: %,NOP_NG_PURCH_OTHOPS | B119: Gas Used for Other Utility Ops | D119: -3310.45 | E119: -631.42 | F119: -74241.19 | H119: -2679.03
A120: %,FACCOUNT,TNI_ACCOUNT_FERC,XBYYYYY01,NOP_OTH_GAS_SUPPLY | B120: Other Gas Supply - Operations | D120: 2769833.6 | E120: 1380013.93 | F120: 36272141.36 | H120: 1389819.67
A121: %,FACCOUNT,TNI_ACCOUNT_FERC,XBYYYYY01,NOP_STEAM_POWER | B121: Steam Power - Operations | D121: 0 | E121: 0 | F121: 0
A122: %,FACCOUNT,TNI_ACCOUNT_FERC,XBYYYYY01,NOP_HYDRAULIC_POWER | B122: Hydraulic Power - Operations | D122: 0 | E122: 0 | F122: 0
A123: %,FACCOUNT,TNI_ACCOUNT_FERC,XBYYYYY01,NOP_OTHER_POWER | B123: Other Power - Operations | D123: 0 | E123: 0 | F123: 0
A124: %,V55700000 | B124: Other Exp | C124: 55700000 | D124: 182.58 | E124: =D124-H124 -> 182.58 | F124: 330.3 | H124: 0
A125: %,FACCOUNT,TNI_ACCOUNT_FERC,XBYYYYY01,NOP_OTH_POWER_SUPPLY | B125: Other Power Supply - Oper | D125: 182.58 | E125: =D125-H125 -> 182.58 | F125: 330.3 | H125: 0
A126: %,FACCOUNT,TNI_ACCOUNT_FERC,XBYYYYY01,NOP_NG_STOR_TERM_PROC | B126: NG Stor, Term & Proc - Oper | D126: 0 | E126: 0 | F126: 0
A128: %,V85200030 | B128: Communication System Exp | C128: 85200030 | D128: 303.31 | E128: =D128-H128 -> 302.32 | F128: 4712.43 | H128: 0.99
A129: %,V85900000 | B129: Gas Transmission Exp | C129: 85900000 | D129: 0 | E129: 0 | F129: 0 | H129: 0
A130: %,NOP_GAS_TRANS_EXP | B130: Transmission Exp - Oper - Gas | D130: 303.31 | E130: 302.32 | F130: 4712.43 | H130: 0.99
A131: %,FACCOUNT,TNI_ACCOUNT_FERC,XBYYYYY01,NOP_TRANS_EXP | B131: Transmission Exp - Oper | D131: 303.31 | E131: 302.32 | F131: 4712.43 | H131: 0.99
A132: %,FACCOUNT,TNI_ACCOUNT_FERC,XBYYYYY01,NOP_REG_MARKET_EXP | B132: Regional Market Exp - Oper | D132: 0 | E132: 0 | F132: 0
A134: %,V87000000 | B134: Op Superv-Eng-Gas Distr | C134: 87000000 | D134: 92710.72 | E134: =D134-H134 -> 18853.63 | F134: 791857.72 | H134: 73857.09
A135: %,V87100000 | B135: Distribution Load Dispatching | C135: 87100000 | D135: 57058.12 | E135: 53199.89 | F135: 159276.03 | H135: 3858.23
A136: %,V87400000 | B136: Mains and Services Exp | C136: 87400000 | D136: 626506.17 | E136: 82121.12 | F136: 5095431.82 | H136: 544385.05
A137: %,V87500000 | B137: Measur-Reg Statn Exp Gen | C137: 87500000 | D137: 16020.46 | E137: -2215.79 | F137: 156650.58 | H137: 18236.25
A138: %,V87600000 | B138: Measur-Reg Statn Exp-Indus | C138: 87600000 | D138: 5581.69 | E138: -2131.17 | F138: 55892.45 | H138: 7712.86
A139: %,V87800000 | B139: Meter and House Regulator Exp | C139: 87800000 | D139: 143847.21 | E139: 19145.4 | F139: 1123767.74 | H139: 124701.81
A140: %,V87900000 | B140: Oper Installation Service Exp | C140: 87900000 | D140: 272323.81 | E140: 8050.12 | F140: 2167458.27 | H140: 264273.69
A141: %,V87900200 | B141: Oper Install-Chrg Labor | C141: 87900200 | D141: 0 | E141: -183.49 | F141: 211.52 | H141: 183.49
A142: %,V88000000 | B142: Operations Exp Other | C142: 88000000 | D142: 87054.45 | E142: 3205.53 | F142: 808574.59 | H142: 83848.92
A143: %,V88100000 | B143: Gas Distr Rents | C143: 88100000 | D143: 2906.16 | E143: 1397.07 | F143: 12773.51 | H143: 1509.09
A144: %,NOP_GAS_DISTR_EXP | B144: Distribution Exp - Oper - Gas | D144: 1304008.79 | E144: 181442.31 | F144: 10371894.23 | H144: 1122566.48
A145: %,FACCOUNT,TNI_ACCOUNT_FERC,XBYYYYY01,NOP_DISTR_EXP | B145: Distribution Exp - Oper | D145: 1304008.79 | E145: 181442.31 | F145: 10371894.23 | H145: 1122566.48
A146: %,V90100000 | B146: Customer Acnt Supervision | C146: 90100000 | D146: 0.09 | E146: 0.09 | F146: 181.97 | H146: 0
A147: %,V90200000 | B147: Cust Accnt Meter Reading Exp | C147: 90200000 | D147: 17245.05 | E147: -11397.26 | F147: 166378.62 | H147: 28642.31
A148: %,V90300000 | B148: Cust Records Collection Exp | C148: 90300000 | D148: 215401.33 | E148: -5091.32 | F148: 1938723.47 | H148: 220492.65
A149: %,V90400000 | B149: Uncollectible Accounts | C149: 90400000 | D149: 63610.76 | E149: 40433.67 | F149: -250594.41 | H149: 23177.09
A150: %,V90500000 | B150: Misc Cust Accts Exp | C150: 90500000 | D150: 777.51 | E150: -266.02 | F150: 8220.83 | H150: 1043.53
A151: %,FACCOUNT,TNI_ACCOUNT_FERC,XBYYYYY01,NOP_CUST_ACCTS_EXP | B151: Customer Accounts - Oper | D151: 297034.74 | E151: 23679.16 | F151: 1862910.48 | H151: 273355.58
A152: %,V90800000 | B152: Customer Assistance Exp | C152: 90800000 | D152: 19770 | E152: 19770 | F152: 76457.14 | H152: 0
A153: %,V91000000 | B153: Misc Cust Serv and Info Exp | C153: 91000000 | D153: 21294.37 | E153: -515.24 | F153: 200022.76 | H153: 21809.61
A154: %,FACCOUNT,TNI_ACCOUNT_FERC,XBYYYYY01,NOP_CUSTOMER_SERV_EXP | B154: Cust Serv & Info Exp - Oper | D154: 41064.37 | E154: 19254.76 | F154: 276479.9 | H154: 21809.61
A155: %,V91200000 | B155: Demonstrating and Selling Exp | C155: 91200000 | D155: 0 | E155: -357.56 | F155: 3644.52 | H155: 357.56
A156: %,V91300000 | B156: Sales Advertising Exp | C156: 91300000 | D156: 3184.33 | E156: 957.44 | F156: 9450.06 | H156: 2226.89
A157: %,FACCOUNT,TNI_ACCOUNT_FERC,XBYYYYY01,NOP_SALES_EXP | B157: Sales Expenses - Oper | D157: 3184.33 | E157: 599.88 | F157: 13094.58 | H157: 2584.45
A158: %,V92000000 | B158: A_G Salaries | C158: 92000000 | D158: 977820.53 | E158: 334054.31 | F158: 6327654.75 | H158: 643766.22
A159: %,V92001000 | B159: Discretionary and Spot Awards | C159: 92001000 | D159: 5902.8 | E159: 2282.62 | F159: 44278.58 | H159: 3620.18
A160: %,V92002000 | B160: Stock Compensation Expense | C160: 92002000 | D160: 196901.94 | E160: 116083.35 | F160: 680626.87 | H160: 80818.59
A161: %,V92100000 | B161: Office Supplies and Exp | C161: 92100000 | D161: 68956.33 | E161: 19904.89 | F161: 601031.74 | H161: 49051.44
A162: %,V92101000 | B162: Employee Expenses | C162: 92101000 | D162: 16577.6 | E162: -679.86 | F162: 131917.78 | H162: 17257.46
A163: %,V92300000 | B163: Outside Service Employed | C163: 92300000 | D163: 165311.6 | E163: -437902.4 | F163: 3806207.49 | H163: 603214
A164: %,V92301000 | B164: Mgmt Fee Actuals-Affil | C164: 92301000 | D164: 169996.1 | E164: 9107.71 | F164: 1433905.48 | H164: 160888.39
A165: %,V92400000 | B165: Property Insurance | C165: 92400000 | D165: 5241.92 | E165: 63476.04 | F165: 39317.29 | H165: -58234.12
A166: %,V92500000 | B166: Injuries and Damages | C166: 92500000 | D166: 192518.14 | E166: 17833.44 | F166: 1634412.26 | H166: 174684.7
A167: %,V92600000 | B167: Employee Pensions and Benefits | C167: 92600000 | D167: 344909.88 | E167: 72626.55 | F167: 2992262.07 | H167: 272283.33
A168: %,V92601000 | B168: Non Service Pension & OPEB | C168: 92601000 | D168: 7015.66 | E168: 85155.67 | F168: -393529.72 | H168: -78140.01
A169: %,V92800000 | B169: Regulatory Commission Exp | C169: 92800000 | D169: 22634.77 | E169: -10.05 | F169: 203813.38 | H169: 22644.82
A170: %,V93010000 | B170: General Advertising Exp | C170: 93010000 | D170: 1679.77 | E170: 1552.57 | F170: 10061.01 | H170: 127.2
A171: %,V93020000 | B171: Misc General Exp | C171: 93020000 | D171: -9202.55 | E171: -8129.64 | F171: 16162.58 | H171: -1072.91
A172: %,V93100000 | B172: Rents Admin and General | C172: 93100000 | D172: 68721.04 | E172: -4028.24 | F172: 666297.68 | H172: 72749.28
A173: %,FACCOUNT,TNI_ACCOUNT_FERC,XBYYYYY01,NOP_ADMIN_GEN | B173: Admin & General Exp - Oper | D173: 2234985.53 | E173: 271326.96 | F173: 18194419.24 | H173: 1963658.57
B174: Total Operation Expenses | D174: =D93+D94+D95+D120+D121+D122+D123+D125+D126+D131+D132+D145+D151+D154+D157+D173 -> 6650597.25 | E174: =E93+E94+E95+E120+E121+E122+E123+E125+E126+E131+E132+E145+E151+E154+E157+E173 -> 1876801.9 | F174: =F93+F94+F95+F120+F121+F122+F123+F125+F126+F131+F132+F145+F151+F154+F157+F173 -> 66995982.52
B176: Maintenance Expenses
A178: %,FACCOUNT,TNI_ACCOUNT_FERC,XBYYYYY01,NMAINT_PROD_EXP | B178: Production Expenses - Maint | D178: 0 | E178: =D178-H178 -> 0 | F178: 0
A179: %,FACCOUNT,TNI_ACCOUNT_FERC,XBYYYYY01,NMAINT_NG_STOR_PROC | B179: NG Stor, Term & Proc - Maint | D179: 0 | E179: 0 | F179: 0
A181: %,V56920000 | B181: Maint of Computer Software | C181: 56920000 | D181: 0 | E181: =D181-H181 -> 0 | F181: 0 | H181: 0
A182: %,NMAINT_ELEC_TRANS_EXP | B182: Transmission Exp - Maint-Elec | D182: 0 | E182: 0 | F182: 0 | H182: 0
A183: %,V86600000 | B183: Trans Maint Commun Equip | C183: 86600000 | D183: 0 | E183: 0 | F183: 30255 | H183: 0
A184: %,NMAINT_GAS_TRANS_EXP | B184: Transmission Exp - Maint-Gas | D184: 0 | E184: 0 | F184: 30255 | H184: 0
A185: %,FACCOUNT,TNI_ACCOUNT_FERC,XBYYYYY01,NMAINT_TRANS_EXP | B185: Transmission Exp - Maint | D185: 0 | E185: 0 | F185: 30255 | H185: 0
A187: %,V88500000 | B187: Maint Supv-Eng-Gas Distr | C187: 88500000 | D187: 7538.44 | E187: =D187-H187 -> 806.15 | F187: 62910.43 | H187: 6732.29
A188: %,V88600000 | B188: Maint Struct-Improv-Gas Distr | C188: 88600000 | D188: 36358.39 | E188: 19442.31 | F188: 116873.41 | H188: 16916.08
A189: %,V88700000 | B189: Maint of Mains | C189: 88700000 | D189: 350145.61 | E189: -49488.52 | F189: 2037168.37 | H189: 399634.13
A190: %,V88900000 | B190: Maint Msr-Reg Statn Equi Gen | C190: 88900000 | D190: 221864.72 | E190: 147423.31 | F190: 653800.96 | H190: 74441.41
A191: %,V89000000 | B191: Maint Meas_Reg Stn Equip-Distr | C191: 89000000 | D191: 7982.94 | E191: 2678.44 | F191: 61609.53 | H191: 5304.5
A192: %,V89200000 | B192: Maint of Services | C192: 89200000 | D192: 88014.54 | E192: -2040.28 | F192: 747427.9 | H192: 90054.82
A193: %,V89300000 | B193: Maint Meters_House Regulators | C193: 89300000 | D193: 55962.72 | E193: 33179.87 | F193: 210316.33 | H193: 22782.85
A194: %,V89400000 | B194: Other Maint Equipment | C194: 89400000 | D194: 15659.91 | E194: -16583.92 | F194: 278010.52 | H194: 32243.83
A195: %,NMAINT_GAS_DISTR_EXP | B195: Distribution Exp - Maint-Gas | D195: 783527.27 | E195: 135417.36 | F195: 4168117.45 | H195: 648109.91
A196: %,FACCOUNT,TNI_ACCOUNT_FERC,XBYYYYY01,NMAINT_DISTR_EXP | B196: Distribution Exp - Maint | D196: 783527.27 | E196: 135417.36 | F196: 4168117.45 | H196: 648109.91
A197: %,V93200000 | B197: Maint General Plant | C197: 93200000 | D197: -9463.79 | E197: =D197-H197 -> -97445.31 | F197: 888820.66 | H197: 87981.52
A198: %,FACCOUNT,TNI_ACCOUNT_FERC,XBYYYYY01,NMAINT_ADMIN_GEN | B198: Maintenance Gen and Admin | D198: -9463.79 | E198: -97445.31 | F198: 888820.66 | H198: 87981.52
B199: Total Maintenance Expenses | D199: =D178+D179+D185+D196+D198 -> 774063.48 | E199: =E178+E179+E185+E196+E198 -> 37972.05 | F199: 5087193.11
A201: %,V40300000 | B201: Dep Exp | C201: 40300000 | D201: 1250279.46 | E201: =D201-H201 -> 7555.67 | F201: 10965864.84 | H201: 1242723.79
A202: %,FACCOUNT,TNI_ACCOUNT_FERC,XBYYYYY01,NDEPRECIATION_EXPENSE | B202: Depreciation Expense | D202: 1250279.46 | E202: =D202-H202 -> 7555.67 | F202: 10965864.84 | H202: 1242723.79
A203: %,FACCOUNT,TNI_ACCOUNT_FERC,XBYYYYY01,NDEPRECIATION_ARO_EXP | B203: Depreciation Expense for AROs | D203: 0 | E203: 0 | F203: 0
A205: %,V40430000 | B205: Amortization Exp-Other | C205: 40430000 | D205: 35342.34 | E205: =D205-H205 -> 249.38 | F205: 313686.16 | H205: 35092.96
A206: %,V40434000 | B206: Cloude Amortizaiton Expense | C206: 40434000 | D206: 21194.97 | E206: 1822.41 | F206: 120952.03 | H206: 19372.56
A207: %,NAMORT_LMT_TERM_PROP | B207: Amort of Limited-Term Property | D207: 56537.31 | E207: 2071.79 | F207: 434638.19 | H207: 54465.52
A208: %,V40500000 | B208: Amortization of Oth Plant | C208: 40500000 | D208: 128708.68 | E208: -8826.08 | F208: 1008426.83 | H208: 137534.76
A209: %,NAMORT_OTH_PROP | B209: Amort of Other Property | D209: 128708.68 | E209: -8826.08 | F209: 1008426.83 | H209: 137534.76
A210: %,FACCOUNT,TNI_ACCOUNT_FERC,XBYYYYY01,NAMORT_DEPL_UTIL | B210: Amort & Deplet of Util Plant | D210: 185245.99 | E210: -6754.29 | F210: 1443065.02 | H210: 192000.28
A211: %,FACCOUNT,TNI_ACCOUNT_FERC,XBYYYYY01,NAMORT_UTIL_ADJ | B211: Amort of Gas Plant Acq Adj | D211: 0 | E211: 0 | F211: 0
A212: %,FACCOUNT,TNI_ACCOUNT_FERC,XBYYYYY01,NAMORT_CONV_EXP | B212: Amort of Conversion Exp | D212: 0 | E212: 0 | F212: 0
A213: %,FACCOUNT,TNI_ACCOUNT_FERC,XBYYYYY01,NREG_DEBITS | B213: Reg Debits | D213: 0 | E213: 0 | F213: 0
A214: %,FACCOUNT,TNI_ACCOUNT_FERC,XBYYYYY01,NREG_CREDITS | B214: Reg Credits | D214: 0 | E214: 0 | F214: 0
A215: %,V40813100 | B215: Tax Exp-License_Franchise | C215: 40813100 | D215: 0 | E215: 0 | F215: 3000 | H215: 0
A216: %,V40813200 | B216: Tax Exp-Property | C216: 40813200 | D216: 548738.42 | E216: 0 | F216: 4635600.77 | H216: 548738.42
A217: %,V40813300 | B217: Tax Exp-Sales and Use Tax | C217: 40813300 | D217: 0 | E217: -0.03 | F217: 0.04 | H217: 0.03
A218: %,V40813400 | B218: Tax Exp-Gross Receipts | C218: 40813400 | D218: 0 | E218: 0 | F218: 0 | H218: 0
A219: %,V40813600 | B219: Tax Exp-State and Local-Oth | C219: 40813600 | D219: 0 | E219: 0 | F219: 0 | H219: 0
A220: %,V40814100 | B220: Tax Exp-Payroll-Incentive | C220: 40814100 | D220: 17425.3 | E220: 12276.48 | F220: 21056.46 | H220: 5148.82
A221: %,V40814500 | B221: Tax Exp-Payroll FICA-OASDI | C221: 40814500 | D221: 58684.31 | E221: 3540.86 | F221: 534415.85 | H221: 55143.45
... 94 more rows

Sheet Oct21
A1: %,LACTUALS,UPOSTED_TRAN_AMT | B1: %,ATF,FDESCR,UDESCR | C1: %,ATT,FACCOUNT | D1: %,LACTUALS,UPOSTED_TRAN_AMT,SPER,FBOOK_CODE,VR | E1: %,C | F1: %,LACTUALS,UPOSTED_TRAN_AMT,SYTD,FBOOK_CODE,VR | H1: %,LACTUALS,UPOSTED_TRAN_AMT,SPER-1,FBOOK_CODE,VR
B2: Columbia Gas of Kentucky Inc | H2: FOR
B3: Income Statement-FERC | H3: CALC
B4: Regulatory View - FERC Account
B5: For the Month Ended October 31, 2021 | H5: PURPOSES
B6: For Internal Use Only | H6: ONLY
D8: Current | E8: Change from | F8: Year-To- | H8: Prior
D9: Month | E9: Prior Month | F9: Date | H9: Month
B11: Operating Revenues
A13: %,V48000000 | B13: Residential Sales | C13: 48000000 | D13: 3637877.4 | E13: =D13-H13 -> 170609.86 | F13: 67721493.81 | H13: 3467267.54
A14: %,V48000100 | B14: Residential Sales Norm | C14: 48000100 | D14: -3602.98 | E14: -6946.76 | F14: 6682.89 | H14: 3343.78
A15: %,R,FACCOUNT,TNI_ACCOUNT_FERC,XBYYYYY01,NGAS_RESID_REV | B15: Gas Residential Sales | D15: 3634274.42 | E15: =D15-H15 -> 163663.1 | F15: 67728176.7 | H15: 3470611.32
A17: %,V48101000 | B17: Commercial Gas Sales | C17: 48101000 | D17: 1733088.41 | E17: =D17-H17 -> 130038.99 | F17: 28417993.06 | H17: 1603049.42
A18: %,V48101200 | B18: Commercial Gas Sales Norm | C18: 48101200 | D18: -3624.47 | E18: -6995.4 | F18: 3350.78 | H18: 3370.93
A19: %,NGAS_COMM_REV | B19: Gas Commercial Revenues | D19: 1729463.94 | E19: 123043.59 | F19: 28421343.84 | H19: 1606420.35
A20: %,V48102000 | B20: Industrial Gas Sales | C20: 48102000 | D20: 87628.54 | E20: 29549.7 | F20: 1349377.59 | H20: 58078.84
A21: %,V48102300 | B21: Industrial Gas Sales Norm | C21: 48102300 | D21: -298.66 | E21: -573.01 | F21: 196.31 | H21: 274.35
A22: %,NGAS_INDUST_REV | B22: Gas Industrial Revenues | D22: 87329.88 | E22: 28976.69 | F22: 1349573.9 | H22: 58353.19
A23: %,V48103000 | B23: Gas Sales-Other | C23: 48103000 | D23: 0 | E23: 0 | F23: 136.08 | H23: 0
A24: %,NGAS_OTHER_REV | B24: Gas Comm & Indust Other Rev | D24: 0 | E24: 0 | F24: 136.08 | H24: 0
A25: %,R,FACCOUNT,TNI_ACCOUNT_FERC,XBYYYYY01,NGAS_COMM_INDUST_REV | B25: Gas Comm & Indust Revenues | D25: 1816793.82 | E25: 152020.28 | F25: 29771053.82 | H25: 1664773.54
A26: %,V48300000 | B26: Sales for Resale-Gas | C26: 48300000 | D26: 3886.58 | E26: =D26-H26 -> 196.38 | F26: 66230.11 | H26: 3690.2
A27: %,R,FACCOUNT,TNI_ACCOUNT_FERC,XBYYYYY01,NGAS_SALES_RESALE | B27: Gas Sales for Resale | D27: 3886.58 | E27: 196.38 | F27: 66230.11 | H27: 3690.2
A28: %,R,FACCOUNT,TNI_ACCOUNT_FERC,XBYYYYY01,NGAS_INTERDEPT_SALES | B28: Gas Interdepartmental Sales | D28: 0 | E28: 0 | F28: 0
A29: %,R,FACCOUNT,TNI_ACCOUNT_FERC,XBYYYYY01,NGAS_INTRACO_TRANSFER | B29: Gas Intercompany Transfers | D29: 0 | E29: =D29-H29 -> 0 | F29: 0
A30: xx | B30: Total Sales of Gas | D30: =D15+D25+D27+D28+D29 -> 5454954.82 | E30: =E15+E25+E27+E28+E29 -> 315879.76 | F30: =F15+F25+F27+F28+F29 -> 97565460.63
A32: %,R,FACCOUNT,TNI_ACCOUNT_FERC,XBYYYYY01,NELE_RESID_REV | B32: Electric Residential Revenues | D32: 0 | E32: =D32-H32 -> 0 | F32: 0
A33: %,R,FACCOUNT,TNI_ACCOUNT_FERC,XBYYYYY01,NELE_COMM_IND_REV | B33: Elec Comm & Indust Rev | D33: 0 | E33: 0 | F33: 0
A34: %,R,FACCOUNT,TNI_ACCOUNT_FERC,XBYYYYY01,NELE_STREET_HWY_LIGHT | B34: Public Street & Hwy Lighting | D34: 0 | E34: 0 | F34: 0
A35: %,R,FACCOUNT,TNI_ACCOUNT_FERC,XBYYYYY01,NELE_OTH_SALES_PUBLIC | B35: Elec Oth Sales to Public Auth | D35: 0 | E35: 0 | F35: 0
A36: %,R,FACCOUNT,TNI_ACCOUNT_FERC,XBYYYYY01,NELE_RAILROAD | B36: Sales to Railroads & Railways | D36: 0 | E36: 0 | F36: 0
A37: %,R,FACCOUNT,TNI_ACCOUNT_FERC,XBYYYYY01,NELE_SALES_RESALE | B37: Electric Sales for Resale | D37: 0 | E37: 0 | F37: 0
A38: %,R,FACCOUNT,TNI_ACCOUNT_FERC,XBYYYYY01,NELE_INTERDEPT_SALES | B38: Elec Interdepartmental Sales | D38: 0 | E38: 0 | F38: 0
A39: xx | B39: Total Sales of Electricity | D39: =D32+D33+D34+D35+D36+D37+D38 -> 0 | E39: =E32+E33+E34+E35+E36+E37+E38 -> 0 | F39: 0
A41: %,V48700000 | B41: Forfeited Discounts-Gas | C41: 48700000 | D41: 29485.53 | E41: =D41-H41 -> 4519.89 | F41: 483021.06 | H41: 24965.64
A42: %,R,FACCOUNT,TNI_ACCOUNT_FERC,XBYYYYY01,NFORFEITED_DISC_GAS | B42: Forfeited Discounts - Gas | D42: 29485.53 | E42: =D42-H42 -> 4519.89 | F42: 483021.06 | H42: 24965.64
A43: %,R,FACCOUNT,TNI_ACCOUNT_FERC,XBYYYYY01,NFORFEITED_DISC_ELE | B43: Forfeited Discounts - Ele | D43: 0 | E43: 0 | F43: 0
B44: Total Forfeited Discounts | D44: =D42+D43 -> 29485.53 | E44: =E42+E43 -> 4519.89 | F44: 483021.06
A46: %,V48800000 | B46: Misc Service Revenues-Gas | C46: 48800000 | D46: 21517.05 | E46: =D46-H46 -> 12267.04 | F46: 93381.2 | H46: 9250.01
A47: %,R,FACCOUNT,TNI_ACCOUNT_FERC,XBYYYYY01,NMISC_SERV_REVS_GAS | B47: Misc Service Revenues - Gas | D47: 21517.05 | E47: =D47-H47 -> 12267.04 | F47: 93381.2 | H47: 9250.01
A48: %,R,FACCOUNT,TNI_ACCOUNT_FERC,XBYYYYY01,NMISC_SERV_REVS_ELE | B48: Misc Service Revenues - Ele | D48: 0 | E48: 0 | F48: 0
B49: Total Miscellaneous Service Revenues | D49: =D47+D48 -> 21517.05 | E49: =E47+E48 -> 12267.04 | F49: 93381.2
A51: %,R,FACCOUNT,TNI_ACCOUNT_FERC,XBYYYYY01,NRENT_ELE_PROP | B51: Rent from Electricity Property | D51: 0 | E51: =D51-H51 -> 0 | F51: 0
A52: %,R,FACCOUNT,TNI_ACCOUNT_FERC,XBYYYYY01,NOTH_ELE_REV | B52: Other Electric Revenues | D52: 0 | E52: 0 | F52: 0
A53: %,R,FACCOUNT,TNI_ACCOUNT_FERC,XBYYYYY01,NOTH_ELE_TRANS_REV | B53: Rev Transm of Elec of Oth | D53: 0 | E53: 0 | F53: 0
A54: %,R,FACCOUNT,TNI_ACCOUNT_FERC,XBYYYYY01,NOTH_REV_SERVICE_CO | B54: Nonutility Revenues - Serv Co | D54: 0 | E54: 0 | F54: 0
A55: %,R,FACCOUNT,TNI_ACCOUNT_FERC,XBYYYYY01,NREG_ELE_TRANS_REV | B55: Regional Transm Service Rev | D55: 0 | E55: 0 | F55: 0
A56: %,R,FACCOUNT,TNI_ACCOUNT_FERC,XBYYYYY01,NTRANSPORT_GATH_REV | B56: Rev Transp Gas of Oth - Gather | D56: 0 | E56: 0 | F56: 0
A57: %,R,FACCOUNT,TNI_ACCOUNT_FERC,XBYYYYY01,NTRANSPORT_TRANS_REV | B57: Rev Transp Gas of Oth - Transm | D57: 0 | E57: 0 | F57: 0
A58: %,V48930000 | B58: Transp Rev Distr Residential | C58: 48930000 | D58: 407784.94 | E58: 8427.31 | F58: 6262498.72 | H58: 399357.63
A59: %,V48930200 | B59: Unbilled Residential Trans Vol | C59: 48930200 | D59: 63352.7 | E59: 50704.3 | F59: -266934.5 | H59: 12648.4
A60: %,V48930300 | B60: Unbilled Res Trans Cust chrg | C60: 48930300 | D60: -1456 | E60: 16 | F60: -14656 | H60: -1472
A61: %,V48931000 | B61: Transp Rev Distr Commercial | C61: 48931000 | D61: 517639.8 | E61: 28153.11 | F61: 6947947.8 | H61: 489486.69
A62: %,V48931300 | B62: Unbilled Comm Trans Vol | C62: 48931300 | D62: 71639.53 | E62: 64474.25 | F62: -162129.22 | H62: 7165.28
A63: %,V48931400 | B63: Unbilled Comm Trans Cust chrg | C63: 48931400 | D63: -670.35 | E63: -178.76 | F63: 1161.94 | H63: -491.59
A64: %,V48932000 | B64: Transp Rev Distr Industrial | C64: 48932000 | D64: 416710.88 | E64: -833.67 | F64: 4386392.43 | H64: 417544.55
A65: %,V48932400 | B65: Unbilled Ind Trans Vol | C65: 48932400 | D65: 105.47 | E65: 59.07 | F65: -985.17 | H65: 46.4
A66: %,V48932500 | B66: Unbilled Ind Trans Cust chrg | C66: 48932500 | D66: 0 | E66: 0 | F66: 0 | H66: 0
A67: %,R,FACCOUNT,TNI_ACCOUNT_FERC,XBYYYYY01,NTRANSPORT_DISTR_REV | B67: Rev Transp Gas of Oth - Distr | D67: 1475106.97 | E67: 150821.61 | F67: 17153296 | H67: 1324285.36
A68: %,R,FACCOUNT,TNI_ACCOUNT_FERC,XBYYYYY01,NSTORE_GAS_REV | B68: Rev from Storing Gas of Oth | D68: 0 | E68: 0 | F68: 0
A69: %,R,FACCOUNT,TNI_ACCOUNT_FERC,XBYYYYY01,NSALES_EXTRACT_GAS | B69: Sales - Prod Extracted from NG | D69: 0 | E69: 0 | F69: 0
A70: %,R,FACCOUNT,TNI_ACCOUNT_FERC,XBYYYYY01,NGAS_OIL_SALES | B70: Incidental Gasoline & Oil Sale | D70: 0 | E70: 0 | F70: 0
A71: %,V49300000 | B71: Rent from Gas Property | C71: 49300000 | D71: 2852 | E71: =D71-H71 -> 0 | F71: 28520 | H71: 2852
A72: %,R,FACCOUNT,TNI_ACCOUNT_FERC,XBYYYYY01,NRENT_GAS_PROP | B72: Rent from Gas Property | D72: 2852 | E72: 0 | F72: 28520 | H72: 2852
A74: %,V49500485 | B74: Unbilled Residential-Vol | C74: 49500485 | D74: 1120042.89 | E74: =D74-H74 -> 955077.44 | F74: -4629305.61 | H74: 164965.45
A75: %,V49501485 | B75: Unbilled Res Customer Chrg | C75: 49501485 | D75: 5794.56 | E75: 7890.56 | F75: -23341.24 | H75: -2096
A76: %,V49503483 | B76: Unbilled Off System Sales | C76: 49503483 | D76: 0 | E76: 0 | F76: 0 | H76: 0
A77: %,V49510485 | B77: Unbilled Commercial-Vol | C77: 49510485 | D77: 414487.62 | E77: 351566.13 | F77: -1644071.57 | H77: 62921.49
A78: %,V49511485 | B78: Unbilled Comm Customer Chrg | C78: 49511485 | D78: 1027.87 | E78: 2055.74 | F78: -15999.02 | H78: -1027.87
A79: %,V49520485 | B79: Unbilled Industrial-Vol | C79: 49520485 | D79: 22856.36 | E79: 22823.71 | F79: -20380.39 | H79: 32.65
A80: %,V49521485 | B80: Unbilled Ind Customer Chrg | C80: 49521485 | D80: 0 | E80: 0 | F80: 0 | H80: 0
A81: %,NUNBILLED_REV_FERC | B81: Unbilled Revenues | D81: 1564209.3 | E81: 1339413.58 | F81: -6333097.83 | H81: 224795.72
A82: %,V49500000 | B82: Other Gas Revenue | C82: 49500000 | D82: 11402.78 | E82: -1713.53 | F82: 285058.76 | H82: 13116.31
A83: %,V49500050 | B83: Billed Off System Sales | C83: 49500050 | D83: 1075233.88 | E83: -348196.75 | F83: 5105101.78 | H83: 1423430.63
A84: %,R,FACCOUNT,TNI_ACCOUNT_FERC,XBYYYYY01,NOTH_GAS_REV | B84: Other Gas Revenues | D84: 2650845.96 | E84: 989503.3 | F84: -942937.29 | H84: 1661342.66
A85: %,R,FACCOUNT,TNI_ACCOUNT_FERC,XBYYYYY01,NGAS_PROV_RATE_REFUND | B85: Gas Provision of Rate Refunds | D85: 0 | E85: 0 | F85: 0
B86: Total Other Operating Revenues | D86: =D44+D49+D51+D52+D53+D54+D55+D56+D57+D67+D68+D69+D70+D72+D84+D85 -> 4179807.51 | E86: =E44+E49+E51+E52+E53+E54+E55+E56+E57+E67+E68+E69+E70+E72+E84+E85 -> 1157111.84 | F86: 16815280.97
A87: xx | B87: Total Operating Revenues | D87: =D30+D39+D86 -> 9634762.33 | E87: =E30+E39+E86 -> 1472991.6 | F87: =F30+F39+F86 -> 114380741.6
B89: Operating Expenses
B91: Operation Expenses
A93: %,FACCOUNT,TNI_ACCOUNT_FERC,XBYYYYY01,NOP_MANUF_GAS | B93: Manufac Gas Production - Oper | D93: 0 | E93: =D93-H93 -> 0 | F93: 0
A94: %,FACCOUNT,TNI_ACCOUNT_FERC,XBYYYYY01,NOP_NTRLGAS_PROD_GTH | B94: NG Production & Gather - Oper | D94: 0 | E94: 0 | F94: 0
A95: %,FACCOUNT,TNI_ACCOUNT_FERC,XBYYYYY01,NOP_PROD_EXTRACT | B95: Products Extraction - Oper | D95: 0 | E95: 0 | F95: 0
A97: %,V80100000 | B97: Natural gas field line purchas | C97: 80100000 | D97: 50441.24 | E97: =D97-H97 -> 622.69 | F97: 343227.87 | H97: 49818.55
A98: %,NOP_NG_PURCH_FIELD | B98: NG Well Head Purchases | D98: 50441.24 | E98: 622.69 | F98: 343227.87 | H98: 49818.55
A99: %,V80300300 | B99: Short Term Producer Purch | C99: 80300300 | D99: 5159529.94 | E99: -355377.42 | F99: 43470627.72 | H99: 5514907.36
A100: %,V80300400 | B100: Transportation Pipeline Exp | C100: 80300400 | D100: 1157938.05 | E100: 434236.74 | F100: 8177957.49 | H100: 723701.31
A101: %,V80300500 | B101: Storage Charges Pipeline Exp | C101: 80300500 | D101: -113441.2 | E101: -22709.92 | F101: -2814799.14 | H101: -90731.28
A102: %,V80300600 | B102: OFS_System Supply Credit | C102: 80300600 | D102: -68700.43 | E102: 32188.94 | F102: -555113.48 | H102: -100889.37
A103: %,V80300808 | B103: Storage Demand | C103: 80300808 | D103: 1502153.14 | E103: 0 | F103: 14142679.88 | H103: 1502153.14
A104: %,NOP_NG_PURCH_TRANSLIN | B104: NG Transmission Line Purchases | D104: 7637479.5 | E104: 88338.34 | F104: 62421352.47 | H104: 7549141.16
A105: %,V80400000 | B105: Natural Gas City Gate Purchase | C105: 80400000 | D105: 42391.73 | E105: 32686.07 | F105: 1239174.69 | H105: 9705.66
A106: %,NOP_NG_PURCH_CITYGATE | B106: NG City Gate Purchases | D106: 42391.73 | E106: 32686.07 | F106: 1239174.69 | H106: 9705.66
A107: %,V80510000 | B107: Purchased Gas Cost Adjustments | C107: 80510000 | D107: -3397698.22 | E107: -474789.81 | F107: -16438545.28 | H107: -2922908.41
A108: %,NOP_NG_PURCH_ADJUST | B108: Purchased Gas Cost Adjustments | D108: -3397698.22 | E108: -474789.81 | F108: -16438545.28 | H108: -2922908.41
A109: %,V80601000 | B109: Exchange Gas-Received | C109: 80601000 | D109: 1068351.41 | E109: -631998.68 | F109: 937580.7 | H109: 1700350.09
A110: %,NOP_NG_PURCH_EXCHANGE | B110: Exchange Gas | D110: 1068351.41 | E110: -631998.68 | F110: 937580.7 | H110: 1700350.09
A111: %,V80720000 | B111: Oper-Purch Gas Measrg Stations | C111: 80720000 | D111: 27087.96 | E111: -1168.5 | F111: 322998.73 | H111: 28256.46
A112: %,V80751000 | B112: Purch Gas Exp - Mgmt Fee | C112: 80751000 | D112: 4415.9 | E112: 270.4 | F112: 47358.28 | H112: 4145.5
A113: %,NOP_NG_PURCH_EXPENSE | B113: Purchased Gas Expenses | D113: 31503.86 | E113: -898.1 | F113: 370357.01 | H113: 32401.96
A114: %,V80810000 | B114: Gas Withdrawn | C114: 80810000 | D114: 1316933.16 | E114: 578400.12 | F114: 18998615.56 | H114: 738533.04
A115: %,NOP_NG_PURCH_WITHDRAW | B115: Gas Withdrawn from Storage | D115: 1316933.16 | E115: 578400.12 | F115: 18998615.56 | H115: 738533.04
A116: %,V80820000 | B116: Gas Delivered | C116: 80820000 | D116: -3329029.61 | E116: 1054868.39 | F116: -28105007.4 | H116: -4383898
A117: %,NOP_NG_PURCH_DELIVER | B117: Gas Delivered to Storage | D117: -3329029.61 | E117: 1054868.39 | F117: -28105007.4 | H117: -4383898
A118: %,V81220000 | B118: Gas Used-Other-Offset | C118: 81220000 | D118: -3924.45 | E118: -614 | F118: -78165.64 | H118: -3310.45
A119: %,NOP_NG_PURCH_OTHOPS | B119: Gas Used for Other Utility Ops | D119: -3924.45 | E119: -614 | F119: -78165.64 | H119: -3310.45
A120: %,FACCOUNT,TNI_ACCOUNT_FERC,XBYYYYY01,NOP_OTH_GAS_SUPPLY | B120: Other Gas Supply - Operations | D120: 3416448.62 | E120: 646615.02 | F120: 39688589.98 | H120: 2769833.6
A121: %,FACCOUNT,TNI_ACCOUNT_FERC,XBYYYYY01,NOP_STEAM_POWER | B121: Steam Power - Operations | D121: 0 | E121: 0 | F121: 0
A122: %,FACCOUNT,TNI_ACCOUNT_FERC,XBYYYYY01,NOP_HYDRAULIC_POWER | B122: Hydraulic Power - Operations | D122: 0 | E122: 0 | F122: 0
A123: %,FACCOUNT,TNI_ACCOUNT_FERC,XBYYYYY01,NOP_OTHER_POWER | B123: Other Power - Operations | D123: 0 | E123: 0 | F123: 0
A124: %,V55700000 | B124: Other Exp | C124: 55700000 | D124: 452.98 | E124: =D124-H124 -> 270.4 | F124: 783.28 | H124: 182.58
A125: %,FACCOUNT,TNI_ACCOUNT_FERC,XBYYYYY01,NOP_OTH_POWER_SUPPLY | B125: Other Power Supply - Oper | D125: 452.98 | E125: =D125-H125 -> 270.4 | F125: 783.28 | H125: 182.58
A126: %,FACCOUNT,TNI_ACCOUNT_FERC,XBYYYYY01,NOP_NG_STOR_TERM_PROC | B126: NG Stor, Term & Proc - Oper | D126: 0 | E126: 0 | F126: 0
A128: %,V85200030 | B128: Communication System Exp | C128: 85200030 | D128: 0.99 | E128: =D128-H128 -> -302.32 | F128: 4713.42 | H128: 303.31
A129: %,V85900000 | B129: Gas Transmission Exp | C129: 85900000 | D129: 0 | E129: 0 | F129: 0 | H129: 0
A130: %,NOP_GAS_TRANS_EXP | B130: Transmission Exp - Oper - Gas | D130: 0.99 | E130: -302.32 | F130: 4713.42 | H130: 303.31
A131: %,FACCOUNT,TNI_ACCOUNT_FERC,XBYYYYY01,NOP_TRANS_EXP | B131: Transmission Exp - Oper | D131: 0.99 | E131: -302.32 | F131: 4713.42 | H131: 303.31
A132: %,FACCOUNT,TNI_ACCOUNT_FERC,XBYYYYY01,NOP_REG_MARKET_EXP | B132: Regional Market Exp - Oper | D132: 0 | E132: 0 | F132: 0
A134: %,V87000000 | B134: Op Superv-Eng-Gas Distr | C134: 87000000 | D134: 64805.54 | E134: =D134-H134 -> -27905.18 | F134: 856663.26 | H134: 92710.72
A135: %,V87100000 | B135: Distribution Load Dispatching | C135: 87100000 | D135: 22175.72 | E135: -34882.4 | F135: 181451.75 | H135: 57058.12
A136: %,V87400000 | B136: Mains and Services Exp | C136: 87400000 | D136: 828034.51 | E136: 201528.34 | F136: 5923466.33 | H136: 626506.17
A137: %,V87500000 | B137: Measur-Reg Statn Exp Gen | C137: 87500000 | D137: 20556.49 | E137: 4536.03 | F137: 177207.07 | H137: 16020.46
A138: %,V87600000 | B138: Measur-Reg Statn Exp-Indus | C138: 87600000 | D138: 7531.33 | E138: 1949.64 | F138: 63423.78 | H138: 5581.69
A139: %,V87800000 | B139: Meter and House Regulator Exp | C139: 87800000 | D139: 125006.62 | E139: -18840.59 | F139: 1248774.36 | H139: 143847.21
A140: %,V87900000 | B140: Oper Installation Service Exp | C140: 87900000 | D140: 194434.65 | E140: -77889.16 | F140: 2361892.92 | H140: 272323.81
A141: %,V87900200 | B141: Oper Install-Chrg Labor | C141: 87900200 | D141: 0 | E141: 0 | F141: 211.52 | H141: 0
A142: %,V88000000 | B142: Operations Exp Other | C142: 88000000 | D142: 76974.9 | E142: -10079.55 | F142: 885549.49 | H142: 87054.45
A143: %,V88100000 | B143: Gas Distr Rents | C143: 88100000 | D143: 1463.09 | E143: -1443.07 | F143: 14236.6 | H143: 2906.16
A144: %,NOP_GAS_DISTR_EXP | B144: Distribution Exp - Oper - Gas | D144: 1340982.85 | E144: 36974.06 | F144: 11712877.08 | H144: 1304008.79
A145: %,FACCOUNT,TNI_ACCOUNT_FERC,XBYYYYY01,NOP_DISTR_EXP | B145: Distribution Exp - Oper | D145: 1340982.85 | E145: 36974.06 | F145: 11712877.08 | H145: 1304008.79
A146: %,V90100000 | B146: Customer Acnt Supervision | C146: 90100000 | D146: 48.05 | E146: 47.96 | F146: 230.02 | H146: 0.09
A147: %,V90200000 | B147: Cust Accnt Meter Reading Exp | C147: 90200000 | D147: 17787.49 | E147: 542.44 | F147: 184166.11 | H147: 17245.05
A148: %,V90300000 | B148: Cust Records Collection Exp | C148: 90300000 | D148: 221461.04 | E148: 6059.71 | F148: 2160184.51 | H148: 215401.33
A149: %,V90400000 | B149: Uncollectible Accounts | C149: 90400000 | D149: -21641.82 | E149: -85252.58 | F149: -272236.23 | H149: 63610.76
A150: %,V90500000 | B150: Misc Cust Accts Exp | C150: 90500000 | D150: 907.58 | E150: 130.07 | F150: 9128.41 | H150: 777.51
A151: %,FACCOUNT,TNI_ACCOUNT_FERC,XBYYYYY01,NOP_CUST_ACCTS_EXP | B151: Customer Accounts - Oper | D151: 218562.34 | E151: -78472.4 | F151: 2081472.82 | H151: 297034.74
A152: %,V90800000 | B152: Customer Assistance Exp | C152: 90800000 | D152: 13180 | E152: -6590 | F152: 89637.14 | H152: 19770
A153: %,V90900000 | B153: Inform_Instruct Advertisng Exp | C153: 90900000 | D153: 0 | E153: 0 | F153: 0 | H153: 0
A154: %,V91000000 | B154: Misc Cust Serv and Info Exp | C154: 91000000 | D154: 23568.68 | E154: 2274.31 | F154: 223591.44 | H154: 21294.37
A155: %,FACCOUNT,TNI_ACCOUNT_FERC,XBYYYYY01,NOP_CUSTOMER_SERV_EXP | B155: Cust Serv & Info Exp - Oper | D155: 36748.68 | E155: -4315.69 | F155: 313228.58 | H155: 41064.37
A156: %,V91200000 | B156: Demonstrating and Selling Exp | C156: 91200000 | D156: 369.79 | E156: 369.79 | F156: 4014.31 | H156: 0
A157: %,V91300000 | B157: Sales Advertising Exp | C157: 91300000 | D157: 28736.43 | E157: 25552.1 | F157: 38186.49 | H157: 3184.33
A158: %,FACCOUNT,TNI_ACCOUNT_FERC,XBYYYYY01,NOP_SALES_EXP | B158: Sales Expenses - Oper | D158: 29106.22 | E158: 25921.89 | F158: 42200.8 | H158: 3184.33
A159: %,V92000000 | B159: A_G Salaries | C159: 92000000 | D159: 711217.23 | E159: -266603.3 | F159: 7038871.98 | H159: 977820.53
A160: %,V92001000 | B160: Discretionary and Spot Awards | C160: 92001000 | D160: 10602.91 | E160: 4700.11 | F160: 54881.49 | H160: 5902.8
A161: %,V92002000 | B161: Stock Compensation Expense | C161: 92002000 | D161: 84417.19 | E161: -112484.75 | F161: 765044.06 | H161: 196901.94
A162: %,V92100000 | B162: Office Supplies and Exp | C162: 92100000 | D162: 99933.54 | E162: 30977.21 | F162: 700965.28 | H162: 68956.33
A163: %,V92101000 | B163: Employee Expenses | C163: 92101000 | D163: 26572.88 | E163: 9995.28 | F163: 158490.66 | H163: 16577.6
A164: %,V92300000 | B164: Outside Service Employed | C164: 92300000 | D164: 478288.96 | E164: 312977.36 | F164: 4284496.45 | H164: 165311.6
A165: %,V92301000 | B165: Mgmt Fee Actuals-Affil | C165: 92301000 | D165: 179840.66 | E165: 9844.56 | F165: 1613746.14 | H165: 169996.1
A166: %,V92400000 | B166: Property Insurance | C166: 92400000 | D166: 5290.29 | E166: 48.37 | F166: 44607.58 | H166: 5241.92
A167: %,V92500000 | B167: Injuries and Damages | C167: 92500000 | D167: 163224.89 | E167: -29293.25 | F167: 1797637.15 | H167: 192518.14
A168: %,V92600000 | B168: Employee Pensions and Benefits | C168: 92600000 | D168: 366381.47 | E168: 21471.59 | F168: 3358643.54 | H168: 344909.88
A169: %,V92601000 | B169: Non Service Pension & OPEB | C169: 92601000 | D169: -78140.01 | E169: -85155.67 | F169: -471669.73 | H169: 7015.66
A170: %,V92800000 | B170: Regulatory Commission Exp | C170: 92800000 | D170: 22636.51 | E170: 1.74 | F170: 226449.89 | H170: 22634.77
A171: %,V93010000 | B171: General Advertising Exp | C171: 93010000 | D171: 2375.34 | E171: 695.57 | F171: 12436.35 | H171: 1679.77
A172: %,V93020000 | B172: Misc General Exp | C172: 93020000 | D172: 9948.45 | E172: 19151 | F172: 26111.03 | H172: -9202.55
A173: %,V93100000 | B173: Rents Admin and General | C173: 93100000 | D173: 71934.78 | E173: 3213.74 | F173: 738232.46 | H173: 68721.04
A174: %,FACCOUNT,TNI_ACCOUNT_FERC,XBYYYYY01,NOP_ADMIN_GEN | B174: Admin & General Exp - Oper | D174: 2154525.09 | E174: -80460.44 | F174: 20348944.33 | H174: 2234985.53
B175: Total Operation Expenses | D175: =D93+D94+D95+D120+D121+D122+D123+D125+D126+D131+D132+D145+D151+D155+D158+D174 -> 7196827.77 | E175: =E93+E94+E95+E120+E121+E122+E123+E125+E126+E131+E132+E145+E151+E155+E158+E174 -> 546230.52 | F175: =F93+F94+F95+F120+F121+F122+F123+F125+F126+F131+F132+F145+F151+F155+F158+F174 -> 74192810.29
B177: Maintenance Expenses
A179: %,FACCOUNT,TNI_ACCOUNT_FERC,XBYYYYY01,NMAINT_PROD_EXP | B179: Production Expenses - Maint | D179: 0 | E179: =D179-H179 -> 0 | F179: 0
A180: %,FACCOUNT,TNI_ACCOUNT_FERC,XBYYYYY01,NMAINT_NG_STOR_PROC | B180: NG Stor, Term & Proc - Maint | D180: 0 | E180: 0 | F180: 0
A182: %,V56920000 | B182: Maint of Computer Software | C182: 56920000 | D182: 0 | E182: =D182-H182 -> 0 | F182: 0 | H182: 0
A183: %,NMAINT_ELEC_TRANS_EXP | B183: Transmission Exp - Maint-Elec | D183: 0 | E183: 0 | F183: 0 | H183: 0
A184: %,V86600000 | B184: Trans Maint Commun Equip | C184: 86600000 | D184: 0 | E184: 0 | F184: 30255 | H184: 0
A185: %,NMAINT_GAS_TRANS_EXP | B185: Transmission Exp - Maint-Gas | D185: 0 | E185: 0 | F185: 30255 | H185: 0
A186: %,FACCOUNT,TNI_ACCOUNT_FERC,XBYYYYY01,NMAINT_TRANS_EXP | B186: Transmission Exp - Maint | D186: 0 | E186: 0 | F186: 30255 | H186: 0
A188: %,V88500000 | B188: Maint Supv-Eng-Gas Distr | C188: 88500000 | D188: 5891.41 | E188: =D188-H188 -> -1647.03 | F188: 68801.84 | H188: 7538.44
A189: %,V88600000 | B189: Maint Struct-Improv-Gas Distr | C189: 88600000 | D189: 16382.04 | E189: -19976.35 | F189: 133255.45 | H189: 36358.39
A190: %,V88700000 | B190: Maint of Mains | C190: 88700000 | D190: 331409.83 | E190: -18735.78 | F190: 2368578.2 | H190: 350145.61
A191: %,V88900000 | B191: Maint Msr-Reg Statn Equi Gen | C191: 88900000 | D191: 72866.47 | E191: -148998.25 | F191: 726667.43 | H191: 221864.72
A192: %,V89000000 | B192: Maint Meas_Reg Stn Equip-Distr | C192: 89000000 | D192: 8220.73 | E192: 237.79 | F192: 69830.26 | H192: 7982.94
A193: %,V89200000 | B193: Maint of Services | C193: 89200000 | D193: -156579.43 | E193: -244593.97 | F193: 590848.47 | H193: 88014.54
A194: %,V89300000 | B194: Maint Meters_House Regulators | C194: 89300000 | D194: 8931.67 | E194: -47031.05 | F194: 219248 | H194: 55962.72
A195: %,V89400000 | B195: Other Maint Equipment | C195: 89400000 | D195: 29801.79 | E195: 14141.88 | F195: 307812.31 | H195: 15659.91
A196: %,NMAINT_GAS_DISTR_EXP | B196: Distribution Exp - Maint-Gas | D196: 316924.51 | E196: -466602.76 | F196: 4485041.96 | H196: 783527.27
A197: %,FACCOUNT,TNI_ACCOUNT_FERC,XBYYYYY01,NMAINT_DISTR_EXP | B197: Distribution Exp - Maint | D197: 316924.51 | E197: -466602.76 | F197: 4485041.96 | H197: 783527.27
A198: %,V93200000 | B198: Maint General Plant | C198: 93200000 | D198: 128721.34 | E198: =D198-H198 -> 138185.13 | F198: 1017542 | H198: -9463.79
A199: %,FACCOUNT,TNI_ACCOUNT_FERC,XBYYYYY01,NMAINT_ADMIN_GEN | B199: Maintenance Gen and Admin | D199: 128721.34 | E199: 138185.13 | F199: 1017542 | H199: -9463.79
B200: Total Maintenance Expenses | D200: =D179+D180+D186+D197+D199 -> 445645.85 | E200: =E179+E180+E186+E197+E199 -> -328417.63 | F200: 5532838.96
A202: %,V40300000 | B202: Dep Exp | C202: 40300000 | D202: 1260923.48 | E202: =D202-H202 -> 10644.02 | F202: 12226788.32 | H202: 1250279.46
A203: %,FACCOUNT,TNI_ACCOUNT_FERC,XBYYYYY01,NDEPRECIATION_EXPENSE | B203: Depreciation Expense | D203: 1260923.48 | E203: =D203-H203 -> 10644.02 | F203: 12226788.32 | H203: 1250279.46
A204: %,FACCOUNT,TNI_ACCOUNT_FERC,XBYYYYY01,NDEPRECIATION_ARO_EXP | B204: Depreciation Expense for AROs | D204: 0 | E204: 0 | F204: 0
A206: %,V40430000 | B206: Amortization Exp-Other | C206: 40430000 | D206: 34903.94 | E206: =D206-H206 -> -438.4 | F206: 348590.1 | H206: 35342.34
A207: %,V40434000 | B207: Cloude Amortizaiton Expense | C207: 40434000 | D207: 31449.01 | E207: 10254.04 | F207: 152401.04 | H207: 21194.97
A208: %,NAMORT_LMT_TERM_PROP | B208: Amort of Limited-Term Property | D208: 66352.95 | E208: 9815.64 | F208: 500991.14 | H208: 56537.31
A209: %,V40500000 | B209: Amortization of Oth Plant | C209: 40500000 | D209: 128225.42 | E209: -483.26 | F209: 1136652.25 | H209: 128708.68
A210: %,NAMORT_OTH_PROP | B210: Amort of Other Property | D210: 128225.42 | E210: -483.26 | F210: 1136652.25 | H210: 128708.68
A211: %,FACCOUNT,TNI_ACCOUNT_FERC,XBYYYYY01,NAMORT_DEPL_UTIL | B211: Amort & Deplet of Util Plant | D211: 194578.37 | E211: 9332.38 | F211: 1637643.39 | H211: 185245.99
A212: %,FACCOUNT,TNI_ACCOUNT_FERC,XBYYYYY01,NAMORT_UTIL_ADJ | B212: Amort of Gas Plant Acq Adj | D212: 0 | E212: 0 | F212: 0
A213: %,FACCOUNT,TNI_ACCOUNT_FERC,XBYYYYY01,NAMORT_CONV_EXP | B213: Amort of Conversion Exp | D213: 0 | E213: 0 | F213: 0
A214: %,FACCOUNT,TNI_ACCOUNT_FERC,XBYYYYY01,NREG_DEBITS | B214: Reg Debits | D214: 0 | E214: 0 | F214: 0
A215: %,FACCOUNT,TNI_ACCOUNT_FERC,XBYYYYY01,NREG_CREDITS | B215: Reg Credits | D215: 0 | E215: 0 | F215: 0
A216: %,V40813100 | B216: Tax Exp-License_Franchise | C216: 40813100 | D216: 0 | E216: 0 | F216: 3000 | H216: 0
A217: %,V40813200 | B217: Tax Exp-Property | C217: 40813200 | D217: 548738.42 | E217: 0 | F217: 5184339.19 | H217: 548738.42
A218: %,V40813300 | B218: Tax Exp-Sales and Use Tax | C218: 40813300 | D218: 0 | E218: 0 | F218: 0.04 | H218: 0
A219: %,V40813400 | B219: Tax Exp-Gross Receipts | C219: 40813400 | D219: 0 | E219: 0 | F219: 0 | H219: 0
A220: %,V40813600 | B220: Tax Exp-State and Local-Oth | C220: 40813600 | D220: 0 | E220: 0 | F220: 0 | H220: 0
A221: %,V40814100 | B221: Tax Exp-Payroll-Incentive | C221: 40814100 | D221: 6082.29 | E221: -11343.01 | F221: 27138.75 | H221: 17425.3
... 95 more rows

Sheet Nov21
A1: %,LACTUALS,UPOSTED_TRAN_AMT | B1: %,ATF,FDESCR,UDESCR | C1: %,ATT,FACCOUNT | D1: %,LACTUALS,UPOSTED_TRAN_AMT,SPER,FBOOK_CODE,VR | E1: %,C | F1: %,LACTUALS,UPOSTED_TRAN_AMT,SYTD,FBOOK_CODE,VR | H1: %,LACTUALS,UPOSTED_TRAN_AMT,SPER-1,FBOOK_CODE,VR
B2: Columbia Gas of Kentucky Inc | H2: FOR
B3: Income Statement-FERC | H3: CALC
B4: Regulatory View - FERC Account
B5: For the Month Ended November 30, 2021 | H5: PURPOSES
B6: For Internal Use Only | H6: ONLY
D8: Current | E8: Change from | F8: Year-To- | H8: Prior
D9: Month | E9: Prior Month | F9: Date | H9: Month
B11: Operating Revenues
A13: %,V48000000 | B13: Residential Sales | C13: 48000000 | D13: 6243172.8 | E13: =D13-H13 -> 2605295.4 | F13: 73964666.61 | H13: 3637877.4
A14: %,V48000100 | B14: Residential Sales Norm | C14: 48000100 | D14: -470.28 | E14: 3132.7 | F14: 6212.61 | H14: -3602.98
A15: %,R,FACCOUNT,TNI_ACCOUNT_FERC,XBYYYYY01,NGAS_RESID_REV | B15: Gas Residential Sales | D15: 6242702.52 | E15: =D15-H15 -> 2608428.1 | F15: 73970879.22 | H15: 3634274.42
A17: %,V48101000 | B17: Commercial Gas Sales | C17: 48101000 | D17: 2753095.02 | E17: =D17-H17 -> 1020006.61 | F17: 31171088.08 | H17: 1733088.41
A18: %,V48101200 | B18: Commercial Gas Sales Norm | C18: 48101200 | D18: -280.89 | E18: 3343.58 | F18: 3069.89 | H18: -3624.47
A19: %,NGAS_COMM_REV | B19: Gas Commercial Revenues | D19: 2752814.13 | E19: 1023350.19 | F19: 31174157.97 | H19: 1729463.94
A20: %,V48102000 | B20: Industrial Gas Sales | C20: 48102000 | D20: 169601.58 | E20: 81973.04 | F20: 1518979.17 | H20: 87628.54
A21: %,V48102300 | B21: Industrial Gas Sales Norm | C21: 48102300 | D21: -26.91 | E21: 271.75 | F21: 169.4 | H21: -298.66
A22: %,NGAS_INDUST_REV | B22: Gas Industrial Revenues | D22: 169574.67 | E22: 82244.79 | F22: 1519148.57 | H22: 87329.88
A23: %,V48103000 | B23: Gas Sales-Other | C23: 48103000 | D23: 0 | E23: 0 | F23: 136.08 | H23: 0
A24: %,NGAS_OTHER_REV | B24: Gas Comm & Indust Other Rev | D24: 0 | E24: 0 | F24: 136.08 | H24: 0
A25: %,R,FACCOUNT,TNI_ACCOUNT_FERC,XBYYYYY01,NGAS_COMM_INDUST_REV | B25: Gas Comm & Indust Revenues | D25: 2922388.8 | E25: 1105594.98 | F25: 32693442.62 | H25: 1816793.82
A26: %,V48300000 | B26: Sales for Resale-Gas | C26: 48300000 | D26: 4942.96 | E26: =D26-H26 -> 1056.38 | F26: 71173.07 | H26: 3886.58
A27: %,R,FACCOUNT,TNI_ACCOUNT_FERC,XBYYYYY01,NGAS_SALES_RESALE | B27: Gas Sales for Resale | D27: 4942.96 | E27: 1056.38 | F27: 71173.07 | H27: 3886.58
A28: %,R,FACCOUNT,TNI_ACCOUNT_FERC,XBYYYYY01,NGAS_INTERDEPT_SALES | B28: Gas Interdepartmental Sales | D28: 0 | E28: 0 | F28: 0
A29: %,R,FACCOUNT,TNI_ACCOUNT_FERC,XBYYYYY01,NGAS_INTRACO_TRANSFER | B29: Gas Intercompany Transfers | D29: 0 | E29: =D29-H29 -> 0 | F29: 0
A30: xx | B30: Total Sales of Gas | D30: =D15+D25+D27+D28+D29 -> 9170034.28 | E30: =E15+E25+E27+E28+E29 -> 3715079.46 | F30: =F15+F25+F27+F28+F29 -> 106735494.9
A32: %,R,FACCOUNT,TNI_ACCOUNT_FERC,XBYYYYY01,NELE_RESID_REV | B32: Electric Residential Revenues | D32: 0 | E32: =D32-H32 -> 0 | F32: 0
A33: %,R,FACCOUNT,TNI_ACCOUNT_FERC,XBYYYYY01,NELE_COMM_IND_REV | B33: Elec Comm & Indust Rev | D33: 0 | E33: 0 | F33: 0
A34: %,R,FACCOUNT,TNI_ACCOUNT_FERC,XBYYYYY01,NELE_STREET_HWY_LIGHT | B34: Public Street & Hwy Lighting | D34: 0 | E34: 0 | F34: 0
A35: %,R,FACCOUNT,TNI_ACCOUNT_FERC,XBYYYYY01,NELE_OTH_SALES_PUBLIC | B35: Elec Oth Sales to Public Auth | D35: 0 | E35: 0 | F35: 0
A36: %,R,FACCOUNT,TNI_ACCOUNT_FERC,XBYYYYY01,NELE_RAILROAD | B36: Sales to Railroads & Railways | D36: 0 | E36: 0 | F36: 0
A37: %,R,FACCOUNT,TNI_ACCOUNT_FERC,XBYYYYY01,NELE_SALES_RESALE | B37: Electric Sales for Resale | D37: 0 | E37: 0 | F37: 0
A38: %,R,FACCOUNT,TNI_ACCOUNT_FERC,XBYYYYY01,NELE_INTERDEPT_SALES | B38: Elec Interdepartmental Sales | D38: 0 | E38: 0 | F38: 0
A39: xx | B39: Total Sales of Electricity | D39: =D32+D33+D34+D35+D36+D37+D38 -> 0 | E39: =E32+E33+E34+E35+E36+E37+E38 -> 0 | F39: 0
A41: %,V48700000 | B41: Forfeited Discounts-Gas | C41: 48700000 | D41: 23823.68 | E41: =D41-H41 -> -5661.85 | F41: 506844.74 | H41: 29485.53
A42: %,R,FACCOUNT,TNI_ACCOUNT_FERC,XBYYYYY01,NFORFEITED_DISC_GAS | B42: Forfeited Discounts - Gas | D42: 23823.68 | E42: =D42-H42 -> -5661.85 | F42: 506844.74 | H42: 29485.53
A43: %,R,FACCOUNT,TNI_ACCOUNT_FERC,XBYYYYY01,NFORFEITED_DISC_ELE | B43: Forfeited Discounts - Ele | D43: 0 | E43: 0 | F43: 0
B44: Total Forfeited Discounts | D44: =D42+D43 -> 23823.68 | E44: =E42+E43 -> -5661.85 | F44: 506844.74
A46: %,V48800000 | B46: Misc Service Revenues-Gas | C46: 48800000 | D46: 23020.82 | E46: =D46-H46 -> 1503.77 | F46: 116402.02 | H46: 21517.05
A47: %,R,FACCOUNT,TNI_ACCOUNT_FERC,XBYYYYY01,NMISC_SERV_REVS_GAS | B47: Misc Service Revenues - Gas | D47: 23020.82 | E47: =D47-H47 -> 1503.77 | F47: 116402.02 | H47: 21517.05
A48: %,R,FACCOUNT,TNI_ACCOUNT_FERC,XBYYYYY01,NMISC_SERV_REVS_ELE | B48: Misc Service Revenues - Ele | D48: 0 | E48: 0 | F48: 0
B49: Total Miscellaneous Service Revenues | D49: =D47+D48 -> 23020.82 | E49: =E47+E48 -> 1503.77 | F49: 116402.02
A51: %,R,FACCOUNT,TNI_ACCOUNT_FERC,XBYYYYY01,NRENT_ELE_PROP | B51: Rent from Electricity Property | D51: 0 | E51: =D51-H51 -> 0 | F51: 0
A52: %,R,FACCOUNT,TNI_ACCOUNT_FERC,XBYYYYY01,NOTH_ELE_REV | B52: Other Electric Revenues | D52: 0 | E52: 0 | F52: 0
A53: %,R,FACCOUNT,TNI_ACCOUNT_FERC,XBYYYYY01,NOTH_ELE_TRANS_REV | B53: Rev Transm of Elec of Oth | D53: 0 | E53: 0 | F53: 0
A54: %,R,FACCOUNT,TNI_ACCOUNT_FERC,XBYYYYY01,NOTH_REV_SERVICE_CO | B54: Nonutility Revenues - Serv Co | D54: 0 | E54: 0 | F54: 0
A55: %,R,FACCOUNT,TNI_ACCOUNT_FERC,XBYYYYY01,NREG_ELE_TRANS_REV | B55: Regional Transm Service Rev | D55: 0 | E55: 0 | F55: 0
A56: %,R,FACCOUNT,TNI_ACCOUNT_FERC,XBYYYYY01,NTRANSPORT_GATH_REV | B56: Rev Transp Gas of Oth - Gather | D56: 0 | E56: 0 | F56: 0
A57: %,R,FACCOUNT,TNI_ACCOUNT_FERC,XBYYYYY01,NTRANSPORT_TRANS_REV | B57: Rev Transp Gas of Oth - Transm | D57: 0 | E57: 0 | F57: 0
A58: %,V48930000 | B58: Transp Rev Distr Residential | C58: 48930000 | D58: 560586.32 | E58: 152801.38 | F58: 6823085.04 | H58: 407784.94
A59: %,V48930200 | B59: Unbilled Residential Trans Vol | C59: 48930200 | D59: 221497.6 | E59: 158144.9 | F59: -45436.9 | H59: 63352.7
A60: %,V48930300 | B60: Unbilled Res Trans Cust chrg | C60: 48930300 | D60: -1472 | E60: -16 | F60: -16128 | H60: -1456
A61: %,V48931000 | B61: Transp Rev Distr Commercial | C61: 48931000 | D61: 707426.78 | E61: 189786.98 | F61: 7655374.58 | H61: 517639.8
A62: %,V48931300 | B62: Unbilled Comm Trans Vol | C62: 48931300 | D62: 270498.12 | E62: 198858.59 | F62: 108368.9 | H62: 71639.53
A63: %,V48931400 | B63: Unbilled Comm Trans Cust chrg | C63: 48931400 | D63: -312.83 | E63: 357.52 | F63: 849.11 | H63: -670.35
A64: %,V48932000 | B64: Transp Rev Distr Industrial | C64: 48932000 | D64: 565031.92 | E64: 148321.04 | F64: 4951424.35 | H64: 416710.88
A65: %,V48932400 | B65: Unbilled Ind Trans Vol | C65: 48932400 | D65: 6241.02 | E65: 6135.55 | F65: 5255.85 | H65: 105.47
A66: %,V48932500 | B66: Unbilled Ind Trans Cust chrg | C66: 48932500 | D66: 0 | E66: 0 | F66: 0 | H66: 0
A67: %,R,FACCOUNT,TNI_ACCOUNT_FERC,XBYYYYY01,NTRANSPORT_DISTR_REV | B67: Rev Transp Gas of Oth - Distr | D67: 2329496.93 | E67: 854389.96 | F67: 19482792.93 | H67: 1475106.97
A68: %,R,FACCOUNT,TNI_ACCOUNT_FERC,XBYYYYY01,NSTORE_GAS_REV | B68: Rev from Storing Gas of Oth | D68: 0 | E68: 0 | F68: 0
A69: %,R,FACCOUNT,TNI_ACCOUNT_FERC,XBYYYYY01,NSALES_EXTRACT_GAS | B69: Sales - Prod Extracted from NG | D69: 0 | E69: 0 | F69: 0
A70: %,R,FACCOUNT,TNI_ACCOUNT_FERC,XBYYYYY01,NGAS_OIL_SALES | B70: Incidental Gasoline & Oil Sale | D70: 0 | E70: 0 | F70: 0
A71: %,V49300000 | B71: Rent from Gas Property | C71: 49300000 | D71: 2852 | E71: =D71-H71 -> 0 | F71: 31372 | H71: 2852
A72: %,R,FACCOUNT,TNI_ACCOUNT_FERC,XBYYYYY01,NRENT_GAS_PROP | B72: Rent from Gas Property | D72: 2852 | E72: 0 | F72: 31372 | H72: 2852
A74: %,V49500485 | B74: Unbilled Residential-Vol | C74: 49500485 | D74: 4916836.28 | E74: =D74-H74 -> 3796793.39 | F74: 287530.67 | H74: 1120042.89
A75: %,V49501485 | B75: Unbilled Res Customer Chrg | C75: 49501485 | D75: 22384 | E75: 16589.44 | F75: -957.24 | H75: 5794.56
A76: %,V49503483 | B76: Unbilled Off System Sales | C76: 49503483 | D76: 0 | E76: 0 | F76: 0 | H76: 0
A77: %,V49510485 | B77: Unbilled Commercial-Vol | C77: 49510485 | D77: 2289110.65 | E77: 1874623.03 | F77: 645039.08 | H77: 414487.62
A78: %,V49511485 | B78: Unbilled Comm Customer Chrg | C78: 49511485 | D78: 8714.55 | E78: 7686.68 | F78: -7284.47 | H78: 1027.87
A79: %,V49520485 | B79: Unbilled Industrial-Vol | C79: 49520485 | D79: 46959.32 | E79: 24102.96 | F79: 26578.93 | H79: 22856.36
A80: %,V49521485 | B80: Unbilled Ind Customer Chrg | C80: 49521485 | D80: 0 | E80: 0 | F80: 0 | H80: 0
A81: %,NUNBILLED_REV_FERC | B81: Unbilled Revenues | D81: 7284004.8 | E81: 5719795.5 | F81: 950906.97 | H81: 1564209.3
A82: %,V49500000 | B82: Other Gas Revenue | C82: 49500000 | D82: 15501.64 | E82: 4098.86 | F82: 300560.4 | H82: 11402.78
A83: %,V49500050 | B83: Billed Off System Sales | C83: 49500050 | D83: 1000086 | E83: -75147.88 | F83: 6105187.78 | H83: 1075233.88
A84: %,R,FACCOUNT,TNI_ACCOUNT_FERC,XBYYYYY01,NOTH_GAS_REV | B84: Other Gas Revenues | D84: 8299592.44 | E84: 5648746.48 | F84: 7356655.15 | H84: 2650845.96
A85: %,R,FACCOUNT,TNI_ACCOUNT_FERC,XBYYYYY01,NGAS_PROV_RATE_REFUND | B85: Gas Provision of Rate Refunds | D85: 0 | E85: 0 | F85: 0
B86: Total Other Operating Revenues | D86: =D44+D49+D51+D52+D53+D54+D55+D56+D57+D67+D68+D69+D70+D72+D84+D85 -> 10678785.87 | E86: =E44+E49+E51+E52+E53+E54+E55+E56+E57+E67+E68+E69+E70+E72+E84+E85 -> 6498978.36 | F86: 27494066.84
A87: xx | B87: Total Operating Revenues | D87: =D30+D39+D86 -> 19848820.15 | E87: =E30+E39+E86 -> 10214057.82 | F87: =F30+F39+F86 -> 134229561.8
B89: Operating Expenses
B91: Operation Expenses
A93: %,FACCOUNT,TNI_ACCOUNT_FERC,XBYYYYY01,NOP_MANUF_GAS | B93: Manufac Gas Production - Oper | D93: 0 | E93: =D93-H93 -> 0 | F93: 0
A94: %,FACCOUNT,TNI_ACCOUNT_FERC,XBYYYYY01,NOP_NTRLGAS_PROD_GTH | B94: NG Production & Gather - Oper | D94: 0 | E94: 0 | F94: 0
A95: %,FACCOUNT,TNI_ACCOUNT_FERC,XBYYYYY01,NOP_PROD_EXTRACT | B95: Products Extraction - Oper | D95: 0 | E95: 0 | F95: 0
A97: %,V80100000 | B97: Natural gas field line purchas | C97: 80100000 | D97: 71666.92 | E97: =D97-H97 -> 21225.68 | F97: 414894.79 | H97: 50441.24
A98: %,NOP_NG_PURCH_FIELD | B98: NG Well Head Purchases | D98: 71666.92 | E98: 21225.68 | F98: 414894.79 | H98: 50441.24
A99: %,V80300300 | B99: Short Term Producer Purch | C99: 80300300 | D99: 4418537.63 | E99: -740992.31 | F99: 47889165.35 | H99: 5159529.94
A100: %,V80300400 | B100: Transportation Pipeline Exp | C100: 80300400 | D100: 1114855.07 | E100: -43082.98 | F100: 9292812.56 | H100: 1157938.05
A101: %,V80300500 | B101: Storage Charges Pipeline Exp | C101: 80300500 | D101: -244048.26 | E101: -130607.06 | F101: -3058847.4 | H101: -113441.2
A102: %,V80300600 | B102: OFS_System Supply Credit | C102: 80300600 | D102: -74207.44 | E102: -5507.01 | F102: -629320.92 | H102: -68700.43
A103: %,V80300808 | B103: Storage Demand | C103: 80300808 | D103: 1502153.14 | E103: 0 | F103: 15644833.02 | H103: 1502153.14
A104: %,NOP_NG_PURCH_TRANSLIN | B104: NG Transmission Line Purchases | D104: 6717290.14 | E104: -920189.36 | F104: 69138642.61 | H104: 7637479.5
A105: %,V80400000 | B105: Natural Gas City Gate Purchase | C105: 80400000 | D105: 163802.85 | E105: 121411.12 | F105: 1402977.54 | H105: 42391.73
A106: %,NOP_NG_PURCH_CITYGATE | B106: NG City Gate Purchases | D106: 163802.85 | E106: 121411.12 | F106: 1402977.54 | H106: 42391.73
A107: %,V80510000 | B107: Purchased Gas Cost Adjustments | C107: 80510000 | D107: 247005.53 | E107: 3644703.75 | F107: -16191539.75 | H107: -3397698.22
A108: %,NOP_NG_PURCH_ADJUST | B108: Purchased Gas Cost Adjustments | D108: 247005.53 | E108: 3644703.75 | F108: -16191539.75 | H108: -3397698.22
A109: %,V80601000 | B109: Exchange Gas-Received | C109: 80601000 | D109: 168768.86 | E109: -899582.55 | F109: 1106349.56 | H109: 1068351.41
A110: %,NOP_NG_PURCH_EXCHANGE | B110: Exchange Gas | D110: 168768.86 | E110: -899582.55 | F110: 1106349.56 | H110: 1068351.41
A111: %,V80720000 | B111: Oper-Purch Gas Measrg Stations | C111: 80720000 | D111: 26621.16 | E111: -466.8 | F111: 349619.89 | H111: 27087.96
A112: %,V80751000 | B112: Purch Gas Exp - Mgmt Fee | C112: 80751000 | D112: 4367.25 | E112: -48.65 | F112: 51725.53 | H112: 4415.9
A113: %,NOP_NG_PURCH_EXPENSE | B113: Purchased Gas Expenses | D113: 30988.41 | E113: -515.45 | F113: 401345.42 | H113: 31503.86
A114: %,V80810000 | B114: Gas Withdrawn | C114: 80810000 | D114: 3154269.51 | E114: 1837336.35 | F114: 22152885.07 | H114: 1316933.16
A115: %,NOP_NG_PURCH_WITHDRAW | B115: Gas Withdrawn from Storage | D115: 3154269.51 | E115: 1837336.35 | F115: 22152885.07 | H115: 1316933.16
A116: %,V80820000 | B116: Gas Delivered | C116: 80820000 | D116: -257112.69 | E116: 3071916.92 | F116: -28362120.09 | H116: -3329029.61
A117: %,NOP_NG_PURCH_DELIVER | B117: Gas Delivered to Storage | D117: -257112.69 | E117: 3071916.92 | F117: -28362120.09 | H117: -3329029.61
A118: %,V81220000 | B118: Gas Used-Other-Offset | C118: 81220000 | D118: -12183.48 | E118: -8259.03 | F118: -90349.12 | H118: -3924.45
A119: %,NOP_NG_PURCH_OTHOPS | B119: Gas Used for Other Utility Ops | D119: -12183.48 | E119: -8259.03 | F119: -90349.12 | H119: -3924.45
A120: %,FACCOUNT,TNI_ACCOUNT_FERC,XBYYYYY01,NOP_OTH_GAS_SUPPLY | B120: Other Gas Supply - Operations | D120: 10284496.05 | E120: 6868047.43 | F120: 49973086.03 | H120: 3416448.62
A121: %,FACCOUNT,TNI_ACCOUNT_FERC,XBYYYYY01,NOP_STEAM_POWER | B121: Steam Power - Operations | D121: 0 | E121: 0 | F121: 0
A122: %,FACCOUNT,TNI_ACCOUNT_FERC,XBYYYYY01,NOP_HYDRAULIC_POWER | B122: Hydraulic Power - Operations | D122: 0 | E122: 0 | F122: 0
A123: %,FACCOUNT,TNI_ACCOUNT_FERC,XBYYYYY01,NOP_OTHER_POWER | B123: Other Power - Operations | D123: 0 | E123: 0 | F123: 0
A124: %,V55700000 | B124: Other Exp | C124: 55700000 | D124: 0 | E124: =D124-H124 -> -452.98 | F124: 783.28 | H124: 452.98
A125: %,FACCOUNT,TNI_ACCOUNT_FERC,XBYYYYY01,NOP_OTH_POWER_SUPPLY | B125: Other Power Supply - Oper | D125: 0 | E125: =D125-H125 -> -452.98 | F125: 783.28 | H125: 452.98
A126: %,FACCOUNT,TNI_ACCOUNT_FERC,XBYYYYY01,NOP_NG_STOR_TERM_PROC | B126: NG Stor, Term & Proc - Oper | D126: 0 | E126: 0 | F126: 0
A128: %,V85200030 | B128: Communication System Exp | C128: 85200030 | D128: 101.69 | E128: =D128-H128 -> 100.7 | F128: 4815.11 | H128: 0.99
A129: %,V85900000 | B129: Gas Transmission Exp | C129: 85900000 | D129: 0 | E129: 0 | F129: 0 | H129: 0
A130: %,NOP_GAS_TRANS_EXP | B130: Transmission Exp - Oper - Gas | D130: 101.69 | E130: 100.7 | F130: 4815.11 | H130: 0.99
A131: %,FACCOUNT,TNI_ACCOUNT_FERC,XBYYYYY01,NOP_TRANS_EXP | B131: Transmission Exp - Oper | D131: 101.69 | E131: 100.7 | F131: 4815.11 | H131: 0.99
A132: %,FACCOUNT,TNI_ACCOUNT_FERC,XBYYYYY01,NOP_REG_MARKET_EXP | B132: Regional Market Exp - Oper | D132: 0 | E132: 0 | F132: 0
A134: %,V87000000 | B134: Op Superv-Eng-Gas Distr | C134: 87000000 | D134: 73045.69 | E134: =D134-H134 -> 8240.15 | F134: 929708.95 | H134: 64805.54
A135: %,V87100000 | B135: Distribution Load Dispatching | C135: 87100000 | D135: 8402.25 | E135: -13773.47 | F135: 189854 | H135: 22175.72
A136: %,V87400000 | B136: Mains and Services Exp | C136: 87400000 | D136: 1021856.14 | E136: 193821.63 | F136: 6945322.47 | H136: 828034.51
A137: %,V87500000 | B137: Measur-Reg Statn Exp Gen | C137: 87500000 | D137: 29218.85 | E137: 8662.36 | F137: 206425.92 | H137: 20556.49
A138: %,V87600000 | B138: Measur-Reg Statn Exp-Indus | C138: 87600000 | D138: 14792.71 | E138: 7261.38 | F138: 78216.49 | H138: 7531.33
A139: %,V87800000 | B139: Meter and House Regulator Exp | C139: 87800000 | D139: 104517.79 | E139: -20488.83 | F139: 1353292.15 | H139: 125006.62
A140: %,V87900000 | B140: Oper Installation Service Exp | C140: 87900000 | D140: 263553.66 | E140: 69119.01 | F140: 2625446.58 | H140: 194434.65
A141: %,V87900200 | B141: Oper Install-Chrg Labor | C141: 87900200 | D141: 0 | E141: 0 | F141: 211.52 | H141: 0
A142: %,V88000000 | B142: Operations Exp Other | C142: 88000000 | D142: 107984.88 | E142: 31009.98 | F142: 993534.37 | H142: 76974.9
A143: %,V88100000 | B143: Gas Distr Rents | C143: 88100000 | D143: 4820.91 | E143: 3357.82 | F143: 19057.51 | H143: 1463.09
A144: %,NOP_GAS_DISTR_EXP | B144: Distribution Exp - Oper - Gas | D144: 1628192.88 | E144: 287210.03 | F144: 13341069.96 | H144: 1340982.85
A145: %,FACCOUNT,TNI_ACCOUNT_FERC,XBYYYYY01,NOP_DISTR_EXP | B145: Distribution Exp - Oper | D145: 1628192.88 | E145: 287210.03 | F145: 13341069.96 | H145: 1340982.85
A146: %,V90100000 | B146: Customer Acnt Supervision | C146: 90100000 | D146: 41.44 | E146: -6.61 | F146: 271.46 | H146: 48.05
A147: %,V90200000 | B147: Cust Accnt Meter Reading Exp | C147: 90200000 | D147: 4614.92 | E147: -13172.57 | F147: 188781.03 | H147: 17787.49
A148: %,V90300000 | B148: Cust Records Collection Exp | C148: 90300000 | D148: 243967.71 | E148: 22506.67 | F148: 2404152.22 | H148: 221461.04
A149: %,V90400000 | B149: Uncollectible Accounts | C149: 90400000 | D149: -43351.35 | E149: -21709.53 | F149: -315587.58 | H149: -21641.82
A150: %,V90500000 | B150: Misc Cust Accts Exp | C150: 90500000 | D150: 1100.81 | E150: 193.23 | F150: 10229.22 | H150: 907.58
A151: %,FACCOUNT,TNI_ACCOUNT_FERC,XBYYYYY01,NOP_CUST_ACCTS_EXP | B151: Customer Accounts - Oper | D151: 206373.53 | E151: -12188.81 | F151: 2287846.35 | H151: 218562.34
A152: %,V90800000 | B152: Customer Assistance Exp | C152: 90800000 | D152: 3295 | E152: -9885 | F152: 92932.14 | H152: 13180
A153: %,V90900000 | B153: Inform_Instruct Advertisng Exp | C153: 90900000 | D153: 0 | E153: 0 | F153: 0 | H153: 0
A154: %,V91000000 | B154: Misc Cust Serv and Info Exp | C154: 91000000 | D154: 23271.33 | E154: -297.35 | F154: 246862.77 | H154: 23568.68
A155: %,FACCOUNT,TNI_ACCOUNT_FERC,XBYYYYY01,NOP_CUSTOMER_SERV_EXP | B155: Cust Serv & Info Exp - Oper | D155: 26566.33 | E155: -10182.35 | F155: 339794.91 | H155: 36748.68
A156: %,V91200000 | B156: Demonstrating and Selling Exp | C156: 91200000 | D156: 15.39 | E156: -354.4 | F156: 4029.7 | H156: 369.79
A157: %,V91300000 | B157: Sales Advertising Exp | C157: 91300000 | D157: 654.81 | E157: -28081.62 | F157: 38841.3 | H157: 28736.43
A158: %,FACCOUNT,TNI_ACCOUNT_FERC,XBYYYYY01,NOP_SALES_EXP | B158: Sales Expenses - Oper | D158: 670.2 | E158: -28436.02 | F158: 42871 | H158: 29106.22
A159: %,V92000000 | B159: A_G Salaries | C159: 92000000 | D159: 629875.85 | E159: -81341.38 | F159: 7668747.83 | H159: 711217.23
A160: %,V92001000 | B160: Discretionary and Spot Awards | C160: 92001000 | D160: 16504.8 | E160: 5901.89 | F160: 71386.29 | H160: 10602.91
A161: %,V92002000 | B161: Stock Compensation Expense | C161: 92002000 | D161: 79265.36 | E161: -5151.83 | F161: 844309.42 | H161: 84417.19
A162: %,V92100000 | B162: Office Supplies and Exp | C162: 92100000 | D162: 53230.64 | E162: -46702.9 | F162: 754195.92 | H162: 99933.54
A163: %,V92101000 | B163: Employee Expenses | C163: 92101000 | D163: 23176.06 | E163: -3396.82 | F163: 181666.72 | H163: 26572.88
A164: %,V92300000 | B164: Outside Service Employed | C164: 92300000 | D164: 478783.66 | E164: 494.7 | F164: 4763280.11 | H164: 478288.96
A165: %,V92301000 | B165: Mgmt Fee Actuals-Affil | C165: 92301000 | D165: 166122.98 | E165: -13717.68 | F165: 1779869.12 | H165: 179840.66
A166: %,V92400000 | B166: Property Insurance | C166: 92400000 | D166: 5290.29 | E166: 0 | F166: 49897.87 | H166: 5290.29
A167: %,V92500000 | B167: Injuries and Damages | C167: 92500000 | D167: 210265.28 | E167: 47040.39 | F167: 2007902.43 | H167: 163224.89
A168: %,V92600000 | B168: Employee Pensions and Benefits | C168: 92600000 | D168: 417409.65 | E168: 51028.18 | F168: 3776053.19 | H168: 366381.47
A169: %,V92601000 | B169: Non Service Pension & OPEB | C169: 92601000 | D169: -78140.01 | E169: 0 | F169: -549809.74 | H169: -78140.01
A170: %,V92800000 | B170: Regulatory Commission Exp | C170: 92800000 | D170: 23471.59 | E170: 835.08 | F170: 249921.48 | H170: 22636.51
A171: %,V93010000 | B171: General Advertising Exp | C171: 93010000 | D171: 552.95 | E171: -1822.39 | F171: 12989.3 | H171: 2375.34
A172: %,V93020000 | B172: Misc General Exp | C172: 93020000 | D172: 1224.2 | E172: -8724.25 | F172: 27335.23 | H172: 9948.45
A173: %,V93100000 | B173: Rents Admin and General | C173: 93100000 | D173: 70713.19 | E173: -1221.59 | F173: 808945.65 | H173: 71934.78
A174: %,FACCOUNT,TNI_ACCOUNT_FERC,XBYYYYY01,NOP_ADMIN_GEN | B174: Admin & General Exp - Oper | D174: 2097746.49 | E174: -56778.6 | F174: 22446690.82 | H174: 2154525.09
B175: Total Operation Expenses | D175: =D93+D94+D95+D120+D121+D122+D123+D125+D126+D131+D132+D145+D151+D155+D158+D174 -> 14244147.17 | E175: =E93+E94+E95+E120+E121+E122+E123+E125+E126+E131+E132+E145+E151+E155+E158+E174 -> 7047319.4 | F175: =F93+F94+F95+F120+F121+F122+F123+F125+F126+F131+F132+F145+F151+F155+F158+F174 -> 88436957.46
B177: Maintenance Expenses
A179: %,FACCOUNT,TNI_ACCOUNT_FERC,XBYYYYY01,NMAINT_PROD_EXP | B179: Production Expenses - Maint | D179: 0 | E179: =D179-H179 -> 0 | F179: 0
A180: %,FACCOUNT,TNI_ACCOUNT_FERC,XBYYYYY01,NMAINT_NG_STOR_PROC | B180: NG Stor, Term & Proc - Maint | D180: 0 | E180: 0 | F180: 0
A182: %,V56920000 | B182: Maint of Computer Software | C182: 56920000 | D182: 0 | E182: =D182-H182 -> 0 | F182: 0 | H182: 0
A183: %,NMAINT_ELEC_TRANS_EXP | B183: Transmission Exp - Maint-Elec | D183: 0 | E183: 0 | F183: 0 | H183: 0
A184: %,V86600000 | B184: Trans Maint Commun Equip | C184: 86600000 | D184: 0 | E184: 0 | F184: 30255 | H184: 0
A185: %,NMAINT_GAS_TRANS_EXP | B185: Transmission Exp - Maint-Gas | D185: 0 | E185: 0 | F185: 30255 | H185: 0
A186: %,FACCOUNT,TNI_ACCOUNT_FERC,XBYYYYY01,NMAINT_TRANS_EXP | B186: Transmission Exp - Maint | D186: 0 | E186: 0 | F186: 30255 | H186: 0
A188: %,V88500000 | B188: Maint Supv-Eng-Gas Distr | C188: 88500000 | D188: 7337.05 | E188: =D188-H188 -> 1445.64 | F188: 76138.89 | H188: 5891.41
A189: %,V88600000 | B189: Maint Struct-Improv-Gas Distr | C189: 88600000 | D189: 34432.53 | E189: 18050.49 | F189: 167687.98 | H189: 16382.04
A190: %,V88700000 | B190: Maint of Mains | C190: 88700000 | D190: 365887.75 | E190: 34477.92 | F190: 2734465.95 | H190: 331409.83
A191: %,V88900000 | B191: Maint Msr-Reg Statn Equi Gen | C191: 88900000 | D191: 170320.25 | E191: 97453.78 | F191: 896987.68 | H191: 72866.47
A192: %,V89000000 | B192: Maint Meas_Reg Stn Equip-Distr | C192: 89000000 | D192: 13783.05 | E192: 5562.32 | F192: 83613.31 | H192: 8220.73
A193: %,V89200000 | B193: Maint of Services | C193: 89200000 | D193: 114009.79 | E193: 270589.22 | F193: 704858.26 | H193: -156579.43
A194: %,V89300000 | B194: Maint Meters_House Regulators | C194: 89300000 | D194: 15519.87 | E194: 6588.2 | F194: 234767.87 | H194: 8931.67
A195: %,V89400000 | B195: Other Maint Equipment | C195: 89400000 | D195: 46856.49 | E195: 17054.7 | F195: 354668.8 | H195: 29801.79
A196: %,NMAINT_GAS_DISTR_EXP | B196: Distribution Exp - Maint-Gas | D196: 768146.78 | E196: 451222.27 | F196: 5253188.74 | H196: 316924.51
A197: %,FACCOUNT,TNI_ACCOUNT_FERC,XBYYYYY01,NMAINT_DISTR_EXP | B197: Distribution Exp - Maint | D197: 768146.78 | E197: 451222.27 | F197: 5253188.74 | H197: 316924.51
A198: %,V93200000 | B198: Maint General Plant | C198: 93200000 | D198: 92828.84 | E198: =D198-H198 -> -35892.5 | F198: 1110370.84 | H198: 128721.34
A199: %,FACCOUNT,TNI_ACCOUNT_FERC,XBYYYYY01,NMAINT_ADMIN_GEN | B199: Maintenance Gen and Admin | D199: 92828.84 | E199: -35892.5 | F199: 1110370.84 | H199: 128721.34
B200: Total Maintenance Expenses | D200: =D179+D180+D186+D197+D199 -> 860975.62 | E200: =E179+E180+E186+E197+E199 -> 415329.77 | F200: 6393814.58
A202: %,V40300000 | B202: Dep Exp | C202: 40300000 | D202: 1272009.97 | E202: =D202-H202 -> 11086.49 | F202: 13498798.29 | H202: 1260923.48
A203: %,FACCOUNT,TNI_ACCOUNT_FERC,XBYYYYY01,NDEPRECIATION_EXPENSE | B203: Depreciation Expense | D203: 1272009.97 | E203: =D203-H203 -> 11086.49 | F203: 13498798.29 | H203: 1260923.48
A204: %,FACCOUNT,TNI_ACCOUNT_FERC,XBYYYYY01,NDEPRECIATION_ARO_EXP | B204: Depreciation Expense for AROs | D204: 0 | E204: 0 | F204: 0
A206: %,V40430000 | B206: Amortization Exp-Other | C206: 40430000 | D206: 33745.73 | E206: =D206-H206 -> -1158.21 | F206: 382335.83 | H206: 34903.94
A207: %,V40434000 | B207: Cloude Amortizaiton Expense | C207: 40434000 | D207: 27161.39 | E207: -4287.62 | F207: 179562.43 | H207: 31449.01
A208: %,NAMORT_LMT_TERM_PROP | B208: Amort of Limited-Term Property | D208: 60907.12 | E208: -5445.83 | F208: 561898.26 | H208: 66352.95
A209: %,V40500000 | B209: Amortization of Oth Plant | C209: 40500000 | D209: 135526.76 | E209: 7301.34 | F209: 1272179.01 | H209: 128225.42
A210: %,NAMORT_OTH_PROP | B210: Amort of Other Property | D210: 135526.76 | E210: 7301.34 | F210: 1272179.01 | H210: 128225.42
A211: %,FACCOUNT,TNI_ACCOUNT_FERC,XBYYYYY01,NAMORT_DEPL_UTIL | B211: Amort & Deplet of Util Plant | D211: 196433.88 | E211: 1855.51 | F211: 1834077.27 | H211: 194578.37
A212: %,FACCOUNT,TNI_ACCOUNT_FERC,XBYYYYY01,NAMORT_UTIL_ADJ | B212: Amort of Gas Plant Acq Adj | D212: 0 | E212: 0 | F212: 0
A213: %,FACCOUNT,TNI_ACCOUNT_FERC,XBYYYYY01,NAMORT_CONV_EXP | B213: Amort of Conversion Exp | D213: 0 | E213: 0 | F213: 0
A214: %,FACCOUNT,TNI_ACCOUNT_FERC,XBYYYYY01,NREG_DEBITS | B214: Reg Debits | D214: 0 | E214: 0 | F214: 0
A215: %,FACCOUNT,TNI_ACCOUNT_FERC,XBYYYYY01,NREG_CREDITS | B215: Reg Credits | D215: 0 | E215: 0 | F215: 0
A216: %,V40813100 | B216: Tax Exp-License_Franchise | C216: 40813100 | D216: 0 | E216: 0 | F216: 3000 | H216: 0
A217: %,V40813200 | B217: Tax Exp-Property | C217: 40813200 | D217: 548738.42 | E217: 0 | F217: 5733077.61 | H217: 548738.42
A218: %,V40813300 | B218: Tax Exp-Sales and Use Tax | C218: 40813300 | D218: 0 | E218: 0 | F218: 0.04 | H218: 0
A219: %,V40813400 | B219: Tax Exp-Gross Receipts | C219: 40813400 | D219: 0 | E219: 0 | F219: 0 | H219: 0
A220: %,V40813600 | B220: Tax Exp-State and Local-Oth | C220: 40813600 | D220: 0 | E220: 0 | F220: 0 | H220: 0
A221: %,V40814100 | B221: Tax Exp-Payroll-Incentive | C221: 40814100 | D221: 6082.29 | E221: 0 | F221: 33221.04 | H221: 6082.29
... 96 more rows

Sheet Dec21
A1: %,LACTUALS,UPOSTED_TRAN_AMT | B1: %,ATF,FDESCR,UDESCR | C1: %,ATT,FACCOUNT | D1: %,LACTUALS,UPOSTED_TRAN_AMT,SPER,FBOOK_CODE,VR | E1: %,C | F1: %,LACTUALS,UPOSTED_TRAN_AMT,SYTD,FBOOK_CODE,VR | H1: %,LACTUALS,UPOSTED_TRAN_AMT,SPER-1,FBOOK_CODE,VR
B2: Columbia Gas of Kentucky Inc | H2: FOR
B3: Income Statement-FERC | H3: CALC
B4: Regulatory View - FERC Account
B5: For the Month Ended December 31, 2021 | H5: PURPOSES
B6: For Internal Use Only | H6: ONLY
D8: Current | E8: Change from | F8: Year-To- | H8: Prior
D9: Month | E9: Prior Month | F9: Date | H9: Month
B11: Operating Revenues
A13: %,V48000000 | B13: Residential Sales | C13: 48000000 | D13: 13151289.49 | E13: =D13-H13 -> 6908116.69 | F13: 87115956.1 | H13: 6243172.8
A14: %,V48000100 | B14: Residential Sales Norm | C14: 48000100 | D14: 0 | E14: 470.28 | F14: 6212.61 | H14: -470.28
A15: %,R,FACCOUNT,TNI_ACCOUNT_FERC,XBYYYYY01,NGAS_RESID_REV | B15: Gas Residential Sales | D15: 13151289.49 | E15: =D15-H15 -> 6908586.97 | F15: 87122168.71 | H15: 6242702.52
A17: %,V48101000 | B17: Commercial Gas Sales | C17: 48101000 | D17: 5806099.7 | E17: =D17-H17 -> 3053004.68 | F17: 36977187.78 | H17: 2753095.02
A18: %,V48101200 | B18: Commercial Gas Sales Norm | C18: 48101200 | D18: -0.25 | E18: 280.64 | F18: 3069.64 | H18: -280.89
A19: %,NGAS_COMM_REV | B19: Gas Commercial Revenues | D19: 5806099.45 | E19: 3053285.32 | F19: 36980257.42 | H19: 2752814.13
A20: %,V48102000 | B20: Industrial Gas Sales | C20: 48102000 | D20: 369929.03 | E20: 200327.45 | F20: 1888908.2 | H20: 169601.58
A21: %,V48102300 | B21: Industrial Gas Sales Norm | C21: 48102300 | D21: -8.61 | E21: 18.3 | F21: 160.79 | H21: -26.91
A22: %,NGAS_INDUST_REV | B22: Gas Industrial Revenues | D22: 369920.42 | E22: 200345.75 | F22: 1889068.99 | H22: 169574.67
A23: %,V48103000 | B23: Gas Sales-Other | C23: 48103000 | D23: 16725.88 | E23: 16725.88 | F23: 16861.96 | H23: 0
A24: %,NGAS_OTHER_REV | B24: Gas Comm & Indust Other Rev | D24: 16725.88 | E24: 16725.88 | F24: 16861.96 | H24: 0
A25: %,R,FACCOUNT,TNI_ACCOUNT_FERC,XBYYYYY01,NGAS_COMM_INDUST_REV | B25: Gas Comm & Indust Revenues | D25: 6192745.75 | E25: 3270356.95 | F25: 38886188.37 | H25: 2922388.8
A26: %,V48300000 | B26: Sales for Resale-Gas | C26: 48300000 | D26: 10057.34 | E26: =D26-H26 -> 5114.38 | F26: 81230.41 | H26: 4942.96
A27: %,R,FACCOUNT,TNI_ACCOUNT_FERC,XBYYYYY01,NGAS_SALES_RESALE | B27: Gas Sales for Resale | D27: 10057.34 | E27: 5114.38 | F27: 81230.41 | H27: 4942.96
A28: %,R,FACCOUNT,TNI_ACCOUNT_FERC,XBYYYYY01,NGAS_INTERDEPT_SALES | B28: Gas Interdepartmental Sales | D28: 0 | E28: 0 | F28: 0
A29: %,R,FACCOUNT,TNI_ACCOUNT_FERC,XBYYYYY01,NGAS_INTRACO_TRANSFER | B29: Gas Intercompany Transfers | D29: 0 | E29: =D29-H29 -> 0 | F29: 0
A30: xx | B30: Total Sales of Gas | D30: =D15+D25+D27+D28+D29 -> 19354092.58 | E30: =E15+E25+E27+E28+E29 -> 10184058.3 | F30: =F15+F25+F27+F28+F29 -> 126089587.5
A32: %,R,FACCOUNT,TNI_ACCOUNT_FERC,XBYYYYY01,NELE_RESID_REV | B32: Electric Residential Revenues | D32: 0 | E32: =D32-H32 -> 0 | F32: 0
A33: %,R,FACCOUNT,TNI_ACCOUNT_FERC,XBYYYYY01,NELE_COMM_IND_REV | B33: Elec Comm & Indust Rev | D33: 0 | E33: 0 | F33: 0
A34: %,R,FACCOUNT,TNI_ACCOUNT_FERC,XBYYYYY01,NELE_STREET_HWY_LIGHT | B34: Public Street & Hwy Lighting | D34: 0 | E34: 0 | F34: 0
A35: %,R,FACCOUNT,TNI_ACCOUNT_FERC,XBYYYYY01,NELE_OTH_SALES_PUBLIC | B35: Elec Oth Sales to Public Auth | D35: 0 | E35: 0 | F35: 0
A36: %,R,FACCOUNT,TNI_ACCOUNT_FERC,XBYYYYY01,NELE_RAILROAD | B36: Sales to Railroads & Railways | D36: 0 | E36: 0 | F36: 0
A37: %,R,FACCOUNT,TNI_ACCOUNT_FERC,XBYYYYY01,NELE_SALES_RESALE | B37: Electric Sales for Resale | D37: 0 | E37: 0 | F37: 0
A38: %,R,FACCOUNT,TNI_ACCOUNT_FERC,XBYYYYY01,NELE_INTERDEPT_SALES | B38: Elec Interdepartmental Sales | D38: 0 | E38: 0 | F38: 0
A39: xx | B39: Total Sales of Electricity | D39: =D32+D33+D34+D35+D36+D37+D38 -> 0 | E39: =E32+E33+E34+E35+E36+E37+E38 -> 0 | F39: 0
A41: %,V48700000 | B41: Forfeited Discounts-Gas | C41: 48700000 | D41: 37862.36 | E41: =D41-H41 -> 14038.68 | F41: 544707.1 | H41: 23823.68
A42: %,R,FACCOUNT,TNI_ACCOUNT_FERC,XBYYYYY01,NFORFEITED_DISC_GAS | B42: Forfeited Discounts - Gas | D42: 37862.36 | E42: =D42-H42 -> 14038.68 | F42: 544707.1 | H42: 23823.68
A43: %,R,FACCOUNT,TNI_ACCOUNT_FERC,XBYYYYY01,NFORFEITED_DISC_ELE | B43: Forfeited Discounts - Ele | D43: 0 | E43: 0 | F43: 0
B44: Total Forfeited Discounts | D44: =D42+D43 -> 37862.36 | E44: =E42+E43 -> 14038.68 | F44: 544707.1
A46: %,V48800000 | B46: Misc Service Revenues-Gas | C46: 48800000 | D46: 12844.25 | E46: =D46-H46 -> -10176.57 | F46: 129246.27 | H46: 23020.82
A47: %,R,FACCOUNT,TNI_ACCOUNT_FERC,XBYYYYY01,NMISC_SERV_REVS_GAS | B47: Misc Service Revenues - Gas | D47: 12844.25 | E47: =D47-H47 -> -10176.57 | F47: 129246.27 | H47: 23020.82
A48: %,R,FACCOUNT,TNI_ACCOUNT_FERC,XBYYYYY01,NMISC_SERV_REVS_ELE | B48: Misc Service Revenues - Ele | D48: 0 | E48: 0 | F48: 0
B49: Total Miscellaneous Service Revenues | D49: =D47+D48 -> 12844.25 | E49: =E47+E48 -> -10176.57 | F49: 129246.27
A51: %,R,FACCOUNT,TNI_ACCOUNT_FERC,XBYYYYY01,NRENT_ELE_PROP | B51: Rent from Electricity Property | D51: 0 | E51: =D51-H51 -> 0 | F51: 0
A52: %,R,FACCOUNT,TNI_ACCOUNT_FERC,XBYYYYY01,NOTH_ELE_REV | B52: Other Electric Revenues | D52: 0 | E52: 0 | F52: 0
A53: %,R,FACCOUNT,TNI_ACCOUNT_FERC,XBYYYYY01,NOTH_ELE_TRANS_REV | B53: Rev Transm of Elec of Oth | D53: 0 | E53: 0 | F53: 0
A54: %,R,FACCOUNT,TNI_ACCOUNT_FERC,XBYYYYY01,NOTH_REV_SERVICE_CO | B54: Nonutility Revenues - Serv Co | D54: 0 | E54: 0 | F54: 0
A55: %,R,FACCOUNT,TNI_ACCOUNT_FERC,XBYYYYY01,NREG_ELE_TRANS_REV | B55: Regional Transm Service Rev | D55: 0 | E55: 0 | F55: 0
A56: %,R,FACCOUNT,TNI_ACCOUNT_FERC,XBYYYYY01,NTRANSPORT_GATH_REV | B56: Rev Transp Gas of Oth - Gather | D56: 0 | E56: 0 | F56: 0
A57: %,R,FACCOUNT,TNI_ACCOUNT_FERC,XBYYYYY01,NTRANSPORT_TRANS_REV | B57: Rev Transp Gas of Oth - Transm | D57: 0 | E57: 0 | F57: 0
A58: %,V48930000 | B58: Transp Rev Distr Residential | C58: 48930000 | D58: 842116.54 | E58: 281530.22 | F58: 7665201.58 | H58: 560586.32
A59: %,V48930200 | B59: Unbilled Residential Trans Vol | C59: 48930200 | D59: 180296.2 | E59: -41201.4 | F59: 134859.3 | H59: 221497.6
A60: %,V48930300 | B60: Unbilled Res Trans Cust chrg | C60: 48930300 | D60: 50357 | E60: 51829 | F60: 34229 | H60: -1472
A61: %,V48931000 | B61: Transp Rev Distr Commercial | C61: 48931000 | D61: 970730.09 | E61: 263303.31 | F61: 8626104.67 | H61: 707426.78
A62: %,V48931300 | B62: Unbilled Comm Trans Vol | C62: 48931300 | D62: 18563.47 | E62: -251934.65 | F62: 126932.37 | H62: 270498.12
A63: %,V48931400 | B63: Unbilled Comm Trans Cust chrg | C63: 48931400 | D63: 97203.11 | E63: 97515.94 | F63: 98052.22 | H63: -312.83
A64: %,V48932000 | B64: Transp Rev Distr Industrial | C64: 48932000 | D64: 479395.16 | E64: -85636.76 | F64: 5430819.51 | H64: 565031.92
A65: %,V48932400 | B65: Unbilled Ind Trans Vol | C65: 48932400 | D65: -4531.72 | E65: -10772.74 | F65: 724.13 | H65: 6241.02
A66: %,V48932500 | B66: Unbilled Ind Trans Cust chrg | C66: 48932500 | D66: 2566.27 | E66: 2566.27 | F66: 2566.27 | H66: 0
A67: %,R,FACCOUNT,TNI_ACCOUNT_FERC,XBYYYYY01,NTRANSPORT_DISTR_REV | B67: Rev Transp Gas of Oth - Distr | D67: 2636696.12 | E67: 307199.19 | F67: 22119489.05 | H67: 2329496.93
A68: %,R,FACCOUNT,TNI_ACCOUNT_FERC,XBYYYYY01,NSTORE_GAS_REV | B68: Rev from Storing Gas of Oth | D68: 0 | E68: 0 | F68: 0
A69: %,R,FACCOUNT,TNI_ACCOUNT_FERC,XBYYYYY01,NSALES_EXTRACT_GAS | B69: Sales - Prod Extracted from NG | D69: 0 | E69: 0 | F69: 0
A70: %,R,FACCOUNT,TNI_ACCOUNT_FERC,XBYYYYY01,NGAS_OIL_SALES | B70: Incidental Gasoline & Oil Sale | D70: 0 | E70: 0 | F70: 0
A71: %,V49300000 | B71: Rent from Gas Property | C71: 49300000 | D71: 2852 | E71: =D71-H71 -> 0 | F71: 34224 | H71: 2852
A72: %,R,FACCOUNT,TNI_ACCOUNT_FERC,XBYYYYY01,NRENT_GAS_PROP | B72: Rent from Gas Property | D72: 2852 | E72: 0 | F72: 34224 | H72: 2852
A74: %,V49500485 | B74: Unbilled Residential-Vol | C74: 49500485 | D74: 607619 | E74: =D74-H74 -> -4309217.28 | F74: 895149.67 | H74: 4916836.28
A75: %,V49501485 | B75: Unbilled Res Customer Chrg | C75: 49501485 | D75: 445271.14 | E75: 422887.14 | F75: 444313.9 | H75: 22384
A76: %,V49503483 | B76: Unbilled Off System Sales | C76: 49503483 | D76: 0 | E76: 0 | F76: 0 | H76: 0
A77: %,V49510485 | B77: Unbilled Commercial-Vol | C77: 49510485 | D77: -458090.95 | E77: -2747201.6 | F77: 186948.13 | H77: 2289110.65
A78: %,V49511485 | B78: Unbilled Comm Customer Chrg | C78: 49511485 | D78: 451066.66 | E78: 442352.11 | F78: 443782.19 | H78: 8714.55
A79: %,V49520485 | B79: Unbilled Industrial-Vol | C79: 49520485 | D79: -27323.5 | E79: -74282.82 | F79: -744.57 | H79: 46959.32
A80: %,V49521485 | B80: Unbilled Ind Customer Chrg | C80: 49521485 | D80: 1783.58 | E80: 1783.58 | F80: 1783.58 | H80: 0
A81: %,NUNBILLED_REV_FERC | B81: Unbilled Revenues | D81: 1020325.93 | E81: -6263678.87 | F81: 1971232.9 | H81: 7284004.8
A82: %,V49500000 | B82: Other Gas Revenue | C82: 49500000 | D82: 37764.16 | E82: 22262.52 | F82: 338324.56 | H82: 15501.64
A83: %,V49500050 | B83: Billed Off System Sales | C83: 49500050 | D83: 53957.34 | E83: -946128.66 | F83: 6159145.12 | H83: 1000086
A84: %,R,FACCOUNT,TNI_ACCOUNT_FERC,XBYYYYY01,NOTH_GAS_REV | B84: Other Gas Revenues | D84: 1112047.43 | E84: -7187545.01 | F84: 8468702.58 | H84: 8299592.44
A85: %,R,FACCOUNT,TNI_ACCOUNT_FERC,XBYYYYY01,NGAS_PROV_RATE_REFUND | B85: Gas Provision of Rate Refunds | D85: 0 | E85: 0 | F85: 0
B86: Total Other Operating Revenues | D86: =D44+D49+D51+D52+D53+D54+D55+D56+D57+D67+D68+D69+D70+D72+D84+D85 -> 3802302.16 | E86: =E44+E49+E51+E52+E53+E54+E55+E56+E57+E67+E68+E69+E70+E72+E84+E85 -> -6876483.71 | F86: 31296369
A87: xx | B87: Total Operating Revenues | D87: =D30+D39+D86 -> 23156394.74 | E87: =E30+E39+E86 -> 3307574.59 | F87: =F30+F39+F86 -> 157385956.5
B89: Operating Expenses
B91: Operation Expenses
A93: %,FACCOUNT,TNI_ACCOUNT_FERC,XBYYYYY01,NOP_MANUF_GAS | B93: Manufac Gas Production - Oper | D93: 0 | E93: =D93-H93 -> 0 | F93: 0
A94: %,FACCOUNT,TNI_ACCOUNT_FERC,XBYYYYY01,NOP_NTRLGAS_PROD_GTH | B94: NG Production & Gather - Oper | D94: 0 | E94: 0 | F94: 0
A95: %,FACCOUNT,TNI_ACCOUNT_FERC,XBYYYYY01,NOP_PROD_EXTRACT | B95: Products Extraction - Oper | D95: 0 | E95: 0 | F95: 0
A97: %,V80100000 | B97: Natural gas field line purchas | C97: 80100000 | D97: 40729.66 | E97: =D97-H97 -> -30937.26 | F97: 455624.45 | H97: 71666.92
A98: %,NOP_NG_PURCH_FIELD | B98: NG Well Head Purchases | D98: 40729.66 | E98: -30937.26 | F98: 455624.45 | H98: 71666.92
A99: %,V80300300 | B99: Short Term Producer Purch | C99: 80300300 | D99: 1214328.69 | E99: -3204208.94 | F99: 49103494.04 | H99: 4418537.63
A100: %,V80300400 | B100: Transportation Pipeline Exp | C100: 80300400 | D100: 939807.63 | E100: -175047.44 | F100: 10232620.19 | H100: 1114855.07
A101: %,V80300500 | B101: Storage Charges Pipeline Exp | C101: 80300500 | D101: -419049.69 | E101: -175001.43 | F101: -3477897.09 | H101: -244048.26
